Workbook

Sheet Planning
F2: Jeune Genevois
C3: 2013-11-04 | D3: =SUM(C3+1) -> 2013-11-05 | E3: =SUM(D3+1) -> 2013-11-06 | F3: =SUM(E3+1) -> 2013-11-07 | G3: =SUM(F3+1) -> 2013-11-08 | H3: =SUM(G3+1) -> 2013-11-09 | I3: =SUM(H3+2) -> 2013-11-11 | J3: =SUM(I3+1) -> 2013-11-12 | K3: =SUM(J3+1) -> 2013-11-13 | L3: =SUM(K3+1) -> 2013-11-14 | M3: =SUM(L3+1) -> 2013-11-15 | N3: =SUM(M3+1) -> 2013-11-16 | O3: =SUM(N3+2) -> 2013-11-18 | P3: =SUM(O3+1) -> 2013-11-19 | Q3: =SUM(P3+1) -> 2013-11-20 | R3: =SUM(Q3+1) -> 2013-11-21 | S3: =SUM(R3+1) -> 2013-11-22 | T3: =SUM(S3+1) -> 2013-11-23 | U3: =SUM(T3+2) -> 2013-11-25 | V3: =SUM(U3+1) -> 2013-11-26 | W3: =SUM(V3+1) -> 2013-11-27 | X3: =SUM(W3+1) -> 2013-11-28 | Y3: =SUM(X3+1) -> 2013-11-29 | Z3: =SUM(Y3+1) -> 2013-11-30 | AA3: =SUM(Z3+2) -> 2013-12-02 | AB3: =SUM(AA3+1) -> 2013-12-03 | AC3: =SUM(AB3+1) -> 2013-12-04 | AD3: =SUM(AC3+1) -> 2013-12-05 | AE3: =SUM(AD3+1) -> 2013-12-06 | AF3: =SUM(AE3+1) -> 2013-12-07 | AG3: =SUM(AF3+2) -> 2013-12-09 | AH3: =SUM(AG3+1) -> 2013-12-10 | AI3: =SUM(AH3+1) -> 2013-12-11 | AJ3: =SUM(AI3+1) -> 2013-12-12 | AK3: =SUM(AJ3+1) -> 2013-12-13 | AL3: =SUM(AK3+1) -> 2013-12-14 | AM3: =SUM(AL3+2) -> 2013-12-16 | AN3: =SUM(AM3+1) -> 2013-12-17 | AO3: =SUM(AN3+1) -> 2013-12-18 | AP3: =SUM(AO3+1) -> 2013-12-19 | AQ3: =SUM(AP3+1) -> 2013-12-20 | AR3: =SUM(AQ3+1) -> 2013-12-21 | AS3: =SUM(AR3+2) -> 2013-12-23 | AT3: =SUM(AS3+1) -> 2013-12-24 | AU3: =SUM(AT3+1) -> 2013-12-25 | AV3: =SUM(AU3+1) -> 2013-12-26 | AW3: =SUM(AV3+1) -> 2013-12-27 | AX3: =SUM(AW3+1) -> 2013-12-28 | AY3: =SUM(AX3+2) -> 2013-12-30 | AZ3: =SUM(AY3+1) -> 2013-12-31 | BA3: =SUM(AZ3+1) -> 2014-01-01 | BB3: =SUM(BA3+1) -> 2014-01-02 | BC3: =SUM(BB3+1) -> 2014-01-03 | BD3: =SUM(BC3+1) -> 2014-01-04
B4: Aurélien | C4: R | D4: R | E4: Nav1 | F4: Nav2 | G4: Nav2 | H4: Nav3 | I4: nav1 | J4: Nav1 | K4: Nav1 | L4: Nav2 | M4: R | N4: R | O4: R | P4: R | Q4: Nav1 | R4: Nav2 | S4: Nav2 | T4: Nav3 | U4: nav1 | V4: Nav1 | W4: Nav1 | X4: Nav2 | Y4: R | Z4: R | AA4: R | AB4: R | AC4: Nav1 | AD4: Nav2 | AE4: Nav2 | AF4: Nav3 | AG4: nav1 | AH4: Nav1 | AI4: Nav1 | AJ4: Recup | AK4: R | AL4: R | AM4: R | AN4: R | AO4: Nav1 | AP4: Nav2 | AQ4: Nav2 | AR4: Nav3 | AS4: Nav1 | AT4: Nav1 | AU4: F | AV4: Nav2 | AW4: R | AX4: R | AY4: R | AZ4: Nav1 | BA4: F | BB4: Nav1 | BC4: Nav2 | BD4: Nav3
B5: Fabrice | C5: V | D5: V | E5: V | F5: V | G5: R | H5: R | I5: R | J5: Pom1 | K5: Pom1 | L5: Pom2 | M5: Pom2 | N5: R | O5: R | P5: Pom1 | Q5: R | R5: Pom2 | S5: Pom2 | T5: Pom3 | U5: R | V5: Pom1 | W5: Pom1 | X5: Pom2 | Y5: recup | Z5: R | AA5: R | AB5: recup | AC5: R | AD5: Pom2 | AE5: Pom2 | AF5: pom3 | AG5: R | AH5: Pom1 | AI5: Pom1 | AJ5: Pom2 | AK5: Pom2 | AL5: R | AM5: R | AN5: Pom1 | AO5: R | AP5: Pom2 | AQ5: Pom2 | AR5: Pom3 | AS5: R | AT5: Pom1 | AU5: F | AV5: Pom2 | AW5: Pom2 | AX5: Pom3 | AY5: Pom1 | AZ5: Pom1 | BA5: F | BB5: Tour1 | BC5: Pom2 | BD5: R
B6: Jacques | C6: M | D6: M | E6: M | F6: M | G6: R | H6: R | I6: M | J6: M | K6: M | L6: M | M6: R | N6: R | O6: M | P6: M | Q6: M | R6: M | S6: R | T6: R | U6: M | V6: M | W6: M | X6: M | Y6: R | Z6: R | AA6: M | AB6: M | AC6: M | AD6: M | AE6: R | AF6: R | AG6: M | AH6: M | AI6: M | AJ6: M | AK6: R | AL6: R | AM6: M | AN6: M | AO6: M | AP6: M | AQ6: R | AR6: R | AS6: M | AT6: M | AU6: M | AV6: M | AW6: R | AX6: R | AY6: M | AZ6: M | BA6: M | BB6: M | BC6: R | BD6: R
B7: Fréderic D | C7: vib1 | D7: Vib1 | E7: X | F7: X | G7: X | H7: X | I7: vib1 | J7: Vib1 | K7: X | L7: X | M7: X | N7: X | O7: Vib1 | P7: Vib1 | Q7: X | R7: X | S7: X | T7: X | U7: Vib1 | V7: Vib1 | W7: X | X7: X | Y7: X | Z7: X | AA7: vib1 | AB7: Vib1 | AC7: X | AD7: X | AE7: X | AF7: X | AG7: Vib1 | AH7: Vib1 | AI7: X | AJ7: X | AK7: X | AL7: X | AM7: Vib1 | AN7: Vib1 | AO7: X | AP7: X | AQ7: X | AR7: X | AS7: Vib1 | AT7: Vib1 | AU7: X | AV7: X | AW7: X | AX7: X | AY7: Vib1 | AZ7: Vib1 | BA7: X | BB7: X | BC7: X | BD7: X
B8: Henri | C8: Onex1 | D8: Onex1 | E8: Onex1 | F8: Onex2 | G8: R | H8: R | I8: onex1 | J8: Onex1 | K8: R | L8: R | M8: onex2 | N8: Onex3 | O8: Onex1 | P8: Onex1 | Q8: Onex1 | R8: Onex2 | S8: R | T8: R | U8: Onex1 | V8: Onex1 | W8: Onex1 | X8: Onex2 | Y8: R | Z8: R | AA8: Onex1 | AB8: Onex1 | AC8: Onex1 | AD8: R | AE8: R | AF8: Recup | AG8: Onex1 | AH8: Onex1 | AI8: Onex1 | AJ8: R | AK8: R | AL8: Onex3 | AM8: Onex1 | AN8: Onex1 | AO8: Onex1 | AP8: Onex2 | AQ8: R | AR8: R | AS8: Onex1 | AT8: Onex1 | AU8: F | AV8: Onex2 | AW8: R | AX8: Onex3 | AY8: Onex1 | AZ8: Onex1 | BA8: F | BB8: Onex1 | BC8: Onex2 | BD8: R
B9: Virginie | C9: one1 | D9: X | E9: Onex1 | F9: X | G9: X | H9: X | I9: onex1 | J9: X | K9: Onex1 | L9: X | M9: X | N9: X | O9: Onex1 | P9: X | Q9: Onex1 | R9: X | S9: X | T9: X | U9: Onex1 | V9: X | W9: Onex1 | X9: X | Y9: X | Z9: X | AA9: recup | AB9: X | AC9: Onex1 | AD9: X | AE9: X | AF9: X | AG9: Onex1 | AH9: X | AI9: Onex1 | AJ9: X | AK9: X | AL9: X | AM9: Onex1 | AN9: X | AO9: Onex1 | AP9: X | AQ9: X | AR9: X | AS9: Onex1 | AT9: X | AU9: F | AV9: X | AW9: X | AX9: X | AY9: Onex1 | AZ9: Onex1 | BA9: F | BB9: X | BC9: X | BD9: X
B10: Nicolas | C10: R | D10: R | E10: Tour1 | F10: Nyon1 | G10: Onex2 | H10: Onex3 | I10: R | J10: R | K10: Onex1 | L10: onex2 | M10: tour2 | N10: tour3 | O10: R | P10: R | Q10: tour1 | R10: tour2 | S10: onex2 | T10: onex3 | U10: R | V10: R | W10: recup | X10: onex2 | Y10: onex2 | Z10: onex3 | AA10: R | AB10: onex1 | AC10: R | AD10: onex2 | AE10: onex2 | AF10: Onex3 | AG10: R | AH10: R | AI10: Recup | AJ10: onex2 | AK10: onex2 | AL10: onex3 | AM10: R | AN10: R | AO10: pom1 | AP10: Onex2 | AQ10: onex2 | AR10: onex3 | AS10: R | AT10: Onex1 | AU10: F | AV10: Onex2 | AW10: Onex2 | AX10: Onex3 | AY10: R | AZ10: Tour1 | BA10: F | BB10: Onex1 | BC10: Onex2 | BD10: Onex3
B11: Véronique | C11: R | D11: Plo1 | E11: Plo1 | F11: R | G11: Plo2 | H11: Plo3 | I11: V | J11: V | K11: V | L11: Recup | M11: R | N11: R | O11: R | P11: Plo1 | Q11: Plo1 | R11: R | S11: Plo2 | T11: Plo3 | U11: R | V11: Plo1 | W11: Plo1 | X11: R | Y11: Plo2 | Z11: Plo3 | AA11: plo1 | AB11: Plo1 | AC11: R | AD11: Plo2 | AE11: Recup | AF11: R | AG11: R | AH11: Plo1 | AI11: Plo1 | AJ11: R | AK11: Plo2 | AL11: Plo3 | AM11: R | AN11: Plo1 | AO11: Plo1 | AP11: R | AQ11: Plo2 | AR11: Plo3 | AS11: Plo1 | AT11: Plo1 | AU11: F | AV11: R | AW11: Plo2 | AX11: Plo3 | AY11: Plo1 | AZ11: Plo1 | BA11: F | BB11: Plo1 | BC11: R | BD11: Plo3
B12: Paulo | C12: Thon1 | D12: Thon1 | E12: R | F12: Thon2 | G12: R | H12: Thon3 | I12: thon1 | J12: Thon1 | K12: Thon1 | L12: Thon2 | M12: R | N12: R | O12: Thon1 | P12: Thon1 | Q12: R | R12: Thon2 | S12: R | T12: Thon3 | U12: Thon1 | V12: Thon1 | W12: Thon1 | X12: Thon2 | Y12: R | Z12: R | AA12: Thon1 | AB12: Thon1 | AC12: R | AD12: Thon2 | AE12: R | AF12: Thon3 | AG12: thon1 | AH12: Thon1 | AI12: Thon1 | AJ12: Thon2 | AK12: R | AL12: R | AM12: Thon1 | AN12: Thon1 | AO12: R | AP12: Thon2 | AQ12: R | AR12: Thon3 | AS12: thon1 | AT12: Thon1 | AU12: F | AV12: Thon2 | AW12: R | AX12: R | AY12: Thon1 | AZ12: Thon1 | BA12: F | BB12: thon1 | BC12: R | BD12: Thon3
B13: J-Christophe | C13: pom1 | D13: pom1 | E13: Nyon1 | F13: pom1 | G13: R | H13: R | I13: plo1 | J13: plo1 | K13: R | L13: Nyon1 | M13: R | N13: Pom3 | O13: plo1 | P13: R | Q13: ves1 | R13: R | S13: thon2 | T13: Vib3 | U13: R | V13: R | W13: Vib1 | X13: Nyon1 | Y13: pom2 | Z13: pom3 | AA13: Onex1 | AB13: pom1 | AC13: pom1 | AD13: R | AE13: R | AF13: recup | AG13: R | AH13: R | AI13: recup | AJ13: nav2 | AK13: Vib2 | AL13: pom3 | AM13: R | AN13: R | AO13: Nav1 | AP13: Nav2 | AQ13: Nav2 | AR13: Nav3 | AS13: pom1 | AT13: Vid1 | AU13: F | AV13: R | AW13: nav2 | AX13: nav3 | AY13: nav1 | AZ13: Pom1 | BA13: F | BB13: Tour1 | BC13: Pom2 | BD13: vid3
B14: David | C14: M | D14: X | E14: X | F14: X | G14: M | H14: M | I14: M | J14: X | K14: X | L14: X | M14: M | N14: M | O14: M | P14: X | Q14: X | R14: X | S14: M | T14: M | U14: M | V14: X | W14: X | X14: X | Y14: M | Z14: M | AA14: M | AB14: X | AC14: X | AD14: X | AE14: M | AF14: M | AG14: M | AH14: X | AI14: X | AJ14: X | AK14: M | AL14: M | AM14: M | AN14: X | AO14: X | AP14: X | AQ14: M | AR14: M | AS14: M | AT14: X | AU14: X | AV14: X | AW14: M | AX14: M | AY14: M | AZ14: X | BA14: X | BB14: X | BC14: M | BD14: M
B15: Hubert | C15: Nyon1 | D15: Nyon1 | E15: R | F15: R | G15: recup | H15: pom3 | I15: nyon1 | J15: Nyon1 | K15: Nyon1 | L15: plo2 | M15: R | N15: R | O15: R | P15: R | Q15: Nyon1 | R15: Nyon1 | S15: Nyon1 | T15: Nyon2 | U15: Nyon1 | V15: Nyon1 | W15: R | X15: R | Y15: Nyon1 | Z15: Nyon2 | AA15: Nyon1 | AB15: Nyon1 | AC15: Nyon1 | AD15: Nyon1 | AE15: R | AF15: R | AG15: R | AH15: R | AI15: Nyon1 | AJ15: Nyon1 | AK15: Nyon1 | AL15: Nyon2 | AM15: Nyon1 | AN15: Nyon1 | AO15: R | AP15: R | AQ15: Nyon1 | AR15: Nyon2 | AS15: R | AT15: Nyon1 | AU15: F | AV15: Nyon1 | AW15: Nyon1 | AX15: Nyon2 | AY15: R | AZ15: Nyon1 | BA15: F | BB15: Nav1 | BC15: Nyon1 | BD15: Nyon2
B16: Izabella | C16: Aca1 | D16: Onex1 | E16: R | F16: Onex2 | G16: Nyon1 | H16: Nyon2 | I16: vid1 | J16: Vid1 | K16: R | L16: R | M16: Nyon1 | N16: Nyon2 | O16: Nyon1 | P16: Nyon1 | Q16: R | R16: R | S16: recup | T16: Vid3 | U16: Vid1 | V16: Vid1 | W16: Nyon1 | X16: recup | Y16: R | Z16: R | AA16: R | AB16: R | AC16: Vid1 | AD16: Vid2 | AE16: Nyon1 | AF16: Nyon2 | AG16: Nyon1 | AH16: Nyon1 | AI16: R | AJ16: R | AK16: Vid2 | AL16: Vid3 | AM16: Vid1 | AN16: Vid1 | AO16: Nyon1 | AP16: Nyon1 | AQ16: R | AR16: Nyon2 | AS16: Nyon1 | AT16: Vid1 | AU16: F | AV16: R | AW16: R | AX16: Nyon2 | AY16: Nyon1 | AZ16: Nyon1 | BA16: F | BB16: Vid1 | BC16: Nyon1 | BD16: R
B17: Julien | C17: nav1 | D17: nav1 | E17: pom1 | F17: tour2 | G17: R | H17: R | I17: pom1 | J17: onex1 | K17: R | L17: R | M17: nav2 | N17: nav3 | O17: tour1 | P17: R | Q17: R | R17: vibferm | S17: vib2 | T17: nav3 | U17: pom1 | V17: Onex1 | W17: R | X17: R | Y17: nav2 | Z17: nav3 | AA17: nav1 | AB17: nav1 | AC17: R | AD17: R | AE17: tour2 | AF17: tour3 | AG17: R | AH17: R | AI17: tour1 | AJ17: tour2 | AK17: nav2 | AL17: nav3 | AM17: nav1 | AN17: nav1 | AO17: Vib1 | AP17: vibferm | AQ17: R | AR17: Vib3 | AS17: R | AT17: tour1 | AU17: F | AV17: tour2 | AW17: vib2 | AX17: R | AY17: nav1 | AZ17: nav1 | BA17: F | BB17: Aca1 | BC17: R | BD17: pom3
B18: Arnaud | C18: Aca* | D18: R | E18: vib1 | F18: Vibferm | G18: vib2 | H18: Vib3 | I18: R | J18: R | K18: Vib1 | L18: vibferm | M18: vib2 | N18: vib3 | O18: pom1 | P18: nav1 | Q18: pom1 | R18: Recup | S18: R | T18: R | U18: R | V18: R | W18: Vib1 | X18: vibferm | Y18: vib2 | Z18: Vib3 | AA18: R | AB18: R | AC18: Vib1 | AD18: vibferm | AE18: Vib2 | AF18: Vib3 | AG18: pom1 | AH18: Nav1 | AI18: Vib1 | AJ18: vibferm | AK18: R | AL18: R | AM18: pom1 | AN18: tour1 | AO18: R | AP18: R | AQ18: Vib2 | AR18: recup | AS18: R | AT18: Nav1 | AU18: F | AV18: vibferm | AW18: nav2 | AX18: nav3 | AY18: R | AZ18: Vib1 | BA18: F | BB18: vib1 | BC18: vib2 | BD18: Nav3
B19: Pascal | C19: R | D19: R | E19: Vib1 | F19: Vibjeu | G19: Vib2 | H19: Vib3 | I19: R | J19: R | K19: Vib1 | L19: Vibjeu | M19: Vib2 | N19: Vib3 | O19: R | P19: R | Q19: Vib1 | R19: Vibjeu | S19: Vib2 | T19: Vib3 | U19: R | V19: R | W19: recup | X19: Vibjeu | Y19: Vib2 | Z19: Vib3 | AA19: R | AB19: R | AC19: Vib1 | AD19: Vibjeu | AE19: Vib2 | AF19: Vib3 | AG19: R | AH19: R | AI19: Vib1 | AJ19: Vibjeu | AK19: Vib2 | AL19: Vib3 | AM19: R | AN19: R | AO19: Vib1 | AP19: Vibjeu | AQ19: Vib2 | AR19: Vib3 | AS19: R | AT19: Vib1 | AU19: F | AV19: vibjeu | AW19: vib2 | AX19: vib3 | AY19: R | AZ19: Vib1 | BA19: F | BB19: vib1 | BC19: vib2 | BD19: vib3
B20: Lidia | C20: Aca1 | D20: R | E20: R | F20: Aca2 | G20: Aca2 | H20: Aca3 | I20: Aca1 | J20: Aca1 | K20: Aca1 | L20: R | M20: R | N20: Aca3 | O20: Aca1 | P20: Aca1 | Q20: Aca1 | R20: Aca2 | S20: R | T20: R | U20: Aca1 | V20: R | W20: R | X20: Aca2 | Y20: Aca2 | Z20: Aca3 | AA20: Aca1 | AB20: Aca1 | AC20: Aca1 | AD20: R | AE20: R | AF20: Aca3 | AG20: Aca1 | AH20: Aca1 | AI20: Aca1 | AJ20: Aca2 | AK20: R | AL20: R | AM20: Aca1 | AN20: R | AO20: R | AP20: Aca2 | AQ20: Aca2 | AR20: Aca3 | AS20: R | AT20: Aca1 | AU20: F | AV20: Aca2 | AW20: R | AX20: aca3 | AY20: Aca1 | AZ20: Aca1 | BA20: F | BB20: Aca1 | BC20: Aca2 | BD20: R
B21: Fréderic M | C21: vib1 | D21: R | E21: Ves1 | F21: Ves2 | G21: Ves2 | H21: R | I21: R | J21: R | K21: Ves1 | L21: Ves2 | M21: Ves2 | N21: Ves3 | O21: R | P21: R | Q21: recup | R21: Ves2 | S21: Ves2 | T21: Ves3 | U21: R | V21: R | W21: Ves1 | X21: Ves2 | Y21: Ves2 | Z21: Ves3 | AA21: R | AB21: R | AC21: Ves1 | AD21: Ves2 | AE21: Ves2 | AF21: Ves3 | AG21: R | AH21: R | AI21: Ves1 | AJ21: Ves2 | AK21: Ves2 | AL21: Ves3 | AM21: R | AN21: R | AO21: Ves1 | AP21: Ves2 | AQ21: Ves2 | AR21: Ves3 | AS21: R | AT21: Ves1 | AU21: F | AV21: Ves2 | AW21: Ves2 | AX21: Ves3 | AY21: R | AZ21: R | BA21: F | BB21: ves1 | BC21: Ves2 | BD21: Ves3
B22: Vincent | C22: Ves1 | D22: Ves1 | E22: X | F22: X | G22: X | H22: X | I22: ves1 | J22: Ves1 | K22: X | L22: X | M22: X | N22: X | O22: Ves1 | P22: Ves1 | Q22: X | R22: X | S22: X | T22: X | U22: Ves1 | V22: Ves1 | W22: X | X22: X | Y22: X | Z22: X | AA22: ves1 | AB22: Ves1 | AC22: X | AD22: X | AE22: X | AF22: X | AG22: Ves1 | AH22: Ves1 | AI22: X | AJ22: X | AK22: X | AL22: X | AM22: Ves1 | AN22: Ves1 | AO22: X | AP22: X | AQ22: X | AR22: X | AS22: Ves1 | AT22: Ves1 | AU22: X | AV22: X | AW22: X | AX22: X | AY22: Ves1 | AZ22: Ves1 | BA22: X | BB22: X | BC22: X | BD22: X
B23: Hervé | C23: Plo1 | D23: Aca1 | E23: Aca1 | F23: Plo2 | G23: R | H23: R | I23: R | J23: R | K23: Plo1 | L23: Aca1 | M23: Aca1 | N23: Plo1 | O23: recup | P23: R | Q23: R | R23: Plo2 | S23: Aca2 | T23: Aca3 | U23: Plo1 | V23: Aca1 | W23: Aca1 | X23: Plo2 | Y23: R | Z23: R | AA23: R | AB23: R | AC23: Plo1 | AD23: Aca1 | AE23: Aca1 | AF23: Plo1 | AG23: Plo1 | AH23: R | AI23: R | AJ23: Plo2 | AK23: Aca2 | AL23: Aca3 | AM23: Plo1 | AN23: Aca1 | AO23: Aca1 | AP23: Plo2 | AQ23: R | AR23: Plo2 | AS23: Aca1 | AT23: Plo1 | AU23: F | AV23: Plo1 | AW23: R | AX23: R | AY23: R | AZ23: Plo1 | BA23: F | BB23: Plo1 | BC23: Plo2 | BD23: Aca3
B24: Nathalie | C24: Vid1 | D24: Vid1 | E24: R | F24: R | G24: Onex2 | H24: Onex3 | I24: recup | J24: R | K24: R | L24: Onex2 | M24: Onex2 | N24: onex3 | O24: nav1 | P24: onex1 | Q24: R | R24: Onex2 | S24: onex2 | T24: R | U24: tour1 | V24: tour1 | W24: R | X24: R | Y24: onex2 | Z24: onex3 | AA24: pom1 | AB24: R | AC24: R | AD24: onex2 | AE24: onex2 | AF24: Nav3 | AG24: R | AH24: Onex1 | AI24: R | AJ24: onex2 | AK24: onex2 | AL24: Vib3 | AM24: tour1 | AN24: onex1 | AO24: R | AP24: R | AQ24: onex2 | AR24: onex3 | AS24: Onex1 | AT24: pom1 | AU24: F | AV24: R | AW24: Onex2 | AX24: R | AY24: Onex1 | AZ24: Onex1 | BA24: F | BB24: ves1 | BC24: R | BD24: Onex3
B25: Lionel | C25: X | D25: X | E25: X | F25: X | G25: X | H25: X | I25: X | J25: X | K25: X | L25: X | M25: X | N25: X | O25: X | P25: X | Q25: X | R25: X | S25: X | T25: X | U25: X | V25: X | W25: X | X25: X | Y25: X | Z25: X | AA25: X | AB25: X | AC25: X | AD25: X | AE25: X | AF25: X | AG25: X | AH25: X | AI25: X | AJ25: X | AK25: X | AL25: X | AM25: X | AN25: X | AO25: X | AP25: X | AQ25: X | AR25: X | AS25: X | AT25: X | AU25: X | AV25: X | AW25: X | AX25: X | AY25: X | AZ25: X | BA25: X | BB25: X | BC25: X | BD25: X
B26: Adilia | C26: R | D26: R | E26: Vid1 | F26: Vid2 | G26: Vid2 | H26: Vid3 | I26: R | J26: R | K26: Vid1 | L26: Vid2 | M26: Vid2 | N26: Vid3 | O26: Vid1 | P26: Vid1 | Q26: Vid1 | R26: Vid2 | S26: R | T26: R | U26: R | V26: R | W26: Vid1 | X26: Vid2 | Y26: Vid2 | Z26: Vid3 | AA26: Vid1 | AB26: Vid1 | AC26: R | AD26: R | AE26: Vid2 | AF26: Vid3 | AG26: Vid1 | AH26: Vid1 | AI26: Vid1 | AJ26: Vid2 | AK26: R | AL26: R | AM26: R | AN26: R | AO26: Vid1 | AP26: Vid2 | AQ26: Vid2 | AR26: Vid3 | AS26: Vid1 | AT26: R | AU26: F | AV26: R | AW26: Vid2 | AX26: Vid3 | AY26: Vid1 | AZ26: Vid1 | BA26: F | BB26: Vid1 | BC26: vid2 | BD26: R
B27: Guillaume | C27: R | D27: vib1 | E27: Thon1 | F27: R | G27: Thon2 | H27: Ves3 | I27: vib1 | J27: Vib1 | K27: R | L27: R | M27: Thon2 | N27: Thon3 | O27: Vib1 | P27: Vib1 | Q27: thon2 | R27: R | S27: recup | T27: R | U27: Vib1 | V27: Vib1 | W27: R | X27: R | Y27: Thon2 | Z27: Thon3 | AA27: Vib1 | AB27: vib1 | AC27: Thon1 | AD27: R | AE27: Thon2 | AF27: R | AG27: vib1 | AH27: Vib1 | AI27: R | AJ27: R | AK27: Thon2 | AL27: Thon3 | AM27: Vib1 | AN27: Vib1 | AO27: thon2 | AP27: R | AQ27: recup | AR27: R | AS27: Vib1 | AT27: Thon1 | AU27: F | AV27: R | AW27: thon2 | AX27: thon3 | AY27: R | AZ27: Thon1 | BA27: F | BB27: thon1 | BC27: thon2 | BD27: vib3
B28: Jeremy | C28: tour1 | D28: tour1 | E28: R | F28: R | G28: tour2 | H28: tour3 | I28: tour1 | J28: tour1 | K28: tour1 | L28: tour2 | M28: R | N28: R | O28: R | P28: tour1 | Q28: vib1 | R28: R | S28: tour2 | T28: tour3 | U28: R | V28: R | W28: tour1 | X28: tour2 | Y28: tour2 | Z28: tour3 | AA28: tour1 | AB28: tour1 | AC28: tour1 | AD28: tour2 | AE28: R | AF28: R | AG28: tour1 | AH28: tour1 | AI28: R | AJ28: R | AK28: recup | AL28: recup | AM28: R | AN28: R | AO28: tour1 | AP28: tour2 | AQ28: tour2 | AR28: tour3 | AS28: tour1 | AT28: tour1 | AU28: F | AV28: R | AW28: tour2 | AX28: tour3 | AY28: tour1 | AZ28: Tour1 | BA28: F | BB28: plo1 | BC28: tour2 | BD28: tour3
B29: Xavier | C29: vib1 | D29: X | E29: X | F29: X | G29: pom2 | H29: Nav3 | I29: X | J29: X | K29: X | L29: X | M29: plo2 | N29: nav3 | O29: X | P29: X | Q29: X | R29: X | S29: vid2 | T29: onex3 | U29: X | V29: X | W29: X | X29: X | Y29: X | Z29: nav3 | AA29: X | AB29: X | AC29: X | AD29: X | AE29: plo2 | AF29: Onex3 | AG29: X | AH29: X | AI29: X | AJ29: X | AK29: tour2 | AL29: tour3 | AM29: X | AN29: X | AO29: X | AP29: X | AQ29: thon2 | AR29: Vib3 | AS29: R | AT29: Onex1 | AU29: F | AV29: vid2 | AW29: aca2 | AX29: vib3 | AY29: Vib1 | AZ29: ves1 | BA29: F | BB29: X | BC29: X | BD29: X
B30: M. Durand | C30: X | D30: X | E30: X | F30: X | G30: X | H30: X | I30: X | J30: X | K30: X | L30: X | M30: X | N30: X | O30: X | P30: X | Q30: X | R30: X | S30: X | T30: X | U30: X | V30: X | W30: X | X30: X | Y30: X | Z30: X | AA30: X | AB30: X | AC30: X | AD30: X | AE30: X | AF30: X | AG30: X | AH30: X | AI30: X | AJ30: X | AK30: X | AL30: X | AM30: X | AN30: X | AO30: X | AP30: X | AQ30: X | AR30: ves3 | AS30: Nav1 | AT30: Vib1 | AU30: X | AV30: X | AW30: X | AX30: X | AY30: X | AZ30: X | BA30: X | BB30: X | BC30: X | BD30: X
B31: M. Romanens | C31: X | D31: X | E31: X | F31: X | G31: X | H31: X | I31: X | J31: X | K31: X | L31: X | M31: X | N31: X | O31: X | P31: X | Q31: X | R31: X | S31: X | T31: X | U31: X | V31: X | W31: X | X31: X | Y31: X | Z31: X | AA31: X | AB31: X | AC31: X | AD31: X | AE31: X | AF31: X | AG31: X | AH31: X | AI31: X | AJ31: X | AK31: X | AL31: X | AM31: X | AN31: X | AO31: X | AP31: X | AQ31: X | AR31: onex3 | AS31: Nyon1 | AT31: Nyon1 | AU31: X | AV31: X | AW31: X | AX31: X | AY31: X | AZ31: X | BA31: X | BB31: X | BC31: X | BD31: X
B32: Mme Romanens | C32: X | D32: X | E32: X | F32: X | G32: X | H32: X | I32: X | J32: X | K32: X | L32: X | M32: X | N32: X | O32: X | P32: X | Q32: X | R32: X | S32: X | T32: X | U32: X | V32: X | W32: X | X32: X | Y32: X | Z32: X | AA32: X | AB32: X | AC32: X | AD32: X | AE32: X | AF32: X | AG32: X | AH32: X | AI32: X | AJ32: X | AK32: X | AL32: X | AM32: X | AN32: X | AO32: X | AP32: X | AQ32: X | AR32: Pom3 | AS32: X | AT32: X | AU32: X | AV32: X | AW32: X | AX32: X | AY32: X | AZ32: X | BA32: X | BB32: X | BC32: X | BD32: X
C33: X | D33: X | E33: X | F33: X | G33: X | H33: X | I33: X | J33: X | K33: X | L33: X | M33: X | N33: X | O33: X | P33: X | Q33: X | R33: X | S33: X | T33: X | U33: X | V33: X | W33: X | X33: X | Y33: X | Z33: X | AA33: X | AB33: X | AC33: X | AD33: X | AE33: X | AF33: X | AG33: X | AH33: X | AI33: X | AJ33: X | AK33: X | AL33: X | AM33: X | AN33: X | AO33: X | AP33: X | AQ33: X | AR33: X | AS33: X | AT33: X | AU33: X | AV33: X | AW33: X | AX33: X | AY33: X | AZ33: X | BA33: X | BB33: X | BC33: X | BD33: X
C34: X | D34: X | E34: X | F34: X | G34: X | H34: X | I34: X | J34: X | K34: X | L34: X | M34: X | N34: X | O34: X | P34: X | Q34: X | R34: X | S34: X | T34: X | U34: X | V34: X | W34: X | X34: X | Y34: X | Z34: X | AA34: X | AB34: X | AC34: X | AD34: X | AE34: X | AF34: X | AG34: X | AH34: X | AI34: X | AJ34: X | AK34: X | AL34: X | AM34: X | AN34: X | AO34: X | AP34: X | AQ34: X | AR34: X | AS34: X | AT34: X | AU34: X | AV34: X | AW34: X | AX34: X | AY34: X | AZ34: X | BA34: X | BB34: X | BC34: X | BD34: X
C35: X | D35: X | E35: X | F35: X | G35: X | H35: X | I35: X | J35: X | K35: X | L35: X | M35: X | N35: X | O35: X | P35: X | Q35: X | R35: X | S35: X | T35: X | U35: X | V35: X | W35: X | X35: X | Y35: X | Z35: X | AA35: X | AB35: X | AC35: X | AD35: X | AE35: X | AF35: X | AG35: X | AH35: X | AI35: X | AJ35: X | AK35: X | AL35: X | AM35: X | AN35: X | AO35: X | AP35: X | AQ35: X | AR35: X | AS35: X | AT35: X | AU35: X | AV35: X | AW35: X | AX35: X | AY35: X | AZ35: X | BA35: X | BB35: X | BC35: X | BD35: X
A36: Totaux | B36: Présent | C36: =COUNTIF(C4:C35,"")+C51 -> 15 | D36: =COUNTIF(D4:D35,"")+D51 -> 13 | E36: =COUNTIF(E4:E35,"")+E51 -> 13 | F36: 13 | G36: 13 | H36: 14 | I36: 13 | J36: 13 | K36: 13 | L36: 13 | M36: 13 | N36: 14 | O36: 13 | P36: 13 | Q36: 13 | R36: 13 | S36: 13 | T36: 14 | U36: 13 | V36: 13 | W36: 13 | X36: 13 | Y36: 13 | Z36: 14 | AA36: 13 | AB36: 13 | AC36: 13 | AD36: 13 | AE36: 13 | AF36: 14 | AG36: 13 | AH36: 14 | AI36: 13 | AJ36: 13 | AK36: 13 | AL36: 13 | AM36: 13 | AN36: 13 | AO36: 14 | AP36: 14 | AQ36: 14 | AR36: 20 | AS36: 16 | AT36: 23 | AU36: 0 | AV36: 13 | AW36: 14 | AX36: 15 | AY36: 15 | AZ36: 22 | BA36: 0 | BB36: 19 | BC36: 15 | BD36: 14
B37: Besoin | C37: 13 | D37: 13 | E37: 13 | F37: 13 | G37: 13 | H37: 14 | I37: 13 | J37: 13 | K37: 13 | L37: 13 | M37: 13 | N37: 14 | O37: 13 | P37: 13 | Q37: 13 | R37: 13 | S37: 13 | T37: 14 | U37: 13 | V37: 13 | W37: 13 | X37: 13 | Y37: 13 | Z37: 14 | AA37: 13 | AB37: 13 | AC37: 13 | AD37: 13 | AE37: 13 | AF37: 14 | AG37: 13 | AH37: 13 | AI37: 13 | AJ37: 13 | AK37: 13 | AL37: 14 | AM37: 13 | AN37: 13 | AO37: 14 | AP37: 14 | AQ37: 14 | AR37: 20 | AS37: 16 | AT37: 23 | AU37: 0 | AV37: 13 | AW37: 14 | AX37: 15 | AY37: 15 | AZ37: 22 | BA37: 0 | BB37: 18 | BC37: 15 | BD37: 14
B38: Différence | C38: =C36-C37 -> 2 | D38: =D36-D37 -> 0 | E38: 0 | F38: 0 | G38: 0 | H38: 0 | I38: =I36-I37 -> 0 | J38: =J36-J37 -> 0 | K38: =K36-K37 -> 0 | L38: =L36-L37 -> 0 | M38: =M36-M37 -> 0 | N38: =N36-N37 -> 0 | O38: =O36-O37 -> 0 | P38: =P36-P37 -> 0 | Q38: =Q36-Q37 -> 0 | R38: =R36-R37 -> 0 | S38: =S36-S37 -> 0 | T38: =T36-T37 -> 0 | U38: =U36-U37 -> 0 | V38: =V36-V37 -> 0 | W38: =W36-W37 -> 0 | X38: =X36-X37 -> 0 | Y38: =Y36-Y37 -> 0 | Z38: =Z36-Z37 -> 0 | AA38: =AA36-AA37 -> 0 | AB38: =AB36-AB37 -> 0 | AC38: =AC36-AC37 -> 0 | AD38: =AD36-AD37 -> 0 | AE38: =AE36-AE37 -> 0 | AF38: =AF36-AF37 -> 0 | AG38: =AG36-AG37 -> 0 | AH38: =AH36-AH37 -> 1 | AI38: =AI36-AI37 -> 0 | AJ38: =AJ36-AJ37 -> 0 | AK38: =AK36-AK37 -> 0 | AL38: =AL36-AL37 -> -1 | AM38: =AM36-AM37 -> 0 | AN38: =AN36-AN37 -> 0 | AO38: =AO36-AO37 -> 0 | AP38: =AP36-AP37 -> 0 | AQ38: =AQ36-AQ37 -> 0 | AR38: =AR36-AR37 -> 0 | AS38: =AS36-AS37 -> 0 | AT38: =AT36-AT37 -> 0 | AU38: =AU36-AU37 -> 0 | AV38: =AV36-AV37 -> 0 | AW38: =AW36-AW37 -> 0 | AX38: =AX36-AX37 -> 0 | AY38: =AY36-AY37 -> 0 | AZ38: =AZ36-AZ37 -> 0 | BA38: =BA36-BA37 -> 0 | BB38: =BB36-BB37 -> 1 | BC38: =BC36-BC37 -> 0 | BD38: =BD36-BD37 -> 0 | BE38: total jours à faire récuperer
B40: *Aca* | C40: =COUNTIF(C4:C35,$B$40) -> 3 | D40: =COUNTIF(D4:D35,$B$40) -> 1 | E40: 1 | F40: 1 | G40: 1 | H40: 1 | I40: 1 | J40: 1 | K40: 1 | L40: 1 | M40: 1 | N40: 1 | O40: 1 | P40: 1 | Q40: 1 | R40: 1 | S40: 1 | T40: 1 | U40: 1 | V40: 1 | W40: 1 | X40: 1 | Y40: 1 | Z40: 1 | AA40: 1 | AB40: 1 | AC40: 1 | AD40: 1 | AE40: 1 | AF40: 1 | AG40: 1 | AH40: 1 | AI40: 1 | AJ40: 1 | AK40: 1 | AL40: 1 | AM40: 1 | AN40: 1 | AO40: 1 | AP40: 1 | AQ40: 1 | AR40: 1 | AS40: 1 | AT40: 1 | AU40: 0 | AV40: 1 | AW40: 1 | AX40: 1 | AY40: 1 | AZ40: 1 | BA40: 0 | BB40: 2 | BC40: 1 | BD40: 1
B41: *Nav* | C41: =COUNTIF(C4:C35,$B$41) -> 1 | D41: =COUNTIF(D4:D35,$B$41) -> 1 | E41: 1 | F41: 1 | G41: 1 | H41: 2 | I41: 1 | J41: 1 | K41: 1 | L41: 1 | M41: 1 | N41: 2 | O41: 1 | P41: 1 | Q41: 1 | R41: 1 | S41: 1 | T41: 2 | U41: 1 | V41: 1 | W41: 1 | X41: 1 | Y41: 1 | Z41: 2 | AA41: 1 | AB41: 1 | AC41: 1 | AD41: 1 | AE41: 1 | AF41: 2 | AG41: 1 | AH41: 2 | AI41: 1 | AJ41: 1 | AK41: 1 | AL41: 1 | AM41: 1 | AN41: 1 | AO41: 2 | AP41: 2 | AQ41: 2 | AR41: 2 | AS41: 2 | AT41: 2 | AU41: 0 | AV41: 1 | AW41: 2 | AX41: 2 | AY41: 2 | AZ41: 2 | BA41: 0 | BB41: 2 | BC41: 1 | BD41: 2
B42: *Nyon* | C42: =COUNTIF(C4:C35,$B$42) -> 1 | D42: =COUNTIF(D4:D35,$B$42) -> 1 | E42: 1 | F42: 1 | G42: 1 | H42: 1 | I42: 1 | J42: 1 | K42: 1 | L42: 1 | M42: 1 | N42: 1 | O42: 1 | P42: 1 | Q42: 1 | R42: 1 | S42: 1 | T42: 1 | U42: 1 | V42: 1 | W42: 1 | X42: 1 | Y42: 1 | Z42: 1 | AA42: 1 | AB42: 1 | AC42: 1 | AD42: 1 | AE42: 1 | AF42: 1 | AG42: 1 | AH42: 1 | AI42: 1 | AJ42: 1 | AK42: 1 | AL42: 1 | AM42: 1 | AN42: 1 | AO42: 1 | AP42: 1 | AQ42: 1 | AR42: 2 | AS42: 2 | AT42: 2 | AU42: 0 | AV42: 1 | AW42: 1 | AX42: 2 | AY42: 1 | AZ42: 2 | BA42: 0 | BB42: 0 | BC42: 2 | BD42: 1
B43: *Onex* | C43: =COUNTIF(C4:C35,$B$43) -> 1 | D43: =COUNTIF(D4:D35,$B$43) -> 2 | E43: 2 | F43: 2 | G43: 2 | H43: 2 | I43: 2 | J43: 2 | K43: 2 | L43: 2 | M43: 2 | N43: 2 | O43: 2 | P43: 2 | Q43: 2 | R43: 2 | S43: 2 | T43: 2 | U43: 2 | V43: 2 | W43: 2 | X43: 2 | Y43: 2 | Z43: 2 | AA43: 2 | AB43: 2 | AC43: 2 | AD43: 2 | AE43: 2 | AF43: 2 | AG43: 2 | AH43: 2 | AI43: 2 | AJ43: 2 | AK43: 2 | AL43: 2 | AM43: 2 | AN43: 2 | AO43: 2 | AP43: 2 | AQ43: 2 | AR43: 3 | AS43: 3 | AT43: 3 | AU43: 0 | AV43: 2 | AW43: 2 | AX43: 2 | AY43: 3 | AZ43: 3 | BA43: 0 | BB43: 2 | BC43: 2 | BD43: 2
B44: *Plo* | C44: =COUNTIF(C4:C35,$B$44) -> 1 | D44: =COUNTIF(D4:D35,$B$44) -> 1 | E44: 1 | F44: 1 | G44: 1 | H44: 1 | I44: 1 | J44: 1 | K44: 1 | L44: 1 | M44: 1 | N44: 1 | O44: 1 | P44: 1 | Q44: 1 | R44: 1 | S44: 1 | T44: 1 | U44: 1 | V44: 1 | W44: 1 | X44: 1 | Y44: 1 | Z44: 1 | AA44: 1 | AB44: 1 | AC44: 1 | AD44: 1 | AE44: 1 | AF44: 1 | AG44: 1 | AH44: 1 | AI44: 1 | AJ44: 1 | AK44: 1 | AL44: 1 | AM44: 1 | AN44: 1 | AO44: 1 | AP44: 1 | AQ44: 1 | AR44: 2 | AS44: 1 | AT44: 2 | AU44: 0 | AV44: 1 | AW44: 1 | AX44: 1 | AY44: 1 | AZ44: 2 | BA44: 0 | BB44: 3 | BC44: 1 | BD44: 1
B45: *Pom* | C45: =COUNTIF(C4:C35,$B$45) -> 1 | D45: =COUNTIF(D4:D35,$B$45) -> 1 | E45: 1 | F45: 1 | G45: 1 | H45: 1 | I45: 1 | J45: 1 | K45: 1 | L45: 1 | M45: 1 | N45: 1 | O45: 1 | P45: 1 | Q45: 1 | R45: 1 | S45: 1 | T45: 1 | U45: 1 | V45: 1 | W45: 1 | X45: 1 | Y45: 1 | Z45: 1 | AA45: 1 | AB45: 1 | AC45: 1 | AD45: 1 | AE45: 1 | AF45: 1 | AG45: 1 | AH45: 1 | AI45: 1 | AJ45: 1 | AK45: 1 | AL45: 1 | AM45: 1 | AN45: 1 | AO45: 1 | AP45: 1 | AQ45: 1 | AR45: 2 | AS45: 1 | AT45: 2 | AU45: 0 | AV45: 1 | AW45: 1 | AX45: 1 | AY45: 1 | AZ45: 2 | BA45: 0 | BB45: 0 | BC45: 2 | BD45: 1
B46: *Thon* | C46: =COUNTIF(C4:C35,$B$46) -> 1 | D46: =COUNTIF(D4:D35,$B$46) -> 1 | E46: 1 | F46: 1 | G46: 1 | H46: 1 | I46: 1 | J46: 1 | K46: 1 | L46: 1 | M46: 1 | N46: 1 | O46: 1 | P46: 1 | Q46: 1 | R46: 1 | S46: 1 | T46: 1 | U46: 1 | V46: 1 | W46: 1 | X46: 1 | Y46: 1 | Z46: 1 | AA46: 1 | AB46: 1 | AC46: 1 | AD46: 1 | AE46: 1 | AF46: 1 | AG46: 1 | AH46: 1 | AI46: 1 | AJ46: 1 | AK46: 1 | AL46: 1 | AM46: 1 | AN46: 1 | AO46: 1 | AP46: 1 | AQ46: 1 | AR46: 1 | AS46: 1 | AT46: 2 | AU46: 0 | AV46: 1 | AW46: 1 | AX46: 1 | AY46: 1 | AZ46: 2 | BA46: 0 | BB46: 2 | BC46: 1 | BD46: 1
B47: *tour* | C47: =COUNTIF(C4:C35,$B$47) -> 1 | D47: =COUNTIF(D4:D35,$B$47) -> 1 | E47: 1 | F47: 1 | G47: 1 | H47: 1 | I47: 1 | J47: 1 | K47: 1 | L47: 1 | M47: 1 | N47: 1 | O47: 1 | P47: 1 | Q47: 1 | R47: 1 | S47: 1 | T47: 1 | U47: 1 | V47: 1 | W47: 1 | X47: 1 | Y47: 1 | Z47: 1 | AA47: 1 | AB47: 1 | AC47: 1 | AD47: 1 | AE47: 1 | AF47: 1 | AG47: 1 | AH47: 1 | AI47: 1 | AJ47: 1 | AK47: 1 | AL47: 1 | AM47: 1 | AN47: 1 | AO47: 1 | AP47: 1 | AQ47: 1 | AR47: 1 | AS47: 1 | AT47: 2 | AU47: 0 | AV47: 1 | AW47: 1 | AX47: 1 | AY47: 1 | AZ47: 2 | BA47: 0 | BB47: 2 | BC47: 1 | BD47: 1
B48: *ves* | C48: =COUNTIF(C4:C35,$B$48) -> 1 | D48: =COUNTIF(D4:D35,$B$48) -> 1 | E48: 1 | F48: 1 | G48: 1 | H48: 1 | I48: 1 | J48: 1 | K48: 1 | L48: 1 | M48: 1 | N48: 1 | O48: 1 | P48: 1 | Q48: 1 | R48: 1 | S48: 1 | T48: 1 | U48: 1 | V48: 1 | W48: 1 | X48: 1 | Y48: 1 | Z48: 1 | AA48: 1 | AB48: 1 | AC48: 1 | AD48: 1 | AE48: 1 | AF48: 1 | AG48: 1 | AH48: 1 | AI48: 1 | AJ48: 1 | AK48: 1 | AL48: 1 | AM48: 1 | AN48: 1 | AO48: 1 | AP48: 1 | AQ48: 1 | AR48: 2 | AS48: 1 | AT48: 2 | AU48: 0 | AV48: 1 | AW48: 1 | AX48: 1 | AY48: 1 | AZ48: 2 | BA48: 0 | BB48: 2 | BC48: 1 | BD48: 1
B49: *vib* | C49: =COUNTIF(C4:C35,$B$49) -> 3 | D49: =COUNTIF(D4:D35,$B$49) -> 2 | E49: 2 | F49: 2 | G49: 2 | H49: 2 | I49: 2 | J49: 2 | K49: 2 | L49: 2 | M49: 2 | N49: 2 | O49: 2 | P49: 2 | Q49: 2 | R49: 2 | S49: 2 | T49: 2 | U49: 2 | V49: 2 | W49: 2 | X49: 2 | Y49: 2 | Z49: 2 | AA49: 2 | AB49: 2 | AC49: 2 | AD49: 2 | AE49: 2 | AF49: 2 | AG49: 2 | AH49: 2 | AI49: 2 | AJ49: 2 | AK49: 2 | AL49: 2 | AM49: 2 | AN49: 2 | AO49: 2 | AP49: 2 | AQ49: 2 | AR49: 3 | AS49: 2 | AT49: 3 | AU49: 0 | AV49: 2 | AW49: 2 | AX49: 2 | AY49: 2 | AZ49: 3 | BA49: 0 | BB49: 2 | BC49: 2 | BD49: 2
B50: *vid* | C50: =COUNTIF(C4:C35,$B$50) -> 1 | D50: =COUNTIF(D4:D35,$B$50) -> 1 | E50: 1 | F50: 1 | G50: 1 | H50: 1 | I50: 1 | J50: 1 | K50: 1 | L50: 1 | M50: 1 | N50: 1 | O50: 1 | P50: 1 | Q50: 1 | R50: 1 | S50: 1 | T50: 1 | U50: 1 | V50: 1 | W50: 1 | X50: 1 | Y50: 1 | Z50: 1 | AA50: 1 | AB50: 1 | AC50: 1 | AD50: 1 | AE50: 1 | AF50: 1 | AG50: 1 | AH50: 1 | AI50: 1 | AJ50: 1 | AK50: 1 | AL50: 1 | AM50: 1 | AN50: 1 | AO50: 1 | AP50: 1 | AQ50: 1 | AR50: 1 | AS50: 1 | AT50: 2 | AU50: 0 | AV50: 1 | AW50: 1 | AX50: 1 | AY50: 1 | AZ50: 1 | BA50: 0 | BB50: 2 | BC50: 1 | BD50: 1
B51: Total | C51: =SUM(C40:C50) -> 15 | D51: =SUM(D40:D50) -> 13 | E51: 13 | F51: 13 | G51: 13 | H51: 14 | I51: 13 | J51: 13 | K51: 13 | L51: 13 | M51: 13 | N51: 14 | O51: 13 | P51: 13 | Q51: 13 | R51: 13 | S51: 13 | T51: 14 | U51: 13 | V51: 13 | W51: 13 | X51: 13 | Y51: 13 | Z51: 14 | AA51: 13 | AB51: 13 | AC51: 13 | AD51: 13 | AE51: 13 | AF51: 14 | AG51: 13 | AH51: 14 | AI51: 13 | AJ51: 13 | AK51: 13 | AL51: 13 | AM51: 13 | AN51: 13 | AO51: 14 | AP51: 14 | AQ51: 14 | AR51: 20 | AS51: 16 | AT51: 23 | AU51: 0 | AV51: 13 | AW51: 14 | AX51: 15 | AY51: 15 | AZ51: 22 | BA51: 0 | BB51: 19 | BC51: 15 | BD51: 14

Sheet Planning par magasin
C2: =Planning!C3 -> 2013-11-04 | D2: =Planning!D3 -> 2013-11-05 | E2: =Planning!E3 -> 2013-11-06 | F2: =Planning!F3 -> 2013-11-07 | G2: =Planning!G3 -> 2013-11-08 | H2: =Planning!H3 -> 2013-11-09 | I2: =Planning!I3 -> 2013-11-11 | J2: =Planning!J3 -> 2013-11-12 | K2: =Planning!K3 -> 2013-11-13 | L2: =Planning!L3 -> 2013-11-14 | M2: =Planning!M3 -> 2013-11-15 | N2: =Planning!N3 -> 2013-11-16 | O2: =Planning!O3 -> 2013-11-18 | P2: =Planning!P3 -> 2013-11-19 | Q2: =Planning!Q3 -> 2013-11-20 | R2: =Planning!R3 -> 2013-11-21 | S2: =Planning!S3 -> 2013-11-22 | T2: =Planning!T3 -> 2013-11-23 | U2: =Planning!U3 -> 2013-11-25 | V2: =Planning!V3 -> 2013-11-26 | W2: =Planning!W3 -> 2013-11-27 | X2: =Planning!X3 -> 2013-11-28 | Y2: =Planning!Y3 -> 2013-11-29 | Z2: =Planning!Z3 -> 2013-11-30 | AA2: =Planning!AA3 -> 2013-12-02 | AB2: =Planning!AB3 -> 2013-12-03 | AC2: =Planning!AC3 -> 2013-12-04 | AD2: =Planning!AD3 -> 2013-12-05 | AE2: =Planning!AE3 -> 2013-12-06 | AF2: =Planning!AF3 -> 2013-12-07 | AG2: =Planning!AG3 -> 2013-12-09 | AH2: =Planning!AH3 -> 2013-12-10 | AI2: =Planning!AI3 -> 2013-12-11 | AJ2: =Planning!AJ3 -> 2013-12-12 | AK2: =Planning!AK3 -> 2013-12-13 | AL2: =Planning!AL3 -> 2013-12-14 | AM2: =Planning!AM3 -> 2013-12-16 | AN2: =Planning!AN3 -> 2013-12-17 | AO2: =Planning!AO3 -> 2013-12-18 | AP2: =Planning!AP3 -> 2013-12-19 | AQ2: =Planning!AQ3 -> 2013-12-20 | AR2: =Planning!AR3 -> 2013-12-21 | AS2: =Planning!AS3 -> 2013-12-23 | AT2: =Planning!AT3 -> 2013-12-24 | AU2: =Planning!AU3 -> 2013-12-25 | AV2: =Planning!AV3 -> 2013-12-26 | AW2: =Planning!AW3 -> 2013-12-27 | AX2: =Planning!AX3 -> 2013-12-28 | AY2: =Planning!AY3 -> 2013-12-30 | AZ2: =Planning!AZ3 -> 2013-12-31 | BA2: =Planning!BA3 -> 2014-01-01 | BB2: =Planning!BB3 -> 2014-01-02 | BC2: =Planning!BC3 -> 2014-01-03 | BD2: =Planning!BD3 -> 2014-01-04
A3: Acacias | B3: Aca* | C3: Izabella | D3: Hervé
B4: Aca* | C4: Arnaud
B5: Aca* | C5: Lidia
B6: Aca*
B7: Aca*
A8: Navigation | B8: Nav* | C8: Julien | D8: Julien
B9: Nav*
B10: Nav*
B11: Nav*
B12: Nav*
A13: Nyon | B13: Nyon* | C13: Hubert | D13: Hubert
B14: Nyon*
B15: Nyon*
B16: Nyon*
B17: Nyon*
A18: Onex | B18: Onex* | C18: Henri | D18: Henri
B19: Onex* | D19: Izabella
B20: Onex*
B21: Onex*
B22: Onex*
A23: Plo | B23: Plo* | C23: Hervé | D23: Véronique
B24: Plo*
B25: Plo*
B26: Plo*
B27: Plo*
A28: Pommier | B28: Pom* | C28: J-Christophe | D28: J-Christophe
B29: Pom*
B30: Pom*
B31: Pom*
B32: Pom*
A33: Thonex | B33: Thon* | C33: Paulo | D33: Paulo
B34: Thon*
B35: Thon*
B36: Thon*
B37: Thon*
A38: Tourelle | B38: Tour* | C38: Jeremy | D38: Jeremy
B39: Tour*
B40: Tour*
B41: Tour*
B42: Tour*
A43: Vesenaz | B43: Ves* | C43: Vincent | D43: Vincent
A48: Vibert | B48: Vib* | C48: Fréderic D | D48: Fréderic D
C49: Fréderic M | D49: Guillaume
C50: Xavier
A53: Vidollet | B53: Vid* | C53: Nathalie | D53: Nathalie
A58: Vacances | B58: V | C58: Fabrice | D58: Fabrice
E96: Fréderic M
G144: Xavier

Sheet Solde d'heure collaborateur
D2: =Planning!B4 -> Aurélien | H2: =Planning!B5 -> Fabrice | L2: =Planning!B6 -> Jacques | P2: =Planning!B7 -> Fréderic D | T2: =Planning!B8 -> Henri | X2: =Planning!B9 -> Virginie | AB2: =Planning!B10 -> Nicolas | AF2: =Planning!B11 -> Véronique | AJ2: =Planning!B12 -> Paulo | AN2: =Planning!B13 -> J-Christophe | AR2: =Planning!B14 -> David | AV2: =Planning!B15 -> Hubert | AZ2: =Planning!B16 -> Izabella | BD2: =Planning!B17 -> Julien | BH2: =Planning!B18 -> Arnaud | BL2: =Planning!B19 -> Pascal | BP2: =Planning!B20 -> Lidia | BT2: =Planning!B21 -> Fréderic M | BX2: =Planning!B22 -> Vincent | CB2: =Planning!B23 -> Hervé | CF2: =Planning!B24 -> Nathalie | CJ2: =Planning!B25 -> Lionel | CN2: =Planning!B26 -> Adilia | CR2: =Planning!B27 -> Guillaume | CV2: =Planning!B28 -> Jeremy | CZ2: =Planning!B29 -> Xavier | DD2: =Planning!B30 -> M. Durand | DH2: =Planning!B31 -> M. Romanens | DL2: =Planning!B32 -> Mme Romanens | DP2: =Planning!B33 -> 0 | DT2: =Planning!B34 -> 0 | DX2: =Planning!B35 -> 0
A4: =Planning!C3 -> 2013-11-04 | C4: =INDEX(Planning!$4:$4,MATCH('Solde d''heure collaborateur'!A4,Planning!$3:$3,0)) -> R | D4: =VLOOKUP(C4,Horaires!$A$3:$E$49,2,) -> Congé | E4: =IF(D4="vacances",INDEX(Horaires!$H$3:$L$42,MATCH('Solde d''heure collaborateur'!D$2,Horaires!$H$3:$H$40,0),4),IF(D4="maladie",INDEX(Horaires!$H$3:$L$42,MATCH('Solde d''heure collaborateur'!D$2,Horaires!$H$3:$H$40,0),5),VLOOKUP(C4,Horaires!$A$3:$E$60,5,))) -> 0 | G4: =INDEX(Planning!$5:$5,MATCH('Solde d''heure collaborateur'!A4,Planning!$3:$3)) -> V | H4: =VLOOKUP(G4,Horaires!$A$3:$E$49,2,) -> Vacances | I4: =IF(H4="vacances",INDEX(Horaires!$H$3:$L$42,MATCH('Solde d''heure collaborateur'!H$2,Horaires!$H$3:$H$40,0),4),IF(H4="maladie",INDEX(Horaires!$H$3:$L$42,MATCH('Solde d''heure collaborateur'!H$2,Horaires!$H$3:$H$40,0),5),VLOOKUP(G4,Horaires!$A$3:$E$60,5,))) -> 0.35 | K4: =INDEX(Planning!$6:$6,MATCH('Solde d''heure collaborateur'!A4,Planning!$3:$3)) -> M | L4: =VLOOKUP(K4,Horaires!$A$3:$E$49,2,) -> Maladie | M4: =IF(L4="vacances",INDEX(Horaires!$H$3:$L$42,MATCH('Solde d''heure collaborateur'!L$2,Horaires!$H$3:$H$40,0),4),IF(L4="maladie",INDEX(Horaires!$H$3:$L$42,MATCH('Solde d''heure collaborateur'!L$2,Horaires!$H$3:$H$40,0),5),VLOOKUP(K4,Horaires!$A$3:$E$60,5,))) -> 0.4375 | O4: =INDEX(Planning!$7:$7,MATCH('Solde d''heure collaborateur'!$A4,Planning!$3:$3)) -> vib1 | P4: =VLOOKUP(O4,Horaires!$A$3:$E$49,2,) -> Vibert | Q4: =IF(P4="vacances",INDEX(Horaires!$H$3:$L$42,MATCH('Solde d''heure collaborateur'!P$2,Horaires!$H$3:$H$40,0),4),IF(P4="maladie",INDEX(Horaires!$H$3:$L$42,MATCH('Solde d''heure collaborateur'!P$2,Horaires!$H$3:$H$40,0),5),VLOOKUP(O4,Horaires!$A$3:$E$60,5,))) -> 0.46875 | S4: =INDEX(Planning!$8:$8,MATCH('Solde d''heure collaborateur'!$A4,Planning!$3:$3)) -> Onex1 | T4: =VLOOKUP(S4,Horaires!$A$3:$E$49,2,) -> Onex | U4: =IF(T4="vacances",INDEX(Horaires!$H$3:$L$42,MATCH('Solde d''heure collaborateur'!T$2,Horaires!$H$3:$H$40,0),4),IF(T4="maladie",INDEX(Horaires!$H$3:$L$42,MATCH('Solde d''heure collaborateur'!T$2,Horaires!$H$3:$H$40,0),5),VLOOKUP(S4,Horaires!$A$3:$E$60,5,))) -> 0.46875 | W4: =INDEX(Planning!$9:$9,MATCH('Solde d''heure collaborateur'!$A4,Planning!$3:$3)) -> one1 | X4: =VLOOKUP(W4,Horaires!$A$3:$E$49,2,) ->  | Y4: =IF(X4="vacances",INDEX(Horaires!$H$3:$L$42,MATCH('Solde d''heure collaborateur'!X$2,Horaires!$H$3:$H$40,0),4),IF(X4="maladie",INDEX(Horaires!$H$3:$L$42,MATCH('Solde d''heure collaborateur'!X$2,Horaires!$H$3:$H$40,0),5),VLOOKUP(W4,Horaires!$A$3:$E$60,5,))) ->  | AA4: =INDEX(Planning!$10:$10,MATCH('Solde d''heure collaborateur'!$A4,Planning!$3:$3)) -> R | AB4: =VLOOKUP(AA4,Horaires!$A$3:$E$49,2,) -> Congé | AC4: =IF(AB4="vacances",INDEX(Horaires!$H$3:$L$42,MATCH('Solde d''heure collaborateur'!AB$2,Horaires!$H$3:$H$40,0),4),IF(AB4="maladie",INDEX(Horaires!$H$3:$L$42,MATCH('Solde d''heure collaborateur'!AB$2,Horaires!$H$3:$H$40,0),5),VLOOKUP(AA4,Horaires!$A$3:$E$60,5,))) -> 0 | AE4: =INDEX(Planning!$11:$11,MATCH('Solde d''heure collaborateur'!$A4,Planning!$3:$3)) -> R | AF4: =VLOOKUP(AE4,Horaires!$A$3:$E$49,2,) -> Congé | AG4: =IF(AF4="vacances",INDEX(Horaires!$H$3:$L$42,MATCH('Solde d''heure collaborateur'!AF$2,Horaires!$H$3:$H$40,0),4),IF(AF4="maladie",INDEX(Horaires!$H$3:$L$42,MATCH('Solde d''heure collaborateur'!AF$2,Horaires!$H$3:$H$40,0),5),VLOOKUP(AE4,Horaires!$A$3:$E$60,5,))) -> 0 | AI4: =INDEX(Planning!$12:$12,MATCH('Solde d''heure collaborateur'!$A4,Planning!$3:$3)) -> Thon1 | AJ4: =VLOOKUP(AI4,Horaires!$A$3:$E$49,2,) -> Thonex | AK4: =IF(AJ4="vacances",INDEX(Horaires!$H$3:$L$42,MATCH('Solde d''heure collaborateur'!AJ$2,Horaires!$H$3:$H$40,0),4),IF(AJ4="maladie",INDEX(Horaires!$H$3:$L$42,MATCH('Solde d''heure collaborateur'!AJ$2,Horaires!$H$3:$H$40,0),5),VLOOKUP(AI4,Horaires!$A$3:$E$60,5,))) -> 0.4479166667 | AM4: =INDEX(Planning!$13:$13,MATCH('Solde d''heure collaborateur'!$A4,Planning!$3:$3)) -> pom1 | AN4: =VLOOKUP(AM4,Horaires!$A$3:$E$49,2,) -> Pommier | AO4: =IF(AN4="vacances",INDEX(Horaires!$H$3:$L$42,MATCH('Solde d''heure collaborateur'!AN$2,Horaires!$H$3:$H$40,0),4),IF(AN4="maladie",INDEX(Horaires!$H$3:$L$42,MATCH('Solde d''heure collaborateur'!AN$2,Horaires!$H$3:$H$40,0),5),VLOOKUP(AM4,Horaires!$A$3:$E$60,5,))) -> 0.4479166667 | AQ4: =INDEX(Planning!$14:$14,MATCH('Solde d''heure collaborateur'!$A4,Planning!$3:$3)) -> M | AR4: =VLOOKUP(AQ4,Horaires!$A$3:$E$49,2,) -> Maladie | AS4: =IF(AR4="vacances",INDEX(Horaires!$H$3:$L$42,MATCH('Solde d''heure collaborateur'!AR$2,Horaires!$H$3:$H$40,0),4),IF(AR4="maladie",INDEX(Horaires!$H$3:$L$42,MATCH('Solde d''heure collaborateur'!AR$2,Horaires!$H$3:$H$40,0),5),VLOOKUP(AQ4,Horaires!$A$3:$E$60,5,))) -> 0.4618055556 | AU4: =INDEX(Planning!$15:$15,MATCH('Solde d''heure collaborateur'!$A4,Planning!$3:$3)) -> Nyon1 | AV4: =VLOOKUP(AU4,Horaires!$A$3:$E$49,2,) -> Nyon | AW4: =IF(AV4="vacances",INDEX(Horaires!$H$3:$L$42,MATCH('Solde d''heure collaborateur'!AV$2,Horaires!$H$3:$H$40,0),4),IF(AV4="maladie",INDEX(Horaires!$H$3:$L$42,MATCH('Solde d''heure collaborateur'!AV$2,Horaires!$H$3:$H$40,0),5),VLOOKUP(AU4,Horaires!$A$3:$E$60,5,))) -> 0.4479166667 | AY4: =INDEX(Planning!$16:$16,MATCH('Solde d''heure collaborateur'!$A4,Planning!$3:$3)) -> Aca1 | AZ4: =VLOOKUP(AY4,Horaires!$A$3:$E$49,2,) -> Acacias | BA4: =IF(AZ4="vacances",INDEX(Horaires!$H$3:$L$42,MATCH('Solde d''heure collaborateur'!AZ$2,Horaires!$H$3:$H$40,0),4),IF(AZ4="maladie",INDEX(Horaires!$H$3:$L$42,MATCH('Solde d''heure collaborateur'!AZ$2,Horaires!$H$3:$H$40,0),5),VLOOKUP(AY4,Horaires!$A$3:$E$60,5,))) -> 0.4479166667 | BC4: =INDEX(Planning!$17:$17,MATCH('Solde d''heure collaborateur'!$A4,Planning!$3:$3)) -> nav1 | BD4: =VLOOKUP(BC4,Horaires!$A$3:$E$49,2,) -> Navigation | BE4: =IF(BD4="vacances",INDEX(Horaires!$H$3:$L$42,MATCH('Solde d''heure collaborateur'!BD$2,Horaires!$H$3:$H$40,0),4),IF(BD4="maladie",INDEX(Horaires!$H$3:$L$42,MATCH('Solde d''heure collaborateur'!BD$2,Horaires!$H$3:$H$40,0),5),VLOOKUP(BC4,Horaires!$A$3:$E$60,5,))) -> 0.4479166667 | BG4: =INDEX(Planning!$18:$18,MATCH('Solde d''heure collaborateur'!$A4,Planning!$3:$3)) -> Aca* | BH4: =VLOOKUP(BG4,Horaires!$A$3:$E$49,2,) -> Acacias | BI4: =IF(BH4="vacances",INDEX(Horaires!$H$3:$L$42,MATCH('Solde d''heure collaborateur'!BH$2,Horaires!$H$3:$H$40,0),4),IF(BH4="maladie",INDEX(Horaires!$H$3:$L$42,MATCH('Solde d''heure collaborateur'!BH$2,Horaires!$H$3:$H$40,0),5),VLOOKUP(BG4,Horaires!$A$3:$E$60,5,))) -> 0.4479166667 | BK4: =INDEX(Planning!$19:$19,MATCH('Solde d''heure collaborateur'!$A4,Planning!$3:$3)) -> R | BL4: =VLOOKUP(BK4,Horaires!$A$3:$E$49,2,) -> Congé | BM4: =IF(BL4="vacances",INDEX(Horaires!$H$3:$L$42,MATCH('Solde d''heure collaborateur'!BL$2,Horaires!$H$3:$H$40,0),4),IF(BL4="maladie",INDEX(Horaires!$H$3:$L$42,MATCH('Solde d''heure collaborateur'!BL$2,Horaires!$H$3:$H$40,0),5),VLOOKUP(BK4,Horaires!$A$3:$E$60,5,))) -> 0 | BO4: =INDEX(Planning!$20:$20,MATCH('Solde d''heure collaborateur'!$A4,Planning!$3:$3)) -> Aca1 | BP4: =VLOOKUP(BO4,Horaires!$A$3:$E$49,2,) -> Acacias | BQ4: =IF(BP4="vacances",INDEX(Horaires!$H$3:$L$42,MATCH('Solde d''heure collaborateur'!BP$2,Horaires!$H$3:$H$40,0),4),IF(BP4="maladie",INDEX(Horaires!$H$3:$L$42,MATCH('Solde d''heure collaborateur'!BP$2,Horaires!$H$3:$H$40,0),5),VLOOKUP(BO4,Horaires!$A$3:$E$60,5,))) -> 0.4479166667 | BS4: =INDEX(Planning!$21:$21,MATCH('Solde d''heure collaborateur'!$A4,Planning!$3:$3)) -> vib1 | BT4: =VLOOKUP(BS4,Horaires!$A$3:$E$49,2,) -> Vibert | BU4: =IF(BT4="vacances",INDEX(Horaires!$H$3:$L$42,MATCH('Solde d''heure collaborateur'!BT$2,Horaires!$H$3:$H$40,0),4),IF(BT4="maladie",INDEX(Horaires!$H$3:$L$42,MATCH('Solde d''heure collaborateur'!BT$2,Horaires!$H$3:$H$40,0),5),VLOOKUP(BS4,Horaires!$A$3:$E$60,5,))) -> 0.46875 | BW4: =INDEX(Planning!$22:$22,MATCH('Solde d''heure collaborateur'!$A4,Planning!$3:$3)) -> Ves1 | BX4: =VLOOKUP(BW4,Horaires!$A$3:$E$49,2,) -> Vesenaz | BY4: =IF(BX4="vacances",INDEX(Horaires!$H$3:$L$42,MATCH('Solde d''heure collaborateur'!BX$2,Horaires!$H$3:$H$40,0),4),IF(BX4="maladie",INDEX(Horaires!$H$3:$L$42,MATCH('Solde d''heure collaborateur'!BX$2,Horaires!$H$3:$H$40,0),5),VLOOKUP(BW4,Horaires!$A$3:$E$60,5,))) -> 0.4479166667 | CA4: =INDEX(Planning!$23:$23,MATCH('Solde d''heure collaborateur'!$A4,Planning!$3:$3)) -> Plo1 | CB4: =VLOOKUP(CA4,Horaires!$A$3:$E$49,2,) -> Plan les Ouates | CC4: =IF(CB4="vacances",INDEX(Horaires!$H$3:$L$42,MATCH('Solde d''heure collaborateur'!CB$2,Horaires!$H$3:$H$40,0),4),IF(CB4="maladie",INDEX(Horaires!$H$3:$L$42,MATCH('Solde d''heure collaborateur'!CB$2,Horaires!$H$3:$H$40,0),5),VLOOKUP(CA4,Horaires!$A$3:$E$60,5,))) -> 0.46875 | CE4: =INDEX(Planning!$24:$24,MATCH('Solde d''heure collaborateur'!$A4,Planning!$3:$3)) -> Vid1 | CF4: =VLOOKUP(CE4,Horaires!$A$3:$E$49,2,) -> Vidollet | CG4: =IF(CF4="vacances",INDEX(Horaires!$H$3:$L$42,MATCH('Solde d''heure collaborateur'!CF$2,Horaires!$H$3:$H$40,0),4),IF(CF4="maladie",INDEX(Horaires!$H$3:$L$42,MATCH('Solde d''heure collaborateur'!CF$2,Horaires!$H$3:$H$40,0),5),VLOOKUP(CE4,Horaires!$A$3:$E$60,5,))) -> 0.4479166667 | CI4: =INDEX(Planning!$25:$25,MATCH('Solde d''heure collaborateur'!$A4,Planning!$3:$3)) -> X | CJ4: =VLOOKUP(CI4,Horaires!$A$3:$E$49,2,) -> XXX | CK4: =IF(CJ4="vacances",INDEX(Horaires!$H$3:$L$42,MATCH('Solde d''heure collaborateur'!CJ$2,Horaires!$H$3:$H$40,0),4),IF(CJ4="maladie",INDEX(Horaires!$H$3:$L$42,MATCH('Solde d''heure collaborateur'!CJ$2,Horaires!$H$3:$H$40,0),5),VLOOKUP(CI4,Horaires!$A$3:$E$60,5,))) -> 0 | CM4: =INDEX(Planning!$26:$26,MATCH('Solde d''heure collaborateur'!$A4,Planning!$3:$3)) -> R | CN4: =VLOOKUP(CM4,Horaires!$A$3:$E$49,2,) -> Congé | CO4: =IF(CN4="vacances",INDEX(Horaires!$H$3:$L$42,MATCH('Solde d''heure collaborateur'!CN$2,Horaires!$H$3:$H$40,0),4),IF(CN4="maladie",INDEX(Horaires!$H$3:$L$42,MATCH('Solde d''heure collaborateur'!CN$2,Horaires!$H$3:$H$40,0),5),VLOOKUP(CM4,Horaires!$A$3:$E$60,5,))) -> 0 | CQ4: =INDEX(Planning!$27:$27,MATCH('Solde d''heure collaborateur'!$A4,Planning!$3:$3)) -> R | CR4: =VLOOKUP(CQ4,Horaires!$A$3:$E$49,2,) -> Congé | CS4: =IF(CR4="vacances",INDEX(Horaires!$H$3:$L$42,MATCH('Solde d''heure collaborateur'!CR$2,Horaires!$H$3:$H$40,0),4),IF(CR4="maladie",INDEX(Horaires!$H$3:$L$42,MATCH('Solde d''heure collaborateur'!CR$2,Horaires!$H$3:$H$40,0),5),VLOOKUP(CQ4,Horaires!$A$3:$E$60,5,))) -> 0 | CU4: =INDEX(Planning!$28:$28,MATCH('Solde d''heure collaborateur'!$A4,Planning!$3:$3)) -> tour1 | CV4: =VLOOKUP(CU4,Horaires!$A$3:$E$49,2,) -> Tourelle | CW4: =IF(CV4="vacances",INDEX(Horaires!$H$3:$L$42,MATCH('Solde d''heure collaborateur'!CV$2,Horaires!$H$3:$H$40,0),4),IF(CV4="maladie",INDEX(Horaires!$H$3:$L$42,MATCH('Solde d''heure collaborateur'!CV$2,Horaires!$H$3:$H$40,0),5),VLOOKUP(CU4,Horaires!$A$3:$E$60,5,))) -> 0.46875 | CY4: =INDEX(Planning!$29:$29,MATCH('Solde d''heure collaborateur'!$A4,Planning!$3:$3)) -> vib1 | CZ4: =VLOOKUP(CY4,Horaires!$A$3:$E$49,2,) -> Vibert | DA4: =IF(CZ4="vacances",INDEX(Horaires!$H$3:$L$42,MATCH('Solde d''heure collaborateur'!CZ$2,Horaires!$H$3:$H$40,0),4),IF(CZ4="maladie",INDEX(Horaires!$H$3:$L$42,MATCH('Solde d''heure collaborateur'!CZ$2,Horaires!$H$3:$H$40,0),5),VLOOKUP(CY4,Horaires!$A$3:$E$60,5,))) -> 0.46875 | DC4: =INDEX(Planning!$30:$30,MATCH('Solde d''heure collaborateur'!$A4,Planning!$3:$3)) -> X | DD4: =VLOOKUP(DC4,Horaires!$A$3:$E$49,2,) -> XXX | DE4: =IF(DD4="vacances",INDEX(Horaires!$H$3:$L$42,MATCH('Solde d''heure collaborateur'!DD$2,Horaires!$H$3:$H$40,0),4),IF(DD4="maladie",INDEX(Horaires!$H$3:$L$42,MATCH('Solde d''heure collaborateur'!DD$2,Horaires!$H$3:$H$40,0),5),VLOOKUP(DC4,Horaires!$A$3:$E$60,5,))) -> 0 | DG4: =INDEX(Planning!$31:$31,MATCH('Solde d''heure collaborateur'!$A4,Planning!$3:$3)) -> X | DH4: =VLOOKUP(DG4,Horaires!$A$3:$E$49,2,) -> XXX | DI4: =IF(DH4="vacances",INDEX(Horaires!$H$3:$L$42,MATCH('Solde d''heure collaborateur'!DH$2,Horaires!$H$3:$H$40,0),4),IF(DH4="maladie",INDEX(Horaires!$H$3:$L$42,MATCH('Solde d''heure collaborateur'!DH$2,Horaires!$H$3:$H$40,0),5),VLOOKUP(DG4,Horaires!$A$3:$E$60,5,))) -> 0 | DK4: =INDEX(Planning!$32:$32,MATCH('Solde d''heure collaborateur'!$A4,Planning!$3:$3)) -> X | DL4: =VLOOKUP(DK4,Horaires!$A$3:$E$49,2,) -> XXX | DM4: =IF(DL4="vacances",INDEX(Horaires!$H$3:$L$42,MATCH('Solde d''heure collaborateur'!DL$2,Horaires!$H$3:$H$40,0),4),IF(DL4="maladie",INDEX(Horaires!$H$3:$L$42,MATCH('Solde d''heure collaborateur'!DL$2,Horaires!$H$3:$H$40,0),5),VLOOKUP(DK4,Horaires!$A$3:$E$60,5,))) -> 0 | DO4: =INDEX(Planning!$33:$33,MATCH('Solde d''heure collaborateur'!$A4,Planning!$3:$3)) -> X | DP4: =VLOOKUP(DO4,Horaires!$A$3:$E$49,2,) -> XXX | DQ4: =IF(DP4="vacances",INDEX(Horaires!$H$3:$L$42,MATCH('Solde d''heure collaborateur'!DP$2,Horaires!$H$3:$H$40,0),4),IF(DP4="maladie",INDEX(Horaires!$H$3:$L$42,MATCH('Solde d''heure collaborateur'!DP$2,Horaires!$H$3:$H$40,0),5),VLOOKUP(DO4,Horaires!$A$3:$E$60,5,))) -> 0 | DS4: =INDEX(Planning!$34:$34,MATCH('Solde d''heure collaborateur'!$A4,Planning!$3:$3)) -> X | DT4: =VLOOKUP(DS4,Horaires!$A$3:$E$49,2,) -> XXX | DU4: =IF(DT4="vacances",INDEX(Horaires!$H$3:$L$42,MATCH('Solde d''heure collaborateur'!DT$2,Horaires!$H$3:$H$40,0),4),IF(DT4="maladie",INDEX(Horaires!$H$3:$L$42,MATCH('Solde d''heure collaborateur'!DT$2,Horaires!$H$3:$H$40,0),5),VLOOKUP(DS4,Horaires!$A$3:$E$60,5,))) -> 0 | DW4: =INDEX(Planning!$35:$35,MATCH('Solde d''heure collaborateur'!$A4,Planning!$3:$3)) -> X | DX4: =VLOOKUP(DW4,Horaires!$A$3:$E$49,2,) -> XXX | DY4: =IF(DX4="vacances",INDEX(Horaires!$H$3:$L$42,MATCH('Solde d''heure collaborateur'!DX$2,Horaires!$H$3:$H$40,0),4),IF(DX4="maladie",INDEX(Horaires!$H$3:$L$42,MATCH('Solde d''heure collaborateur'!DX$2,Horaires!$H$3:$H$40,0),5),VLOOKUP(DW4,Horaires!$A$3:$E$60,5,))) -> 0
A5: =A4+1 -> 2013-11-05 | C5: =INDEX(Planning!$4:$4,MATCH('Solde d''heure collaborateur'!A5,Planning!$3:$3,0)) -> R | D5: =VLOOKUP(C5,Horaires!$A$3:$E$49,2,) -> Congé | E5: =IF(D5="vacances",INDEX(Horaires!$H$3:$L$42,MATCH('Solde d''heure collaborateur'!D$2,Horaires!$H$3:$H$40,0),4),IF(D5="maladie",INDEX(Horaires!$H$3:$L$42,MATCH('Solde d''heure collaborateur'!D$2,Horaires!$H$3:$H$40,0),5),VLOOKUP(C5,Horaires!$A$3:$E$60,5,))) -> 0 | G5: =INDEX(Planning!$5:$5,MATCH('Solde d''heure collaborateur'!A5,Planning!$3:$3)) -> V | H5: =VLOOKUP(G5,Horaires!$A$3:$E$49,2,) -> Vacances | I5: =IF(H5="vacances",INDEX(Horaires!$H$3:$L$42,MATCH('Solde d''heure collaborateur'!H$2,Horaires!$H$3:$H$40,0),4),IF(H5="maladie",INDEX(Horaires!$H$3:$L$42,MATCH('Solde d''heure collaborateur'!H$2,Horaires!$H$3:$H$40,0),5),VLOOKUP(G5,Horaires!$A$3:$E$60,5,))) -> 0.35 | K5: =INDEX(Planning!$6:$6,MATCH('Solde d''heure collaborateur'!A5,Planning!$3:$3)) -> M | L5: =VLOOKUP(K5,Horaires!$A$3:$E$49,2,) -> Maladie | M5: =IF(L5="vacances",INDEX(Horaires!$H$3:$L$42,MATCH('Solde d''heure collaborateur'!L$2,Horaires!$H$3:$H$40,0),4),IF(L5="maladie",INDEX(Horaires!$H$3:$L$42,MATCH('Solde d''heure collaborateur'!L$2,Horaires!$H$3:$H$40,0),5),VLOOKUP(K5,Horaires!$A$3:$E$60,5,))) -> 0.4375 | O5: =INDEX(Planning!$7:$7,MATCH('Solde d''heure collaborateur'!$A5,Planning!$3:$3)) -> Vib1 | P5: =VLOOKUP(O5,Horaires!$A$3:$E$49,2,) -> Vibert | Q5: =IF(P5="vacances",INDEX(Horaires!$H$3:$L$42,MATCH('Solde d''heure collaborateur'!P$2,Horaires!$H$3:$H$40,0),4),IF(P5="maladie",INDEX(Horaires!$H$3:$L$42,MATCH('Solde d''heure collaborateur'!P$2,Horaires!$H$3:$H$40,0),5),VLOOKUP(O5,Horaires!$A$3:$E$60,5,))) -> 0.46875 | S5: =INDEX(Planning!$8:$8,MATCH('Solde d''heure collaborateur'!$A5,Planning!$3:$3)) -> Onex1 | T5: =VLOOKUP(S5,Horaires!$A$3:$E$49,2,) -> Onex | U5: =IF(T5="vacances",INDEX(Horaires!$H$3:$L$42,MATCH('Solde d''heure collaborateur'!T$2,Horaires!$H$3:$H$40,0),4),IF(T5="maladie",INDEX(Horaires!$H$3:$L$42,MATCH('Solde d''heure collaborateur'!T$2,Horaires!$H$3:$H$40,0),5),VLOOKUP(S5,Horaires!$A$3:$E$60,5,))) -> 0.46875 | W5: =INDEX(Planning!$9:$9,MATCH('Solde d''heure collaborateur'!$A5,Planning!$3:$3)) -> X | X5: =VLOOKUP(W5,Horaires!$A$3:$E$49,2,) -> XXX | Y5: =IF(X5="vacances",INDEX(Horaires!$H$3:$L$42,MATCH('Solde d''heure collaborateur'!X$2,Horaires!$H$3:$H$40,0),4),IF(X5="maladie",INDEX(Horaires!$H$3:$L$42,MATCH('Solde d''heure collaborateur'!X$2,Horaires!$H$3:$H$40,0),5),VLOOKUP(W5,Horaires!$A$3:$E$60,5,))) -> 0 | AA5: =INDEX(Planning!$10:$10,MATCH('Solde d''heure collaborateur'!$A5,Planning!$3:$3)) -> R | AB5: =VLOOKUP(AA5,Horaires!$A$3:$E$49,2,) -> Congé | AC5: =IF(AB5="vacances",INDEX(Horaires!$H$3:$L$42,MATCH('Solde d''heure collaborateur'!AB$2,Horaires!$H$3:$H$40,0),4),IF(AB5="maladie",INDEX(Horaires!$H$3:$L$42,MATCH('Solde d''heure collaborateur'!AB$2,Horaires!$H$3:$H$40,0),5),VLOOKUP(AA5,Horaires!$A$3:$E$60,5,))) -> 0 | AE5: =INDEX(Planning!$11:$11,MATCH('Solde d''heure collaborateur'!$A5,Planning!$3:$3)) -> Plo1 | AF5: =VLOOKUP(AE5,Horaires!$A$3:$E$49,2,) -> Plan les Ouates | AG5: =IF(AF5="vacances",INDEX(Horaires!$H$3:$L$42,MATCH('Solde d''heure collaborateur'!AF$2,Horaires!$H$3:$H$40,0),4),IF(AF5="maladie",INDEX(Horaires!$H$3:$L$42,MATCH('Solde d''heure collaborateur'!AF$2,Horaires!$H$3:$H$40,0),5),VLOOKUP(AE5,Horaires!$A$3:$E$60,5,))) -> 0.46875 | AI5: =INDEX(Planning!$12:$12,MATCH('Solde d''heure collaborateur'!$A5,Planning!$3:$3)) -> Thon1 | AJ5: =VLOOKUP(AI5,Horaires!$A$3:$E$49,2,) -> Thonex | AK5: =IF(AJ5="vacances",INDEX(Horaires!$H$3:$L$42,MATCH('Solde d''heure collaborateur'!AJ$2,Horaires!$H$3:$H$40,0),4),IF(AJ5="maladie",INDEX(Horaires!$H$3:$L$42,MATCH('Solde d''heure collaborateur'!AJ$2,Horaires!$H$3:$H$40,0),5),VLOOKUP(AI5,Horaires!$A$3:$E$60,5,))) -> 0.4479166667 | AM5: =INDEX(Planning!$13:$13,MATCH('Solde d''heure collaborateur'!$A5,Planning!$3:$3)) -> pom1 | AN5: =VLOOKUP(AM5,Horaires!$A$3:$E$49,2,) -> Pommier | AO5: =IF(AN5="vacances",INDEX(Horaires!$H$3:$L$42,MATCH('Solde d''heure collaborateur'!AN$2,Horaires!$H$3:$H$40,0),4),IF(AN5="maladie",INDEX(Horaires!$H$3:$L$42,MATCH('Solde d''heure collaborateur'!AN$2,Horaires!$H$3:$H$40,0),5),VLOOKUP(AM5,Horaires!$A$3:$E$60,5,))) -> 0.4479166667 | AQ5: =INDEX(Planning!$14:$14,MATCH('Solde d''heure collaborateur'!$A5,Planning!$3:$3)) -> X | AR5: =VLOOKUP(AQ5,Horaires!$A$3:$E$49,2,) -> XXX | AS5: =IF(AR5="vacances",INDEX(Horaires!$H$3:$L$42,MATCH('Solde d''heure collaborateur'!AR$2,Horaires!$H$3:$H$40,0),4),IF(AR5="maladie",INDEX(Horaires!$H$3:$L$42,MATCH('Solde d''heure collaborateur'!AR$2,Horaires!$H$3:$H$40,0),5),VLOOKUP(AQ5,Horaires!$A$3:$E$60,5,))) -> 0 | AU5: =INDEX(Planning!$15:$15,MATCH('Solde d''heure collaborateur'!$A5,Planning!$3:$3)) -> Nyon1 | AV5: =VLOOKUP(AU5,Horaires!$A$3:$E$49,2,) -> Nyon | AW5: =IF(AV5="vacances",INDEX(Horaires!$H$3:$L$42,MATCH('Solde d''heure collaborateur'!AV$2,Horaires!$H$3:$H$40,0),4),IF(AV5="maladie",INDEX(Horaires!$H$3:$L$42,MATCH('Solde d''heure collaborateur'!AV$2,Horaires!$H$3:$H$40,0),5),VLOOKUP(AU5,Horaires!$A$3:$E$60,5,))) -> 0.4479166667 | AY5: =INDEX(Planning!$16:$16,MATCH('Solde d''heure collaborateur'!$A5,Planning!$3:$3)) -> Onex1 | AZ5: =VLOOKUP(AY5,Horaires!$A$3:$E$49,2,) -> Onex | BA5: =IF(AZ5="vacances",INDEX(Horaires!$H$3:$L$42,MATCH('Solde d''heure collaborateur'!AZ$2,Horaires!$H$3:$H$40,0),4),IF(AZ5="maladie",INDEX(Horaires!$H$3:$L$42,MATCH('Solde d''heure collaborateur'!AZ$2,Horaires!$H$3:$H$40,0),5),VLOOKUP(AY5,Horaires!$A$3:$E$60,5,))) -> 0.46875 | BC5: =INDEX(Planning!$17:$17,MATCH('Solde d''heure collaborateur'!$A5,Planning!$3:$3)) -> nav1 | BD5: =VLOOKUP(BC5,Horaires!$A$3:$E$49,2,) -> Navigation | BE5: =IF(BD5="vacances",INDEX(Horaires!$H$3:$L$42,MATCH('Solde d''heure collaborateur'!BD$2,Horaires!$H$3:$H$40,0),4),IF(BD5="maladie",INDEX(Horaires!$H$3:$L$42,MATCH('Solde d''heure collaborateur'!BD$2,Horaires!$H$3:$H$40,0),5),VLOOKUP(BC5,Horaires!$A$3:$E$60,5,))) -> 0.4479166667 | BG5: =INDEX(Planning!$18:$18,MATCH('Solde d''heure collaborateur'!$A5,Planning!$3:$3)) -> R | BH5: =VLOOKUP(BG5,Horaires!$A$3:$E$49,2,) -> Congé | BI5: =IF(BH5="vacances",INDEX(Horaires!$H$3:$L$42,MATCH('Solde d''heure collaborateur'!BH$2,Horaires!$H$3:$H$40,0),4),IF(BH5="maladie",INDEX(Horaires!$H$3:$L$42,MATCH('Solde d''heure collaborateur'!BH$2,Horaires!$H$3:$H$40,0),5),VLOOKUP(BG5,Horaires!$A$3:$E$60,5,))) -> 0 | BK5: =INDEX(Planning!$19:$19,MATCH('Solde d''heure collaborateur'!$A5,Planning!$3:$3)) -> R | BL5: =VLOOKUP(BK5,Horaires!$A$3:$E$49,2,) -> Congé | BM5: =IF(BL5="vacances",INDEX(Horaires!$H$3:$L$42,MATCH('Solde d''heure collaborateur'!BL$2,Horaires!$H$3:$H$40,0),4),IF(BL5="maladie",INDEX(Horaires!$H$3:$L$42,MATCH('Solde d''heure collaborateur'!BL$2,Horaires!$H$3:$H$40,0),5),VLOOKUP(BK5,Horaires!$A$3:$E$60,5,))) -> 0 | BO5: =INDEX(Planning!$20:$20,MATCH('Solde d''heure collaborateur'!$A5,Planning!$3:$3)) -> R | BP5: =VLOOKUP(BO5,Horaires!$A$3:$E$49,2,) -> Congé | BQ5: =IF(BP5="vacances",INDEX(Horaires!$H$3:$L$42,MATCH('Solde d''heure collaborateur'!BP$2,Horaires!$H$3:$H$40,0),4),IF(BP5="maladie",INDEX(Horaires!$H$3:$L$42,MATCH('Solde d''heure collaborateur'!BP$2,Horaires!$H$3:$H$40,0),5),VLOOKUP(BO5,Horaires!$A$3:$E$60,5,))) -> 0 | BS5: =INDEX(Planning!$21:$21,MATCH('Solde d''heure collaborateur'!$A5,Planning!$3:$3)) -> R | BT5: =VLOOKUP(BS5,Horaires!$A$3:$E$49,2,) -> Congé | BU5: =IF(BT5="vacances",INDEX(Horaires!$H$3:$L$42,MATCH('Solde d''heure collaborateur'!BT$2,Horaires!$H$3:$H$40,0),4),IF(BT5="maladie",INDEX(Horaires!$H$3:$L$42,MATCH('Solde d''heure collaborateur'!BT$2,Horaires!$H$3:$H$40,0),5),VLOOKUP(BS5,Horaires!$A$3:$E$60,5,))) -> 0 | BW5: =INDEX(Planning!$22:$22,MATCH('Solde d''heure collaborateur'!$A5,Planning!$3:$3)) -> Ves1 | BX5: =VLOOKUP(BW5,Horaires!$A$3:$E$49,2,) -> Vesenaz | BY5: =IF(BX5="vacances",INDEX(Horaires!$H$3:$L$42,MATCH('Solde d''heure collaborateur'!BX$2,Horaires!$H$3:$H$40,0),4),IF(BX5="maladie",INDEX(Horaires!$H$3:$L$42,MATCH('Solde d''heure collaborateur'!BX$2,Horaires!$H$3:$H$40,0),5),VLOOKUP(BW5,Horaires!$A$3:$E$60,5,))) -> 0.4479166667 | CA5: =INDEX(Planning!$23:$23,MATCH('Solde d''heure collaborateur'!$A5,Planning!$3:$3)) -> Aca1 | CB5: =VLOOKUP(CA5,Horaires!$A$3:$E$49,2,) -> Acacias | CC5: =IF(CB5="vacances",INDEX(Horaires!$H$3:$L$42,MATCH('Solde d''heure collaborateur'!CB$2,Horaires!$H$3:$H$40,0),4),IF(CB5="maladie",INDEX(Horaires!$H$3:$L$42,MATCH('Solde d''heure collaborateur'!CB$2,Horaires!$H$3:$H$40,0),5),VLOOKUP(CA5,Horaires!$A$3:$E$60,5,))) -> 0.4479166667 | CE5: =INDEX(Planning!$24:$24,MATCH('Solde d''heure collaborateur'!$A5,Planning!$3:$3)) -> Vid1 | CF5: =VLOOKUP(CE5,Horaires!$A$3:$E$49,2,) -> Vidollet | CG5: =IF(CF5="vacances",INDEX(Horaires!$H$3:$L$42,MATCH('Solde d''heure collaborateur'!CF$2,Horaires!$H$3:$H$40,0),4),IF(CF5="maladie",INDEX(Horaires!$H$3:$L$42,MATCH('Solde d''heure collaborateur'!CF$2,Horaires!$H$3:$H$40,0),5),VLOOKUP(CE5,Horaires!$A$3:$E$60,5,))) -> 0.4479166667 | CI5: =INDEX(Planning!$25:$25,MATCH('Solde d''heure collaborateur'!$A5,Planning!$3:$3)) -> X | CJ5: =VLOOKUP(CI5,Horaires!$A$3:$E$49,2,) -> XXX | CK5: =IF(CJ5="vacances",INDEX(Horaires!$H$3:$L$42,MATCH('Solde d''heure collaborateur'!CJ$2,Horaires!$H$3:$H$40,0),4),IF(CJ5="maladie",INDEX(Horaires!$H$3:$L$42,MATCH('Solde d''heure collaborateur'!CJ$2,Horaires!$H$3:$H$40,0),5),VLOOKUP(CI5,Horaires!$A$3:$E$60,5,))) -> 0 | CM5: =INDEX(Planning!$26:$26,MATCH('Solde d''heure collaborateur'!$A5,Planning!$3:$3)) -> R | CN5: =VLOOKUP(CM5,Horaires!$A$3:$E$49,2,) -> Congé | CO5: =IF(CN5="vacances",INDEX(Horaires!$H$3:$L$42,MATCH('Solde d''heure collaborateur'!CN$2,Horaires!$H$3:$H$40,0),4),IF(CN5="maladie",INDEX(Horaires!$H$3:$L$42,MATCH('Solde d''heure collaborateur'!CN$2,Horaires!$H$3:$H$40,0),5),VLOOKUP(CM5,Horaires!$A$3:$E$60,5,))) -> 0 | CQ5: =INDEX(Planning!$27:$27,MATCH('Solde d''heure collaborateur'!$A5,Planning!$3:$3)) -> vib1 | CR5: =VLOOKUP(CQ5,Horaires!$A$3:$E$49,2,) -> Vibert | CS5: =IF(CR5="vacances",INDEX(Horaires!$H$3:$L$42,MATCH('Solde d''heure collaborateur'!CR$2,Horaires!$H$3:$H$40,0),4),IF(CR5="maladie",INDEX(Horaires!$H$3:$L$42,MATCH('Solde d''heure collaborateur'!CR$2,Horaires!$H$3:$H$40,0),5),VLOOKUP(CQ5,Horaires!$A$3:$E$60,5,))) -> 0.46875 | CU5: =INDEX(Planning!$28:$28,MATCH('Solde d''heure collaborateur'!$A5,Planning!$3:$3)) -> tour1 | CV5: =VLOOKUP(CU5,Horaires!$A$3:$E$49,2,) -> Tourelle | CW5: =IF(CV5="vacances",INDEX(Horaires!$H$3:$L$42,MATCH('Solde d''heure collaborateur'!CV$2,Horaires!$H$3:$H$40,0),4),IF(CV5="maladie",INDEX(Horaires!$H$3:$L$42,MATCH('Solde d''heure collaborateur'!CV$2,Horaires!$H$3:$H$40,0),5),VLOOKUP(CU5,Horaires!$A$3:$E$60,5,))) -> 0.46875 | CY5: =INDEX(Planning!$29:$29,MATCH('Solde d''heure collaborateur'!$A5,Planning!$3:$3)) -> X | CZ5: =VLOOKUP(CY5,Horaires!$A$3:$E$49,2,) -> XXX | DA5: =IF(CZ5="vacances",INDEX(Horaires!$H$3:$L$42,MATCH('Solde d''heure collaborateur'!CZ$2,Horaires!$H$3:$H$40,0),4),IF(CZ5="maladie",INDEX(Horaires!$H$3:$L$42,MATCH('Solde d''heure collaborateur'!CZ$2,Horaires!$H$3:$H$40,0),5),VLOOKUP(CY5,Horaires!$A$3:$E$60,5,))) -> 0 | DC5: =INDEX(Planning!$30:$30,MATCH('Solde d''heure collaborateur'!$A5,Planning!$3:$3)) -> X | DD5: =VLOOKUP(DC5,Horaires!$A$3:$E$49,2,) -> XXX | DE5: =IF(DD5="vacances",INDEX(Horaires!$H$3:$L$42,MATCH('Solde d''heure collaborateur'!DD$2,Horaires!$H$3:$H$40,0),4),IF(DD5="maladie",INDEX(Horaires!$H$3:$L$42,MATCH('Solde d''heure collaborateur'!DD$2,Horaires!$H$3:$H$40,0),5),VLOOKUP(DC5,Horaires!$A$3:$E$60,5,))) -> 0 | DG5: =INDEX(Planning!$31:$31,MATCH('Solde d''heure collaborateur'!$A5,Planning!$3:$3)) -> X | DH5: =VLOOKUP(DG5,Horaires!$A$3:$E$49,2,) -> XXX | DI5: =IF(DH5="vacances",INDEX(Horaires!$H$3:$L$42,MATCH('Solde d''heure collaborateur'!DH$2,Horaires!$H$3:$H$40,0),4),IF(DH5="maladie",INDEX(Horaires!$H$3:$L$42,MATCH('Solde d''heure collaborateur'!DH$2,Horaires!$H$3:$H$40,0),5),VLOOKUP(DG5,Horaires!$A$3:$E$60,5,))) -> 0 | DK5: =INDEX(Planning!$32:$32,MATCH('Solde d''heure collaborateur'!$A5,Planning!$3:$3)) -> X | DL5: =VLOOKUP(DK5,Horaires!$A$3:$E$49,2,) -> XXX | DM5: =IF(DL5="vacances",INDEX(Horaires!$H$3:$L$42,MATCH('Solde d''heure collaborateur'!DL$2,Horaires!$H$3:$H$40,0),4),IF(DL5="maladie",INDEX(Horaires!$H$3:$L$42,MATCH('Solde d''heure collaborateur'!DL$2,Horaires!$H$3:$H$40,0),5),VLOOKUP(DK5,Horaires!$A$3:$E$60,5,))) -> 0 | DO5: =INDEX(Planning!$33:$33,MATCH('Solde d''heure collaborateur'!$A5,Planning!$3:$3)) -> X | DP5: =VLOOKUP(DO5,Horaires!$A$3:$E$49,2,) -> XXX | DQ5: =IF(DP5="vacances",INDEX(Horaires!$H$3:$L$42,MATCH('Solde d''heure collaborateur'!DP$2,Horaires!$H$3:$H$40,0),4),IF(DP5="maladie",INDEX(Horaires!$H$3:$L$42,MATCH('Solde d''heure collaborateur'!DP$2,Horaires!$H$3:$H$40,0),5),VLOOKUP(DO5,Horaires!$A$3:$E$60,5,))) -> 0 | DS5: =INDEX(Planning!$34:$34,MATCH('Solde d''heure collaborateur'!$A5,Planning!$3:$3)) -> X | DT5: =VLOOKUP(DS5,Horaires!$A$3:$E$49,2,) -> XXX | DU5: =IF(DT5="vacances",INDEX(Horaires!$H$3:$L$42,MATCH('Solde d''heure collaborateur'!DT$2,Horaires!$H$3:$H$40,0),4),IF(DT5="maladie",INDEX(Horaires!$H$3:$L$42,MATCH('Solde d''heure collaborateur'!DT$2,Horaires!$H$3:$H$40,0),5),VLOOKUP(DS5,Horaires!$A$3:$E$60,5,))) -> 0 | DW5: =INDEX(Planning!$35:$35,MATCH('Solde d''heure collaborateur'!$A5,Planning!$3:$3)) -> X | DX5: =VLOOKUP(DW5,Horaires!$A$3:$E$49,2,) -> XXX | DY5: =IF(DX5="vacances",INDEX(Horaires!$H$3:$L$42,MATCH('Solde d''heure collaborateur'!DX$2,Horaires!$H$3:$H$40,0),4),IF(DX5="maladie",INDEX(Horaires!$H$3:$L$42,MATCH('Solde d''heure collaborateur'!DX$2,Horaires!$H$3:$H$40,0),5),VLOOKUP(DW5,Horaires!$A$3:$E$60,5,))) -> 0
A6: =A5+1 -> 2013-11-06 | C6: =INDEX(Planning!$4:$4,MATCH('Solde d''heure collaborateur'!A6,Planning!$3:$3,0)) -> Nav1 | D6: =VLOOKUP(C6,Horaires!$A$3:$E$49,2,) -> Navigation | E6: =IF(D6="vacances",INDEX(Horaires!$H$3:$L$42,MATCH('Solde d''heure collaborateur'!D$2,Horaires!$H$3:$H$40,0),4),IF(D6="maladie",INDEX(Horaires!$H$3:$L$42,MATCH('Solde d''heure collaborateur'!D$2,Horaires!$H$3:$H$40,0),5),VLOOKUP(C6,Horaires!$A$3:$E$60,5,))) -> 0.4479166667 | G6: =INDEX(Planning!$5:$5,MATCH('Solde d''heure collaborateur'!A6,Planning!$3:$3)) -> V | H6: =VLOOKUP(G6,Horaires!$A$3:$E$49,2,) -> Vacances | I6: =IF(H6="vacances",INDEX(Horaires!$H$3:$L$42,MATCH('Solde d''heure collaborateur'!H$2,Horaires!$H$3:$H$40,0),4),IF(H6="maladie",INDEX(Horaires!$H$3:$L$42,MATCH('Solde d''heure collaborateur'!H$2,Horaires!$H$3:$H$40,0),5),VLOOKUP(G6,Horaires!$A$3:$E$60,5,))) -> 0.35 | K6: =INDEX(Planning!$6:$6,MATCH('Solde d''heure collaborateur'!A6,Planning!$3:$3)) -> M | L6: =VLOOKUP(K6,Horaires!$A$3:$E$49,2,) -> Maladie | M6: =IF(L6="vacances",INDEX(Horaires!$H$3:$L$42,MATCH('Solde d''heure collaborateur'!L$2,Horaires!$H$3:$H$40,0),4),IF(L6="maladie",INDEX(Horaires!$H$3:$L$42,MATCH('Solde d''heure collaborateur'!L$2,Horaires!$H$3:$H$40,0),5),VLOOKUP(K6,Horaires!$A$3:$E$60,5,))) -> 0.4375 | O6: =INDEX(Planning!$7:$7,MATCH('Solde d''heure collaborateur'!$A6,Planning!$3:$3)) -> X | P6: =VLOOKUP(O6,Horaires!$A$3:$E$49,2,) -> XXX | Q6: =IF(P6="vacances",INDEX(Horaires!$H$3:$L$42,MATCH('Solde d''heure collaborateur'!P$2,Horaires!$H$3:$H$40,0),4),IF(P6="maladie",INDEX(Horaires!$H$3:$L$42,MATCH('Solde d''heure collaborateur'!P$2,Horaires!$H$3:$H$40,0),5),VLOOKUP(O6,Horaires!$A$3:$E$60,5,))) -> 0 | S6: =INDEX(Planning!$8:$8,MATCH('Solde d''heure collaborateur'!$A6,Planning!$3:$3)) -> Onex1 | T6: =VLOOKUP(S6,Horaires!$A$3:$E$49,2,) -> Onex | U6: =IF(T6="vacances",INDEX(Horaires!$H$3:$L$42,MATCH('Solde d''heure collaborateur'!T$2,Horaires!$H$3:$H$40,0),4),IF(T6="maladie",INDEX(Horaires!$H$3:$L$42,MATCH('Solde d''heure collaborateur'!T$2,Horaires!$H$3:$H$40,0),5),VLOOKUP(S6,Horaires!$A$3:$E$60,5,))) -> 0.46875 | W6: =INDEX(Planning!$9:$9,MATCH('Solde d''heure collaborateur'!$A6,Planning!$3:$3)) -> Onex1 | X6: =VLOOKUP(W6,Horaires!$A$3:$E$49,2,) -> Onex | Y6: =IF(X6="vacances",INDEX(Horaires!$H$3:$L$42,MATCH('Solde d''heure collaborateur'!X$2,Horaires!$H$3:$H$40,0),4),IF(X6="maladie",INDEX(Horaires!$H$3:$L$42,MATCH('Solde d''heure collaborateur'!X$2,Horaires!$H$3:$H$40,0),5),VLOOKUP(W6,Horaires!$A$3:$E$60,5,))) -> 0.46875 | AA6: =INDEX(Planning!$10:$10,MATCH('Solde d''heure collaborateur'!$A6,Planning!$3:$3)) -> Tour1 | AB6: =VLOOKUP(AA6,Horaires!$A$3:$E$49,2,) -> Tourelle | AC6: =IF(AB6="vacances",INDEX(Horaires!$H$3:$L$42,MATCH('Solde d''heure collaborateur'!AB$2,Horaires!$H$3:$H$40,0),4),IF(AB6="maladie",INDEX(Horaires!$H$3:$L$42,MATCH('Solde d''heure collaborateur'!AB$2,Horaires!$H$3:$H$40,0),5),VLOOKUP(AA6,Horaires!$A$3:$E$60,5,))) -> 0.46875 | AE6: =INDEX(Planning!$11:$11,MATCH('Solde d''heure collaborateur'!$A6,Planning!$3:$3)) -> Plo1 | AF6: =VLOOKUP(AE6,Horaires!$A$3:$E$49,2,) -> Plan les Ouates | AG6: =IF(AF6="vacances",INDEX(Horaires!$H$3:$L$42,MATCH('Solde d''heure collaborateur'!AF$2,Horaires!$H$3:$H$40,0),4),IF(AF6="maladie",INDEX(Horaires!$H$3:$L$42,MATCH('Solde d''heure collaborateur'!AF$2,Horaires!$H$3:$H$40,0),5),VLOOKUP(AE6,Horaires!$A$3:$E$60,5,))) -> 0.46875 | AI6: =INDEX(Planning!$12:$12,MATCH('Solde d''heure collaborateur'!$A6,Planning!$3:$3)) -> R | AJ6: =VLOOKUP(AI6,Horaires!$A$3:$E$49,2,) -> Congé | AK6: =IF(AJ6="vacances",INDEX(Horaires!$H$3:$L$42,MATCH('Solde d''heure collaborateur'!AJ$2,Horaires!$H$3:$H$40,0),4),IF(AJ6="maladie",INDEX(Horaires!$H$3:$L$42,MATCH('Solde d''heure collaborateur'!AJ$2,Horaires!$H$3:$H$40,0),5),VLOOKUP(AI6,Horaires!$A$3:$E$60,5,))) -> 0 | AM6: =INDEX(Planning!$13:$13,MATCH('Solde d''heure collaborateur'!$A6,Planning!$3:$3)) -> Nyon1 | AN6: =VLOOKUP(AM6,Horaires!$A$3:$E$49,2,) -> Nyon | AO6: =IF(AN6="vacances",INDEX(Horaires!$H$3:$L$42,MATCH('Solde d''heure collaborateur'!AN$2,Horaires!$H$3:$H$40,0),4),IF(AN6="maladie",INDEX(Horaires!$H$3:$L$42,MATCH('Solde d''heure collaborateur'!AN$2,Horaires!$H$3:$H$40,0),5),VLOOKUP(AM6,Horaires!$A$3:$E$60,5,))) -> 0.4479166667 | AQ6: =INDEX(Planning!$14:$14,MATCH('Solde d''heure collaborateur'!$A6,Planning!$3:$3)) -> X | AR6: =VLOOKUP(AQ6,Horaires!$A$3:$E$49,2,) -> XXX | AS6: =IF(AR6="vacances",INDEX(Horaires!$H$3:$L$42,MATCH('Solde d''heure collaborateur'!AR$2,Horaires!$H$3:$H$40,0),4),IF(AR6="maladie",INDEX(Horaires!$H$3:$L$42,MATCH('Solde d''heure collaborateur'!AR$2,Horaires!$H$3:$H$40,0),5),VLOOKUP(AQ6,Horaires!$A$3:$E$60,5,))) -> 0 | AU6: =INDEX(Planning!$15:$15,MATCH('Solde d''heure collaborateur'!$A6,Planning!$3:$3)) -> R | AV6: =VLOOKUP(AU6,Horaires!$A$3:$E$49,2,) -> Congé | AW6: =IF(AV6="vacances",INDEX(Horaires!$H$3:$L$42,MATCH('Solde d''heure collaborateur'!AV$2,Horaires!$H$3:$H$40,0),4),IF(AV6="maladie",INDEX(Horaires!$H$3:$L$42,MATCH('Solde d''heure collaborateur'!AV$2,Horaires!$H$3:$H$40,0),5),VLOOKUP(AU6,Horaires!$A$3:$E$60,5,))) -> 0 | AY6: =INDEX(Planning!$16:$16,MATCH('Solde d''heure collaborateur'!$A6,Planning!$3:$3)) -> R | AZ6: =VLOOKUP(AY6,Horaires!$A$3:$E$49,2,) -> Congé | BA6: =IF(AZ6="vacances",INDEX(Horaires!$H$3:$L$42,MATCH('Solde d''heure collaborateur'!AZ$2,Horaires!$H$3:$H$40,0),4),IF(AZ6="maladie",INDEX(Horaires!$H$3:$L$42,MATCH('Solde d''heure collaborateur'!AZ$2,Horaires!$H$3:$H$40,0),5),VLOOKUP(AY6,Horaires!$A$3:$E$60,5,))) -> 0 | BC6: =INDEX(Planning!$17:$17,MATCH('Solde d''heure collaborateur'!$A6,Planning!$3:$3)) -> pom1 | BD6: =VLOOKUP(BC6,Horaires!$A$3:$E$49,2,) -> Pommier | BE6: =IF(BD6="vacances",INDEX(Horaires!$H$3:$L$42,MATCH('Solde d''heure collaborateur'!BD$2,Horaires!$H$3:$H$40,0),4),IF(BD6="maladie",INDEX(Horaires!$H$3:$L$42,MATCH('Solde d''heure collaborateur'!BD$2,Horaires!$H$3:$H$40,0),5),VLOOKUP(BC6,Horaires!$A$3:$E$60,5,))) -> 0.4479166667 | BG6: =INDEX(Planning!$18:$18,MATCH('Solde d''heure collaborateur'!$A6,Planning!$3:$3)) -> vib1 | BH6: =VLOOKUP(BG6,Horaires!$A$3:$E$49,2,) -> Vibert | BI6: =IF(BH6="vacances",INDEX(Horaires!$H$3:$L$42,MATCH('Solde d''heure collaborateur'!BH$2,Horaires!$H$3:$H$40,0),4),IF(BH6="maladie",INDEX(Horaires!$H$3:$L$42,MATCH('Solde d''heure collaborateur'!BH$2,Horaires!$H$3:$H$40,0),5),VLOOKUP(BG6,Horaires!$A$3:$E$60,5,))) -> 0.46875 | BK6: =INDEX(Planning!$19:$19,MATCH('Solde d''heure collaborateur'!$A6,Planning!$3:$3)) -> Vib1 | BL6: =VLOOKUP(BK6,Horaires!$A$3:$E$49,2,) -> Vibert | BM6: =IF(BL6="vacances",INDEX(Horaires!$H$3:$L$42,MATCH('Solde d''heure collaborateur'!BL$2,Horaires!$H$3:$H$40,0),4),IF(BL6="maladie",INDEX(Horaires!$H$3:$L$42,MATCH('Solde d''heure collaborateur'!BL$2,Horaires!$H$3:$H$40,0),5),VLOOKUP(BK6,Horaires!$A$3:$E$60,5,))) -> 0.46875 | BO6: =INDEX(Planning!$20:$20,MATCH('Solde d''heure collaborateur'!$A6,Planning!$3:$3)) -> R | BP6: =VLOOKUP(BO6,Horaires!$A$3:$E$49,2,) -> Congé | BQ6: =IF(BP6="vacances",INDEX(Horaires!$H$3:$L$42,MATCH('Solde d''heure collaborateur'!BP$2,Horaires!$H$3:$H$40,0),4),IF(BP6="maladie",INDEX(Horaires!$H$3:$L$42,MATCH('Solde d''heure collaborateur'!BP$2,Horaires!$H$3:$H$40,0),5),VLOOKUP(BO6,Horaires!$A$3:$E$60,5,))) -> 0 | BS6: =INDEX(Planning!$21:$21,MATCH('Solde d''heure collaborateur'!$A6,Planning!$3:$3)) -> Ves1 | BT6: =VLOOKUP(BS6,Horaires!$A$3:$E$49,2,) -> Vesenaz | BU6: =IF(BT6="vacances",INDEX(Horaires!$H$3:$L$42,MATCH('Solde d''heure collaborateur'!BT$2,Horaires!$H$3:$H$40,0),4),IF(BT6="maladie",INDEX(Horaires!$H$3:$L$42,MATCH('Solde d''heure collaborateur'!BT$2,Horaires!$H$3:$H$40,0),5),VLOOKUP(BS6,Horaires!$A$3:$E$60,5,))) -> 0.4479166667 | BW6: =INDEX(Planning!$22:$22,MATCH('Solde d''heure collaborateur'!$A6,Planning!$3:$3)) -> X | BX6: =VLOOKUP(BW6,Horaires!$A$3:$E$49,2,) -> XXX | BY6: =IF(BX6="vacances",INDEX(Horaires!$H$3:$L$42,MATCH('Solde d''heure collaborateur'!BX$2,Horaires!$H$3:$H$40,0),4),IF(BX6="maladie",INDEX(Horaires!$H$3:$L$42,MATCH('Solde d''heure collaborateur'!BX$2,Horaires!$H$3:$H$40,0),5),VLOOKUP(BW6,Horaires!$A$3:$E$60,5,))) -> 0 | CA6: =INDEX(Planning!$23:$23,MATCH('Solde d''heure collaborateur'!$A6,Planning!$3:$3)) -> Aca1 | CB6: =VLOOKUP(CA6,Horaires!$A$3:$E$49,2,) -> Acacias | CC6: =IF(CB6="vacances",INDEX(Horaires!$H$3:$L$42,MATCH('Solde d''heure collaborateur'!CB$2,Horaires!$H$3:$H$40,0),4),IF(CB6="maladie",INDEX(Horaires!$H$3:$L$42,MATCH('Solde d''heure collaborateur'!CB$2,Horaires!$H$3:$H$40,0),5),VLOOKUP(CA6,Horaires!$A$3:$E$60,5,))) -> 0.4479166667 | CE6: =INDEX(Planning!$24:$24,MATCH('Solde d''heure collaborateur'!$A6,Planning!$3:$3)) -> R | CF6: =VLOOKUP(CE6,Horaires!$A$3:$E$49,2,) -> Congé | CG6: =IF(CF6="vacances",INDEX(Horaires!$H$3:$L$42,MATCH('Solde d''heure collaborateur'!CF$2,Horaires!$H$3:$H$40,0),4),IF(CF6="maladie",INDEX(Horaires!$H$3:$L$42,MATCH('Solde d''heure collaborateur'!CF$2,Horaires!$H$3:$H$40,0),5),VLOOKUP(CE6,Horaires!$A$3:$E$60,5,))) -> 0 | CI6: =INDEX(Planning!$25:$25,MATCH('Solde d''heure collaborateur'!$A6,Planning!$3:$3)) -> X | CJ6: =VLOOKUP(CI6,Horaires!$A$3:$E$49,2,) -> XXX | CK6: =IF(CJ6="vacances",INDEX(Horaires!$H$3:$L$42,MATCH('Solde d''heure collaborateur'!CJ$2,Horaires!$H$3:$H$40,0),4),IF(CJ6="maladie",INDEX(Horaires!$H$3:$L$42,MATCH('Solde d''heure collaborateur'!CJ$2,Horaires!$H$3:$H$40,0),5),VLOOKUP(CI6,Horaires!$A$3:$E$60,5,))) -> 0 | CM6: =INDEX(Planning!$26:$26,MATCH('Solde d''heure collaborateur'!$A6,Planning!$3:$3)) -> Vid1 | CN6: =VLOOKUP(CM6,Horaires!$A$3:$E$49,2,) -> Vidollet | CO6: =IF(CN6="vacances",INDEX(Horaires!$H$3:$L$42,MATCH('Solde d''heure collaborateur'!CN$2,Horaires!$H$3:$H$40,0),4),IF(CN6="maladie",INDEX(Horaires!$H$3:$L$42,MATCH('Solde d''heure collaborateur'!CN$2,Horaires!$H$3:$H$40,0),5),VLOOKUP(CM6,Horaires!$A$3:$E$60,5,))) -> 0.4479166667 | CQ6: =INDEX(Planning!$27:$27,MATCH('Solde d''heure collaborateur'!$A6,Planning!$3:$3)) -> Thon1 | CR6: =VLOOKUP(CQ6,Horaires!$A$3:$E$49,2,) -> Thonex | CS6: =IF(CR6="vacances",INDEX(Horaires!$H$3:$L$42,MATCH('Solde d''heure collaborateur'!CR$2,Horaires!$H$3:$H$40,0),4),IF(CR6="maladie",INDEX(Horaires!$H$3:$L$42,MATCH('Solde d''heure collaborateur'!CR$2,Horaires!$H$3:$H$40,0),5),VLOOKUP(CQ6,Horaires!$A$3:$E$60,5,))) -> 0.4479166667 | CU6: =INDEX(Planning!$28:$28,MATCH('Solde d''heure collaborateur'!$A6,Planning!$3:$3)) -> R | CV6: =VLOOKUP(CU6,Horaires!$A$3:$E$49,2,) -> Congé | CW6: =IF(CV6="vacances",INDEX(Horaires!$H$3:$L$42,MATCH('Solde d''heure collaborateur'!CV$2,Horaires!$H$3:$H$40,0),4),IF(CV6="maladie",INDEX(Horaires!$H$3:$L$42,MATCH('Solde d''heure collaborateur'!CV$2,Horaires!$H$3:$H$40,0),5),VLOOKUP(CU6,Horaires!$A$3:$E$60,5,))) -> 0 | CY6: =INDEX(Planning!$29:$29,MATCH('Solde d''heure collaborateur'!$A6,Planning!$3:$3)) -> X | CZ6: =VLOOKUP(CY6,Horaires!$A$3:$E$49,2,) -> XXX | DA6: =IF(CZ6="vacances",INDEX(Horaires!$H$3:$L$42,MATCH('Solde d''heure collaborateur'!CZ$2,Horaires!$H$3:$H$40,0),4),IF(CZ6="maladie",INDEX(Horaires!$H$3:$L$42,MATCH('Solde d''heure collaborateur'!CZ$2,Horaires!$H$3:$H$40,0),5),VLOOKUP(CY6,Horaires!$A$3:$E$60,5,))) -> 0 | DC6: =INDEX(Planning!$30:$30,MATCH('Solde d''heure collaborateur'!$A6,Planning!$3:$3)) -> X | DD6: =VLOOKUP(DC6,Horaires!$A$3:$E$49,2,) -> XXX | DE6: =IF(DD6="vacances",INDEX(Horaires!$H$3:$L$42,MATCH('Solde d''heure collaborateur'!DD$2,Horaires!$H$3:$H$40,0),4),IF(DD6="maladie",INDEX(Horaires!$H$3:$L$42,MATCH('Solde d''heure collaborateur'!DD$2,Horaires!$H$3:$H$40,0),5),VLOOKUP(DC6,Horaires!$A$3:$E$60,5,))) -> 0 | DG6: =INDEX(Planning!$31:$31,MATCH('Solde d''heure collaborateur'!$A6,Planning!$3:$3)) -> X | DH6: =VLOOKUP(DG6,Horaires!$A$3:$E$49,2,) -> XXX | DI6: =IF(DH6="vacances",INDEX(Horaires!$H$3:$L$42,MATCH('Solde d''heure collaborateur'!DH$2,Horaires!$H$3:$H$40,0),4),IF(DH6="maladie",INDEX(Horaires!$H$3:$L$42,MATCH('Solde d''heure collaborateur'!DH$2,Horaires!$H$3:$H$40,0),5),VLOOKUP(DG6,Horaires!$A$3:$E$60,5,))) -> 0 | DK6: =INDEX(Planning!$32:$32,MATCH('Solde d''heure collaborateur'!$A6,Planning!$3:$3)) -> X | DL6: =VLOOKUP(DK6,Horaires!$A$3:$E$49,2,) -> XXX | DM6: =IF(DL6="vacances",INDEX(Horaires!$H$3:$L$42,MATCH('Solde d''heure collaborateur'!DL$2,Horaires!$H$3:$H$40,0),4),IF(DL6="maladie",INDEX(Horaires!$H$3:$L$42,MATCH('Solde d''heure collaborateur'!DL$2,Horaires!$H$3:$H$40,0),5),VLOOKUP(DK6,Horaires!$A$3:$E$60,5,))) -> 0 | DO6: =INDEX(Planning!$33:$33,MATCH('Solde d''heure collaborateur'!$A6,Planning!$3:$3)) -> X | DP6: =VLOOKUP(DO6,Horaires!$A$3:$E$49,2,) -> XXX | DQ6: =IF(DP6="vacances",INDEX(Horaires!$H$3:$L$42,MATCH('Solde d''heure collaborateur'!DP$2,Horaires!$H$3:$H$40,0),4),IF(DP6="maladie",INDEX(Horaires!$H$3:$L$42,MATCH('Solde d''heure collaborateur'!DP$2,Horaires!$H$3:$H$40,0),5),VLOOKUP(DO6,Horaires!$A$3:$E$60,5,))) -> 0 | DS6: =INDEX(Planning!$34:$34,MATCH('Solde d''heure collaborateur'!$A6,Planning!$3:$3)) -> X | DT6: =VLOOKUP(DS6,Horaires!$A$3:$E$49,2,) -> XXX | DU6: =IF(DT6="vacances",INDEX(Horaires!$H$3:$L$42,MATCH('Solde d''heure collaborateur'!DT$2,Horaires!$H$3:$H$40,0),4),IF(DT6="maladie",INDEX(Horaires!$H$3:$L$42,MATCH('Solde d''heure collaborateur'!DT$2,Horaires!$H$3:$H$40,0),5),VLOOKUP(DS6,Horaires!$A$3:$E$60,5,))) -> 0 | DW6: =INDEX(Planning!$35:$35,MATCH('Solde d''heure collaborateur'!$A6,Planning!$3:$3)) -> X | DX6: =VLOOKUP(DW6,Horaires!$A$3:$E$49,2,) -> XXX | DY6: =IF(DX6="vacances",INDEX(Horaires!$H$3:$L$42,MATCH('Solde d''heure collaborateur'!DX$2,Horaires!$H$3:$H$40,0),4),IF(DX6="maladie",INDEX(Horaires!$H$3:$L$42,MATCH('Solde d''heure collaborateur'!DX$2,Horaires!$H$3:$H$40,0),5),VLOOKUP(DW6,Horaires!$A$3:$E$60,5,))) -> 0
A7: =A6+1 -> 2013-11-07 | C7: =INDEX(Planning!$4:$4,MATCH('Solde d''heure collaborateur'!A7,Planning!$3:$3,0)) -> Nav2 | D7: =VLOOKUP(C7,Horaires!$A$3:$E$49,2,) -> Navigation | E7: =IF(D7="vacances",INDEX(Horaires!$H$3:$L$42,MATCH('Solde d''heure collaborateur'!D$2,Horaires!$H$3:$H$40,0),4),IF(D7="maladie",INDEX(Horaires!$H$3:$L$42,MATCH('Solde d''heure collaborateur'!D$2,Horaires!$H$3:$H$40,0),5),VLOOKUP(C7,Horaires!$A$3:$E$60,5,))) -> 0.46875 | G7: =INDEX(Planning!$5:$5,MATCH('Solde d''heure collaborateur'!A7,Planning!$3:$3)) -> V | H7: =VLOOKUP(G7,Horaires!$A$3:$E$49,2,) -> Vacances | I7: =IF(H7="vacances",INDEX(Horaires!$H$3:$L$42,MATCH('Solde d''heure collaborateur'!H$2,Horaires!$H$3:$H$40,0),4),IF(H7="maladie",INDEX(Horaires!$H$3:$L$42,MATCH('Solde d''heure collaborateur'!H$2,Horaires!$H$3:$H$40,0),5),VLOOKUP(G7,Horaires!$A$3:$E$60,5,))) -> 0.35 | K7: =INDEX(Planning!$6:$6,MATCH('Solde d''heure collaborateur'!A7,Planning!$3:$3)) -> M | L7: =VLOOKUP(K7,Horaires!$A$3:$E$49,2,) -> Maladie | M7: =IF(L7="vacances",INDEX(Horaires!$H$3:$L$42,MATCH('Solde d''heure collaborateur'!L$2,Horaires!$H$3:$H$40,0),4),IF(L7="maladie",INDEX(Horaires!$H$3:$L$42,MATCH('Solde d''heure collaborateur'!L$2,Horaires!$H$3:$H$40,0),5),VLOOKUP(K7,Horaires!$A$3:$E$60,5,))) -> 0.4375 | O7: =INDEX(Planning!$7:$7,MATCH('Solde d''heure collaborateur'!$A7,Planning!$3:$3)) -> X | P7: =VLOOKUP(O7,Horaires!$A$3:$E$49,2,) -> XXX | Q7: =IF(P7="vacances",INDEX(Horaires!$H$3:$L$42,MATCH('Solde d''heure collaborateur'!P$2,Horaires!$H$3:$H$40,0),4),IF(P7="maladie",INDEX(Horaires!$H$3:$L$42,MATCH('Solde d''heure collaborateur'!P$2,Horaires!$H$3:$H$40,0),5),VLOOKUP(O7,Horaires!$A$3:$E$60,5,))) -> 0 | S7: =INDEX(Planning!$8:$8,MATCH('Solde d''heure collaborateur'!$A7,Planning!$3:$3)) -> Onex2 | T7: =VLOOKUP(S7,Horaires!$A$3:$E$49,2,) -> Onex | U7: =IF(T7="vacances",INDEX(Horaires!$H$3:$L$42,MATCH('Solde d''heure collaborateur'!T$2,Horaires!$H$3:$H$40,0),4),IF(T7="maladie",INDEX(Horaires!$H$3:$L$42,MATCH('Solde d''heure collaborateur'!T$2,Horaires!$H$3:$H$40,0),5),VLOOKUP(S7,Horaires!$A$3:$E$60,5,))) -> 0.4895833333 | W7: =INDEX(Planning!$9:$9,MATCH('Solde d''heure collaborateur'!$A7,Planning!$3:$3)) -> X | X7: =VLOOKUP(W7,Horaires!$A$3:$E$49,2,) -> XXX | Y7: =IF(X7="vacances",INDEX(Horaires!$H$3:$L$42,MATCH('Solde d''heure collaborateur'!X$2,Horaires!$H$3:$H$40,0),4),IF(X7="maladie",INDEX(Horaires!$H$3:$L$42,MATCH('Solde d''heure collaborateur'!X$2,Horaires!$H$3:$H$40,0),5),VLOOKUP(W7,Horaires!$A$3:$E$60,5,))) -> 0 | AA7: =INDEX(Planning!$10:$10,MATCH('Solde d''heure collaborateur'!$A7,Planning!$3:$3)) -> Nyon1 | AB7: =VLOOKUP(AA7,Horaires!$A$3:$E$49,2,) -> Nyon | AC7: =IF(AB7="vacances",INDEX(Horaires!$H$3:$L$42,MATCH('Solde d''heure collaborateur'!AB$2,Horaires!$H$3:$H$40,0),4),IF(AB7="maladie",INDEX(Horaires!$H$3:$L$42,MATCH('Solde d''heure collaborateur'!AB$2,Horaires!$H$3:$H$40,0),5),VLOOKUP(AA7,Horaires!$A$3:$E$60,5,))) -> 0.4479166667 | AE7: =INDEX(Planning!$11:$11,MATCH('Solde d''heure collaborateur'!$A7,Planning!$3:$3)) -> R | AF7: =VLOOKUP(AE7,Horaires!$A$3:$E$49,2,) -> Congé | AG7: =IF(AF7="vacances",INDEX(Horaires!$H$3:$L$42,MATCH('Solde d''heure collaborateur'!AF$2,Horaires!$H$3:$H$40,0),4),IF(AF7="maladie",INDEX(Horaires!$H$3:$L$42,MATCH('Solde d''heure collaborateur'!AF$2,Horaires!$H$3:$H$40,0),5),VLOOKUP(AE7,Horaires!$A$3:$E$60,5,))) -> 0 | AI7: =INDEX(Planning!$12:$12,MATCH('Solde d''heure collaborateur'!$A7,Planning!$3:$3)) -> Thon2 | AJ7: =VLOOKUP(AI7,Horaires!$A$3:$E$49,2,) -> Thonex | AK7: =IF(AJ7="vacances",INDEX(Horaires!$H$3:$L$42,MATCH('Solde d''heure collaborateur'!AJ$2,Horaires!$H$3:$H$40,0),4),IF(AJ7="maladie",INDEX(Horaires!$H$3:$L$42,MATCH('Solde d''heure collaborateur'!AJ$2,Horaires!$H$3:$H$40,0),5),VLOOKUP(AI7,Horaires!$A$3:$E$60,5,))) -> 0.46875 | AM7: =INDEX(Planning!$13:$13,MATCH('Solde d''heure collaborateur'!$A7,Planning!$3:$3)) -> pom1 | AN7: =VLOOKUP(AM7,Horaires!$A$3:$E$49,2,) -> Pommier | AO7: =IF(AN7="vacances",INDEX(Horaires!$H$3:$L$42,MATCH('Solde d''heure collaborateur'!AN$2,Horaires!$H$3:$H$40,0),4),IF(AN7="maladie",INDEX(Horaires!$H$3:$L$42,MATCH('Solde d''heure collaborateur'!AN$2,Horaires!$H$3:$H$40,0),5),VLOOKUP(AM7,Horaires!$A$3:$E$60,5,))) -> 0.4479166667 | AQ7: =INDEX(Planning!$14:$14,MATCH('Solde d''heure collaborateur'!$A7,Planning!$3:$3)) -> X | AR7: =VLOOKUP(AQ7,Horaires!$A$3:$E$49,2,) -> XXX | AS7: =IF(AR7="vacances",INDEX(Horaires!$H$3:$L$42,MATCH('Solde d''heure collaborateur'!AR$2,Horaires!$H$3:$H$40,0),4),IF(AR7="maladie",INDEX(Horaires!$H$3:$L$42,MATCH('Solde d''heure collaborateur'!AR$2,Horaires!$H$3:$H$40,0),5),VLOOKUP(AQ7,Horaires!$A$3:$E$60,5,))) -> 0 | AU7: =INDEX(Planning!$15:$15,MATCH('Solde d''heure collaborateur'!$A7,Planning!$3:$3)) -> R | AV7: =VLOOKUP(AU7,Horaires!$A$3:$E$49,2,) -> Congé | AW7: =IF(AV7="vacances",INDEX(Horaires!$H$3:$L$42,MATCH('Solde d''heure collaborateur'!AV$2,Horaires!$H$3:$H$40,0),4),IF(AV7="maladie",INDEX(Horaires!$H$3:$L$42,MATCH('Solde d''heure collaborateur'!AV$2,Horaires!$H$3:$H$40,0),5),VLOOKUP(AU7,Horaires!$A$3:$E$60,5,))) -> 0 | AY7: =INDEX(Planning!$16:$16,MATCH('Solde d''heure collaborateur'!$A7,Planning!$3:$3)) -> Onex2 | AZ7: =VLOOKUP(AY7,Horaires!$A$3:$E$49,2,) -> Onex | BA7: =IF(AZ7="vacances",INDEX(Horaires!$H$3:$L$42,MATCH('Solde d''heure collaborateur'!AZ$2,Horaires!$H$3:$H$40,0),4),IF(AZ7="maladie",INDEX(Horaires!$H$3:$L$42,MATCH('Solde d''heure collaborateur'!AZ$2,Horaires!$H$3:$H$40,0),5),VLOOKUP(AY7,Horaires!$A$3:$E$60,5,))) -> 0.4895833333 | BC7: =INDEX(Planning!$17:$17,MATCH('Solde d''heure collaborateur'!$A7,Planning!$3:$3)) -> tour2 | BD7: =VLOOKUP(BC7,Horaires!$A$3:$E$49,2,) -> Tourelle | BE7: =IF(BD7="vacances",INDEX(Horaires!$H$3:$L$42,MATCH('Solde d''heure collaborateur'!BD$2,Horaires!$H$3:$H$40,0),4),IF(BD7="maladie",INDEX(Horaires!$H$3:$L$42,MATCH('Solde d''heure collaborateur'!BD$2,Horaires!$H$3:$H$40,0),5),VLOOKUP(BC7,Horaires!$A$3:$E$60,5,))) -> 0.4895833333 | BG7: =INDEX(Planning!$18:$18,MATCH('Solde d''heure collaborateur'!$A7,Planning!$3:$3)) -> Vibferm | BH7: =VLOOKUP(BG7,Horaires!$A$3:$E$49,2,) -> Vibert ferm | BI7: =IF(BH7="vacances",INDEX(Horaires!$H$3:$L$42,MATCH('Solde d''heure collaborateur'!BH$2,Horaires!$H$3:$H$40,0),4),IF(BH7="maladie",INDEX(Horaires!$H$3:$L$42,MATCH('Solde d''heure collaborateur'!BH$2,Horaires!$H$3:$H$40,0),5),VLOOKUP(BG7,Horaires!$A$3:$E$60,5,))) -> 0.4270833333 | BK7: =INDEX(Planning!$19:$19,MATCH('Solde d''heure collaborateur'!$A7,Planning!$3:$3)) -> Vibjeu | BL7: =VLOOKUP(BK7,Horaires!$A$3:$E$49,2,) -> Vibert | BM7: =IF(BL7="vacances",INDEX(Horaires!$H$3:$L$42,MATCH('Solde d''heure collaborateur'!BL$2,Horaires!$H$3:$H$40,0),4),IF(BL7="maladie",INDEX(Horaires!$H$3:$L$42,MATCH('Solde d''heure collaborateur'!BL$2,Horaires!$H$3:$H$40,0),5),VLOOKUP(BK7,Horaires!$A$3:$E$60,5,))) -> 0.4583333333 | BO7: =INDEX(Planning!$20:$20,MATCH('Solde d''heure collaborateur'!$A7,Planning!$3:$3)) -> Aca2 | BP7: =VLOOKUP(BO7,Horaires!$A$3:$E$49,2,) -> Acacias | BQ7: =IF(BP7="vacances",INDEX(Horaires!$H$3:$L$42,MATCH('Solde d''heure collaborateur'!BP$2,Horaires!$H$3:$H$40,0),4),IF(BP7="maladie",INDEX(Horaires!$H$3:$L$42,MATCH('Solde d''heure collaborateur'!BP$2,Horaires!$H$3:$H$40,0),5),VLOOKUP(BO7,Horaires!$A$3:$E$60,5,))) -> 0.46875 | BS7: =INDEX(Planning!$21:$21,MATCH('Solde d''heure collaborateur'!$A7,Planning!$3:$3)) -> Ves2 | BT7: =VLOOKUP(BS7,Horaires!$A$3:$E$49,2,) -> Vesenaz | BU7: =IF(BT7="vacances",INDEX(Horaires!$H$3:$L$42,MATCH('Solde d''heure collaborateur'!BT$2,Horaires!$H$3:$H$40,0),4),IF(BT7="maladie",INDEX(Horaires!$H$3:$L$42,MATCH('Solde d''heure collaborateur'!BT$2,Horaires!$H$3:$H$40,0),5),VLOOKUP(BS7,Horaires!$A$3:$E$60,5,))) -> 0.46875 | BW7: =INDEX(Planning!$22:$22,MATCH('Solde d''heure collaborateur'!$A7,Planning!$3:$3)) -> X | BX7: =VLOOKUP(BW7,Horaires!$A$3:$E$49,2,) -> XXX | BY7: =IF(BX7="vacances",INDEX(Horaires!$H$3:$L$42,MATCH('Solde d''heure collaborateur'!BX$2,Horaires!$H$3:$H$40,0),4),IF(BX7="maladie",INDEX(Horaires!$H$3:$L$42,MATCH('Solde d''heure collaborateur'!BX$2,Horaires!$H$3:$H$40,0),5),VLOOKUP(BW7,Horaires!$A$3:$E$60,5,))) -> 0 | CA7: =INDEX(Planning!$23:$23,MATCH('Solde d''heure collaborateur'!$A7,Planning!$3:$3)) -> Plo2 | CB7: =VLOOKUP(CA7,Horaires!$A$3:$E$49,2,) -> Plan les Ouates | CC7: =IF(CB7="vacances",INDEX(Horaires!$H$3:$L$42,MATCH('Solde d''heure collaborateur'!CB$2,Horaires!$H$3:$H$40,0),4),IF(CB7="maladie",INDEX(Horaires!$H$3:$L$42,MATCH('Solde d''heure collaborateur'!CB$2,Horaires!$H$3:$H$40,0),5),VLOOKUP(CA7,Horaires!$A$3:$E$60,5,))) -> 0.4895833333 | CE7: =INDEX(Planning!$24:$24,MATCH('Solde d''heure collaborateur'!$A7,Planning!$3:$3)) -> R | CF7: =VLOOKUP(CE7,Horaires!$A$3:$E$49,2,) -> Congé | CG7: =IF(CF7="vacances",INDEX(Horaires!$H$3:$L$42,MATCH('Solde d''heure collaborateur'!CF$2,Horaires!$H$3:$H$40,0),4),IF(CF7="maladie",INDEX(Horaires!$H$3:$L$42,MATCH('Solde d''heure collaborateur'!CF$2,Horaires!$H$3:$H$40,0),5),VLOOKUP(CE7,Horaires!$A$3:$E$60,5,))) -> 0 | CI7: =INDEX(Planning!$25:$25,MATCH('Solde d''heure collaborateur'!$A7,Planning!$3:$3)) -> X | CJ7: =VLOOKUP(CI7,Horaires!$A$3:$E$49,2,) -> XXX | CK7: =IF(CJ7="vacances",INDEX(Horaires!$H$3:$L$42,MATCH('Solde d''heure collaborateur'!CJ$2,Horaires!$H$3:$H$40,0),4),IF(CJ7="maladie",INDEX(Horaires!$H$3:$L$42,MATCH('Solde d''heure collaborateur'!CJ$2,Horaires!$H$3:$H$40,0),5),VLOOKUP(CI7,Horaires!$A$3:$E$60,5,))) -> 0 | CM7: =INDEX(Planning!$26:$26,MATCH('Solde d''heure collaborateur'!$A7,Planning!$3:$3)) -> Vid2 | CN7: =VLOOKUP(CM7,Horaires!$A$3:$E$49,2,) -> Vidollet | CO7: =IF(CN7="vacances",INDEX(Horaires!$H$3:$L$42,MATCH('Solde d''heure collaborateur'!CN$2,Horaires!$H$3:$H$40,0),4),IF(CN7="maladie",INDEX(Horaires!$H$3:$L$42,MATCH('Solde d''heure collaborateur'!CN$2,Horaires!$H$3:$H$40,0),5),VLOOKUP(CM7,Horaires!$A$3:$E$60,5,))) -> 0.46875 | CQ7: =INDEX(Planning!$27:$27,MATCH('Solde d''heure collaborateur'!$A7,Planning!$3:$3)) -> R | CR7: =VLOOKUP(CQ7,Horaires!$A$3:$E$49,2,) -> Congé | CS7: =IF(CR7="vacances",INDEX(Horaires!$H$3:$L$42,MATCH('Solde d''heure collaborateur'!CR$2,Horaires!$H$3:$H$40,0),4),IF(CR7="maladie",INDEX(Horaires!$H$3:$L$42,MATCH('Solde d''heure collaborateur'!CR$2,Horaires!$H$3:$H$40,0),5),VLOOKUP(CQ7,Horaires!$A$3:$E$60,5,))) -> 0 | CU7: =INDEX(Planning!$28:$28,MATCH('Solde d''heure collaborateur'!$A7,Planning!$3:$3)) -> R | CV7: =VLOOKUP(CU7,Horaires!$A$3:$E$49,2,) -> Congé | CW7: =IF(CV7="vacances",INDEX(Horaires!$H$3:$L$42,MATCH('Solde d''heure collaborateur'!CV$2,Horaires!$H$3:$H$40,0),4),IF(CV7="maladie",INDEX(Horaires!$H$3:$L$42,MATCH('Solde d''heure collaborateur'!CV$2,Horaires!$H$3:$H$40,0),5),VLOOKUP(CU7,Horaires!$A$3:$E$60,5,))) -> 0 | CY7: =INDEX(Planning!$29:$29,MATCH('Solde d''heure collaborateur'!$A7,Planning!$3:$3)) -> X | CZ7: =VLOOKUP(CY7,Horaires!$A$3:$E$49,2,) -> XXX | DA7: =IF(CZ7="vacances",INDEX(Horaires!$H$3:$L$42,MATCH('Solde d''heure collaborateur'!CZ$2,Horaires!$H$3:$H$40,0),4),IF(CZ7="maladie",INDEX(Horaires!$H$3:$L$42,MATCH('Solde d''heure collaborateur'!CZ$2,Horaires!$H$3:$H$40,0),5),VLOOKUP(CY7,Horaires!$A$3:$E$60,5,))) -> 0 | DC7: =INDEX(Planning!$30:$30,MATCH('Solde d''heure collaborateur'!$A7,Planning!$3:$3)) -> X | DD7: =VLOOKUP(DC7,Horaires!$A$3:$E$49,2,) -> XXX | DE7: =IF(DD7="vacances",INDEX(Horaires!$H$3:$L$42,MATCH('Solde d''heure collaborateur'!DD$2,Horaires!$H$3:$H$40,0),4),IF(DD7="maladie",INDEX(Horaires!$H$3:$L$42,MATCH('Solde d''heure collaborateur'!DD$2,Horaires!$H$3:$H$40,0),5),VLOOKUP(DC7,Horaires!$A$3:$E$60,5,))) -> 0 | DG7: =INDEX(Planning!$31:$31,MATCH('Solde d''heure collaborateur'!$A7,Planning!$3:$3)) -> X | DH7: =VLOOKUP(DG7,Horaires!$A$3:$E$49,2,) -> XXX | DI7: =IF(DH7="vacances",INDEX(Horaires!$H$3:$L$42,MATCH('Solde d''heure collaborateur'!DH$2,Horaires!$H$3:$H$40,0),4),IF(DH7="maladie",INDEX(Horaires!$H$3:$L$42,MATCH('Solde d''heure collaborateur'!DH$2,Horaires!$H$3:$H$40,0),5),VLOOKUP(DG7,Horaires!$A$3:$E$60,5,))) -> 0 | DK7: =INDEX(Planning!$32:$32,MATCH('Solde d''heure collaborateur'!$A7,Planning!$3:$3)) -> X | DL7: =VLOOKUP(DK7,Horaires!$A$3:$E$49,2,) -> XXX | DM7: =IF(DL7="vacances",INDEX(Horaires!$H$3:$L$42,MATCH('Solde d''heure collaborateur'!DL$2,Horaires!$H$3:$H$40,0),4),IF(DL7="maladie",INDEX(Horaires!$H$3:$L$42,MATCH('Solde d''heure collaborateur'!DL$2,Horaires!$H$3:$H$40,0),5),VLOOKUP(DK7,Horaires!$A$3:$E$60,5,))) -> 0 | DO7: =INDEX(Planning!$33:$33,MATCH('Solde d''heure collaborateur'!$A7,Planning!$3:$3)) -> X | DP7: =VLOOKUP(DO7,Horaires!$A$3:$E$49,2,) -> XXX | DQ7: =IF(DP7="vacances",INDEX(Horaires!$H$3:$L$42,MATCH('Solde d''heure collaborateur'!DP$2,Horaires!$H$3:$H$40,0),4),IF(DP7="maladie",INDEX(Horaires!$H$3:$L$42,MATCH('Solde d''heure collaborateur'!DP$2,Horaires!$H$3:$H$40,0),5),VLOOKUP(DO7,Horaires!$A$3:$E$60,5,))) -> 0 | DS7: =INDEX(Planning!$34:$34,MATCH('Solde d''heure collaborateur'!$A7,Planning!$3:$3)) -> X | DT7: =VLOOKUP(DS7,Horaires!$A$3:$E$49,2,) -> XXX | DU7: =IF(DT7="vacances",INDEX(Horaires!$H$3:$L$42,MATCH('Solde d''heure collaborateur'!DT$2,Horaires!$H$3:$H$40,0),4),IF(DT7="maladie",INDEX(Horaires!$H$3:$L$42,MATCH('Solde d''heure collaborateur'!DT$2,Horaires!$H$3:$H$40,0),5),VLOOKUP(DS7,Horaires!$A$3:$E$60,5,))) -> 0 | DW7: =INDEX(Planning!$35:$35,MATCH('Solde d''heure collaborateur'!$A7,Planning!$3:$3)) -> X | DX7: =VLOOKUP(DW7,Horaires!$A$3:$E$49,2,) -> XXX | DY7: =IF(DX7="vacances",INDEX(Horaires!$H$3:$L$42,MATCH('Solde d''heure collaborateur'!DX$2,Horaires!$H$3:$H$40,0),4),IF(DX7="maladie",INDEX(Horaires!$H$3:$L$42,MATCH('Solde d''heure collaborateur'!DX$2,Horaires!$H$3:$H$40,0),5),VLOOKUP(DW7,Horaires!$A$3:$E$60,5,))) -> 0
A8: =A7+1 -> 2013-11-08 | C8: =INDEX(Planning!$4:$4,MATCH('Solde d''heure collaborateur'!A8,Planning!$3:$3,0)) -> Nav2 | D8: =VLOOKUP(C8,Horaires!$A$3:$E$49,2,) -> Navigation | E8: =IF(D8="vacances",INDEX(Horaires!$H$3:$L$42,MATCH('Solde d''heure collaborateur'!D$2,Horaires!$H$3:$H$40,0),4),IF(D8="maladie",INDEX(Horaires!$H$3:$L$42,MATCH('Solde d''heure collaborateur'!D$2,Horaires!$H$3:$H$40,0),5),VLOOKUP(C8,Horaires!$A$3:$E$60,5,))) -> 0.46875 | G8: =INDEX(Planning!$5:$5,MATCH('Solde d''heure collaborateur'!A8,Planning!$3:$3)) -> R | H8: =VLOOKUP(G8,Horaires!$A$3:$E$49,2,) -> Congé | I8: =IF(H8="vacances",INDEX(Horaires!$H$3:$L$42,MATCH('Solde d''heure collaborateur'!H$2,Horaires!$H$3:$H$40,0),4),IF(H8="maladie",INDEX(Horaires!$H$3:$L$42,MATCH('Solde d''heure collaborateur'!H$2,Horaires!$H$3:$H$40,0),5),VLOOKUP(G8,Horaires!$A$3:$E$60,5,))) -> 0 | K8: =INDEX(Planning!$6:$6,MATCH('Solde d''heure collaborateur'!A8,Planning!$3:$3)) -> R | L8: =VLOOKUP(K8,Horaires!$A$3:$E$49,2,) -> Congé | M8: =IF(L8="vacances",INDEX(Horaires!$H$3:$L$42,MATCH('Solde d''heure collaborateur'!L$2,Horaires!$H$3:$H$40,0),4),IF(L8="maladie",INDEX(Horaires!$H$3:$L$42,MATCH('Solde d''heure collaborateur'!L$2,Horaires!$H$3:$H$40,0),5),VLOOKUP(K8,Horaires!$A$3:$E$60,5,))) -> 0 | O8: =INDEX(Planning!$7:$7,MATCH('Solde d''heure collaborateur'!$A8,Planning!$3:$3)) -> X | P8: =VLOOKUP(O8,Horaires!$A$3:$E$49,2,) -> XXX | Q8: =IF(P8="vacances",INDEX(Horaires!$H$3:$L$42,MATCH('Solde d''heure collaborateur'!P$2,Horaires!$H$3:$H$40,0),4),IF(P8="maladie",INDEX(Horaires!$H$3:$L$42,MATCH('Solde d''heure collaborateur'!P$2,Horaires!$H$3:$H$40,0),5),VLOOKUP(O8,Horaires!$A$3:$E$60,5,))) -> 0 | S8: =INDEX(Planning!$8:$8,MATCH('Solde d''heure collaborateur'!$A8,Planning!$3:$3)) -> R | T8: =VLOOKUP(S8,Horaires!$A$3:$E$49,2,) -> Congé | U8: =IF(T8="vacances",INDEX(Horaires!$H$3:$L$42,MATCH('Solde d''heure collaborateur'!T$2,Horaires!$H$3:$H$40,0),4),IF(T8="maladie",INDEX(Horaires!$H$3:$L$42,MATCH('Solde d''heure collaborateur'!T$2,Horaires!$H$3:$H$40,0),5),VLOOKUP(S8,Horaires!$A$3:$E$60,5,))) -> 0 | W8: =INDEX(Planning!$9:$9,MATCH('Solde d''heure collaborateur'!$A8,Planning!$3:$3)) -> X | X8: =VLOOKUP(W8,Horaires!$A$3:$E$49,2,) -> XXX | Y8: =IF(X8="vacances",INDEX(Horaires!$H$3:$L$42,MATCH('Solde d''heure collaborateur'!X$2,Horaires!$H$3:$H$40,0),4),IF(X8="maladie",INDEX(Horaires!$H$3:$L$42,MATCH('Solde d''heure collaborateur'!X$2,Horaires!$H$3:$H$40,0),5),VLOOKUP(W8,Horaires!$A$3:$E$60,5,))) -> 0 | AA8: =INDEX(Planning!$10:$10,MATCH('Solde d''heure collaborateur'!$A8,Planning!$3:$3)) -> Onex2 | AB8: =VLOOKUP(AA8,Horaires!$A$3:$E$49,2,) -> Onex | AC8: =IF(AB8="vacances",INDEX(Horaires!$H$3:$L$42,MATCH('Solde d''heure collaborateur'!AB$2,Horaires!$H$3:$H$40,0),4),IF(AB8="maladie",INDEX(Horaires!$H$3:$L$42,MATCH('Solde d''heure collaborateur'!AB$2,Horaires!$H$3:$H$40,0),5),VLOOKUP(AA8,Horaires!$A$3:$E$60,5,))) -> 0.4895833333 | AE8: =INDEX(Planning!$11:$11,MATCH('Solde d''heure collaborateur'!$A8,Planning!$3:$3)) -> Plo2 | AF8: =VLOOKUP(AE8,Horaires!$A$3:$E$49,2,) -> Plan les Ouates | AG8: =IF(AF8="vacances",INDEX(Horaires!$H$3:$L$42,MATCH('Solde d''heure collaborateur'!AF$2,Horaires!$H$3:$H$40,0),4),IF(AF8="maladie",INDEX(Horaires!$H$3:$L$42,MATCH('Solde d''heure collaborateur'!AF$2,Horaires!$H$3:$H$40,0),5),VLOOKUP(AE8,Horaires!$A$3:$E$60,5,))) -> 0.4895833333 | AI8: =INDEX(Planning!$12:$12,MATCH('Solde d''heure collaborateur'!$A8,Planning!$3:$3)) -> R | AJ8: =VLOOKUP(AI8,Horaires!$A$3:$E$49,2,) -> Congé | AK8: =IF(AJ8="vacances",INDEX(Horaires!$H$3:$L$42,MATCH('Solde d''heure collaborateur'!AJ$2,Horaires!$H$3:$H$40,0),4),IF(AJ8="maladie",INDEX(Horaires!$H$3:$L$42,MATCH('Solde d''heure collaborateur'!AJ$2,Horaires!$H$3:$H$40,0),5),VLOOKUP(AI8,Horaires!$A$3:$E$60,5,))) -> 0 | AM8: =INDEX(Planning!$13:$13,MATCH('Solde d''heure collaborateur'!$A8,Planning!$3:$3)) -> R | AN8: =VLOOKUP(AM8,Horaires!$A$3:$E$49,2,) -> Congé | AO8: =IF(AN8="vacances",INDEX(Horaires!$H$3:$L$42,MATCH('Solde d''heure collaborateur'!AN$2,Horaires!$H$3:$H$40,0),4),IF(AN8="maladie",INDEX(Horaires!$H$3:$L$42,MATCH('Solde d''heure collaborateur'!AN$2,Horaires!$H$3:$H$40,0),5),VLOOKUP(AM8,Horaires!$A$3:$E$60,5,))) -> 0 | AQ8: =INDEX(Planning!$14:$14,MATCH('Solde d''heure collaborateur'!$A8,Planning!$3:$3)) -> M | AR8: =VLOOKUP(AQ8,Horaires!$A$3:$E$49,2,) -> Maladie | AS8: =IF(AR8="vacances",INDEX(Horaires!$H$3:$L$42,MATCH('Solde d''heure collaborateur'!AR$2,Horaires!$H$3:$H$40,0),4),IF(AR8="maladie",INDEX(Horaires!$H$3:$L$42,MATCH('Solde d''heure collaborateur'!AR$2,Horaires!$H$3:$H$40,0),5),VLOOKUP(AQ8,Horaires!$A$3:$E$60,5,))) -> 0.4618055556 | AU8: =INDEX(Planning!$15:$15,MATCH('Solde d''heure collaborateur'!$A8,Planning!$3:$3)) -> recup | AV8: =VLOOKUP(AU8,Horaires!$A$3:$E$49,2,) -> Récupération | AW8: =IF(AV8="vacances",INDEX(Horaires!$H$3:$L$42,MATCH('Solde d''heure collaborateur'!AV$2,Horaires!$H$3:$H$40,0),4),IF(AV8="maladie",INDEX(Horaires!$H$3:$L$42,MATCH('Solde d''heure collaborateur'!AV$2,Horaires!$H$3:$H$40,0),5),VLOOKUP(AU8,Horaires!$A$3:$E$60,5,))) -> 0 | AY8: =INDEX(Planning!$16:$16,MATCH('Solde d''heure collaborateur'!$A8,Planning!$3:$3)) -> Nyon1 | AZ8: =VLOOKUP(AY8,Horaires!$A$3:$E$49,2,) -> Nyon | BA8: =IF(AZ8="vacances",INDEX(Horaires!$H$3:$L$42,MATCH('Solde d''heure collaborateur'!AZ$2,Horaires!$H$3:$H$40,0),4),IF(AZ8="maladie",INDEX(Horaires!$H$3:$L$42,MATCH('Solde d''heure collaborateur'!AZ$2,Horaires!$H$3:$H$40,0),5),VLOOKUP(AY8,Horaires!$A$3:$E$60,5,))) -> 0.4479166667 | BC8: =INDEX(Planning!$17:$17,MATCH('Solde d''heure collaborateur'!$A8,Planning!$3:$3)) -> R | BD8: =VLOOKUP(BC8,Horaires!$A$3:$E$49,2,) -> Congé | BE8: =IF(BD8="vacances",INDEX(Horaires!$H$3:$L$42,MATCH('Solde d''heure collaborateur'!BD$2,Horaires!$H$3:$H$40,0),4),IF(BD8="maladie",INDEX(Horaires!$H$3:$L$42,MATCH('Solde d''heure collaborateur'!BD$2,Horaires!$H$3:$H$40,0),5),VLOOKUP(BC8,Horaires!$A$3:$E$60,5,))) -> 0 | BG8: =INDEX(Planning!$18:$18,MATCH('Solde d''heure collaborateur'!$A8,Planning!$3:$3)) -> vib2 | BH8: =VLOOKUP(BG8,Horaires!$A$3:$E$49,2,) -> Vibert | BI8: =IF(BH8="vacances",INDEX(Horaires!$H$3:$L$42,MATCH('Solde d''heure collaborateur'!BH$2,Horaires!$H$3:$H$40,0),4),IF(BH8="maladie",INDEX(Horaires!$H$3:$L$42,MATCH('Solde d''heure collaborateur'!BH$2,Horaires!$H$3:$H$40,0),5),VLOOKUP(BG8,Horaires!$A$3:$E$60,5,))) -> 0.4895833333 | BK8: =INDEX(Planning!$19:$19,MATCH('Solde d''heure collaborateur'!$A8,Planning!$3:$3)) -> Vib2 | BL8: =VLOOKUP(BK8,Horaires!$A$3:$E$49,2,) -> Vibert | BM8: =IF(BL8="vacances",INDEX(Horaires!$H$3:$L$42,MATCH('Solde d''heure collaborateur'!BL$2,Horaires!$H$3:$H$40,0),4),IF(BL8="maladie",INDEX(Horaires!$H$3:$L$42,MATCH('Solde d''heure collaborateur'!BL$2,Horaires!$H$3:$H$40,0),5),VLOOKUP(BK8,Horaires!$A$3:$E$60,5,))) -> 0.4895833333 | BO8: =INDEX(Planning!$20:$20,MATCH('Solde d''heure collaborateur'!$A8,Planning!$3:$3)) -> Aca2 | BP8: =VLOOKUP(BO8,Horaires!$A$3:$E$49,2,) -> Acacias | BQ8: =IF(BP8="vacances",INDEX(Horaires!$H$3:$L$42,MATCH('Solde d''heure collaborateur'!BP$2,Horaires!$H$3:$H$40,0),4),IF(BP8="maladie",INDEX(Horaires!$H$3:$L$42,MATCH('Solde d''heure collaborateur'!BP$2,Horaires!$H$3:$H$40,0),5),VLOOKUP(BO8,Horaires!$A$3:$E$60,5,))) -> 0.46875 | BS8: =INDEX(Planning!$21:$21,MATCH('Solde d''heure collaborateur'!$A8,Planning!$3:$3)) -> Ves2 | BT8: =VLOOKUP(BS8,Horaires!$A$3:$E$49,2,) -> Vesenaz | BU8: =IF(BT8="vacances",INDEX(Horaires!$H$3:$L$42,MATCH('Solde d''heure collaborateur'!BT$2,Horaires!$H$3:$H$40,0),4),IF(BT8="maladie",INDEX(Horaires!$H$3:$L$42,MATCH('Solde d''heure collaborateur'!BT$2,Horaires!$H$3:$H$40,0),5),VLOOKUP(BS8,Horaires!$A$3:$E$60,5,))) -> 0.46875 | BW8: =INDEX(Planning!$22:$22,MATCH('Solde d''heure collaborateur'!$A8,Planning!$3:$3)) -> X | BX8: =VLOOKUP(BW8,Horaires!$A$3:$E$49,2,) -> XXX | BY8: =IF(BX8="vacances",INDEX(Horaires!$H$3:$L$42,MATCH('Solde d''heure collaborateur'!BX$2,Horaires!$H$3:$H$40,0),4),IF(BX8="maladie",INDEX(Horaires!$H$3:$L$42,MATCH('Solde d''heure collaborateur'!BX$2,Horaires!$H$3:$H$40,0),5),VLOOKUP(BW8,Horaires!$A$3:$E$60,5,))) -> 0 | CA8: =INDEX(Planning!$23:$23,MATCH('Solde d''heure collaborateur'!$A8,Planning!$3:$3)) -> R | CB8: =VLOOKUP(CA8,Horaires!$A$3:$E$49,2,) -> Congé | CC8: =IF(CB8="vacances",INDEX(Horaires!$H$3:$L$42,MATCH('Solde d''heure collaborateur'!CB$2,Horaires!$H$3:$H$40,0),4),IF(CB8="maladie",INDEX(Horaires!$H$3:$L$42,MATCH('Solde d''heure collaborateur'!CB$2,Horaires!$H$3:$H$40,0),5),VLOOKUP(CA8,Horaires!$A$3:$E$60,5,))) -> 0 | CE8: =INDEX(Planning!$24:$24,MATCH('Solde d''heure collaborateur'!$A8,Planning!$3:$3)) -> Onex2 | CF8: =VLOOKUP(CE8,Horaires!$A$3:$E$49,2,) -> Onex | CG8: =IF(CF8="vacances",INDEX(Horaires!$H$3:$L$42,MATCH('Solde d''heure collaborateur'!CF$2,Horaires!$H$3:$H$40,0),4),IF(CF8="maladie",INDEX(Horaires!$H$3:$L$42,MATCH('Solde d''heure collaborateur'!CF$2,Horaires!$H$3:$H$40,0),5),VLOOKUP(CE8,Horaires!$A$3:$E$60,5,))) -> 0.4895833333 | CI8: =INDEX(Planning!$25:$25,MATCH('Solde d''heure collaborateur'!$A8,Planning!$3:$3)) -> X | CJ8: =VLOOKUP(CI8,Horaires!$A$3:$E$49,2,) -> XXX | CK8: =IF(CJ8="vacances",INDEX(Horaires!$H$3:$L$42,MATCH('Solde d''heure collaborateur'!CJ$2,Horaires!$H$3:$H$40,0),4),IF(CJ8="maladie",INDEX(Horaires!$H$3:$L$42,MATCH('Solde d''heure collaborateur'!CJ$2,Horaires!$H$3:$H$40,0),5),VLOOKUP(CI8,Horaires!$A$3:$E$60,5,))) -> 0 | CM8: =INDEX(Planning!$26:$26,MATCH('Solde d''heure collaborateur'!$A8,Planning!$3:$3)) -> Vid2 | CN8: =VLOOKUP(CM8,Horaires!$A$3:$E$49,2,) -> Vidollet | CO8: =IF(CN8="vacances",INDEX(Horaires!$H$3:$L$42,MATCH('Solde d''heure collaborateur'!CN$2,Horaires!$H$3:$H$40,0),4),IF(CN8="maladie",INDEX(Horaires!$H$3:$L$42,MATCH('Solde d''heure collaborateur'!CN$2,Horaires!$H$3:$H$40,0),5),VLOOKUP(CM8,Horaires!$A$3:$E$60,5,))) -> 0.46875 | CQ8: =INDEX(Planning!$27:$27,MATCH('Solde d''heure collaborateur'!$A8,Planning!$3:$3)) -> Thon2 | CR8: =VLOOKUP(CQ8,Horaires!$A$3:$E$49,2,) -> Thonex | CS8: =IF(CR8="vacances",INDEX(Horaires!$H$3:$L$42,MATCH('Solde d''heure collaborateur'!CR$2,Horaires!$H$3:$H$40,0),4),IF(CR8="maladie",INDEX(Horaires!$H$3:$L$42,MATCH('Solde d''heure collaborateur'!CR$2,Horaires!$H$3:$H$40,0),5),VLOOKUP(CQ8,Horaires!$A$3:$E$60,5,))) -> 0.46875 | CU8: =INDEX(Planning!$28:$28,MATCH('Solde d''heure collaborateur'!$A8,Planning!$3:$3)) -> tour2 | CV8: =VLOOKUP(CU8,Horaires!$A$3:$E$49,2,) -> Tourelle | CW8: =IF(CV8="vacances",INDEX(Horaires!$H$3:$L$42,MATCH('Solde d''heure collaborateur'!CV$2,Horaires!$H$3:$H$40,0),4),IF(CV8="maladie",INDEX(Horaires!$H$3:$L$42,MATCH('Solde d''heure collaborateur'!CV$2,Horaires!$H$3:$H$40,0),5),VLOOKUP(CU8,Horaires!$A$3:$E$60,5,))) -> 0.4895833333 | CY8: =INDEX(Planning!$29:$29,MATCH('Solde d''heure collaborateur'!$A8,Planning!$3:$3)) -> pom2 | CZ8: =VLOOKUP(CY8,Horaires!$A$3:$E$49,2,) -> Pommier | DA8: =IF(CZ8="vacances",INDEX(Horaires!$H$3:$L$42,MATCH('Solde d''heure collaborateur'!CZ$2,Horaires!$H$3:$H$40,0),4),IF(CZ8="maladie",INDEX(Horaires!$H$3:$L$42,MATCH('Solde d''heure collaborateur'!CZ$2,Horaires!$H$3:$H$40,0),5),VLOOKUP(CY8,Horaires!$A$3:$E$60,5,))) -> 0.46875 | DC8: =INDEX(Planning!$30:$30,MATCH('Solde d''heure collaborateur'!$A8,Planning!$3:$3)) -> X | DD8: =VLOOKUP(DC8,Horaires!$A$3:$E$49,2,) -> XXX | DE8: =IF(DD8="vacances",INDEX(Horaires!$H$3:$L$42,MATCH('Solde d''heure collaborateur'!DD$2,Horaires!$H$3:$H$40,0),4),IF(DD8="maladie",INDEX(Horaires!$H$3:$L$42,MATCH('Solde d''heure collaborateur'!DD$2,Horaires!$H$3:$H$40,0),5),VLOOKUP(DC8,Horaires!$A$3:$E$60,5,))) -> 0 | DG8: =INDEX(Planning!$31:$31,MATCH('Solde d''heure collaborateur'!$A8,Planning!$3:$3)) -> X | DH8: =VLOOKUP(DG8,Horaires!$A$3:$E$49,2,) -> XXX | DI8: =IF(DH8="vacances",INDEX(Horaires!$H$3:$L$42,MATCH('Solde d''heure collaborateur'!DH$2,Horaires!$H$3:$H$40,0),4),IF(DH8="maladie",INDEX(Horaires!$H$3:$L$42,MATCH('Solde d''heure collaborateur'!DH$2,Horaires!$H$3:$H$40,0),5),VLOOKUP(DG8,Horaires!$A$3:$E$60,5,))) -> 0 | DK8: =INDEX(Planning!$32:$32,MATCH('Solde d''heure collaborateur'!$A8,Planning!$3:$3)) -> X | DL8: =VLOOKUP(DK8,Horaires!$A$3:$E$49,2,) -> XXX | DM8: =IF(DL8="vacances",INDEX(Horaires!$H$3:$L$42,MATCH('Solde d''heure collaborateur'!DL$2,Horaires!$H$3:$H$40,0),4),IF(DL8="maladie",INDEX(Horaires!$H$3:$L$42,MATCH('Solde d''heure collaborateur'!DL$2,Horaires!$H$3:$H$40,0),5),VLOOKUP(DK8,Horaires!$A$3:$E$60,5,))) -> 0 | DO8: =INDEX(Planning!$33:$33,MATCH('Solde d''heure collaborateur'!$A8,Planning!$3:$3)) -> X | DP8: =VLOOKUP(DO8,Horaires!$A$3:$E$49,2,) -> XXX | DQ8: =IF(DP8="vacances",INDEX(Horaires!$H$3:$L$42,MATCH('Solde d''heure collaborateur'!DP$2,Horaires!$H$3:$H$40,0),4),IF(DP8="maladie",INDEX(Horaires!$H$3:$L$42,MATCH('Solde d''heure collaborateur'!DP$2,Horaires!$H$3:$H$40,0),5),VLOOKUP(DO8,Horaires!$A$3:$E$60,5,))) -> 0 | DS8: =INDEX(Planning!$34:$34,MATCH('Solde d''heure collaborateur'!$A8,Planning!$3:$3)) -> X | DT8: =VLOOKUP(DS8,Horaires!$A$3:$E$49,2,) -> XXX | DU8: =IF(DT8="vacances",INDEX(Horaires!$H$3:$L$42,MATCH('Solde d''heure collaborateur'!DT$2,Horaires!$H$3:$H$40,0),4),IF(DT8="maladie",INDEX(Horaires!$H$3:$L$42,MATCH('Solde d''heure collaborateur'!DT$2,Horaires!$H$3:$H$40,0),5),VLOOKUP(DS8,Horaires!$A$3:$E$60,5,))) -> 0 | DW8: =INDEX(Planning!$35:$35,MATCH('Solde d''heure collaborateur'!$A8,Planning!$3:$3)) -> X | DX8: =VLOOKUP(DW8,Horaires!$A$3:$E$49,2,) -> XXX | DY8: =IF(DX8="vacances",INDEX(Horaires!$H$3:$L$42,MATCH('Solde d''heure collaborateur'!DX$2,Horaires!$H$3:$H$40,0),4),IF(DX8="maladie",INDEX(Horaires!$H$3:$L$42,MATCH('Solde d''heure collaborateur'!DX$2,Horaires!$H$3:$H$40,0),5),VLOOKUP(DW8,Horaires!$A$3:$E$60,5,))) -> 0
A9: =A8+1 -> 2013-11-09 | C9: =INDEX(Planning!$4:$4,MATCH('Solde d''heure collaborateur'!A9,Planning!$3:$3,0)) -> Nav3 | D9: =VLOOKUP(C9,Horaires!$A$3:$E$49,2,) -> Navigation | E9: =IF(D9="vacances",INDEX(Horaires!$H$3:$L$42,MATCH('Solde d''heure collaborateur'!D$2,Horaires!$H$3:$H$40,0),4),IF(D9="maladie",INDEX(Horaires!$H$3:$L$42,MATCH('Solde d''heure collaborateur'!D$2,Horaires!$H$3:$H$40,0),5),VLOOKUP(C9,Horaires!$A$3:$E$60,5,))) -> 0.40625 | G9: =INDEX(Planning!$5:$5,MATCH('Solde d''heure collaborateur'!A9,Planning!$3:$3)) -> R | H9: =VLOOKUP(G9,Horaires!$A$3:$E$49,2,) -> Congé | I9: =IF(H9="vacances",INDEX(Horaires!$H$3:$L$42,MATCH('Solde d''heure collaborateur'!H$2,Horaires!$H$3:$H$40,0),4),IF(H9="maladie",INDEX(Horaires!$H$3:$L$42,MATCH('Solde d''heure collaborateur'!H$2,Horaires!$H$3:$H$40,0),5),VLOOKUP(G9,Horaires!$A$3:$E$60,5,))) -> 0 | K9: =INDEX(Planning!$6:$6,MATCH('Solde d''heure collaborateur'!A9,Planning!$3:$3)) -> R | L9: =VLOOKUP(K9,Horaires!$A$3:$E$49,2,) -> Congé | M9: =IF(L9="vacances",INDEX(Horaires!$H$3:$L$42,MATCH('Solde d''heure collaborateur'!L$2,Horaires!$H$3:$H$40,0),4),IF(L9="maladie",INDEX(Horaires!$H$3:$L$42,MATCH('Solde d''heure collaborateur'!L$2,Horaires!$H$3:$H$40,0),5),VLOOKUP(K9,Horaires!$A$3:$E$60,5,))) -> 0 | O9: =INDEX(Planning!$7:$7,MATCH('Solde d''heure collaborateur'!$A9,Planning!$3:$3)) -> X | P9: =VLOOKUP(O9,Horaires!$A$3:$E$49,2,) -> XXX | Q9: =IF(P9="vacances",INDEX(Horaires!$H$3:$L$42,MATCH('Solde d''heure collaborateur'!P$2,Horaires!$H$3:$H$40,0),4),IF(P9="maladie",INDEX(Horaires!$H$3:$L$42,MATCH('Solde d''heure collaborateur'!P$2,Horaires!$H$3:$H$40,0),5),VLOOKUP(O9,Horaires!$A$3:$E$60,5,))) -> 0 | S9: =INDEX(Planning!$8:$8,MATCH('Solde d''heure collaborateur'!$A9,Planning!$3:$3)) -> R | T9: =VLOOKUP(S9,Horaires!$A$3:$E$49,2,) -> Congé | U9: =IF(T9="vacances",INDEX(Horaires!$H$3:$L$42,MATCH('Solde d''heure collaborateur'!T$2,Horaires!$H$3:$H$40,0),4),IF(T9="maladie",INDEX(Horaires!$H$3:$L$42,MATCH('Solde d''heure collaborateur'!T$2,Horaires!$H$3:$H$40,0),5),VLOOKUP(S9,Horaires!$A$3:$E$60,5,))) -> 0 | W9: =INDEX(Planning!$9:$9,MATCH('Solde d''heure collaborateur'!$A9,Planning!$3:$3)) -> X | X9: =VLOOKUP(W9,Horaires!$A$3:$E$49,2,) -> XXX | Y9: =IF(X9="vacances",INDEX(Horaires!$H$3:$L$42,MATCH('Solde d''heure collaborateur'!X$2,Horaires!$H$3:$H$40,0),4),IF(X9="maladie",INDEX(Horaires!$H$3:$L$42,MATCH('Solde d''heure collaborateur'!X$2,Horaires!$H$3:$H$40,0),5),VLOOKUP(W9,Horaires!$A$3:$E$60,5,))) -> 0 | AA9: =INDEX(Planning!$10:$10,MATCH('Solde d''heure collaborateur'!$A9,Planning!$3:$3)) -> Onex3 | AB9: =VLOOKUP(AA9,Horaires!$A$3:$E$49,2,) -> Onex | AC9: =IF(AB9="vacances",INDEX(Horaires!$H$3:$L$42,MATCH('Solde d''heure collaborateur'!AB$2,Horaires!$H$3:$H$40,0),4),IF(AB9="maladie",INDEX(Horaires!$H$3:$L$42,MATCH('Solde d''heure collaborateur'!AB$2,Horaires!$H$3:$H$40,0),5),VLOOKUP(AA9,Horaires!$A$3:$E$60,5,))) -> 0.4270833333 | AE9: =INDEX(Planning!$11:$11,MATCH('Solde d''heure collaborateur'!$A9,Planning!$3:$3)) -> Plo3 | AF9: =VLOOKUP(AE9,Horaires!$A$3:$E$49,2,) -> Plan les Ouates | AG9: =IF(AF9="vacances",INDEX(Horaires!$H$3:$L$42,MATCH('Solde d''heure collaborateur'!AF$2,Horaires!$H$3:$H$40,0),4),IF(AF9="maladie",INDEX(Horaires!$H$3:$L$42,MATCH('Solde d''heure collaborateur'!AF$2,Horaires!$H$3:$H$40,0),5),VLOOKUP(AE9,Horaires!$A$3:$E$60,5,))) -> 0.4270833333 | AI9: =INDEX(Planning!$12:$12,MATCH('Solde d''heure collaborateur'!$A9,Planning!$3:$3)) -> Thon3 | AJ9: =VLOOKUP(AI9,Horaires!$A$3:$E$49,2,) -> Thonex | AK9: =IF(AJ9="vacances",INDEX(Horaires!$H$3:$L$42,MATCH('Solde d''heure collaborateur'!AJ$2,Horaires!$H$3:$H$40,0),4),IF(AJ9="maladie",INDEX(Horaires!$H$3:$L$42,MATCH('Solde d''heure collaborateur'!AJ$2,Horaires!$H$3:$H$40,0),5),VLOOKUP(AI9,Horaires!$A$3:$E$60,5,))) -> 0.40625 | AM9: =INDEX(Planning!$13:$13,MATCH('Solde d''heure collaborateur'!$A9,Planning!$3:$3)) -> R | AN9: =VLOOKUP(AM9,Horaires!$A$3:$E$49,2,) -> Congé | AO9: =IF(AN9="vacances",INDEX(Horaires!$H$3:$L$42,MATCH('Solde d''heure collaborateur'!AN$2,Horaires!$H$3:$H$40,0),4),IF(AN9="maladie",INDEX(Horaires!$H$3:$L$42,MATCH('Solde d''heure collaborateur'!AN$2,Horaires!$H$3:$H$40,0),5),VLOOKUP(AM9,Horaires!$A$3:$E$60,5,))) -> 0 | AQ9: =INDEX(Planning!$14:$14,MATCH('Solde d''heure collaborateur'!$A9,Planning!$3:$3)) -> M | AR9: =VLOOKUP(AQ9,Horaires!$A$3:$E$49,2,) -> Maladie | AS9: =IF(AR9="vacances",INDEX(Horaires!$H$3:$L$42,MATCH('Solde d''heure collaborateur'!AR$2,Horaires!$H$3:$H$40,0),4),IF(AR9="maladie",INDEX(Horaires!$H$3:$L$42,MATCH('Solde d''heure collaborateur'!AR$2,Horaires!$H$3:$H$40,0),5),VLOOKUP(AQ9,Horaires!$A$3:$E$60,5,))) -> 0.4618055556 | AU9: =INDEX(Planning!$15:$15,MATCH('Solde d''heure collaborateur'!$A9,Planning!$3:$3)) -> pom3 | AV9: =VLOOKUP(AU9,Horaires!$A$3:$E$49,2,) -> Pommier | AW9: =IF(AV9="vacances",INDEX(Horaires!$H$3:$L$42,MATCH('Solde d''heure collaborateur'!AV$2,Horaires!$H$3:$H$40,0),4),IF(AV9="maladie",INDEX(Horaires!$H$3:$L$42,MATCH('Solde d''heure collaborateur'!AV$2,Horaires!$H$3:$H$40,0),5),VLOOKUP(AU9,Horaires!$A$3:$E$60,5,))) -> 0.4270833333 | AY9: =INDEX(Planning!$16:$16,MATCH('Solde d''heure collaborateur'!$A9,Planning!$3:$3)) -> Nyon2 | AZ9: =VLOOKUP(AY9,Horaires!$A$3:$E$49,2,) -> Nyon | BA9: =IF(AZ9="vacances",INDEX(Horaires!$H$3:$L$42,MATCH('Solde d''heure collaborateur'!AZ$2,Horaires!$H$3:$H$40,0),4),IF(AZ9="maladie",INDEX(Horaires!$H$3:$L$42,MATCH('Solde d''heure collaborateur'!AZ$2,Horaires!$H$3:$H$40,0),5),VLOOKUP(AY9,Horaires!$A$3:$E$60,5,))) -> 0.40625 | BC9: =INDEX(Planning!$17:$17,MATCH('Solde d''heure collaborateur'!$A9,Planning!$3:$3)) -> R | BD9: =VLOOKUP(BC9,Horaires!$A$3:$E$49,2,) -> Congé | BE9: =IF(BD9="vacances",INDEX(Horaires!$H$3:$L$42,MATCH('Solde d''heure collaborateur'!BD$2,Horaires!$H$3:$H$40,0),4),IF(BD9="maladie",INDEX(Horaires!$H$3:$L$42,MATCH('Solde d''heure collaborateur'!BD$2,Horaires!$H$3:$H$40,0),5),VLOOKUP(BC9,Horaires!$A$3:$E$60,5,))) -> 0 | BG9: =INDEX(Planning!$18:$18,MATCH('Solde d''heure collaborateur'!$A9,Planning!$3:$3)) -> Vib3 | BH9: =VLOOKUP(BG9,Horaires!$A$3:$E$49,2,) -> Vibert | BI9: =IF(BH9="vacances",INDEX(Horaires!$H$3:$L$42,MATCH('Solde d''heure collaborateur'!BH$2,Horaires!$H$3:$H$40,0),4),IF(BH9="maladie",INDEX(Horaires!$H$3:$L$42,MATCH('Solde d''heure collaborateur'!BH$2,Horaires!$H$3:$H$40,0),5),VLOOKUP(BG9,Horaires!$A$3:$E$60,5,))) -> 0.4270833333 | BK9: =INDEX(Planning!$19:$19,MATCH('Solde d''heure collaborateur'!$A9,Planning!$3:$3)) -> Vib3 | BL9: =VLOOKUP(BK9,Horaires!$A$3:$E$49,2,) -> Vibert | BM9: =IF(BL9="vacances",INDEX(Horaires!$H$3:$L$42,MATCH('Solde d''heure collaborateur'!BL$2,Horaires!$H$3:$H$40,0),4),IF(BL9="maladie",INDEX(Horaires!$H$3:$L$42,MATCH('Solde d''heure collaborateur'!BL$2,Horaires!$H$3:$H$40,0),5),VLOOKUP(BK9,Horaires!$A$3:$E$60,5,))) -> 0.4270833333 | BO9: =INDEX(Planning!$20:$20,MATCH('Solde d''heure collaborateur'!$A9,Planning!$3:$3)) -> Aca3 | BP9: =VLOOKUP(BO9,Horaires!$A$3:$E$49,2,) -> Acacias | BQ9: =IF(BP9="vacances",INDEX(Horaires!$H$3:$L$42,MATCH('Solde d''heure collaborateur'!BP$2,Horaires!$H$3:$H$40,0),4),IF(BP9="maladie",INDEX(Horaires!$H$3:$L$42,MATCH('Solde d''heure collaborateur'!BP$2,Horaires!$H$3:$H$40,0),5),VLOOKUP(BO9,Horaires!$A$3:$E$60,5,))) -> 0.40625 | BS9: =INDEX(Planning!$21:$21,MATCH('Solde d''heure collaborateur'!$A9,Planning!$3:$3)) -> R | BT9: =VLOOKUP(BS9,Horaires!$A$3:$E$49,2,) -> Congé | BU9: =IF(BT9="vacances",INDEX(Horaires!$H$3:$L$42,MATCH('Solde d''heure collaborateur'!BT$2,Horaires!$H$3:$H$40,0),4),IF(BT9="maladie",INDEX(Horaires!$H$3:$L$42,MATCH('Solde d''heure collaborateur'!BT$2,Horaires!$H$3:$H$40,0),5),VLOOKUP(BS9,Horaires!$A$3:$E$60,5,))) -> 0 | BW9: =INDEX(Planning!$22:$22,MATCH('Solde d''heure collaborateur'!$A9,Planning!$3:$3)) -> X | BX9: =VLOOKUP(BW9,Horaires!$A$3:$E$49,2,) -> XXX | BY9: =IF(BX9="vacances",INDEX(Horaires!$H$3:$L$42,MATCH('Solde d''heure collaborateur'!BX$2,Horaires!$H$3:$H$40,0),4),IF(BX9="maladie",INDEX(Horaires!$H$3:$L$42,MATCH('Solde d''heure collaborateur'!BX$2,Horaires!$H$3:$H$40,0),5),VLOOKUP(BW9,Horaires!$A$3:$E$60,5,))) -> 0 | CA9: =INDEX(Planning!$23:$23,MATCH('Solde d''heure collaborateur'!$A9,Planning!$3:$3)) -> R | CB9: =VLOOKUP(CA9,Horaires!$A$3:$E$49,2,) -> Congé | CC9: =IF(CB9="vacances",INDEX(Horaires!$H$3:$L$42,MATCH('Solde d''heure collaborateur'!CB$2,Horaires!$H$3:$H$40,0),4),IF(CB9="maladie",INDEX(Horaires!$H$3:$L$42,MATCH('Solde d''heure collaborateur'!CB$2,Horaires!$H$3:$H$40,0),5),VLOOKUP(CA9,Horaires!$A$3:$E$60,5,))) -> 0 | CE9: =INDEX(Planning!$24:$24,MATCH('Solde d''heure collaborateur'!$A9,Planning!$3:$3)) -> Onex3 | CF9: =VLOOKUP(CE9,Horaires!$A$3:$E$49,2,) -> Onex | CG9: =IF(CF9="vacances",INDEX(Horaires!$H$3:$L$42,MATCH('Solde d''heure collaborateur'!CF$2,Horaires!$H$3:$H$40,0),4),IF(CF9="maladie",INDEX(Horaires!$H$3:$L$42,MATCH('Solde d''heure collaborateur'!CF$2,Horaires!$H$3:$H$40,0),5),VLOOKUP(CE9,Horaires!$A$3:$E$60,5,))) -> 0.4270833333 | CI9: =INDEX(Planning!$25:$25,MATCH('Solde d''heure collaborateur'!$A9,Planning!$3:$3)) -> X | CJ9: =VLOOKUP(CI9,Horaires!$A$3:$E$49,2,) -> XXX | CK9: =IF(CJ9="vacances",INDEX(Horaires!$H$3:$L$42,MATCH('Solde d''heure collaborateur'!CJ$2,Horaires!$H$3:$H$40,0),4),IF(CJ9="maladie",INDEX(Horaires!$H$3:$L$42,MATCH('Solde d''heure collaborateur'!CJ$2,Horaires!$H$3:$H$40,0),5),VLOOKUP(CI9,Horaires!$A$3:$E$60,5,))) -> 0 | CM9: =INDEX(Planning!$26:$26,MATCH('Solde d''heure collaborateur'!$A9,Planning!$3:$3)) -> Vid3 | CN9: =VLOOKUP(CM9,Horaires!$A$3:$E$49,2,) -> Vidollet | CO9: =IF(CN9="vacances",INDEX(Horaires!$H$3:$L$42,MATCH('Solde d''heure collaborateur'!CN$2,Horaires!$H$3:$H$40,0),4),IF(CN9="maladie",INDEX(Horaires!$H$3:$L$42,MATCH('Solde d''heure collaborateur'!CN$2,Horaires!$H$3:$H$40,0),5),VLOOKUP(CM9,Horaires!$A$3:$E$60,5,))) -> 0.40625 | CQ9: =INDEX(Planning!$27:$27,MATCH('Solde d''heure collaborateur'!$A9,Planning!$3:$3)) -> Ves3 | CR9: =VLOOKUP(CQ9,Horaires!$A$3:$E$49,2,) -> Vesenaz | CS9: =IF(CR9="vacances",INDEX(Horaires!$H$3:$L$42,MATCH('Solde d''heure collaborateur'!CR$2,Horaires!$H$3:$H$40,0),4),IF(CR9="maladie",INDEX(Horaires!$H$3:$L$42,MATCH('Solde d''heure collaborateur'!CR$2,Horaires!$H$3:$H$40,0),5),VLOOKUP(CQ9,Horaires!$A$3:$E$60,5,))) -> 0.40625 | CU9: =INDEX(Planning!$28:$28,MATCH('Solde d''heure collaborateur'!$A9,Planning!$3:$3)) -> tour3 | CV9: =VLOOKUP(CU9,Horaires!$A$3:$E$49,2,) -> Tourelle | CW9: =IF(CV9="vacances",INDEX(Horaires!$H$3:$L$42,MATCH('Solde d''heure collaborateur'!CV$2,Horaires!$H$3:$H$40,0),4),IF(CV9="maladie",INDEX(Horaires!$H$3:$L$42,MATCH('Solde d''heure collaborateur'!CV$2,Horaires!$H$3:$H$40,0),5),VLOOKUP(CU9,Horaires!$A$3:$E$60,5,))) -> 0.4270833333 | CY9: =INDEX(Planning!$29:$29,MATCH('Solde d''heure collaborateur'!$A9,Planning!$3:$3)) -> Nav3 | CZ9: =VLOOKUP(CY9,Horaires!$A$3:$E$49,2,) -> Navigation | DA9: =IF(CZ9="vacances",INDEX(Horaires!$H$3:$L$42,MATCH('Solde d''heure collaborateur'!CZ$2,Horaires!$H$3:$H$40,0),4),IF(CZ9="maladie",INDEX(Horaires!$H$3:$L$42,MATCH('Solde d''heure collaborateur'!CZ$2,Horaires!$H$3:$H$40,0),5),VLOOKUP(CY9,Horaires!$A$3:$E$60,5,))) -> 0.40625 | DC9: =INDEX(Planning!$30:$30,MATCH('Solde d''heure collaborateur'!$A9,Planning!$3:$3)) -> X | DD9: =VLOOKUP(DC9,Horaires!$A$3:$E$49,2,) -> XXX | DE9: =IF(DD9="vacances",INDEX(Horaires!$H$3:$L$42,MATCH('Solde d''heure collaborateur'!DD$2,Horaires!$H$3:$H$40,0),4),IF(DD9="maladie",INDEX(Horaires!$H$3:$L$42,MATCH('Solde d''heure collaborateur'!DD$2,Horaires!$H$3:$H$40,0),5),VLOOKUP(DC9,Horaires!$A$3:$E$60,5,))) -> 0 | DG9: =INDEX(Planning!$31:$31,MATCH('Solde d''heure collaborateur'!$A9,Planning!$3:$3)) -> X | DH9: =VLOOKUP(DG9,Horaires!$A$3:$E$49,2,) -> XXX | DI9: =IF(DH9="vacances",INDEX(Horaires!$H$3:$L$42,MATCH('Solde d''heure collaborateur'!DH$2,Horaires!$H$3:$H$40,0),4),IF(DH9="maladie",INDEX(Horaires!$H$3:$L$42,MATCH('Solde d''heure collaborateur'!DH$2,Horaires!$H$3:$H$40,0),5),VLOOKUP(DG9,Horaires!$A$3:$E$60,5,))) -> 0 | DK9: =INDEX(Planning!$32:$32,MATCH('Solde d''heure collaborateur'!$A9,Planning!$3:$3)) -> X | DL9: =VLOOKUP(DK9,Horaires!$A$3:$E$49,2,) -> XXX | DM9: =IF(DL9="vacances",INDEX(Horaires!$H$3:$L$42,MATCH('Solde d''heure collaborateur'!DL$2,Horaires!$H$3:$H$40,0),4),IF(DL9="maladie",INDEX(Horaires!$H$3:$L$42,MATCH('Solde d''heure collaborateur'!DL$2,Horaires!$H$3:$H$40,0),5),VLOOKUP(DK9,Horaires!$A$3:$E$60,5,))) -> 0 | DO9: =INDEX(Planning!$33:$33,MATCH('Solde d''heure collaborateur'!$A9,Planning!$3:$3)) -> X | DP9: =VLOOKUP(DO9,Horaires!$A$3:$E$49,2,) -> XXX | DQ9: =IF(DP9="vacances",INDEX(Horaires!$H$3:$L$42,MATCH('Solde d''heure collaborateur'!DP$2,Horaires!$H$3:$H$40,0),4),IF(DP9="maladie",INDEX(Horaires!$H$3:$L$42,MATCH('Solde d''heure collaborateur'!DP$2,Horaires!$H$3:$H$40,0),5),VLOOKUP(DO9,Horaires!$A$3:$E$60,5,))) -> 0 | DS9: =INDEX(Planning!$34:$34,MATCH('Solde d''heure collaborateur'!$A9,Planning!$3:$3)) -> X | DT9: =VLOOKUP(DS9,Horaires!$A$3:$E$49,2,) -> XXX | DU9: =IF(DT9="vacances",INDEX(Horaires!$H$3:$L$42,MATCH('Solde d''heure collaborateur'!DT$2,Horaires!$H$3:$H$40,0),4),IF(DT9="maladie",INDEX(Horaires!$H$3:$L$42,MATCH('Solde d''heure collaborateur'!DT$2,Horaires!$H$3:$H$40,0),5),VLOOKUP(DS9,Horaires!$A$3:$E$60,5,))) -> 0 | DW9: =INDEX(Planning!$35:$35,MATCH('Solde d''heure collaborateur'!$A9,Planning!$3:$3)) -> X | DX9: =VLOOKUP(DW9,Horaires!$A$3:$E$49,2,) -> XXX | DY9: =IF(DX9="vacances",INDEX(Horaires!$H$3:$L$42,MATCH('Solde d''heure collaborateur'!DX$2,Horaires!$H$3:$H$40,0),4),IF(DX9="maladie",INDEX(Horaires!$H$3:$L$42,MATCH('Solde d''heure collaborateur'!DX$2,Horaires!$H$3:$H$40,0),5),VLOOKUP(DW9,Horaires!$A$3:$E$60,5,))) -> 0
D10: =SUM(E10-INDEX(Horaires!$H$3:$L$37,MATCH('Solde d''heure collaborateur'!D$2,Horaires!$H$3:$H$37,0),2)) -> 1 | E10: =SUM(E4:E9)*24 -> 43 | H10: =SUM(I10-INDEX(Horaires!$H$3:$L$37,MATCH('Solde d''heure collaborateur'!H$2,Horaires!$H$3:$H$37,0),2)) -> -8.4 | I10: =SUM(I4:I9)*24 -> 33.6 | L10: =SUM(M10-INDEX(Horaires!$H$3:$L$37,MATCH('Solde d''heure collaborateur'!L$2,Horaires!$H$3:$H$37,0),2)) -> 0 | M10: =SUM(M4:M9)*24 -> 42 | P10: =SUM(Q10-INDEX(Horaires!$H$3:$L$37,MATCH('Solde d''heure collaborateur'!P$2,Horaires!$H$3:$H$37,0),2)) -> 3.552713679e-15 | Q10: =SUM(Q4:Q9)*24 -> 22.5 | T10: =SUM(U10-INDEX(Horaires!$H$3:$L$37,MATCH('Solde d''heure collaborateur'!T$2,Horaires!$H$3:$H$37,0),2)) -> 3.5 | U10: =SUM(U4:U9)*24 -> 45.5 | X10: =SUM(Y10-INDEX(Horaires!$H$3:$L$37,MATCH('Solde d''heure collaborateur'!X$2,Horaires!$H$3:$H$37,0),2)) ->  | Y10: =SUM(Y4:Y9)*24 ->  | AB10: =SUM(AC10-INDEX(Horaires!$H$3:$L$37,MATCH('Solde d''heure collaborateur'!AB$2,Horaires!$H$3:$H$37,0),2)) -> 2 | AC10: =SUM(AC4:AC9)*24 -> 44 | AF10: =SUM(AG10-INDEX(Horaires!$H$3:$L$37,MATCH('Solde d''heure collaborateur'!AF$2,Horaires!$H$3:$H$37,0),2)) -> 2.5 | AG10: =SUM(AG4:AG9)*24 -> 44.5 | AJ10: =SUM(AK10-INDEX(Horaires!$H$3:$L$37,MATCH('Solde d''heure collaborateur'!AJ$2,Horaires!$H$3:$H$37,0),2)) -> 0.5 | AK10: =SUM(AK4:AK9)*24 -> 42.5 | AN10: =SUM(AO10-INDEX(Horaires!$H$3:$L$37,MATCH('Solde d''heure collaborateur'!AN$2,Horaires!$H$3:$H$37,0),2)) -> 1 | AO10: =SUM(AO4:AO9)*24 -> 43 | AR10: =SUM(AS10-INDEX(Horaires!$H$3:$L$37,MATCH('Solde d''heure collaborateur'!AR$2,Horaires!$H$3:$H$37,0),2)) -> 0 | AS10: =SUM(AS4:AS9)*24 -> 33.25 | AV10: =SUM(AW10-INDEX(Horaires!$H$3:$L$37,MATCH('Solde d''heure collaborateur'!AV$2,Horaires!$H$3:$H$37,0),2)) -> -10.25 | AW10: =SUM(AW4:AW9)*24 -> 31.75 | AZ10: =SUM(BA10-INDEX(Horaires!$H$3:$L$37,MATCH('Solde d''heure collaborateur'!AZ$2,Horaires!$H$3:$H$37,0),2)) -> 12.25 | BA10: =SUM(BA4:BA9)*24 -> 54.25 | BD10: =SUM(BE10-INDEX(Horaires!$H$3:$L$37,MATCH('Solde d''heure collaborateur'!BD$2,Horaires!$H$3:$H$37,0),2)) -> 2 | BE10: =SUM(BE4:BE9)*24 -> 44 | BH10: =SUM(BI10-INDEX(Horaires!$H$3:$L$37,MATCH('Solde d''heure collaborateur'!BH$2,Horaires!$H$3:$H$37,0),2)) -> 12.25 | BI10: =SUM(BI4:BI9)*24 -> 54.25 | BL10: =SUM(BM10-INDEX(Horaires!$H$3:$L$37,MATCH('Solde d''heure collaborateur'!BL$2,Horaires!$H$3:$H$37,0),2)) -> 2.25 | BM10: =SUM(BM4:BM9)*24 -> 44.25 | BP10: =SUM(BQ10-INDEX(Horaires!$H$3:$L$37,MATCH('Solde d''heure collaborateur'!BP$2,Horaires!$H$3:$H$37,0),2)) -> 1 | BQ10: =SUM(BQ4:BQ9)*24 -> 43 | BT10: =SUM(BU10-INDEX(Horaires!$H$3:$L$37,MATCH('Solde d''heure collaborateur'!BT$2,Horaires!$H$3:$H$37,0),2)) -> 2.5 | BU10: =SUM(BU4:BU9)*24 -> 44.5 | BX10: =SUM(BY10-INDEX(Horaires!$H$3:$L$37,MATCH('Solde d''heure collaborateur'!BX$2,Horaires!$H$3:$H$37,0),2)) -> 0 | BY10: =SUM(BY4:BY9)*24 -> 21.5 | CB10: =SUM(CC10-INDEX(Horaires!$H$3:$L$37,MATCH('Solde d''heure collaborateur'!CB$2,Horaires!$H$3:$H$37,0),2)) -> 2.5 | CC10: =SUM(CC4:CC9)*24 -> 44.5 | CF10: =SUM(CG10-INDEX(Horaires!$H$3:$L$37,MATCH('Solde d''heure collaborateur'!CF$2,Horaires!$H$3:$H$37,0),2)) -> 1.5 | CG10: =SUM(CG4:CG9)*24 -> 43.5 | CJ10: =SUM(CK10-INDEX(Horaires!$H$3:$L$37,MATCH('Solde d''heure collaborateur'!CJ$2,Horaires!$H$3:$H$37,0),2)) -> -42 | CK10: =SUM(CK4:CK9)*24 -> 0 | CN10: =SUM(CO10-INDEX(Horaires!$H$3:$L$37,MATCH('Solde d''heure collaborateur'!CN$2,Horaires!$H$3:$H$37,0),2)) -> 1 | CO10: =SUM(CO4:CO9)*24 -> 43 | CR10: =SUM(CS10-INDEX(Horaires!$H$3:$L$37,MATCH('Solde d''heure collaborateur'!CR$2,Horaires!$H$3:$H$37,0),2)) -> 1 | CS10: =SUM(CS4:CS9)*24 -> 43 | CV10: =SUM(CW10-INDEX(Horaires!$H$3:$L$37,MATCH('Solde d''heure collaborateur'!CV$2,Horaires!$H$3:$H$37,0),2)) -> 2.5 | CW10: =SUM(CW4:CW9)*24 -> 44.5 | CZ10: =SUM(DA10-INDEX(Horaires!$H$3:$L$37,MATCH('Solde d''heure collaborateur'!CZ$2,Horaires!$H$3:$H$37,0),2)) -> 32.25 | DA10: =SUM(DA4:DA9)*24 -> 32.25 | DD10: =SUM(DE10-INDEX(Horaires!$H$3:$L$37,MATCH('Solde d''heure collaborateur'!DD$2,Horaires!$H$3:$H$37,0),2)) ->  | DE10: =SUM(DE4:DE9)*24 -> 0 | DH10: =SUM(DI10-INDEX(Horaires!$H$3:$L$37,MATCH('Solde d''heure collaborateur'!DH$2,Horaires!$H$3:$H$37,0),2)) -> 0 | DI10: =SUM(DI4:DI9)*24 -> 0 | DL10: =SUM(DM10-INDEX(Horaires!$H$3:$L$37,MATCH('Solde d''heure collaborateur'!DL$2,Horaires!$H$3:$H$37,0),2)) -> 0 | DM10: =SUM(DM4:DM9)*24 -> 0 | DP10: =SUM(DQ10-INDEX(Horaires!$H$3:$L$37,MATCH('Solde d''heure collaborateur'!DP$2,Horaires!$H$3:$H$37,0),2)) -> 0 | DQ10: =SUM(DQ4:DQ9)*24 -> 0 | DT10: =SUM(DU10-INDEX(Horaires!$H$3:$L$37,MATCH('Solde d''heure collaborateur'!DT$2,Horaires!$H$3:$H$37,0),2)) -> 0 | DU10: =SUM(DU4:DU9)*24 -> 0 | DX10: =SUM(DY10-INDEX(Horaires!$H$3:$L$37,MATCH('Solde d''heure collaborateur'!DX$2,Horaires!$H$3:$H$37,0),2)) -> 0 | DY10: =SUM(DY4:DY9)*24 -> 0
A12: =A9+2 -> 2013-11-11 | C12: =INDEX(Planning!$4:$4,MATCH('Solde d''heure collaborateur'!A12,Planning!$3:$3,0)) -> nav1 | D12: =VLOOKUP(C12,Horaires!$A$3:$E$49,2,) -> Navigation | E12: =IF(D12="vacances",INDEX(Horaires!$H$3:$L$42,MATCH('Solde d''heure collaborateur'!D$2,Horaires!$H$3:$H$40,0),4),IF(D12="maladie",INDEX(Horaires!$H$3:$L$42,MATCH('Solde d''heure collaborateur'!D$2,Horaires!$H$3:$H$40,0),5),VLOOKUP(C12,Horaires!$A$3:$E$60,5,))) -> 0.4479166667 | G12: =INDEX(Planning!$5:$5,MATCH('Solde d''heure collaborateur'!A12,Planning!$3:$3)) -> R | H12: =VLOOKUP(G12,Horaires!$A$3:$E$49,2,) -> Congé | I12: =IF(H12="vacances",INDEX(Horaires!$H$3:$L$42,MATCH('Solde d''heure collaborateur'!H$2,Horaires!$H$3:$H$40,0),4),IF(H12="maladie",INDEX(Horaires!$H$3:$L$42,MATCH('Solde d''heure collaborateur'!H$2,Horaires!$H$3:$H$40,0),5),VLOOKUP(G12,Horaires!$A$3:$E$60,5,))) -> 0 | K12: =INDEX(Planning!$6:$6,MATCH('Solde d''heure collaborateur'!A12,Planning!$3:$3)) -> M | L12: =VLOOKUP(K12,Horaires!$A$3:$E$49,2,) -> Maladie | M12: =IF(L12="vacances",INDEX(Horaires!$H$3:$L$42,MATCH('Solde d''heure collaborateur'!L$2,Horaires!$H$3:$H$40,0),4),IF(L12="maladie",INDEX(Horaires!$H$3:$L$42,MATCH('Solde d''heure collaborateur'!L$2,Horaires!$H$3:$H$40,0),5),VLOOKUP(K12,Horaires!$A$3:$E$60,5,))) -> 0.4375 | O12: =INDEX(Planning!$7:$7,MATCH('Solde d''heure collaborateur'!$A12,Planning!$3:$3)) -> vib1 | P12: =VLOOKUP(O12,Horaires!$A$3:$E$49,2,) -> Vibert | Q12: =IF(P12="vacances",INDEX(Horaires!$H$3:$L$42,MATCH('Solde d''heure collaborateur'!P$2,Horaires!$H$3:$H$40,0),4),IF(P12="maladie",INDEX(Horaires!$H$3:$L$42,MATCH('Solde d''heure collaborateur'!P$2,Horaires!$H$3:$H$40,0),5),VLOOKUP(O12,Horaires!$A$3:$E$60,5,))) -> 0.46875 | S12: =INDEX(Planning!$8:$8,MATCH('Solde d''heure collaborateur'!$A12,Planning!$3:$3)) -> onex1 | T12: =VLOOKUP(S12,Horaires!$A$3:$E$49,2,) -> Onex | U12: =IF(T12="vacances",INDEX(Horaires!$H$3:$L$42,MATCH('Solde d''heure collaborateur'!T$2,Horaires!$H$3:$H$40,0),4),IF(T12="maladie",INDEX(Horaires!$H$3:$L$42,MATCH('Solde d''heure collaborateur'!T$2,Horaires!$H$3:$H$40,0),5),VLOOKUP(S12,Horaires!$A$3:$E$60,5,))) -> 0.46875 | W12: =INDEX(Planning!$9:$9,MATCH('Solde d''heure collaborateur'!$A12,Planning!$3:$3)) -> onex1 | X12: =VLOOKUP(W12,Horaires!$A$3:$E$49,2,) -> Onex | Y12: =IF(X12="vacances",INDEX(Horaires!$H$3:$L$42,MATCH('Solde d''heure collaborateur'!X$2,Horaires!$H$3:$H$40,0),4),IF(X12="maladie",INDEX(Horaires!$H$3:$L$42,MATCH('Solde d''heure collaborateur'!X$2,Horaires!$H$3:$H$40,0),5),VLOOKUP(W12,Horaires!$A$3:$E$60,5,))) -> 0.46875 | AA12: =INDEX(Planning!$10:$10,MATCH('Solde d''heure collaborateur'!$A12,Planning!$3:$3)) -> R | AB12: =VLOOKUP(AA12,Horaires!$A$3:$E$49,2,) -> Congé | AC12: =IF(AB12="vacances",INDEX(Horaires!$H$3:$L$42,MATCH('Solde d''heure collaborateur'!AB$2,Horaires!$H$3:$H$40,0),4),IF(AB12="maladie",INDEX(Horaires!$H$3:$L$42,MATCH('Solde d''heure collaborateur'!AB$2,Horaires!$H$3:$H$40,0),5),VLOOKUP(AA12,Horaires!$A$3:$E$60,5,))) -> 0 | AE12: =INDEX(Planning!$11:$11,MATCH('Solde d''heure collaborateur'!$A12,Planning!$3:$3)) -> V | AF12: =VLOOKUP(AE12,Horaires!$A$3:$E$49,2,) -> Vacances | AG12: =IF(AF12="vacances",INDEX(Horaires!$H$3:$L$42,MATCH('Solde d''heure collaborateur'!AF$2,Horaires!$H$3:$H$40,0),4),IF(AF12="maladie",INDEX(Horaires!$H$3:$L$42,MATCH('Solde d''heure collaborateur'!AF$2,Horaires!$H$3:$H$40,0),5),VLOOKUP(AE12,Horaires!$A$3:$E$60,5,))) -> 0.35 | AI12: =INDEX(Planning!$12:$12,MATCH('Solde d''heure collaborateur'!$A12,Planning!$3:$3)) -> thon1 | AJ12: =VLOOKUP(AI12,Horaires!$A$3:$E$49,2,) -> Thonex | AK12: =IF(AJ12="vacances",INDEX(Horaires!$H$3:$L$42,MATCH('Solde d''heure collaborateur'!AJ$2,Horaires!$H$3:$H$40,0),4),IF(AJ12="maladie",INDEX(Horaires!$H$3:$L$42,MATCH('Solde d''heure collaborateur'!AJ$2,Horaires!$H$3:$H$40,0),5),VLOOKUP(AI12,Horaires!$A$3:$E$60,5,))) -> 0.4479166667 | AM12: =INDEX(Planning!$13:$13,MATCH('Solde d''heure collaborateur'!$A12,Planning!$3:$3)) -> plo1 | AN12: =VLOOKUP(AM12,Horaires!$A$3:$E$49,2,) -> Plan les Ouates | AO12: =IF(AN12="vacances",INDEX(Horaires!$H$3:$L$42,MATCH('Solde d''heure collaborateur'!AN$2,Horaires!$H$3:$H$40,0),4),IF(AN12="maladie",INDEX(Horaires!$H$3:$L$42,MATCH('Solde d''heure collaborateur'!AN$2,Horaires!$H$3:$H$40,0),5),VLOOKUP(AM12,Horaires!$A$3:$E$60,5,))) -> 0.46875 | AQ12: =INDEX(Planning!$14:$14,MATCH('Solde d''heure collaborateur'!$A12,Planning!$3:$3)) -> M | AR12: =VLOOKUP(AQ12,Horaires!$A$3:$E$49,2,) -> Maladie | AS12: =IF(AR12="vacances",INDEX(Horaires!$H$3:$L$42,MATCH('Solde d''heure collaborateur'!AR$2,Horaires!$H$3:$H$40,0),4),IF(AR12="maladie",INDEX(Horaires!$H$3:$L$42,MATCH('Solde d''heure collaborateur'!AR$2,Horaires!$H$3:$H$40,0),5),VLOOKUP(AQ12,Horaires!$A$3:$E$60,5,))) -> 0.4618055556 | AU12: =INDEX(Planning!$15:$15,MATCH('Solde d''heure collaborateur'!$A12,Planning!$3:$3)) -> nyon1 | AV12: =VLOOKUP(AU12,Horaires!$A$3:$E$49,2,) -> Nyon | AW12: =IF(AV12="vacances",INDEX(Horaires!$H$3:$L$42,MATCH('Solde d''heure collaborateur'!AV$2,Horaires!$H$3:$H$40,0),4),IF(AV12="maladie",INDEX(Horaires!$H$3:$L$42,MATCH('Solde d''heure collaborateur'!AV$2,Horaires!$H$3:$H$40,0),5),VLOOKUP(AU12,Horaires!$A$3:$E$60,5,))) -> 0.4479166667 | AY12: =INDEX(Planning!$16:$16,MATCH('Solde d''heure collaborateur'!$A12,Planning!$3:$3)) -> vid1 | AZ12: =VLOOKUP(AY12,Horaires!$A$3:$E$49,2,) -> Vidollet | BA12: =IF(AZ12="vacances",INDEX(Horaires!$H$3:$L$42,MATCH('Solde d''heure collaborateur'!AZ$2,Horaires!$H$3:$H$40,0),4),IF(AZ12="maladie",INDEX(Horaires!$H$3:$L$42,MATCH('Solde d''heure collaborateur'!AZ$2,Horaires!$H$3:$H$40,0),5),VLOOKUP(AY12,Horaires!$A$3:$E$60,5,))) -> 0.4479166667 | BC12: =INDEX(Planning!$17:$17,MATCH('Solde d''heure collaborateur'!$A12,Planning!$3:$3)) -> pom1 | BD12: =VLOOKUP(BC12,Horaires!$A$3:$E$49,2,) -> Pommier | BE12: =IF(BD12="vacances",INDEX(Horaires!$H$3:$L$42,MATCH('Solde d''heure collaborateur'!BD$2,Horaires!$H$3:$H$40,0),4),IF(BD12="maladie",INDEX(Horaires!$H$3:$L$42,MATCH('Solde d''heure collaborateur'!BD$2,Horaires!$H$3:$H$40,0),5),VLOOKUP(BC12,Horaires!$A$3:$E$60,5,))) -> 0.4479166667 | BG12: =INDEX(Planning!$18:$18,MATCH('Solde d''heure collaborateur'!$A12,Planning!$3:$3)) -> R | BH12: =VLOOKUP(BG12,Horaires!$A$3:$E$49,2,) -> Congé | BI12: =IF(BH12="vacances",INDEX(Horaires!$H$3:$L$42,MATCH('Solde d''heure collaborateur'!BH$2,Horaires!$H$3:$H$40,0),4),IF(BH12="maladie",INDEX(Horaires!$H$3:$L$42,MATCH('Solde d''heure collaborateur'!BH$2,Horaires!$H$3:$H$40,0),5),VLOOKUP(BG12,Horaires!$A$3:$E$60,5,))) -> 0 | BK12: =INDEX(Planning!$19:$19,MATCH('Solde d''heure collaborateur'!$A12,Planning!$3:$3)) -> R | BL12: =VLOOKUP(BK12,Horaires!$A$3:$E$49,2,) -> Congé | BM12: =IF(BL12="vacances",INDEX(Horaires!$H$3:$L$42,MATCH('Solde d''heure collaborateur'!BL$2,Horaires!$H$3:$H$40,0),4),IF(BL12="maladie",INDEX(Horaires!$H$3:$L$42,MATCH('Solde d''heure collaborateur'!BL$2,Horaires!$H$3:$H$40,0),5),VLOOKUP(BK12,Horaires!$A$3:$E$60,5,))) -> 0 | BO12: =INDEX(Planning!$20:$20,MATCH('Solde d''heure collaborateur'!$A12,Planning!$3:$3)) -> Aca1 | BP12: =VLOOKUP(BO12,Horaires!$A$3:$E$49,2,) -> Acacias | BQ12: =IF(BP12="vacances",INDEX(Horaires!$H$3:$L$42,MATCH('Solde d''heure collaborateur'!BP$2,Horaires!$H$3:$H$40,0),4),IF(BP12="maladie",INDEX(Horaires!$H$3:$L$42,MATCH('Solde d''heure collaborateur'!BP$2,Horaires!$H$3:$H$40,0),5),VLOOKUP(BO12,Horaires!$A$3:$E$60,5,))) -> 0.4479166667 | BS12: =INDEX(Planning!$21:$21,MATCH('Solde d''heure collaborateur'!$A12,Planning!$3:$3)) -> R | BT12: =VLOOKUP(BS12,Horaires!$A$3:$E$49,2,) -> Congé | BU12: =IF(BT12="vacances",INDEX(Horaires!$H$3:$L$42,MATCH('Solde d''heure collaborateur'!BT$2,Horaires!$H$3:$H$40,0),4),IF(BT12="maladie",INDEX(Horaires!$H$3:$L$42,MATCH('Solde d''heure collaborateur'!BT$2,Horaires!$H$3:$H$40,0),5),VLOOKUP(BS12,Horaires!$A$3:$E$60,5,))) -> 0 | BW12: =INDEX(Planning!$22:$22,MATCH('Solde d''heure collaborateur'!$A12,Planning!$3:$3)) -> ves1 | BX12: =VLOOKUP(BW12,Horaires!$A$3:$E$49,2,) -> Vesenaz | BY12: =IF(BX12="vacances",INDEX(Horaires!$H$3:$L$42,MATCH('Solde d''heure collaborateur'!BX$2,Horaires!$H$3:$H$40,0),4),IF(BX12="maladie",INDEX(Horaires!$H$3:$L$42,MATCH('Solde d''heure collaborateur'!BX$2,Horaires!$H$3:$H$40,0),5),VLOOKUP(BW12,Horaires!$A$3:$E$60,5,))) -> 0.4479166667 | CA12: =INDEX(Planning!$23:$23,MATCH('Solde d''heure collaborateur'!$A12,Planning!$3:$3)) -> R | CB12: =VLOOKUP(CA12,Horaires!$A$3:$E$49,2,) -> Congé | CC12: =IF(CB12="vacances",INDEX(Horaires!$H$3:$L$42,MATCH('Solde d''heure collaborateur'!CB$2,Horaires!$H$3:$H$40,0),4),IF(CB12="maladie",INDEX(Horaires!$H$3:$L$42,MATCH('Solde d''heure collaborateur'!CB$2,Horaires!$H$3:$H$40,0),5),VLOOKUP(CA12,Horaires!$A$3:$E$60,5,))) -> 0 | CE12: =INDEX(Planning!$24:$24,MATCH('Solde d''heure collaborateur'!$A12,Planning!$3:$3)) -> recup | CF12: =VLOOKUP(CE12,Horaires!$A$3:$E$49,2,) -> Récupération | CG12: =IF(CF12="vacances",INDEX(Horaires!$H$3:$L$42,MATCH('Solde d''heure collaborateur'!CF$2,Horaires!$H$3:$H$40,0),4),IF(CF12="maladie",INDEX(Horaires!$H$3:$L$42,MATCH('Solde d''heure collaborateur'!CF$2,Horaires!$H$3:$H$40,0),5),VLOOKUP(CE12,Horaires!$A$3:$E$60,5,))) -> 0 | CI12: =INDEX(Planning!$25:$25,MATCH('Solde d''heure collaborateur'!$A12,Planning!$3:$3)) -> X | CJ12: =VLOOKUP(CI12,Horaires!$A$3:$E$49,2,) -> XXX | CK12: =IF(CJ12="vacances",INDEX(Horaires!$H$3:$L$42,MATCH('Solde d''heure collaborateur'!CJ$2,Horaires!$H$3:$H$40,0),4),IF(CJ12="maladie",INDEX(Horaires!$H$3:$L$42,MATCH('Solde d''heure collaborateur'!CJ$2,Horaires!$H$3:$H$40,0),5),VLOOKUP(CI12,Horaires!$A$3:$E$60,5,))) -> 0 | CM12: =INDEX(Planning!$26:$26,MATCH('Solde d''heure collaborateur'!$A12,Planning!$3:$3)) -> R | CN12: =VLOOKUP(CM12,Horaires!$A$3:$E$49,2,) -> Congé | CO12: =IF(CN12="vacances",INDEX(Horaires!$H$3:$L$42,MATCH('Solde d''heure collaborateur'!CN$2,Horaires!$H$3:$H$40,0),4),IF(CN12="maladie",INDEX(Horaires!$H$3:$L$42,MATCH('Solde d''heure collaborateur'!CN$2,Horaires!$H$3:$H$40,0),5),VLOOKUP(CM12,Horaires!$A$3:$E$60,5,))) -> 0 | CQ12: =INDEX(Planning!$27:$27,MATCH('Solde d''heure collaborateur'!$A12,Planning!$3:$3)) -> vib1 | CR12: =VLOOKUP(CQ12,Horaires!$A$3:$E$49,2,) -> Vibert | CS12: =IF(CR12="vacances",INDEX(Horaires!$H$3:$L$42,MATCH('Solde d''heure collaborateur'!CR$2,Horaires!$H$3:$H$40,0),4),IF(CR12="maladie",INDEX(Horaires!$H$3:$L$42,MATCH('Solde d''heure collaborateur'!CR$2,Horaires!$H$3:$H$40,0),5),VLOOKUP(CQ12,Horaires!$A$3:$E$60,5,))) -> 0.46875 | CU12: =INDEX(Planning!$28:$28,MATCH('Solde d''heure collaborateur'!$A12,Planning!$3:$3)) -> tour1 | CV12: =VLOOKUP(CU12,Horaires!$A$3:$E$49,2,) -> Tourelle | CW12: =IF(CV12="vacances",INDEX(Horaires!$H$3:$L$42,MATCH('Solde d''heure collaborateur'!CV$2,Horaires!$H$3:$H$40,0),4),IF(CV12="maladie",INDEX(Horaires!$H$3:$L$42,MATCH('Solde d''heure collaborateur'!CV$2,Horaires!$H$3:$H$40,0),5),VLOOKUP(CU12,Horaires!$A$3:$E$60,5,))) -> 0.46875 | CY12: =INDEX(Planning!$29:$29,MATCH('Solde d''heure collaborateur'!$A12,Planning!$3:$3)) -> X | CZ12: =VLOOKUP(CY12,Horaires!$A$3:$E$49,2,) -> XXX | DA12: =IF(CZ12="vacances",INDEX(Horaires!$H$3:$L$42,MATCH('Solde d''heure collaborateur'!CZ$2,Horaires!$H$3:$H$40,0),4),IF(CZ12="maladie",INDEX(Horaires!$H$3:$L$42,MATCH('Solde d''heure collaborateur'!CZ$2,Horaires!$H$3:$H$40,0),5),VLOOKUP(CY12,Horaires!$A$3:$E$60,5,))) -> 0 | DC12: =INDEX(Planning!$30:$30,MATCH('Solde d''heure collaborateur'!$A12,Planning!$3:$3)) -> X | DD12: =VLOOKUP(DC12,Horaires!$A$3:$E$49,2,) -> XXX | DE12: =IF(DD12="vacances",INDEX(Horaires!$H$3:$L$42,MATCH('Solde d''heure collaborateur'!DD$2,Horaires!$H$3:$H$40,0),4),IF(DD12="maladie",INDEX(Horaires!$H$3:$L$42,MATCH('Solde d''heure collaborateur'!DD$2,Horaires!$H$3:$H$40,0),5),VLOOKUP(DC12,Horaires!$A$3:$E$60,5,))) -> 0 | DG12: =INDEX(Planning!$31:$31,MATCH('Solde d''heure collaborateur'!$A12,Planning!$3:$3)) -> X | DH12: =VLOOKUP(DG12,Horaires!$A$3:$E$49,2,) -> XXX | DI12: =IF(DH12="vacances",INDEX(Horaires!$H$3:$L$42,MATCH('Solde d''heure collaborateur'!DH$2,Horaires!$H$3:$H$40,0),4),IF(DH12="maladie",INDEX(Horaires!$H$3:$L$42,MATCH('Solde d''heure collaborateur'!DH$2,Horaires!$H$3:$H$40,0),5),VLOOKUP(DG12,Horaires!$A$3:$E$60,5,))) -> 0 | DK12: =INDEX(Planning!$32:$32,MATCH('Solde d''heure collaborateur'!$A12,Planning!$3:$3)) -> X | DL12: =VLOOKUP(DK12,Horaires!$A$3:$E$49,2,) -> XXX | DM12: =IF(DL12="vacances",INDEX(Horaires!$H$3:$L$42,MATCH('Solde d''heure collaborateur'!DL$2,Horaires!$H$3:$H$40,0),4),IF(DL12="maladie",INDEX(Horaires!$H$3:$L$42,MATCH('Solde d''heure collaborateur'!DL$2,Horaires!$H$3:$H$40,0),5),VLOOKUP(DK12,Horaires!$A$3:$E$60,5,))) -> 0 | DO12: =INDEX(Planning!$33:$33,MATCH('Solde d''heure collaborateur'!$A12,Planning!$3:$3)) -> X | DP12: =VLOOKUP(DO12,Horaires!$A$3:$E$49,2,) -> XXX | DQ12: =IF(DP12="vacances",INDEX(Horaires!$H$3:$L$42,MATCH('Solde d''heure collaborateur'!DP$2,Horaires!$H$3:$H$40,0),4),IF(DP12="maladie",INDEX(Horaires!$H$3:$L$42,MATCH('Solde d''heure collaborateur'!DP$2,Horaires!$H$3:$H$40,0),5),VLOOKUP(DO12,Horaires!$A$3:$E$60,5,))) -> 0 | DS12: =INDEX(Planning!$34:$34,MATCH('Solde d''heure collaborateur'!$A12,Planning!$3:$3)) -> X | DT12: =VLOOKUP(DS12,Horaires!$A$3:$E$49,2,) -> XXX | DU12: =IF(DT12="vacances",INDEX(Horaires!$H$3:$L$42,MATCH('Solde d''heure collaborateur'!DT$2,Horaires!$H$3:$H$40,0),4),IF(DT12="maladie",INDEX(Horaires!$H$3:$L$42,MATCH('Solde d''heure collaborateur'!DT$2,Horaires!$H$3:$H$40,0),5),VLOOKUP(DS12,Horaires!$A$3:$E$60,5,))) -> 0 | DW12: =INDEX(Planning!$35:$35,MATCH('Solde d''heure collaborateur'!$A12,Planning!$3:$3)) -> X | DX12: =VLOOKUP(DW12,Horaires!$A$3:$E$49,2,) -> XXX | DY12: =IF(DX12="vacances",INDEX(Horaires!$H$3:$L$42,MATCH('Solde d''heure collaborateur'!DX$2,Horaires!$H$3:$H$40,0),4),IF(DX12="maladie",INDEX(Horaires!$H$3:$L$42,MATCH('Solde d''heure collaborateur'!DX$2,Horaires!$H$3:$H$40,0),5),VLOOKUP(DW12,Horaires!$A$3:$E$60,5,))) -> 0
A13: =A12+1 -> 2013-11-12 | C13: =INDEX(Planning!$4:$4,MATCH('Solde d''heure collaborateur'!A13,Planning!$3:$3,0)) -> Nav1 | D13: =VLOOKUP(C13,Horaires!$A$3:$E$49,2,) -> Navigation | E13: =IF(D13="vacances",INDEX(Horaires!$H$3:$L$42,MATCH('Solde d''heure collaborateur'!D$2,Horaires!$H$3:$H$40,0),4),IF(D13="maladie",INDEX(Horaires!$H$3:$L$42,MATCH('Solde d''heure collaborateur'!D$2,Horaires!$H$3:$H$40,0),5),VLOOKUP(C13,Horaires!$A$3:$E$60,5,))) -> 0.4479166667 | G13: =INDEX(Planning!$5:$5,MATCH('Solde d''heure collaborateur'!A13,Planning!$3:$3)) -> Pom1 | H13: =VLOOKUP(G13,Horaires!$A$3:$E$49,2,) -> Pommier | I13: =IF(H13="vacances",INDEX(Horaires!$H$3:$L$42,MATCH('Solde d''heure collaborateur'!H$2,Horaires!$H$3:$H$40,0),4),IF(H13="maladie",INDEX(Horaires!$H$3:$L$42,MATCH('Solde d''heure collaborateur'!H$2,Horaires!$H$3:$H$40,0),5),VLOOKUP(G13,Horaires!$A$3:$E$60,5,))) -> 0.4479166667 | K13: =INDEX(Planning!$6:$6,MATCH('Solde d''heure collaborateur'!A13,Planning!$3:$3)) -> M | L13: =VLOOKUP(K13,Horaires!$A$3:$E$49,2,) -> Maladie | M13: =IF(L13="vacances",INDEX(Horaires!$H$3:$L$42,MATCH('Solde d''heure collaborateur'!L$2,Horaires!$H$3:$H$40,0),4),IF(L13="maladie",INDEX(Horaires!$H$3:$L$42,MATCH('Solde d''heure collaborateur'!L$2,Horaires!$H$3:$H$40,0),5),VLOOKUP(K13,Horaires!$A$3:$E$60,5,))) -> 0.4375 | O13: =INDEX(Planning!$7:$7,MATCH('Solde d''heure collaborateur'!$A13,Planning!$3:$3)) -> Vib1 | P13: =VLOOKUP(O13,Horaires!$A$3:$E$49,2,) -> Vibert | Q13: =IF(P13="vacances",INDEX(Horaires!$H$3:$L$42,MATCH('Solde d''heure collaborateur'!P$2,Horaires!$H$3:$H$40,0),4),IF(P13="maladie",INDEX(Horaires!$H$3:$L$42,MATCH('Solde d''heure collaborateur'!P$2,Horaires!$H$3:$H$40,0),5),VLOOKUP(O13,Horaires!$A$3:$E$60,5,))) -> 0.46875 | S13: =INDEX(Planning!$8:$8,MATCH('Solde d''heure collaborateur'!$A13,Planning!$3:$3)) -> Onex1 | T13: =VLOOKUP(S13,Horaires!$A$3:$E$49,2,) -> Onex | U13: =IF(T13="vacances",INDEX(Horaires!$H$3:$L$42,MATCH('Solde d''heure collaborateur'!T$2,Horaires!$H$3:$H$40,0),4),IF(T13="maladie",INDEX(Horaires!$H$3:$L$42,MATCH('Solde d''heure collaborateur'!T$2,Horaires!$H$3:$H$40,0),5),VLOOKUP(S13,Horaires!$A$3:$E$60,5,))) -> 0.46875 | W13: =INDEX(Planning!$9:$9,MATCH('Solde d''heure collaborateur'!$A13,Planning!$3:$3)) -> X | X13: =VLOOKUP(W13,Horaires!$A$3:$E$49,2,) -> XXX | Y13: =IF(X13="vacances",INDEX(Horaires!$H$3:$L$42,MATCH('Solde d''heure collaborateur'!X$2,Horaires!$H$3:$H$40,0),4),IF(X13="maladie",INDEX(Horaires!$H$3:$L$42,MATCH('Solde d''heure collaborateur'!X$2,Horaires!$H$3:$H$40,0),5),VLOOKUP(W13,Horaires!$A$3:$E$60,5,))) -> 0 | AA13: =INDEX(Planning!$10:$10,MATCH('Solde d''heure collaborateur'!$A13,Planning!$3:$3)) -> R | AB13: =VLOOKUP(AA13,Horaires!$A$3:$E$49,2,) -> Congé | AC13: =IF(AB13="vacances",INDEX(Horaires!$H$3:$L$42,MATCH('Solde d''heure collaborateur'!AB$2,Horaires!$H$3:$H$40,0),4),IF(AB13="maladie",INDEX(Horaires!$H$3:$L$42,MATCH('Solde d''heure collaborateur'!AB$2,Horaires!$H$3:$H$40,0),5),VLOOKUP(AA13,Horaires!$A$3:$E$60,5,))) -> 0 | AE13: =INDEX(Planning!$11:$11,MATCH('Solde d''heure collaborateur'!$A13,Planning!$3:$3)) -> V | AF13: =VLOOKUP(AE13,Horaires!$A$3:$E$49,2,) -> Vacances | AG13: =IF(AF13="vacances",INDEX(Horaires!$H$3:$L$42,MATCH('Solde d''heure collaborateur'!AF$2,Horaires!$H$3:$H$40,0),4),IF(AF13="maladie",INDEX(Horaires!$H$3:$L$42,MATCH('Solde d''heure collaborateur'!AF$2,Horaires!$H$3:$H$40,0),5),VLOOKUP(AE13,Horaires!$A$3:$E$60,5,))) -> 0.35 | AI13: =INDEX(Planning!$12:$12,MATCH('Solde d''heure collaborateur'!$A13,Planning!$3:$3)) -> Thon1 | AJ13: =VLOOKUP(AI13,Horaires!$A$3:$E$49,2,) -> Thonex | AK13: =IF(AJ13="vacances",INDEX(Horaires!$H$3:$L$42,MATCH('Solde d''heure collaborateur'!AJ$2,Horaires!$H$3:$H$40,0),4),IF(AJ13="maladie",INDEX(Horaires!$H$3:$L$42,MATCH('Solde d''heure collaborateur'!AJ$2,Horaires!$H$3:$H$40,0),5),VLOOKUP(AI13,Horaires!$A$3:$E$60,5,))) -> 0.4479166667 | AM13: =INDEX(Planning!$13:$13,MATCH('Solde d''heure collaborateur'!$A13,Planning!$3:$3)) -> plo1 | AN13: =VLOOKUP(AM13,Horaires!$A$3:$E$49,2,) -> Plan les Ouates | AO13: =IF(AN13="vacances",INDEX(Horaires!$H$3:$L$42,MATCH('Solde d''heure collaborateur'!AN$2,Horaires!$H$3:$H$40,0),4),IF(AN13="maladie",INDEX(Horaires!$H$3:$L$42,MATCH('Solde d''heure collaborateur'!AN$2,Horaires!$H$3:$H$40,0),5),VLOOKUP(AM13,Horaires!$A$3:$E$60,5,))) -> 0.46875 | AQ13: =INDEX(Planning!$14:$14,MATCH('Solde d''heure collaborateur'!$A13,Planning!$3:$3)) -> X | AR13: =VLOOKUP(AQ13,Horaires!$A$3:$E$49,2,) -> XXX | AS13: =IF(AR13="vacances",INDEX(Horaires!$H$3:$L$42,MATCH('Solde d''heure collaborateur'!AR$2,Horaires!$H$3:$H$40,0),4),IF(AR13="maladie",INDEX(Horaires!$H$3:$L$42,MATCH('Solde d''heure collaborateur'!AR$2,Horaires!$H$3:$H$40,0),5),VLOOKUP(AQ13,Horaires!$A$3:$E$60,5,))) -> 0 | AU13: =INDEX(Planning!$15:$15,MATCH('Solde d''heure collaborateur'!$A13,Planning!$3:$3)) -> Nyon1 | AV13: =VLOOKUP(AU13,Horaires!$A$3:$E$49,2,) -> Nyon | AW13: =IF(AV13="vacances",INDEX(Horaires!$H$3:$L$42,MATCH('Solde d''heure collaborateur'!AV$2,Horaires!$H$3:$H$40,0),4),IF(AV13="maladie",INDEX(Horaires!$H$3:$L$42,MATCH('Solde d''heure collaborateur'!AV$2,Horaires!$H$3:$H$40,0),5),VLOOKUP(AU13,Horaires!$A$3:$E$60,5,))) -> 0.4479166667 | AY13: =INDEX(Planning!$16:$16,MATCH('Solde d''heure collaborateur'!$A13,Planning!$3:$3)) -> Vid1 | AZ13: =VLOOKUP(AY13,Horaires!$A$3:$E$49,2,) -> Vidollet | BA13: =IF(AZ13="vacances",INDEX(Horaires!$H$3:$L$42,MATCH('Solde d''heure collaborateur'!AZ$2,Horaires!$H$3:$H$40,0),4),IF(AZ13="maladie",INDEX(Horaires!$H$3:$L$42,MATCH('Solde d''heure collaborateur'!AZ$2,Horaires!$H$3:$H$40,0),5),VLOOKUP(AY13,Horaires!$A$3:$E$60,5,))) -> 0.4479166667 | BC13: =INDEX(Planning!$17:$17,MATCH('Solde d''heure collaborateur'!$A13,Planning!$3:$3)) -> onex1 | BD13: =VLOOKUP(BC13,Horaires!$A$3:$E$49,2,) -> Onex | BE13: =IF(BD13="vacances",INDEX(Horaires!$H$3:$L$42,MATCH('Solde d''heure collaborateur'!BD$2,Horaires!$H$3:$H$40,0),4),IF(BD13="maladie",INDEX(Horaires!$H$3:$L$42,MATCH('Solde d''heure collaborateur'!BD$2,Horaires!$H$3:$H$40,0),5),VLOOKUP(BC13,Horaires!$A$3:$E$60,5,))) -> 0.46875 | BG13: =INDEX(Planning!$18:$18,MATCH('Solde d''heure collaborateur'!$A13,Planning!$3:$3)) -> R | BH13: =VLOOKUP(BG13,Horaires!$A$3:$E$49,2,) -> Congé | BI13: =IF(BH13="vacances",INDEX(Horaires!$H$3:$L$42,MATCH('Solde d''heure collaborateur'!BH$2,Horaires!$H$3:$H$40,0),4),IF(BH13="maladie",INDEX(Horaires!$H$3:$L$42,MATCH('Solde d''heure collaborateur'!BH$2,Horaires!$H$3:$H$40,0),5),VLOOKUP(BG13,Horaires!$A$3:$E$60,5,))) -> 0 | BK13: =INDEX(Planning!$19:$19,MATCH('Solde d''heure collaborateur'!$A13,Planning!$3:$3)) -> R | BL13: =VLOOKUP(BK13,Horaires!$A$3:$E$49,2,) -> Congé | BM13: =IF(BL13="vacances",INDEX(Horaires!$H$3:$L$42,MATCH('Solde d''heure collaborateur'!BL$2,Horaires!$H$3:$H$40,0),4),IF(BL13="maladie",INDEX(Horaires!$H$3:$L$42,MATCH('Solde d''heure collaborateur'!BL$2,Horaires!$H$3:$H$40,0),5),VLOOKUP(BK13,Horaires!$A$3:$E$60,5,))) -> 0 | BO13: =INDEX(Planning!$20:$20,MATCH('Solde d''heure collaborateur'!$A13,Planning!$3:$3)) -> Aca1 | BP13: =VLOOKUP(BO13,Horaires!$A$3:$E$49,2,) -> Acacias | BQ13: =IF(BP13="vacances",INDEX(Horaires!$H$3:$L$42,MATCH('Solde d''heure collaborateur'!BP$2,Horaires!$H$3:$H$40,0),4),IF(BP13="maladie",INDEX(Horaires!$H$3:$L$42,MATCH('Solde d''heure collaborateur'!BP$2,Horaires!$H$3:$H$40,0),5),VLOOKUP(BO13,Horaires!$A$3:$E$60,5,))) -> 0.4479166667 | BS13: =INDEX(Planning!$21:$21,MATCH('Solde d''heure collaborateur'!$A13,Planning!$3:$3)) -> R | BT13: =VLOOKUP(BS13,Horaires!$A$3:$E$49,2,) -> Congé | BU13: =IF(BT13="vacances",INDEX(Horaires!$H$3:$L$42,MATCH('Solde d''heure collaborateur'!BT$2,Horaires!$H$3:$H$40,0),4),IF(BT13="maladie",INDEX(Horaires!$H$3:$L$42,MATCH('Solde d''heure collaborateur'!BT$2,Horaires!$H$3:$H$40,0),5),VLOOKUP(BS13,Horaires!$A$3:$E$60,5,))) -> 0 | BW13: =INDEX(Planning!$22:$22,MATCH('Solde d''heure collaborateur'!$A13,Planning!$3:$3)) -> Ves1 | BX13: =VLOOKUP(BW13,Horaires!$A$3:$E$49,2,) -> Vesenaz | BY13: =IF(BX13="vacances",INDEX(Horaires!$H$3:$L$42,MATCH('Solde d''heure collaborateur'!BX$2,Horaires!$H$3:$H$40,0),4),IF(BX13="maladie",INDEX(Horaires!$H$3:$L$42,MATCH('Solde d''heure collaborateur'!BX$2,Horaires!$H$3:$H$40,0),5),VLOOKUP(BW13,Horaires!$A$3:$E$60,5,))) -> 0.4479166667 | CA13: =INDEX(Planning!$23:$23,MATCH('Solde d''heure collaborateur'!$A13,Planning!$3:$3)) -> R | CB13: =VLOOKUP(CA13,Horaires!$A$3:$E$49,2,) -> Congé | CC13: =IF(CB13="vacances",INDEX(Horaires!$H$3:$L$42,MATCH('Solde d''heure collaborateur'!CB$2,Horaires!$H$3:$H$40,0),4),IF(CB13="maladie",INDEX(Horaires!$H$3:$L$42,MATCH('Solde d''heure collaborateur'!CB$2,Horaires!$H$3:$H$40,0),5),VLOOKUP(CA13,Horaires!$A$3:$E$60,5,))) -> 0 | CE13: =INDEX(Planning!$24:$24,MATCH('Solde d''heure collaborateur'!$A13,Planning!$3:$3)) -> R | CF13: =VLOOKUP(CE13,Horaires!$A$3:$E$49,2,) -> Congé | CG13: =IF(CF13="vacances",INDEX(Horaires!$H$3:$L$42,MATCH('Solde d''heure collaborateur'!CF$2,Horaires!$H$3:$H$40,0),4),IF(CF13="maladie",INDEX(Horaires!$H$3:$L$42,MATCH('Solde d''heure collaborateur'!CF$2,Horaires!$H$3:$H$40,0),5),VLOOKUP(CE13,Horaires!$A$3:$E$60,5,))) -> 0 | CI13: =INDEX(Planning!$25:$25,MATCH('Solde d''heure collaborateur'!$A13,Planning!$3:$3)) -> X | CJ13: =VLOOKUP(CI13,Horaires!$A$3:$E$49,2,) -> XXX | CK13: =IF(CJ13="vacances",INDEX(Horaires!$H$3:$L$42,MATCH('Solde d''heure collaborateur'!CJ$2,Horaires!$H$3:$H$40,0),4),IF(CJ13="maladie",INDEX(Horaires!$H$3:$L$42,MATCH('Solde d''heure collaborateur'!CJ$2,Horaires!$H$3:$H$40,0),5),VLOOKUP(CI13,Horaires!$A$3:$E$60,5,))) -> 0 | CM13: =INDEX(Planning!$26:$26,MATCH('Solde d''heure collaborateur'!$A13,Planning!$3:$3)) -> R | CN13: =VLOOKUP(CM13,Horaires!$A$3:$E$49,2,) -> Congé | CO13: =IF(CN13="vacances",INDEX(Horaires!$H$3:$L$42,MATCH('Solde d''heure collaborateur'!CN$2,Horaires!$H$3:$H$40,0),4),IF(CN13="maladie",INDEX(Horaires!$H$3:$L$42,MATCH('Solde d''heure collaborateur'!CN$2,Horaires!$H$3:$H$40,0),5),VLOOKUP(CM13,Horaires!$A$3:$E$60,5,))) -> 0 | CQ13: =INDEX(Planning!$27:$27,MATCH('Solde d''heure collaborateur'!$A13,Planning!$3:$3)) -> Vib1 | CR13: =VLOOKUP(CQ13,Horaires!$A$3:$E$49,2,) -> Vibert | CS13: =IF(CR13="vacances",INDEX(Horaires!$H$3:$L$42,MATCH('Solde d''heure collaborateur'!CR$2,Horaires!$H$3:$H$40,0),4),IF(CR13="maladie",INDEX(Horaires!$H$3:$L$42,MATCH('Solde d''heure collaborateur'!CR$2,Horaires!$H$3:$H$40,0),5),VLOOKUP(CQ13,Horaires!$A$3:$E$60,5,))) -> 0.46875 | CU13: =INDEX(Planning!$28:$28,MATCH('Solde d''heure collaborateur'!$A13,Planning!$3:$3)) -> tour1 | CV13: =VLOOKUP(CU13,Horaires!$A$3:$E$49,2,) -> Tourelle | CW13: =IF(CV13="vacances",INDEX(Horaires!$H$3:$L$42,MATCH('Solde d''heure collaborateur'!CV$2,Horaires!$H$3:$H$40,0),4),IF(CV13="maladie",INDEX(Horaires!$H$3:$L$42,MATCH('Solde d''heure collaborateur'!CV$2,Horaires!$H$3:$H$40,0),5),VLOOKUP(CU13,Horaires!$A$3:$E$60,5,))) -> 0.46875 | CY13: =INDEX(Planning!$29:$29,MATCH('Solde d''heure collaborateur'!$A13,Planning!$3:$3)) -> X | CZ13: =VLOOKUP(CY13,Horaires!$A$3:$E$49,2,) -> XXX | DA13: =IF(CZ13="vacances",INDEX(Horaires!$H$3:$L$42,MATCH('Solde d''heure collaborateur'!CZ$2,Horaires!$H$3:$H$40,0),4),IF(CZ13="maladie",INDEX(Horaires!$H$3:$L$42,MATCH('Solde d''heure collaborateur'!CZ$2,Horaires!$H$3:$H$40,0),5),VLOOKUP(CY13,Horaires!$A$3:$E$60,5,))) -> 0 | DC13: =INDEX(Planning!$30:$30,MATCH('Solde d''heure collaborateur'!$A13,Planning!$3:$3)) -> X | DD13: =VLOOKUP(DC13,Horaires!$A$3:$E$49,2,) -> XXX | DE13: =IF(DD13="vacances",INDEX(Horaires!$H$3:$L$42,MATCH('Solde d''heure collaborateur'!DD$2,Horaires!$H$3:$H$40,0),4),IF(DD13="maladie",INDEX(Horaires!$H$3:$L$42,MATCH('Solde d''heure collaborateur'!DD$2,Horaires!$H$3:$H$40,0),5),VLOOKUP(DC13,Horaires!$A$3:$E$60,5,))) -> 0 | DG13: =INDEX(Planning!$31:$31,MATCH('Solde d''heure collaborateur'!$A13,Planning!$3:$3)) -> X | DH13: =VLOOKUP(DG13,Horaires!$A$3:$E$49,2,) -> XXX | DI13: =IF(DH13="vacances",INDEX(Horaires!$H$3:$L$42,MATCH('Solde d''heure collaborateur'!DH$2,Horaires!$H$3:$H$40,0),4),IF(DH13="maladie",INDEX(Horaires!$H$3:$L$42,MATCH('Solde d''heure collaborateur'!DH$2,Horaires!$H$3:$H$40,0),5),VLOOKUP(DG13,Horaires!$A$3:$E$60,5,))) -> 0 | DK13: =INDEX(Planning!$32:$32,MATCH('Solde d''heure collaborateur'!$A13,Planning!$3:$3)) -> X | DL13: =VLOOKUP(DK13,Horaires!$A$3:$E$49,2,) -> XXX | DM13: =IF(DL13="vacances",INDEX(Horaires!$H$3:$L$42,MATCH('Solde d''heure collaborateur'!DL$2,Horaires!$H$3:$H$40,0),4),IF(DL13="maladie",INDEX(Horaires!$H$3:$L$42,MATCH('Solde d''heure collaborateur'!DL$2,Horaires!$H$3:$H$40,0),5),VLOOKUP(DK13,Horaires!$A$3:$E$60,5,))) -> 0 | DO13: =INDEX(Planning!$33:$33,MATCH('Solde d''heure collaborateur'!$A13,Planning!$3:$3)) -> X | DP13: =VLOOKUP(DO13,Horaires!$A$3:$E$49,2,) -> XXX | DQ13: =IF(DP13="vacances",INDEX(Horaires!$H$3:$L$42,MATCH('Solde d''heure collaborateur'!DP$2,Horaires!$H$3:$H$40,0),4),IF(DP13="maladie",INDEX(Horaires!$H$3:$L$42,MATCH('Solde d''heure collaborateur'!DP$2,Horaires!$H$3:$H$40,0),5),VLOOKUP(DO13,Horaires!$A$3:$E$60,5,))) -> 0 | DS13: =INDEX(Planning!$34:$34,MATCH('Solde d''heure collaborateur'!$A13,Planning!$3:$3)) -> X | DT13: =VLOOKUP(DS13,Horaires!$A$3:$E$49,2,) -> XXX | DU13: =IF(DT13="vacances",INDEX(Horaires!$H$3:$L$42,MATCH('Solde d''heure collaborateur'!DT$2,Horaires!$H$3:$H$40,0),4),IF(DT13="maladie",INDEX(Horaires!$H$3:$L$42,MATCH('Solde d''heure collaborateur'!DT$2,Horaires!$H$3:$H$40,0),5),VLOOKUP(DS13,Horaires!$A$3:$E$60,5,))) -> 0 | DW13: =INDEX(Planning!$35:$35,MATCH('Solde d''heure collaborateur'!$A13,Planning!$3:$3)) -> X | DX13: =VLOOKUP(DW13,Horaires!$A$3:$E$49,2,) -> XXX | DY13: =IF(DX13="vacances",INDEX(Horaires!$H$3:$L$42,MATCH('Solde d''heure collaborateur'!DX$2,Horaires!$H$3:$H$40,0),4),IF(DX13="maladie",INDEX(Horaires!$H$3:$L$42,MATCH('Solde d''heure collaborateur'!DX$2,Horaires!$H$3:$H$40,0),5),VLOOKUP(DW13,Horaires!$A$3:$E$60,5,))) -> 0
A14: =A13+1 -> 2013-11-13 | C14: =INDEX(Planning!$4:$4,MATCH('Solde d''heure collaborateur'!A14,Planning!$3:$3,0)) -> Nav1 | D14: =VLOOKUP(C14,Horaires!$A$3:$E$49,2,) -> Navigation | E14: =IF(D14="vacances",INDEX(Horaires!$H$3:$L$42,MATCH('Solde d''heure collaborateur'!D$2,Horaires!$H$3:$H$40,0),4),IF(D14="maladie",INDEX(Horaires!$H$3:$L$42,MATCH('Solde d''heure collaborateur'!D$2,Horaires!$H$3:$H$40,0),5),VLOOKUP(C14,Horaires!$A$3:$E$60,5,))) -> 0.4479166667 | G14: =INDEX(Planning!$5:$5,MATCH('Solde d''heure collaborateur'!A14,Planning!$3:$3)) -> Pom1 | H14: =VLOOKUP(G14,Horaires!$A$3:$E$49,2,) -> Pommier | I14: =IF(H14="vacances",INDEX(Horaires!$H$3:$L$42,MATCH('Solde d''heure collaborateur'!H$2,Horaires!$H$3:$H$40,0),4),IF(H14="maladie",INDEX(Horaires!$H$3:$L$42,MATCH('Solde d''heure collaborateur'!H$2,Horaires!$H$3:$H$40,0),5),VLOOKUP(G14,Horaires!$A$3:$E$60,5,))) -> 0.4479166667 | K14: =INDEX(Planning!$6:$6,MATCH('Solde d''heure collaborateur'!A14,Planning!$3:$3)) -> M | L14: =VLOOKUP(K14,Horaires!$A$3:$E$49,2,) -> Maladie | M14: =IF(L14="vacances",INDEX(Horaires!$H$3:$L$42,MATCH('Solde d''heure collaborateur'!L$2,Horaires!$H$3:$H$40,0),4),IF(L14="maladie",INDEX(Horaires!$H$3:$L$42,MATCH('Solde d''heure collaborateur'!L$2,Horaires!$H$3:$H$40,0),5),VLOOKUP(K14,Horaires!$A$3:$E$60,5,))) -> 0.4375 | O14: =INDEX(Planning!$7:$7,MATCH('Solde d''heure collaborateur'!$A14,Planning!$3:$3)) -> X | P14: =VLOOKUP(O14,Horaires!$A$3:$E$49,2,) -> XXX | Q14: =IF(P14="vacances",INDEX(Horaires!$H$3:$L$42,MATCH('Solde d''heure collaborateur'!P$2,Horaires!$H$3:$H$40,0),4),IF(P14="maladie",INDEX(Horaires!$H$3:$L$42,MATCH('Solde d''heure collaborateur'!P$2,Horaires!$H$3:$H$40,0),5),VLOOKUP(O14,Horaires!$A$3:$E$60,5,))) -> 0 | S14: =INDEX(Planning!$8:$8,MATCH('Solde d''heure collaborateur'!$A14,Planning!$3:$3)) -> R | T14: =VLOOKUP(S14,Horaires!$A$3:$E$49,2,) -> Congé | U14: =IF(T14="vacances",INDEX(Horaires!$H$3:$L$42,MATCH('Solde d''heure collaborateur'!T$2,Horaires!$H$3:$H$40,0),4),IF(T14="maladie",INDEX(Horaires!$H$3:$L$42,MATCH('Solde d''heure collaborateur'!T$2,Horaires!$H$3:$H$40,0),5),VLOOKUP(S14,Horaires!$A$3:$E$60,5,))) -> 0 | W14: =INDEX(Planning!$9:$9,MATCH('Solde d''heure collaborateur'!$A14,Planning!$3:$3)) -> Onex1 | X14: =VLOOKUP(W14,Horaires!$A$3:$E$49,2,) -> Onex | Y14: =IF(X14="vacances",INDEX(Horaires!$H$3:$L$42,MATCH('Solde d''heure collaborateur'!X$2,Horaires!$H$3:$H$40,0),4),IF(X14="maladie",INDEX(Horaires!$H$3:$L$42,MATCH('Solde d''heure collaborateur'!X$2,Horaires!$H$3:$H$40,0),5),VLOOKUP(W14,Horaires!$A$3:$E$60,5,))) -> 0.46875 | AA14: =INDEX(Planning!$10:$10,MATCH('Solde d''heure collaborateur'!$A14,Planning!$3:$3)) -> Onex1 | AB14: =VLOOKUP(AA14,Horaires!$A$3:$E$49,2,) -> Onex | AC14: =IF(AB14="vacances",INDEX(Horaires!$H$3:$L$42,MATCH('Solde d''heure collaborateur'!AB$2,Horaires!$H$3:$H$40,0),4),IF(AB14="maladie",INDEX(Horaires!$H$3:$L$42,MATCH('Solde d''heure collaborateur'!AB$2,Horaires!$H$3:$H$40,0),5),VLOOKUP(AA14,Horaires!$A$3:$E$60,5,))) -> 0.46875 | AE14: =INDEX(Planning!$11:$11,MATCH('Solde d''heure collaborateur'!$A14,Planning!$3:$3)) -> V | AF14: =VLOOKUP(AE14,Horaires!$A$3:$E$49,2,) -> Vacances | AG14: =IF(AF14="vacances",INDEX(Horaires!$H$3:$L$42,MATCH('Solde d''heure collaborateur'!AF$2,Horaires!$H$3:$H$40,0),4),IF(AF14="maladie",INDEX(Horaires!$H$3:$L$42,MATCH('Solde d''heure collaborateur'!AF$2,Horaires!$H$3:$H$40,0),5),VLOOKUP(AE14,Horaires!$A$3:$E$60,5,))) -> 0.35 | AI14: =INDEX(Planning!$12:$12,MATCH('Solde d''heure collaborateur'!$A14,Planning!$3:$3)) -> Thon1 | AJ14: =VLOOKUP(AI14,Horaires!$A$3:$E$49,2,) -> Thonex | AK14: =IF(AJ14="vacances",INDEX(Horaires!$H$3:$L$42,MATCH('Solde d''heure collaborateur'!AJ$2,Horaires!$H$3:$H$40,0),4),IF(AJ14="maladie",INDEX(Horaires!$H$3:$L$42,MATCH('Solde d''heure collaborateur'!AJ$2,Horaires!$H$3:$H$40,0),5),VLOOKUP(AI14,Horaires!$A$3:$E$60,5,))) -> 0.4479166667 | AM14: =INDEX(Planning!$13:$13,MATCH('Solde d''heure collaborateur'!$A14,Planning!$3:$3)) -> R | AN14: =VLOOKUP(AM14,Horaires!$A$3:$E$49,2,) -> Congé | AO14: =IF(AN14="vacances",INDEX(Horaires!$H$3:$L$42,MATCH('Solde d''heure collaborateur'!AN$2,Horaires!$H$3:$H$40,0),4),IF(AN14="maladie",INDEX(Horaires!$H$3:$L$42,MATCH('Solde d''heure collaborateur'!AN$2,Horaires!$H$3:$H$40,0),5),VLOOKUP(AM14,Horaires!$A$3:$E$60,5,))) -> 0 | AQ14: =INDEX(Planning!$14:$14,MATCH('Solde d''heure collaborateur'!$A14,Planning!$3:$3)) -> X | AR14: =VLOOKUP(AQ14,Horaires!$A$3:$E$49,2,) -> XXX | AS14: =IF(AR14="vacances",INDEX(Horaires!$H$3:$L$42,MATCH('Solde d''heure collaborateur'!AR$2,Horaires!$H$3:$H$40,0),4),IF(AR14="maladie",INDEX(Horaires!$H$3:$L$42,MATCH('Solde d''heure collaborateur'!AR$2,Horaires!$H$3:$H$40,0),5),VLOOKUP(AQ14,Horaires!$A$3:$E$60,5,))) -> 0 | AU14: =INDEX(Planning!$15:$15,MATCH('Solde d''heure collaborateur'!$A14,Planning!$3:$3)) -> Nyon1 | AV14: =VLOOKUP(AU14,Horaires!$A$3:$E$49,2,) -> Nyon | AW14: =IF(AV14="vacances",INDEX(Horaires!$H$3:$L$42,MATCH('Solde d''heure collaborateur'!AV$2,Horaires!$H$3:$H$40,0),4),IF(AV14="maladie",INDEX(Horaires!$H$3:$L$42,MATCH('Solde d''heure collaborateur'!AV$2,Horaires!$H$3:$H$40,0),5),VLOOKUP(AU14,Horaires!$A$3:$E$60,5,))) -> 0.4479166667 | AY14: =INDEX(Planning!$16:$16,MATCH('Solde d''heure collaborateur'!$A14,Planning!$3:$3)) -> R | AZ14: =VLOOKUP(AY14,Horaires!$A$3:$E$49,2,) -> Congé | BA14: =IF(AZ14="vacances",INDEX(Horaires!$H$3:$L$42,MATCH('Solde d''heure collaborateur'!AZ$2,Horaires!$H$3:$H$40,0),4),IF(AZ14="maladie",INDEX(Horaires!$H$3:$L$42,MATCH('Solde d''heure collaborateur'!AZ$2,Horaires!$H$3:$H$40,0),5),VLOOKUP(AY14,Horaires!$A$3:$E$60,5,))) -> 0 | BC14: =INDEX(Planning!$17:$17,MATCH('Solde d''heure collaborateur'!$A14,Planning!$3:$3)) -> R | BD14: =VLOOKUP(BC14,Horaires!$A$3:$E$49,2,) -> Congé | BE14: =IF(BD14="vacances",INDEX(Horaires!$H$3:$L$42,MATCH('Solde d''heure collaborateur'!BD$2,Horaires!$H$3:$H$40,0),4),IF(BD14="maladie",INDEX(Horaires!$H$3:$L$42,MATCH('Solde d''heure collaborateur'!BD$2,Horaires!$H$3:$H$40,0),5),VLOOKUP(BC14,Horaires!$A$3:$E$60,5,))) -> 0 | BG14: =INDEX(Planning!$18:$18,MATCH('Solde d''heure collaborateur'!$A14,Planning!$3:$3)) -> Vib1 | BH14: =VLOOKUP(BG14,Horaires!$A$3:$E$49,2,) -> Vibert | BI14: =IF(BH14="vacances",INDEX(Horaires!$H$3:$L$42,MATCH('Solde d''heure collaborateur'!BH$2,Horaires!$H$3:$H$40,0),4),IF(BH14="maladie",INDEX(Horaires!$H$3:$L$42,MATCH('Solde d''heure collaborateur'!BH$2,Horaires!$H$3:$H$40,0),5),VLOOKUP(BG14,Horaires!$A$3:$E$60,5,))) -> 0.46875 | BK14: =INDEX(Planning!$19:$19,MATCH('Solde d''heure collaborateur'!$A14,Planning!$3:$3)) -> Vib1 | BL14: =VLOOKUP(BK14,Horaires!$A$3:$E$49,2,) -> Vibert | BM14: =IF(BL14="vacances",INDEX(Horaires!$H$3:$L$42,MATCH('Solde d''heure collaborateur'!BL$2,Horaires!$H$3:$H$40,0),4),IF(BL14="maladie",INDEX(Horaires!$H$3:$L$42,MATCH('Solde d''heure collaborateur'!BL$2,Horaires!$H$3:$H$40,0),5),VLOOKUP(BK14,Horaires!$A$3:$E$60,5,))) -> 0.46875 | BO14: =INDEX(Planning!$20:$20,MATCH('Solde d''heure collaborateur'!$A14,Planning!$3:$3)) -> Aca1 | BP14: =VLOOKUP(BO14,Horaires!$A$3:$E$49,2,) -> Acacias | BQ14: =IF(BP14="vacances",INDEX(Horaires!$H$3:$L$42,MATCH('Solde d''heure collaborateur'!BP$2,Horaires!$H$3:$H$40,0),4),IF(BP14="maladie",INDEX(Horaires!$H$3:$L$42,MATCH('Solde d''heure collaborateur'!BP$2,Horaires!$H$3:$H$40,0),5),VLOOKUP(BO14,Horaires!$A$3:$E$60,5,))) -> 0.4479166667 | BS14: =INDEX(Planning!$21:$21,MATCH('Solde d''heure collaborateur'!$A14,Planning!$3:$3)) -> Ves1 | BT14: =VLOOKUP(BS14,Horaires!$A$3:$E$49,2,) -> Vesenaz | BU14: =IF(BT14="vacances",INDEX(Horaires!$H$3:$L$42,MATCH('Solde d''heure collaborateur'!BT$2,Horaires!$H$3:$H$40,0),4),IF(BT14="maladie",INDEX(Horaires!$H$3:$L$42,MATCH('Solde d''heure collaborateur'!BT$2,Horaires!$H$3:$H$40,0),5),VLOOKUP(BS14,Horaires!$A$3:$E$60,5,))) -> 0.4479166667 | BW14: =INDEX(Planning!$22:$22,MATCH('Solde d''heure collaborateur'!$A14,Planning!$3:$3)) -> X | BX14: =VLOOKUP(BW14,Horaires!$A$3:$E$49,2,) -> XXX | BY14: =IF(BX14="vacances",INDEX(Horaires!$H$3:$L$42,MATCH('Solde d''heure collaborateur'!BX$2,Horaires!$H$3:$H$40,0),4),IF(BX14="maladie",INDEX(Horaires!$H$3:$L$42,MATCH('Solde d''heure collaborateur'!BX$2,Horaires!$H$3:$H$40,0),5),VLOOKUP(BW14,Horaires!$A$3:$E$60,5,))) -> 0 | CA14: =INDEX(Planning!$23:$23,MATCH('Solde d''heure collaborateur'!$A14,Planning!$3:$3)) -> Plo1 | CB14: =VLOOKUP(CA14,Horaires!$A$3:$E$49,2,) -> Plan les Ouates | CC14: =IF(CB14="vacances",INDEX(Horaires!$H$3:$L$42,MATCH('Solde d''heure collaborateur'!CB$2,Horaires!$H$3:$H$40,0),4),IF(CB14="maladie",INDEX(Horaires!$H$3:$L$42,MATCH('Solde d''heure collaborateur'!CB$2,Horaires!$H$3:$H$40,0),5),VLOOKUP(CA14,Horaires!$A$3:$E$60,5,))) -> 0.46875 | CE14: =INDEX(Planning!$24:$24,MATCH('Solde d''heure collaborateur'!$A14,Planning!$3:$3)) -> R | CF14: =VLOOKUP(CE14,Horaires!$A$3:$E$49,2,) -> Congé | CG14: =IF(CF14="vacances",INDEX(Horaires!$H$3:$L$42,MATCH('Solde d''heure collaborateur'!CF$2,Horaires!$H$3:$H$40,0),4),IF(CF14="maladie",INDEX(Horaires!$H$3:$L$42,MATCH('Solde d''heure collaborateur'!CF$2,Horaires!$H$3:$H$40,0),5),VLOOKUP(CE14,Horaires!$A$3:$E$60,5,))) -> 0 | CI14: =INDEX(Planning!$25:$25,MATCH('Solde d''heure collaborateur'!$A14,Planning!$3:$3)) -> X | CJ14: =VLOOKUP(CI14,Horaires!$A$3:$E$49,2,) -> XXX | CK14: =IF(CJ14="vacances",INDEX(Horaires!$H$3:$L$42,MATCH('Solde d''heure collaborateur'!CJ$2,Horaires!$H$3:$H$40,0),4),IF(CJ14="maladie",INDEX(Horaires!$H$3:$L$42,MATCH('Solde d''heure collaborateur'!CJ$2,Horaires!$H$3:$H$40,0),5),VLOOKUP(CI14,Horaires!$A$3:$E$60,5,))) -> 0 | CM14: =INDEX(Planning!$26:$26,MATCH('Solde d''heure collaborateur'!$A14,Planning!$3:$3)) -> Vid1 | CN14: =VLOOKUP(CM14,Horaires!$A$3:$E$49,2,) -> Vidollet | CO14: =IF(CN14="vacances",INDEX(Horaires!$H$3:$L$42,MATCH('Solde d''heure collaborateur'!CN$2,Horaires!$H$3:$H$40,0),4),IF(CN14="maladie",INDEX(Horaires!$H$3:$L$42,MATCH('Solde d''heure collaborateur'!CN$2,Horaires!$H$3:$H$40,0),5),VLOOKUP(CM14,Horaires!$A$3:$E$60,5,))) -> 0.4479166667 | CQ14: =INDEX(Planning!$27:$27,MATCH('Solde d''heure collaborateur'!$A14,Planning!$3:$3)) -> R | CR14: =VLOOKUP(CQ14,Horaires!$A$3:$E$49,2,) -> Congé | CS14: =IF(CR14="vacances",INDEX(Horaires!$H$3:$L$42,MATCH('Solde d''heure collaborateur'!CR$2,Horaires!$H$3:$H$40,0),4),IF(CR14="maladie",INDEX(Horaires!$H$3:$L$42,MATCH('Solde d''heure collaborateur'!CR$2,Horaires!$H$3:$H$40,0),5),VLOOKUP(CQ14,Horaires!$A$3:$E$60,5,))) -> 0 | CU14: =INDEX(Planning!$28:$28,MATCH('Solde d''heure collaborateur'!$A14,Planning!$3:$3)) -> tour1 | CV14: =VLOOKUP(CU14,Horaires!$A$3:$E$49,2,) -> Tourelle | CW14: =IF(CV14="vacances",INDEX(Horaires!$H$3:$L$42,MATCH('Solde d''heure collaborateur'!CV$2,Horaires!$H$3:$H$40,0),4),IF(CV14="maladie",INDEX(Horaires!$H$3:$L$42,MATCH('Solde d''heure collaborateur'!CV$2,Horaires!$H$3:$H$40,0),5),VLOOKUP(CU14,Horaires!$A$3:$E$60,5,))) -> 0.46875 | CY14: =INDEX(Planning!$29:$29,MATCH('Solde d''heure collaborateur'!$A14,Planning!$3:$3)) -> X | CZ14: =VLOOKUP(CY14,Horaires!$A$3:$E$49,2,) -> XXX | DA14: =IF(CZ14="vacances",INDEX(Horaires!$H$3:$L$42,MATCH('Solde d''heure collaborateur'!CZ$2,Horaires!$H$3:$H$40,0),4),IF(CZ14="maladie",INDEX(Horaires!$H$3:$L$42,MATCH('Solde d''heure collaborateur'!CZ$2,Horaires!$H$3:$H$40,0),5),VLOOKUP(CY14,Horaires!$A$3:$E$60,5,))) -> 0 | DC14: =INDEX(Planning!$30:$30,MATCH('Solde d''heure collaborateur'!$A14,Planning!$3:$3)) -> X | DD14: =VLOOKUP(DC14,Horaires!$A$3:$E$49,2,) -> XXX | DE14: =IF(DD14="vacances",INDEX(Horaires!$H$3:$L$42,MATCH('Solde d''heure collaborateur'!DD$2,Horaires!$H$3:$H$40,0),4),IF(DD14="maladie",INDEX(Horaires!$H$3:$L$42,MATCH('Solde d''heure collaborateur'!DD$2,Horaires!$H$3:$H$40,0),5),VLOOKUP(DC14,Horaires!$A$3:$E$60,5,))) -> 0 | DG14: =INDEX(Planning!$31:$31,MATCH('Solde d''heure collaborateur'!$A14,Planning!$3:$3)) -> X | DH14: =VLOOKUP(DG14,Horaires!$A$3:$E$49,2,) -> XXX | DI14: =IF(DH14="vacances",INDEX(Horaires!$H$3:$L$42,MATCH('Solde d''heure collaborateur'!DH$2,Horaires!$H$3:$H$40,0),4),IF(DH14="maladie",INDEX(Horaires!$H$3:$L$42,MATCH('Solde d''heure collaborateur'!DH$2,Horaires!$H$3:$H$40,0),5),VLOOKUP(DG14,Horaires!$A$3:$E$60,5,))) -> 0 | DK14: =INDEX(Planning!$32:$32,MATCH('Solde d''heure collaborateur'!$A14,Planning!$3:$3)) -> X | DL14: =VLOOKUP(DK14,Horaires!$A$3:$E$49,2,) -> XXX | DM14: =IF(DL14="vacances",INDEX(Horaires!$H$3:$L$42,MATCH('Solde d''heure collaborateur'!DL$2,Horaires!$H$3:$H$40,0),4),IF(DL14="maladie",INDEX(Horaires!$H$3:$L$42,MATCH('Solde d''heure collaborateur'!DL$2,Horaires!$H$3:$H$40,0),5),VLOOKUP(DK14,Horaires!$A$3:$E$60,5,))) -> 0 | DO14: =INDEX(Planning!$33:$33,MATCH('Solde d''heure collaborateur'!$A14,Planning!$3:$3)) -> X | DP14: =VLOOKUP(DO14,Horaires!$A$3:$E$49,2,) -> XXX | DQ14: =IF(DP14="vacances",INDEX(Horaires!$H$3:$L$42,MATCH('Solde d''heure collaborateur'!DP$2,Horaires!$H$3:$H$40,0),4),IF(DP14="maladie",INDEX(Horaires!$H$3:$L$42,MATCH('Solde d''heure collaborateur'!DP$2,Horaires!$H$3:$H$40,0),5),VLOOKUP(DO14,Horaires!$A$3:$E$60,5,))) -> 0 | DS14: =INDEX(Planning!$34:$34,MATCH('Solde d''heure collaborateur'!$A14,Planning!$3:$3)) -> X | DT14: =VLOOKUP(DS14,Horaires!$A$3:$E$49,2,) -> XXX | DU14: =IF(DT14="vacances",INDEX(Horaires!$H$3:$L$42,MATCH('Solde d''heure collaborateur'!DT$2,Horaires!$H$3:$H$40,0),4),IF(DT14="maladie",INDEX(Horaires!$H$3:$L$42,MATCH('Solde d''heure collaborateur'!DT$2,Horaires!$H$3:$H$40,0),5),VLOOKUP(DS14,Horaires!$A$3:$E$60,5,))) -> 0 | DW14: =INDEX(Planning!$35:$35,MATCH('Solde d''heure collaborateur'!$A14,Planning!$3:$3)) -> X | DX14: =VLOOKUP(DW14,Horaires!$A$3:$E$49,2,) -> XXX | DY14: =IF(DX14="vacances",INDEX(Horaires!$H$3:$L$42,MATCH('Solde d''heure collaborateur'!DX$2,Horaires!$H$3:$H$40,0),4),IF(DX14="maladie",INDEX(Horaires!$H$3:$L$42,MATCH('Solde d''heure collaborateur'!DX$2,Horaires!$H$3:$H$40,0),5),VLOOKUP(DW14,Horaires!$A$3:$E$60,5,))) -> 0
A15: =A14+1 -> 2013-11-14 | C15: =INDEX(Planning!$4:$4,MATCH('Solde d''heure collaborateur'!A15,Planning!$3:$3,0)) -> Nav2 | D15: =VLOOKUP(C15,Horaires!$A$3:$E$49,2,) -> Navigation | E15: =IF(D15="vacances",INDEX(Horaires!$H$3:$L$42,MATCH('Solde d''heure collaborateur'!D$2,Horaires!$H$3:$H$40,0),4),IF(D15="maladie",INDEX(Horaires!$H$3:$L$42,MATCH('Solde d''heure collaborateur'!D$2,Horaires!$H$3:$H$40,0),5),VLOOKUP(C15,Horaires!$A$3:$E$60,5,))) -> 0.46875 | G15: =INDEX(Planning!$5:$5,MATCH('Solde d''heure collaborateur'!A15,Planning!$3:$3)) -> Pom2 | H15: =VLOOKUP(G15,Horaires!$A$3:$E$49,2,) -> Pommier | I15: =IF(H15="vacances",INDEX(Horaires!$H$3:$L$42,MATCH('Solde d''heure collaborateur'!H$2,Horaires!$H$3:$H$40,0),4),IF(H15="maladie",INDEX(Horaires!$H$3:$L$42,MATCH('Solde d''heure collaborateur'!H$2,Horaires!$H$3:$H$40,0),5),VLOOKUP(G15,Horaires!$A$3:$E$60,5,))) -> 0.46875 | K15: =INDEX(Planning!$6:$6,MATCH('Solde d''heure collaborateur'!A15,Planning!$3:$3)) -> M | L15: =VLOOKUP(K15,Horaires!$A$3:$E$49,2,) -> Maladie | M15: =IF(L15="vacances",INDEX(Horaires!$H$3:$L$42,MATCH('Solde d''heure collaborateur'!L$2,Horaires!$H$3:$H$40,0),4),IF(L15="maladie",INDEX(Horaires!$H$3:$L$42,MATCH('Solde d''heure collaborateur'!L$2,Horaires!$H$3:$H$40,0),5),VLOOKUP(K15,Horaires!$A$3:$E$60,5,))) -> 0.4375 | O15: =INDEX(Planning!$7:$7,MATCH('Solde d''heure collaborateur'!$A15,Planning!$3:$3)) -> X | P15: =VLOOKUP(O15,Horaires!$A$3:$E$49,2,) -> XXX | Q15: =IF(P15="vacances",INDEX(Horaires!$H$3:$L$42,MATCH('Solde d''heure collaborateur'!P$2,Horaires!$H$3:$H$40,0),4),IF(P15="maladie",INDEX(Horaires!$H$3:$L$42,MATCH('Solde d''heure collaborateur'!P$2,Horaires!$H$3:$H$40,0),5),VLOOKUP(O15,Horaires!$A$3:$E$60,5,))) -> 0 | S15: =INDEX(Planning!$8:$8,MATCH('Solde d''heure collaborateur'!$A15,Planning!$3:$3)) -> R | T15: =VLOOKUP(S15,Horaires!$A$3:$E$49,2,) -> Congé | U15: =IF(T15="vacances",INDEX(Horaires!$H$3:$L$42,MATCH('Solde d''heure collaborateur'!T$2,Horaires!$H$3:$H$40,0),4),IF(T15="maladie",INDEX(Horaires!$H$3:$L$42,MATCH('Solde d''heure collaborateur'!T$2,Horaires!$H$3:$H$40,0),5),VLOOKUP(S15,Horaires!$A$3:$E$60,5,))) -> 0 | W15: =INDEX(Planning!$9:$9,MATCH('Solde d''heure collaborateur'!$A15,Planning!$3:$3)) -> X | X15: =VLOOKUP(W15,Horaires!$A$3:$E$49,2,) -> XXX | Y15: =IF(X15="vacances",INDEX(Horaires!$H$3:$L$42,MATCH('Solde d''heure collaborateur'!X$2,Horaires!$H$3:$H$40,0),4),IF(X15="maladie",INDEX(Horaires!$H$3:$L$42,MATCH('Solde d''heure collaborateur'!X$2,Horaires!$H$3:$H$40,0),5),VLOOKUP(W15,Horaires!$A$3:$E$60,5,))) -> 0 | AA15: =INDEX(Planning!$10:$10,MATCH('Solde d''heure collaborateur'!$A15,Planning!$3:$3)) -> onex2 | AB15: =VLOOKUP(AA15,Horaires!$A$3:$E$49,2,) -> Onex | AC15: =IF(AB15="vacances",INDEX(Horaires!$H$3:$L$42,MATCH('Solde d''heure collaborateur'!AB$2,Horaires!$H$3:$H$40,0),4),IF(AB15="maladie",INDEX(Horaires!$H$3:$L$42,MATCH('Solde d''heure collaborateur'!AB$2,Horaires!$H$3:$H$40,0),5),VLOOKUP(AA15,Horaires!$A$3:$E$60,5,))) -> 0.4895833333 | AE15: =INDEX(Planning!$11:$11,MATCH('Solde d''heure collaborateur'!$A15,Planning!$3:$3)) -> Recup | AF15: =VLOOKUP(AE15,Horaires!$A$3:$E$49,2,) -> Récupération | AG15: =IF(AF15="vacances",INDEX(Horaires!$H$3:$L$42,MATCH('Solde d''heure collaborateur'!AF$2,Horaires!$H$3:$H$40,0),4),IF(AF15="maladie",INDEX(Horaires!$H$3:$L$42,MATCH('Solde d''heure collaborateur'!AF$2,Horaires!$H$3:$H$40,0),5),VLOOKUP(AE15,Horaires!$A$3:$E$60,5,))) -> 0 | AI15: =INDEX(Planning!$12:$12,MATCH('Solde d''heure collaborateur'!$A15,Planning!$3:$3)) -> Thon2 | AJ15: =VLOOKUP(AI15,Horaires!$A$3:$E$49,2,) -> Thonex | AK15: =IF(AJ15="vacances",INDEX(Horaires!$H$3:$L$42,MATCH('Solde d''heure collaborateur'!AJ$2,Horaires!$H$3:$H$40,0),4),IF(AJ15="maladie",INDEX(Horaires!$H$3:$L$42,MATCH('Solde d''heure collaborateur'!AJ$2,Horaires!$H$3:$H$40,0),5),VLOOKUP(AI15,Horaires!$A$3:$E$60,5,))) -> 0.46875 | AM15: =INDEX(Planning!$13:$13,MATCH('Solde d''heure collaborateur'!$A15,Planning!$3:$3)) -> Nyon1 | AN15: =VLOOKUP(AM15,Horaires!$A$3:$E$49,2,) -> Nyon | AO15: =IF(AN15="vacances",INDEX(Horaires!$H$3:$L$42,MATCH('Solde d''heure collaborateur'!AN$2,Horaires!$H$3:$H$40,0),4),IF(AN15="maladie",INDEX(Horaires!$H$3:$L$42,MATCH('Solde d''heure collaborateur'!AN$2,Horaires!$H$3:$H$40,0),5),VLOOKUP(AM15,Horaires!$A$3:$E$60,5,))) -> 0.4479166667 | AQ15: =INDEX(Planning!$14:$14,MATCH('Solde d''heure collaborateur'!$A15,Planning!$3:$3)) -> X | AR15: =VLOOKUP(AQ15,Horaires!$A$3:$E$49,2,) -> XXX | AS15: =IF(AR15="vacances",INDEX(Horaires!$H$3:$L$42,MATCH('Solde d''heure collaborateur'!AR$2,Horaires!$H$3:$H$40,0),4),IF(AR15="maladie",INDEX(Horaires!$H$3:$L$42,MATCH('Solde d''heure collaborateur'!AR$2,Horaires!$H$3:$H$40,0),5),VLOOKUP(AQ15,Horaires!$A$3:$E$60,5,))) -> 0 | AU15: =INDEX(Planning!$15:$15,MATCH('Solde d''heure collaborateur'!$A15,Planning!$3:$3)) -> plo2 | AV15: =VLOOKUP(AU15,Horaires!$A$3:$E$49,2,) -> Plan les Ouates | AW15: =IF(AV15="vacances",INDEX(Horaires!$H$3:$L$42,MATCH('Solde d''heure collaborateur'!AV$2,Horaires!$H$3:$H$40,0),4),IF(AV15="maladie",INDEX(Horaires!$H$3:$L$42,MATCH('Solde d''heure collaborateur'!AV$2,Horaires!$H$3:$H$40,0),5),VLOOKUP(AU15,Horaires!$A$3:$E$60,5,))) -> 0.4895833333 | AY15: =INDEX(Planning!$16:$16,MATCH('Solde d''heure collaborateur'!$A15,Planning!$3:$3)) -> R | AZ15: =VLOOKUP(AY15,Horaires!$A$3:$E$49,2,) -> Congé | BA15: =IF(AZ15="vacances",INDEX(Horaires!$H$3:$L$42,MATCH('Solde d''heure collaborateur'!AZ$2,Horaires!$H$3:$H$40,0),4),IF(AZ15="maladie",INDEX(Horaires!$H$3:$L$42,MATCH('Solde d''heure collaborateur'!AZ$2,Horaires!$H$3:$H$40,0),5),VLOOKUP(AY15,Horaires!$A$3:$E$60,5,))) -> 0 | BC15: =INDEX(Planning!$17:$17,MATCH('Solde d''heure collaborateur'!$A15,Planning!$3:$3)) -> R | BD15: =VLOOKUP(BC15,Horaires!$A$3:$E$49,2,) -> Congé | BE15: =IF(BD15="vacances",INDEX(Horaires!$H$3:$L$42,MATCH('Solde d''heure collaborateur'!BD$2,Horaires!$H$3:$H$40,0),4),IF(BD15="maladie",INDEX(Horaires!$H$3:$L$42,MATCH('Solde d''heure collaborateur'!BD$2,Horaires!$H$3:$H$40,0),5),VLOOKUP(BC15,Horaires!$A$3:$E$60,5,))) -> 0 | BG15: =INDEX(Planning!$18:$18,MATCH('Solde d''heure collaborateur'!$A15,Planning!$3:$3)) -> vibferm | BH15: =VLOOKUP(BG15,Horaires!$A$3:$E$49,2,) -> Vibert ferm | BI15: =IF(BH15="vacances",INDEX(Horaires!$H$3:$L$42,MATCH('Solde d''heure collaborateur'!BH$2,Horaires!$H$3:$H$40,0),4),IF(BH15="maladie",INDEX(Horaires!$H$3:$L$42,MATCH('Solde d''heure collaborateur'!BH$2,Horaires!$H$3:$H$40,0),5),VLOOKUP(BG15,Horaires!$A$3:$E$60,5,))) -> 0.4270833333 | BK15: =INDEX(Planning!$19:$19,MATCH('Solde d''heure collaborateur'!$A15,Planning!$3:$3)) -> Vibjeu | BL15: =VLOOKUP(BK15,Horaires!$A$3:$E$49,2,) -> Vibert | BM15: =IF(BL15="vacances",INDEX(Horaires!$H$3:$L$42,MATCH('Solde d''heure collaborateur'!BL$2,Horaires!$H$3:$H$40,0),4),IF(BL15="maladie",INDEX(Horaires!$H$3:$L$42,MATCH('Solde d''heure collaborateur'!BL$2,Horaires!$H$3:$H$40,0),5),VLOOKUP(BK15,Horaires!$A$3:$E$60,5,))) -> 0.4583333333 | BO15: =INDEX(Planning!$20:$20,MATCH('Solde d''heure collaborateur'!$A15,Planning!$3:$3)) -> R | BP15: =VLOOKUP(BO15,Horaires!$A$3:$E$49,2,) -> Congé | BQ15: =IF(BP15="vacances",INDEX(Horaires!$H$3:$L$42,MATCH('Solde d''heure collaborateur'!BP$2,Horaires!$H$3:$H$40,0),4),IF(BP15="maladie",INDEX(Horaires!$H$3:$L$42,MATCH('Solde d''heure collaborateur'!BP$2,Horaires!$H$3:$H$40,0),5),VLOOKUP(BO15,Horaires!$A$3:$E$60,5,))) -> 0 | BS15: =INDEX(Planning!$21:$21,MATCH('Solde d''heure collaborateur'!$A15,Planning!$3:$3)) -> Ves2 | BT15: =VLOOKUP(BS15,Horaires!$A$3:$E$49,2,) -> Vesenaz | BU15: =IF(BT15="vacances",INDEX(Horaires!$H$3:$L$42,MATCH('Solde d''heure collaborateur'!BT$2,Horaires!$H$3:$H$40,0),4),IF(BT15="maladie",INDEX(Horaires!$H$3:$L$42,MATCH('Solde d''heure collaborateur'!BT$2,Horaires!$H$3:$H$40,0),5),VLOOKUP(BS15,Horaires!$A$3:$E$60,5,))) -> 0.46875 | BW15: =INDEX(Planning!$22:$22,MATCH('Solde d''heure collaborateur'!$A15,Planning!$3:$3)) -> X | BX15: =VLOOKUP(BW15,Horaires!$A$3:$E$49,2,) -> XXX | BY15: =IF(BX15="vacances",INDEX(Horaires!$H$3:$L$42,MATCH('Solde d''heure collaborateur'!BX$2,Horaires!$H$3:$H$40,0),4),IF(BX15="maladie",INDEX(Horaires!$H$3:$L$42,MATCH('Solde d''heure collaborateur'!BX$2,Horaires!$H$3:$H$40,0),5),VLOOKUP(BW15,Horaires!$A$3:$E$60,5,))) -> 0 | CA15: =INDEX(Planning!$23:$23,MATCH('Solde d''heure collaborateur'!$A15,Planning!$3:$3)) -> Aca1 | CB15: =VLOOKUP(CA15,Horaires!$A$3:$E$49,2,) -> Acacias | CC15: =IF(CB15="vacances",INDEX(Horaires!$H$3:$L$42,MATCH('Solde d''heure collaborateur'!CB$2,Horaires!$H$3:$H$40,0),4),IF(CB15="maladie",INDEX(Horaires!$H$3:$L$42,MATCH('Solde d''heure collaborateur'!CB$2,Horaires!$H$3:$H$40,0),5),VLOOKUP(CA15,Horaires!$A$3:$E$60,5,))) -> 0.4479166667 | CE15: =INDEX(Planning!$24:$24,MATCH('Solde d''heure collaborateur'!$A15,Planning!$3:$3)) -> Onex2 | CF15: =VLOOKUP(CE15,Horaires!$A$3:$E$49,2,) -> Onex | CG15: =IF(CF15="vacances",INDEX(Horaires!$H$3:$L$42,MATCH('Solde d''heure collaborateur'!CF$2,Horaires!$H$3:$H$40,0),4),IF(CF15="maladie",INDEX(Horaires!$H$3:$L$42,MATCH('Solde d''heure collaborateur'!CF$2,Horaires!$H$3:$H$40,0),5),VLOOKUP(CE15,Horaires!$A$3:$E$60,5,))) -> 0.4895833333 | CI15: =INDEX(Planning!$25:$25,MATCH('Solde d''heure collaborateur'!$A15,Planning!$3:$3)) -> X | CJ15: =VLOOKUP(CI15,Horaires!$A$3:$E$49,2,) -> XXX | CK15: =IF(CJ15="vacances",INDEX(Horaires!$H$3:$L$42,MATCH('Solde d''heure collaborateur'!CJ$2,Horaires!$H$3:$H$40,0),4),IF(CJ15="maladie",INDEX(Horaires!$H$3:$L$42,MATCH('Solde d''heure collaborateur'!CJ$2,Horaires!$H$3:$H$40,0),5),VLOOKUP(CI15,Horaires!$A$3:$E$60,5,))) -> 0 | CM15: =INDEX(Planning!$26:$26,MATCH('Solde d''heure collaborateur'!$A15,Planning!$3:$3)) -> Vid2 | CN15: =VLOOKUP(CM15,Horaires!$A$3:$E$49,2,) -> Vidollet | CO15: =IF(CN15="vacances",INDEX(Horaires!$H$3:$L$42,MATCH('Solde d''heure collaborateur'!CN$2,Horaires!$H$3:$H$40,0),4),IF(CN15="maladie",INDEX(Horaires!$H$3:$L$42,MATCH('Solde d''heure collaborateur'!CN$2,Horaires!$H$3:$H$40,0),5),VLOOKUP(CM15,Horaires!$A$3:$E$60,5,))) -> 0.46875 | CQ15: =INDEX(Planning!$27:$27,MATCH('Solde d''heure collaborateur'!$A15,Planning!$3:$3)) -> R | CR15: =VLOOKUP(CQ15,Horaires!$A$3:$E$49,2,) -> Congé | CS15: =IF(CR15="vacances",INDEX(Horaires!$H$3:$L$42,MATCH('Solde d''heure collaborateur'!CR$2,Horaires!$H$3:$H$40,0),4),IF(CR15="maladie",INDEX(Horaires!$H$3:$L$42,MATCH('Solde d''heure collaborateur'!CR$2,Horaires!$H$3:$H$40,0),5),VLOOKUP(CQ15,Horaires!$A$3:$E$60,5,))) -> 0 | CU15: =INDEX(Planning!$28:$28,MATCH('Solde d''heure collaborateur'!$A15,Planning!$3:$3)) -> tour2 | CV15: =VLOOKUP(CU15,Horaires!$A$3:$E$49,2,) -> Tourelle | CW15: =IF(CV15="vacances",INDEX(Horaires!$H$3:$L$42,MATCH('Solde d''heure collaborateur'!CV$2,Horaires!$H$3:$H$40,0),4),IF(CV15="maladie",INDEX(Horaires!$H$3:$L$42,MATCH('Solde d''heure collaborateur'!CV$2,Horaires!$H$3:$H$40,0),5),VLOOKUP(CU15,Horaires!$A$3:$E$60,5,))) -> 0.4895833333 | CY15: =INDEX(Planning!$29:$29,MATCH('Solde d''heure collaborateur'!$A15,Planning!$3:$3)) -> X | CZ15: =VLOOKUP(CY15,Horaires!$A$3:$E$49,2,) -> XXX | DA15: =IF(CZ15="vacances",INDEX(Horaires!$H$3:$L$42,MATCH('Solde d''heure collaborateur'!CZ$2,Horaires!$H$3:$H$40,0),4),IF(CZ15="maladie",INDEX(Horaires!$H$3:$L$42,MATCH('Solde d''heure collaborateur'!CZ$2,Horaires!$H$3:$H$40,0),5),VLOOKUP(CY15,Horaires!$A$3:$E$60,5,))) -> 0 | DC15: =INDEX(Planning!$30:$30,MATCH('Solde d''heure collaborateur'!$A15,Planning!$3:$3)) -> X | DD15: =VLOOKUP(DC15,Horaires!$A$3:$E$49,2,) -> XXX | DE15: =IF(DD15="vacances",INDEX(Horaires!$H$3:$L$42,MATCH('Solde d''heure collaborateur'!DD$2,Horaires!$H$3:$H$40,0),4),IF(DD15="maladie",INDEX(Horaires!$H$3:$L$42,MATCH('Solde d''heure collaborateur'!DD$2,Horaires!$H$3:$H$40,0),5),VLOOKUP(DC15,Horaires!$A$3:$E$60,5,))) -> 0 | DG15: =INDEX(Planning!$31:$31,MATCH('Solde d''heure collaborateur'!$A15,Planning!$3:$3)) -> X | DH15: =VLOOKUP(DG15,Horaires!$A$3:$E$49,2,) -> XXX | DI15: =IF(DH15="vacances",INDEX(Horaires!$H$3:$L$42,MATCH('Solde d''heure collaborateur'!DH$2,Horaires!$H$3:$H$40,0),4),IF(DH15="maladie",INDEX(Horaires!$H$3:$L$42,MATCH('Solde d''heure collaborateur'!DH$2,Horaires!$H$3:$H$40,0),5),VLOOKUP(DG15,Horaires!$A$3:$E$60,5,))) -> 0 | DK15: =INDEX(Planning!$32:$32,MATCH('Solde d''heure collaborateur'!$A15,Planning!$3:$3)) -> X | DL15: =VLOOKUP(DK15,Horaires!$A$3:$E$49,2,) -> XXX | DM15: =IF(DL15="vacances",INDEX(Horaires!$H$3:$L$42,MATCH('Solde d''heure collaborateur'!DL$2,Horaires!$H$3:$H$40,0),4),IF(DL15="maladie",INDEX(Horaires!$H$3:$L$42,MATCH('Solde d''heure collaborateur'!DL$2,Horaires!$H$3:$H$40,0),5),VLOOKUP(DK15,Horaires!$A$3:$E$60,5,))) -> 0 | DO15: =INDEX(Planning!$33:$33,MATCH('Solde d''heure collaborateur'!$A15,Planning!$3:$3)) -> X | DP15: =VLOOKUP(DO15,Horaires!$A$3:$E$49,2,) -> XXX | DQ15: =IF(DP15="vacances",INDEX(Horaires!$H$3:$L$42,MATCH('Solde d''heure collaborateur'!DP$2,Horaires!$H$3:$H$40,0),4),IF(DP15="maladie",INDEX(Horaires!$H$3:$L$42,MATCH('Solde d''heure collaborateur'!DP$2,Horaires!$H$3:$H$40,0),5),VLOOKUP(DO15,Horaires!$A$3:$E$60,5,))) -> 0 | DS15: =INDEX(Planning!$34:$34,MATCH('Solde d''heure collaborateur'!$A15,Planning!$3:$3)) -> X | DT15: =VLOOKUP(DS15,Horaires!$A$3:$E$49,2,) -> XXX | DU15: =IF(DT15="vacances",INDEX(Horaires!$H$3:$L$42,MATCH('Solde d''heure collaborateur'!DT$2,Horaires!$H$3:$H$40,0),4),IF(DT15="maladie",INDEX(Horaires!$H$3:$L$42,MATCH('Solde d''heure collaborateur'!DT$2,Horaires!$H$3:$H$40,0),5),VLOOKUP(DS15,Horaires!$A$3:$E$60,5,))) -> 0 | DW15: =INDEX(Planning!$35:$35,MATCH('Solde d''heure collaborateur'!$A15,Planning!$3:$3)) -> X | DX15: =VLOOKUP(DW15,Horaires!$A$3:$E$49,2,) -> XXX | DY15: =IF(DX15="vacances",INDEX(Horaires!$H$3:$L$42,MATCH('Solde d''heure collaborateur'!DX$2,Horaires!$H$3:$H$40,0),4),IF(DX15="maladie",INDEX(Horaires!$H$3:$L$42,MATCH('Solde d''heure collaborateur'!DX$2,Horaires!$H$3:$H$40,0),5),VLOOKUP(DW15,Horaires!$A$3:$E$60,5,))) -> 0
A16: =A15+1 -> 2013-11-15 | C16: =INDEX(Planning!$4:$4,MATCH('Solde d''heure collaborateur'!A16,Planning!$3:$3,0)) -> R | D16: =VLOOKUP(C16,Horaires!$A$3:$E$49,2,) -> Congé | E16: =IF(D16="vacances",INDEX(Horaires!$H$3:$L$42,MATCH('Solde d''heure collaborateur'!D$2,Horaires!$H$3:$H$40,0),4),IF(D16="maladie",INDEX(Horaires!$H$3:$L$42,MATCH('Solde d''heure collaborateur'!D$2,Horaires!$H$3:$H$40,0),5),VLOOKUP(C16,Horaires!$A$3:$E$60,5,))) -> 0 | G16: =INDEX(Planning!$5:$5,MATCH('Solde d''heure collaborateur'!A16,Planning!$3:$3)) -> Pom2 | H16: =VLOOKUP(G16,Horaires!$A$3:$E$49,2,) -> Pommier | I16: =IF(H16="vacances",INDEX(Horaires!$H$3:$L$42,MATCH('Solde d''heure collaborateur'!H$2,Horaires!$H$3:$H$40,0),4),IF(H16="maladie",INDEX(Horaires!$H$3:$L$42,MATCH('Solde d''heure collaborateur'!H$2,Horaires!$H$3:$H$40,0),5),VLOOKUP(G16,Horaires!$A$3:$E$60,5,))) -> 0.46875 | K16: =INDEX(Planning!$6:$6,MATCH('Solde d''heure collaborateur'!A16,Planning!$3:$3)) -> R | L16: =VLOOKUP(K16,Horaires!$A$3:$E$49,2,) -> Congé | M16: =IF(L16="vacances",INDEX(Horaires!$H$3:$L$42,MATCH('Solde d''heure collaborateur'!L$2,Horaires!$H$3:$H$40,0),4),IF(L16="maladie",INDEX(Horaires!$H$3:$L$42,MATCH('Solde d''heure collaborateur'!L$2,Horaires!$H$3:$H$40,0),5),VLOOKUP(K16,Horaires!$A$3:$E$60,5,))) -> 0 | O16: =INDEX(Planning!$7:$7,MATCH('Solde d''heure collaborateur'!$A16,Planning!$3:$3)) -> X | P16: =VLOOKUP(O16,Horaires!$A$3:$E$49,2,) -> XXX | Q16: =IF(P16="vacances",INDEX(Horaires!$H$3:$L$42,MATCH('Solde d''heure collaborateur'!P$2,Horaires!$H$3:$H$40,0),4),IF(P16="maladie",INDEX(Horaires!$H$3:$L$42,MATCH('Solde d''heure collaborateur'!P$2,Horaires!$H$3:$H$40,0),5),VLOOKUP(O16,Horaires!$A$3:$E$60,5,))) -> 0 | S16: =INDEX(Planning!$8:$8,MATCH('Solde d''heure collaborateur'!$A16,Planning!$3:$3)) -> onex2 | T16: =VLOOKUP(S16,Horaires!$A$3:$E$49,2,) -> Onex | U16: =IF(T16="vacances",INDEX(Horaires!$H$3:$L$42,MATCH('Solde d''heure collaborateur'!T$2,Horaires!$H$3:$H$40,0),4),IF(T16="maladie",INDEX(Horaires!$H$3:$L$42,MATCH('Solde d''heure collaborateur'!T$2,Horaires!$H$3:$H$40,0),5),VLOOKUP(S16,Horaires!$A$3:$E$60,5,))) -> 0.4895833333 | W16: =INDEX(Planning!$9:$9,MATCH('Solde d''heure collaborateur'!$A16,Planning!$3:$3)) -> X | X16: =VLOOKUP(W16,Horaires!$A$3:$E$49,2,) -> XXX | Y16: =IF(X16="vacances",INDEX(Horaires!$H$3:$L$42,MATCH('Solde d''heure collaborateur'!X$2,Horaires!$H$3:$H$40,0),4),IF(X16="maladie",INDEX(Horaires!$H$3:$L$42,MATCH('Solde d''heure collaborateur'!X$2,Horaires!$H$3:$H$40,0),5),VLOOKUP(W16,Horaires!$A$3:$E$60,5,))) -> 0 | AA16: =INDEX(Planning!$10:$10,MATCH('Solde d''heure collaborateur'!$A16,Planning!$3:$3)) -> tour2 | AB16: =VLOOKUP(AA16,Horaires!$A$3:$E$49,2,) -> Tourelle | AC16: =IF(AB16="vacances",INDEX(Horaires!$H$3:$L$42,MATCH('Solde d''heure collaborateur'!AB$2,Horaires!$H$3:$H$40,0),4),IF(AB16="maladie",INDEX(Horaires!$H$3:$L$42,MATCH('Solde d''heure collaborateur'!AB$2,Horaires!$H$3:$H$40,0),5),VLOOKUP(AA16,Horaires!$A$3:$E$60,5,))) -> 0.4895833333 | AE16: =INDEX(Planning!$11:$11,MATCH('Solde d''heure collaborateur'!$A16,Planning!$3:$3)) -> R | AF16: =VLOOKUP(AE16,Horaires!$A$3:$E$49,2,) -> Congé | AG16: =IF(AF16="vacances",INDEX(Horaires!$H$3:$L$42,MATCH('Solde d''heure collaborateur'!AF$2,Horaires!$H$3:$H$40,0),4),IF(AF16="maladie",INDEX(Horaires!$H$3:$L$42,MATCH('Solde d''heure collaborateur'!AF$2,Horaires!$H$3:$H$40,0),5),VLOOKUP(AE16,Horaires!$A$3:$E$60,5,))) -> 0 | AI16: =INDEX(Planning!$12:$12,MATCH('Solde d''heure collaborateur'!$A16,Planning!$3:$3)) -> R | AJ16: =VLOOKUP(AI16,Horaires!$A$3:$E$49,2,) -> Congé | AK16: =IF(AJ16="vacances",INDEX(Horaires!$H$3:$L$42,MATCH('Solde d''heure collaborateur'!AJ$2,Horaires!$H$3:$H$40,0),4),IF(AJ16="maladie",INDEX(Horaires!$H$3:$L$42,MATCH('Solde d''heure collaborateur'!AJ$2,Horaires!$H$3:$H$40,0),5),VLOOKUP(AI16,Horaires!$A$3:$E$60,5,))) -> 0 | AM16: =INDEX(Planning!$13:$13,MATCH('Solde d''heure collaborateur'!$A16,Planning!$3:$3)) -> R | AN16: =VLOOKUP(AM16,Horaires!$A$3:$E$49,2,) -> Congé | AO16: =IF(AN16="vacances",INDEX(Horaires!$H$3:$L$42,MATCH('Solde d''heure collaborateur'!AN$2,Horaires!$H$3:$H$40,0),4),IF(AN16="maladie",INDEX(Horaires!$H$3:$L$42,MATCH('Solde d''heure collaborateur'!AN$2,Horaires!$H$3:$H$40,0),5),VLOOKUP(AM16,Horaires!$A$3:$E$60,5,))) -> 0 | AQ16: =INDEX(Planning!$14:$14,MATCH('Solde d''heure collaborateur'!$A16,Planning!$3:$3)) -> M | AR16: =VLOOKUP(AQ16,Horaires!$A$3:$E$49,2,) -> Maladie | AS16: =IF(AR16="vacances",INDEX(Horaires!$H$3:$L$42,MATCH('Solde d''heure collaborateur'!AR$2,Horaires!$H$3:$H$40,0),4),IF(AR16="maladie",INDEX(Horaires!$H$3:$L$42,MATCH('Solde d''heure collaborateur'!AR$2,Horaires!$H$3:$H$40,0),5),VLOOKUP(AQ16,Horaires!$A$3:$E$60,5,))) -> 0.4618055556 | AU16: =INDEX(Planning!$15:$15,MATCH('Solde d''heure collaborateur'!$A16,Planning!$3:$3)) -> R | AV16: =VLOOKUP(AU16,Horaires!$A$3:$E$49,2,) -> Congé | AW16: =IF(AV16="vacances",INDEX(Horaires!$H$3:$L$42,MATCH('Solde d''heure collaborateur'!AV$2,Horaires!$H$3:$H$40,0),4),IF(AV16="maladie",INDEX(Horaires!$H$3:$L$42,MATCH('Solde d''heure collaborateur'!AV$2,Horaires!$H$3:$H$40,0),5),VLOOKUP(AU16,Horaires!$A$3:$E$60,5,))) -> 0 | AY16: =INDEX(Planning!$16:$16,MATCH('Solde d''heure collaborateur'!$A16,Planning!$3:$3)) -> Nyon1 | AZ16: =VLOOKUP(AY16,Horaires!$A$3:$E$49,2,) -> Nyon | BA16: =IF(AZ16="vacances",INDEX(Horaires!$H$3:$L$42,MATCH('Solde d''heure collaborateur'!AZ$2,Horaires!$H$3:$H$40,0),4),IF(AZ16="maladie",INDEX(Horaires!$H$3:$L$42,MATCH('Solde d''heure collaborateur'!AZ$2,Horaires!$H$3:$H$40,0),5),VLOOKUP(AY16,Horaires!$A$3:$E$60,5,))) -> 0.4479166667 | BC16: =INDEX(Planning!$17:$17,MATCH('Solde d''heure collaborateur'!$A16,Planning!$3:$3)) -> nav2 | BD16: =VLOOKUP(BC16,Horaires!$A$3:$E$49,2,) -> Navigation | BE16: =IF(BD16="vacances",INDEX(Horaires!$H$3:$L$42,MATCH('Solde d''heure collaborateur'!BD$2,Horaires!$H$3:$H$40,0),4),IF(BD16="maladie",INDEX(Horaires!$H$3:$L$42,MATCH('Solde d''heure collaborateur'!BD$2,Horaires!$H$3:$H$40,0),5),VLOOKUP(BC16,Horaires!$A$3:$E$60,5,))) -> 0.46875 | BG16: =INDEX(Planning!$18:$18,MATCH('Solde d''heure collaborateur'!$A16,Planning!$3:$3)) -> vib2 | BH16: =VLOOKUP(BG16,Horaires!$A$3:$E$49,2,) -> Vibert | BI16: =IF(BH16="vacances",INDEX(Horaires!$H$3:$L$42,MATCH('Solde d''heure collaborateur'!BH$2,Horaires!$H$3:$H$40,0),4),IF(BH16="maladie",INDEX(Horaires!$H$3:$L$42,MATCH('Solde d''heure collaborateur'!BH$2,Horaires!$H$3:$H$40,0),5),VLOOKUP(BG16,Horaires!$A$3:$E$60,5,))) -> 0.4895833333 | BK16: =INDEX(Planning!$19:$19,MATCH('Solde d''heure collaborateur'!$A16,Planning!$3:$3)) -> Vib2 | BL16: =VLOOKUP(BK16,Horaires!$A$3:$E$49,2,) -> Vibert | BM16: =IF(BL16="vacances",INDEX(Horaires!$H$3:$L$42,MATCH('Solde d''heure collaborateur'!BL$2,Horaires!$H$3:$H$40,0),4),IF(BL16="maladie",INDEX(Horaires!$H$3:$L$42,MATCH('Solde d''heure collaborateur'!BL$2,Horaires!$H$3:$H$40,0),5),VLOOKUP(BK16,Horaires!$A$3:$E$60,5,))) -> 0.4895833333 | BO16: =INDEX(Planning!$20:$20,MATCH('Solde d''heure collaborateur'!$A16,Planning!$3:$3)) -> R | BP16: =VLOOKUP(BO16,Horaires!$A$3:$E$49,2,) -> Congé | BQ16: =IF(BP16="vacances",INDEX(Horaires!$H$3:$L$42,MATCH('Solde d''heure collaborateur'!BP$2,Horaires!$H$3:$H$40,0),4),IF(BP16="maladie",INDEX(Horaires!$H$3:$L$42,MATCH('Solde d''heure collaborateur'!BP$2,Horaires!$H$3:$H$40,0),5),VLOOKUP(BO16,Horaires!$A$3:$E$60,5,))) -> 0 | BS16: =INDEX(Planning!$21:$21,MATCH('Solde d''heure collaborateur'!$A16,Planning!$3:$3)) -> Ves2 | BT16: =VLOOKUP(BS16,Horaires!$A$3:$E$49,2,) -> Vesenaz | BU16: =IF(BT16="vacances",INDEX(Horaires!$H$3:$L$42,MATCH('Solde d''heure collaborateur'!BT$2,Horaires!$H$3:$H$40,0),4),IF(BT16="maladie",INDEX(Horaires!$H$3:$L$42,MATCH('Solde d''heure collaborateur'!BT$2,Horaires!$H$3:$H$40,0),5),VLOOKUP(BS16,Horaires!$A$3:$E$60,5,))) -> 0.46875 | BW16: =INDEX(Planning!$22:$22,MATCH('Solde d''heure collaborateur'!$A16,Planning!$3:$3)) -> X | BX16: =VLOOKUP(BW16,Horaires!$A$3:$E$49,2,) -> XXX | BY16: =IF(BX16="vacances",INDEX(Horaires!$H$3:$L$42,MATCH('Solde d''heure collaborateur'!BX$2,Horaires!$H$3:$H$40,0),4),IF(BX16="maladie",INDEX(Horaires!$H$3:$L$42,MATCH('Solde d''heure collaborateur'!BX$2,Horaires!$H$3:$H$40,0),5),VLOOKUP(BW16,Horaires!$A$3:$E$60,5,))) -> 0 | CA16: =INDEX(Planning!$23:$23,MATCH('Solde d''heure collaborateur'!$A16,Planning!$3:$3)) -> Aca1 | CB16: =VLOOKUP(CA16,Horaires!$A$3:$E$49,2,) -> Acacias | CC16: =IF(CB16="vacances",INDEX(Horaires!$H$3:$L$42,MATCH('Solde d''heure collaborateur'!CB$2,Horaires!$H$3:$H$40,0),4),IF(CB16="maladie",INDEX(Horaires!$H$3:$L$42,MATCH('Solde d''heure collaborateur'!CB$2,Horaires!$H$3:$H$40,0),5),VLOOKUP(CA16,Horaires!$A$3:$E$60,5,))) -> 0.4479166667 | CE16: =INDEX(Planning!$24:$24,MATCH('Solde d''heure collaborateur'!$A16,Planning!$3:$3)) -> Onex2 | CF16: =VLOOKUP(CE16,Horaires!$A$3:$E$49,2,) -> Onex | CG16: =IF(CF16="vacances",INDEX(Horaires!$H$3:$L$42,MATCH('Solde d''heure collaborateur'!CF$2,Horaires!$H$3:$H$40,0),4),IF(CF16="maladie",INDEX(Horaires!$H$3:$L$42,MATCH('Solde d''heure collaborateur'!CF$2,Horaires!$H$3:$H$40,0),5),VLOOKUP(CE16,Horaires!$A$3:$E$60,5,))) -> 0.4895833333 | CI16: =INDEX(Planning!$25:$25,MATCH('Solde d''heure collaborateur'!$A16,Planning!$3:$3)) -> X | CJ16: =VLOOKUP(CI16,Horaires!$A$3:$E$49,2,) -> XXX | CK16: =IF(CJ16="vacances",INDEX(Horaires!$H$3:$L$42,MATCH('Solde d''heure collaborateur'!CJ$2,Horaires!$H$3:$H$40,0),4),IF(CJ16="maladie",INDEX(Horaires!$H$3:$L$42,MATCH('Solde d''heure collaborateur'!CJ$2,Horaires!$H$3:$H$40,0),5),VLOOKUP(CI16,Horaires!$A$3:$E$60,5,))) -> 0 | CM16: =INDEX(Planning!$26:$26,MATCH('Solde d''heure collaborateur'!$A16,Planning!$3:$3)) -> Vid2 | CN16: =VLOOKUP(CM16,Horaires!$A$3:$E$49,2,) -> Vidollet | CO16: =IF(CN16="vacances",INDEX(Horaires!$H$3:$L$42,MATCH('Solde d''heure collaborateur'!CN$2,Horaires!$H$3:$H$40,0),4),IF(CN16="maladie",INDEX(Horaires!$H$3:$L$42,MATCH('Solde d''heure collaborateur'!CN$2,Horaires!$H$3:$H$40,0),5),VLOOKUP(CM16,Horaires!$A$3:$E$60,5,))) -> 0.46875 | CQ16: =INDEX(Planning!$27:$27,MATCH('Solde d''heure collaborateur'!$A16,Planning!$3:$3)) -> Thon2 | CR16: =VLOOKUP(CQ16,Horaires!$A$3:$E$49,2,) -> Thonex | CS16: =IF(CR16="vacances",INDEX(Horaires!$H$3:$L$42,MATCH('Solde d''heure collaborateur'!CR$2,Horaires!$H$3:$H$40,0),4),IF(CR16="maladie",INDEX(Horaires!$H$3:$L$42,MATCH('Solde d''heure collaborateur'!CR$2,Horaires!$H$3:$H$40,0),5),VLOOKUP(CQ16,Horaires!$A$3:$E$60,5,))) -> 0.46875 | CU16: =INDEX(Planning!$28:$28,MATCH('Solde d''heure collaborateur'!$A16,Planning!$3:$3)) -> R | CV16: =VLOOKUP(CU16,Horaires!$A$3:$E$49,2,) -> Congé | CW16: =IF(CV16="vacances",INDEX(Horaires!$H$3:$L$42,MATCH('Solde d''heure collaborateur'!CV$2,Horaires!$H$3:$H$40,0),4),IF(CV16="maladie",INDEX(Horaires!$H$3:$L$42,MATCH('Solde d''heure collaborateur'!CV$2,Horaires!$H$3:$H$40,0),5),VLOOKUP(CU16,Horaires!$A$3:$E$60,5,))) -> 0 | CY16: =INDEX(Planning!$29:$29,MATCH('Solde d''heure collaborateur'!$A16,Planning!$3:$3)) -> plo2 | CZ16: =VLOOKUP(CY16,Horaires!$A$3:$E$49,2,) -> Plan les Ouates | DA16: =IF(CZ16="vacances",INDEX(Horaires!$H$3:$L$42,MATCH('Solde d''heure collaborateur'!CZ$2,Horaires!$H$3:$H$40,0),4),IF(CZ16="maladie",INDEX(Horaires!$H$3:$L$42,MATCH('Solde d''heure collaborateur'!CZ$2,Horaires!$H$3:$H$40,0),5),VLOOKUP(CY16,Horaires!$A$3:$E$60,5,))) -> 0.4895833333 | DC16: =INDEX(Planning!$30:$30,MATCH('Solde d''heure collaborateur'!$A16,Planning!$3:$3)) -> X | DD16: =VLOOKUP(DC16,Horaires!$A$3:$E$49,2,) -> XXX | DE16: =IF(DD16="vacances",INDEX(Horaires!$H$3:$L$42,MATCH('Solde d''heure collaborateur'!DD$2,Horaires!$H$3:$H$40,0),4),IF(DD16="maladie",INDEX(Horaires!$H$3:$L$42,MATCH('Solde d''heure collaborateur'!DD$2,Horaires!$H$3:$H$40,0),5),VLOOKUP(DC16,Horaires!$A$3:$E$60,5,))) -> 0 | DG16: =INDEX(Planning!$31:$31,MATCH('Solde d''heure collaborateur'!$A16,Planning!$3:$3)) -> X | DH16: =VLOOKUP(DG16,Horaires!$A$3:$E$49,2,) -> XXX | DI16: =IF(DH16="vacances",INDEX(Horaires!$H$3:$L$42,MATCH('Solde d''heure collaborateur'!DH$2,Horaires!$H$3:$H$40,0),4),IF(DH16="maladie",INDEX(Horaires!$H$3:$L$42,MATCH('Solde d''heure collaborateur'!DH$2,Horaires!$H$3:$H$40,0),5),VLOOKUP(DG16,Horaires!$A$3:$E$60,5,))) -> 0 | DK16: =INDEX(Planning!$32:$32,MATCH('Solde d''heure collaborateur'!$A16,Planning!$3:$3)) -> X | DL16: =VLOOKUP(DK16,Horaires!$A$3:$E$49,2,) -> XXX | DM16: =IF(DL16="vacances",INDEX(Horaires!$H$3:$L$42,MATCH('Solde d''heure collaborateur'!DL$2,Horaires!$H$3:$H$40,0),4),IF(DL16="maladie",INDEX(Horaires!$H$3:$L$42,MATCH('Solde d''heure collaborateur'!DL$2,Horaires!$H$3:$H$40,0),5),VLOOKUP(DK16,Horaires!$A$3:$E$60,5,))) -> 0 | DO16: =INDEX(Planning!$33:$33,MATCH('Solde d''heure collaborateur'!$A16,Planning!$3:$3)) -> X | DP16: =VLOOKUP(DO16,Horaires!$A$3:$E$49,2,) -> XXX | DQ16: =IF(DP16="vacances",INDEX(Horaires!$H$3:$L$42,MATCH('Solde d''heure collaborateur'!DP$2,Horaires!$H$3:$H$40,0),4),IF(DP16="maladie",INDEX(Horaires!$H$3:$L$42,MATCH('Solde d''heure collaborateur'!DP$2,Horaires!$H$3:$H$40,0),5),VLOOKUP(DO16,Horaires!$A$3:$E$60,5,))) -> 0 | DS16: =INDEX(Planning!$34:$34,MATCH('Solde d''heure collaborateur'!$A16,Planning!$3:$3)) -> X | DT16: =VLOOKUP(DS16,Horaires!$A$3:$E$49,2,) -> XXX | DU16: =IF(DT16="vacances",INDEX(Horaires!$H$3:$L$42,MATCH('Solde d''heure collaborateur'!DT$2,Horaires!$H$3:$H$40,0),4),IF(DT16="maladie",INDEX(Horaires!$H$3:$L$42,MATCH('Solde d''heure collaborateur'!DT$2,Horaires!$H$3:$H$40,0),5),VLOOKUP(DS16,Horaires!$A$3:$E$60,5,))) -> 0 | DW16: =INDEX(Planning!$35:$35,MATCH('Solde d''heure collaborateur'!$A16,Planning!$3:$3)) -> X | DX16: =VLOOKUP(DW16,Horaires!$A$3:$E$49,2,) -> XXX | DY16: =IF(DX16="vacances",INDEX(Horaires!$H$3:$L$42,MATCH('Solde d''heure collaborateur'!DX$2,Horaires!$H$3:$H$40,0),4),IF(DX16="maladie",INDEX(Horaires!$H$3:$L$42,MATCH('Solde d''heure collaborateur'!DX$2,Horaires!$H$3:$H$40,0),5),VLOOKUP(DW16,Horaires!$A$3:$E$60,5,))) -> 0
A17: =A16+1 -> 2013-11-16 | C17: =INDEX(Planning!$4:$4,MATCH('Solde d''heure collaborateur'!A17,Planning!$3:$3,0)) -> R | D17: =VLOOKUP(C17,Horaires!$A$3:$E$49,2,) -> Congé | E17: =IF(D17="vacances",INDEX(Horaires!$H$3:$L$42,MATCH('Solde d''heure collaborateur'!D$2,Horaires!$H$3:$H$40,0),4),IF(D17="maladie",INDEX(Horaires!$H$3:$L$42,MATCH('Solde d''heure collaborateur'!D$2,Horaires!$H$3:$H$40,0),5),VLOOKUP(C17,Horaires!$A$3:$E$60,5,))) -> 0 | G17: =INDEX(Planning!$5:$5,MATCH('Solde d''heure collaborateur'!A17,Planning!$3:$3)) -> R | H17: =VLOOKUP(G17,Horaires!$A$3:$E$49,2,) -> Congé | I17: =IF(H17="vacances",INDEX(Horaires!$H$3:$L$42,MATCH('Solde d''heure collaborateur'!H$2,Horaires!$H$3:$H$40,0),4),IF(H17="maladie",INDEX(Horaires!$H$3:$L$42,MATCH('Solde d''heure collaborateur'!H$2,Horaires!$H$3:$H$40,0),5),VLOOKUP(G17,Horaires!$A$3:$E$60,5,))) -> 0 | K17: =INDEX(Planning!$6:$6,MATCH('Solde d''heure collaborateur'!A17,Planning!$3:$3)) -> R | L17: =VLOOKUP(K17,Horaires!$A$3:$E$49,2,) -> Congé | M17: =IF(L17="vacances",INDEX(Horaires!$H$3:$L$42,MATCH('Solde d''heure collaborateur'!L$2,Horaires!$H$3:$H$40,0),4),IF(L17="maladie",INDEX(Horaires!$H$3:$L$42,MATCH('Solde d''heure collaborateur'!L$2,Horaires!$H$3:$H$40,0),5),VLOOKUP(K17,Horaires!$A$3:$E$60,5,))) -> 0 | O17: =INDEX(Planning!$7:$7,MATCH('Solde d''heure collaborateur'!$A17,Planning!$3:$3)) -> X | P17: =VLOOKUP(O17,Horaires!$A$3:$E$49,2,) -> XXX | Q17: =IF(P17="vacances",INDEX(Horaires!$H$3:$L$42,MATCH('Solde d''heure collaborateur'!P$2,Horaires!$H$3:$H$40,0),4),IF(P17="maladie",INDEX(Horaires!$H$3:$L$42,MATCH('Solde d''heure collaborateur'!P$2,Horaires!$H$3:$H$40,0),5),VLOOKUP(O17,Horaires!$A$3:$E$60,5,))) -> 0 | S17: =INDEX(Planning!$8:$8,MATCH('Solde d''heure collaborateur'!$A17,Planning!$3:$3)) -> Onex3 | T17: =VLOOKUP(S17,Horaires!$A$3:$E$49,2,) -> Onex | U17: =IF(T17="vacances",INDEX(Horaires!$H$3:$L$42,MATCH('Solde d''heure collaborateur'!T$2,Horaires!$H$3:$H$40,0),4),IF(T17="maladie",INDEX(Horaires!$H$3:$L$42,MATCH('Solde d''heure collaborateur'!T$2,Horaires!$H$3:$H$40,0),5),VLOOKUP(S17,Horaires!$A$3:$E$60,5,))) -> 0.4270833333 | W17: =INDEX(Planning!$9:$9,MATCH('Solde d''heure collaborateur'!$A17,Planning!$3:$3)) -> X | X17: =VLOOKUP(W17,Horaires!$A$3:$E$49,2,) -> XXX | Y17: =IF(X17="vacances",INDEX(Horaires!$H$3:$L$42,MATCH('Solde d''heure collaborateur'!X$2,Horaires!$H$3:$H$40,0),4),IF(X17="maladie",INDEX(Horaires!$H$3:$L$42,MATCH('Solde d''heure collaborateur'!X$2,Horaires!$H$3:$H$40,0),5),VLOOKUP(W17,Horaires!$A$3:$E$60,5,))) -> 0 | AA17: =INDEX(Planning!$10:$10,MATCH('Solde d''heure collaborateur'!$A17,Planning!$3:$3)) -> tour3 | AB17: =VLOOKUP(AA17,Horaires!$A$3:$E$49,2,) -> Tourelle | AC17: =IF(AB17="vacances",INDEX(Horaires!$H$3:$L$42,MATCH('Solde d''heure collaborateur'!AB$2,Horaires!$H$3:$H$40,0),4),IF(AB17="maladie",INDEX(Horaires!$H$3:$L$42,MATCH('Solde d''heure collaborateur'!AB$2,Horaires!$H$3:$H$40,0),5),VLOOKUP(AA17,Horaires!$A$3:$E$60,5,))) -> 0.4270833333 | AE17: =INDEX(Planning!$11:$11,MATCH('Solde d''heure collaborateur'!$A17,Planning!$3:$3)) -> R | AF17: =VLOOKUP(AE17,Horaires!$A$3:$E$49,2,) -> Congé | AG17: =IF(AF17="vacances",INDEX(Horaires!$H$3:$L$42,MATCH('Solde d''heure collaborateur'!AF$2,Horaires!$H$3:$H$40,0),4),IF(AF17="maladie",INDEX(Horaires!$H$3:$L$42,MATCH('Solde d''heure collaborateur'!AF$2,Horaires!$H$3:$H$40,0),5),VLOOKUP(AE17,Horaires!$A$3:$E$60,5,))) -> 0 | AI17: =INDEX(Planning!$12:$12,MATCH('Solde d''heure collaborateur'!$A17,Planning!$3:$3)) -> R | AJ17: =VLOOKUP(AI17,Horaires!$A$3:$E$49,2,) -> Congé | AK17: =IF(AJ17="vacances",INDEX(Horaires!$H$3:$L$42,MATCH('Solde d''heure collaborateur'!AJ$2,Horaires!$H$3:$H$40,0),4),IF(AJ17="maladie",INDEX(Horaires!$H$3:$L$42,MATCH('Solde d''heure collaborateur'!AJ$2,Horaires!$H$3:$H$40,0),5),VLOOKUP(AI17,Horaires!$A$3:$E$60,5,))) -> 0 | AM17: =INDEX(Planning!$13:$13,MATCH('Solde d''heure collaborateur'!$A17,Planning!$3:$3)) -> Pom3 | AN17: =VLOOKUP(AM17,Horaires!$A$3:$E$49,2,) -> Pommier | AO17: =IF(AN17="vacances",INDEX(Horaires!$H$3:$L$42,MATCH('Solde d''heure collaborateur'!AN$2,Horaires!$H$3:$H$40,0),4),IF(AN17="maladie",INDEX(Horaires!$H$3:$L$42,MATCH('Solde d''heure collaborateur'!AN$2,Horaires!$H$3:$H$40,0),5),VLOOKUP(AM17,Horaires!$A$3:$E$60,5,))) -> 0.4270833333 | AQ17: =INDEX(Planning!$14:$14,MATCH('Solde d''heure collaborateur'!$A17,Planning!$3:$3)) -> M | AR17: =VLOOKUP(AQ17,Horaires!$A$3:$E$49,2,) -> Maladie | AS17: =IF(AR17="vacances",INDEX(Horaires!$H$3:$L$42,MATCH('Solde d''heure collaborateur'!AR$2,Horaires!$H$3:$H$40,0),4),IF(AR17="maladie",INDEX(Horaires!$H$3:$L$42,MATCH('Solde d''heure collaborateur'!AR$2,Horaires!$H$3:$H$40,0),5),VLOOKUP(AQ17,Horaires!$A$3:$E$60,5,))) -> 0.4618055556 | AU17: =INDEX(Planning!$15:$15,MATCH('Solde d''heure collaborateur'!$A17,Planning!$3:$3)) -> R | AV17: =VLOOKUP(AU17,Horaires!$A$3:$E$49,2,) -> Congé | AW17: =IF(AV17="vacances",INDEX(Horaires!$H$3:$L$42,MATCH('Solde d''heure collaborateur'!AV$2,Horaires!$H$3:$H$40,0),4),IF(AV17="maladie",INDEX(Horaires!$H$3:$L$42,MATCH('Solde d''heure collaborateur'!AV$2,Horaires!$H$3:$H$40,0),5),VLOOKUP(AU17,Horaires!$A$3:$E$60,5,))) -> 0 | AY17: =INDEX(Planning!$16:$16,MATCH('Solde d''heure collaborateur'!$A17,Planning!$3:$3)) -> Nyon2 | AZ17: =VLOOKUP(AY17,Horaires!$A$3:$E$49,2,) -> Nyon | BA17: =IF(AZ17="vacances",INDEX(Horaires!$H$3:$L$42,MATCH('Solde d''heure collaborateur'!AZ$2,Horaires!$H$3:$H$40,0),4),IF(AZ17="maladie",INDEX(Horaires!$H$3:$L$42,MATCH('Solde d''heure collaborateur'!AZ$2,Horaires!$H$3:$H$40,0),5),VLOOKUP(AY17,Horaires!$A$3:$E$60,5,))) -> 0.40625 | BC17: =INDEX(Planning!$17:$17,MATCH('Solde d''heure collaborateur'!$A17,Planning!$3:$3)) -> nav3 | BD17: =VLOOKUP(BC17,Horaires!$A$3:$E$49,2,) -> Navigation | BE17: =IF(BD17="vacances",INDEX(Horaires!$H$3:$L$42,MATCH('Solde d''heure collaborateur'!BD$2,Horaires!$H$3:$H$40,0),4),IF(BD17="maladie",INDEX(Horaires!$H$3:$L$42,MATCH('Solde d''heure collaborateur'!BD$2,Horaires!$H$3:$H$40,0),5),VLOOKUP(BC17,Horaires!$A$3:$E$60,5,))) -> 0.40625 | BG17: =INDEX(Planning!$18:$18,MATCH('Solde d''heure collaborateur'!$A17,Planning!$3:$3)) -> vib3 | BH17: =VLOOKUP(BG17,Horaires!$A$3:$E$49,2,) -> Vibert | BI17: =IF(BH17="vacances",INDEX(Horaires!$H$3:$L$42,MATCH('Solde d''heure collaborateur'!BH$2,Horaires!$H$3:$H$40,0),4),IF(BH17="maladie",INDEX(Horaires!$H$3:$L$42,MATCH('Solde d''heure collaborateur'!BH$2,Horaires!$H$3:$H$40,0),5),VLOOKUP(BG17,Horaires!$A$3:$E$60,5,))) -> 0.4270833333 | BK17: =INDEX(Planning!$19:$19,MATCH('Solde d''heure collaborateur'!$A17,Planning!$3:$3)) -> Vib3 | BL17: =VLOOKUP(BK17,Horaires!$A$3:$E$49,2,) -> Vibert | BM17: =IF(BL17="vacances",INDEX(Horaires!$H$3:$L$42,MATCH('Solde d''heure collaborateur'!BL$2,Horaires!$H$3:$H$40,0),4),IF(BL17="maladie",INDEX(Horaires!$H$3:$L$42,MATCH('Solde d''heure collaborateur'!BL$2,Horaires!$H$3:$H$40,0),5),VLOOKUP(BK17,Horaires!$A$3:$E$60,5,))) -> 0.4270833333 | BO17: =INDEX(Planning!$20:$20,MATCH('Solde d''heure collaborateur'!$A17,Planning!$3:$3)) -> Aca3 | BP17: =VLOOKUP(BO17,Horaires!$A$3:$E$49,2,) -> Acacias | BQ17: =IF(BP17="vacances",INDEX(Horaires!$H$3:$L$42,MATCH('Solde d''heure collaborateur'!BP$2,Horaires!$H$3:$H$40,0),4),IF(BP17="maladie",INDEX(Horaires!$H$3:$L$42,MATCH('Solde d''heure collaborateur'!BP$2,Horaires!$H$3:$H$40,0),5),VLOOKUP(BO17,Horaires!$A$3:$E$60,5,))) -> 0.40625 | BS17: =INDEX(Planning!$21:$21,MATCH('Solde d''heure collaborateur'!$A17,Planning!$3:$3)) -> Ves3 | BT17: =VLOOKUP(BS17,Horaires!$A$3:$E$49,2,) -> Vesenaz | BU17: =IF(BT17="vacances",INDEX(Horaires!$H$3:$L$42,MATCH('Solde d''heure collaborateur'!BT$2,Horaires!$H$3:$H$40,0),4),IF(BT17="maladie",INDEX(Horaires!$H$3:$L$42,MATCH('Solde d''heure collaborateur'!BT$2,Horaires!$H$3:$H$40,0),5),VLOOKUP(BS17,Horaires!$A$3:$E$60,5,))) -> 0.40625 | BW17: =INDEX(Planning!$22:$22,MATCH('Solde d''heure collaborateur'!$A17,Planning!$3:$3)) -> X | BX17: =VLOOKUP(BW17,Horaires!$A$3:$E$49,2,) -> XXX | BY17: =IF(BX17="vacances",INDEX(Horaires!$H$3:$L$42,MATCH('Solde d''heure collaborateur'!BX$2,Horaires!$H$3:$H$40,0),4),IF(BX17="maladie",INDEX(Horaires!$H$3:$L$42,MATCH('Solde d''heure collaborateur'!BX$2,Horaires!$H$3:$H$40,0),5),VLOOKUP(BW17,Horaires!$A$3:$E$60,5,))) -> 0 | CA17: =INDEX(Planning!$23:$23,MATCH('Solde d''heure collaborateur'!$A17,Planning!$3:$3)) -> Plo1 | CB17: =VLOOKUP(CA17,Horaires!$A$3:$E$49,2,) -> Plan les Ouates | CC17: =IF(CB17="vacances",INDEX(Horaires!$H$3:$L$42,MATCH('Solde d''heure collaborateur'!CB$2,Horaires!$H$3:$H$40,0),4),IF(CB17="maladie",INDEX(Horaires!$H$3:$L$42,MATCH('Solde d''heure collaborateur'!CB$2,Horaires!$H$3:$H$40,0),5),VLOOKUP(CA17,Horaires!$A$3:$E$60,5,))) -> 0.46875 | CE17: =INDEX(Planning!$24:$24,MATCH('Solde d''heure collaborateur'!$A17,Planning!$3:$3)) -> onex3 | CF17: =VLOOKUP(CE17,Horaires!$A$3:$E$49,2,) -> Onex | CG17: =IF(CF17="vacances",INDEX(Horaires!$H$3:$L$42,MATCH('Solde d''heure collaborateur'!CF$2,Horaires!$H$3:$H$40,0),4),IF(CF17="maladie",INDEX(Horaires!$H$3:$L$42,MATCH('Solde d''heure collaborateur'!CF$2,Horaires!$H$3:$H$40,0),5),VLOOKUP(CE17,Horaires!$A$3:$E$60,5,))) -> 0.4270833333 | CI17: =INDEX(Planning!$25:$25,MATCH('Solde d''heure collaborateur'!$A17,Planning!$3:$3)) -> X | CJ17: =VLOOKUP(CI17,Horaires!$A$3:$E$49,2,) -> XXX | CK17: =IF(CJ17="vacances",INDEX(Horaires!$H$3:$L$42,MATCH('Solde d''heure collaborateur'!CJ$2,Horaires!$H$3:$H$40,0),4),IF(CJ17="maladie",INDEX(Horaires!$H$3:$L$42,MATCH('Solde d''heure collaborateur'!CJ$2,Horaires!$H$3:$H$40,0),5),VLOOKUP(CI17,Horaires!$A$3:$E$60,5,))) -> 0 | CM17: =INDEX(Planning!$26:$26,MATCH('Solde d''heure collaborateur'!$A17,Planning!$3:$3)) -> Vid3 | CN17: =VLOOKUP(CM17,Horaires!$A$3:$E$49,2,) -> Vidollet | CO17: =IF(CN17="vacances",INDEX(Horaires!$H$3:$L$42,MATCH('Solde d''heure collaborateur'!CN$2,Horaires!$H$3:$H$40,0),4),IF(CN17="maladie",INDEX(Horaires!$H$3:$L$42,MATCH('Solde d''heure collaborateur'!CN$2,Horaires!$H$3:$H$40,0),5),VLOOKUP(CM17,Horaires!$A$3:$E$60,5,))) -> 0.40625 | CQ17: =INDEX(Planning!$27:$27,MATCH('Solde d''heure collaborateur'!$A17,Planning!$3:$3)) -> Thon3 | CR17: =VLOOKUP(CQ17,Horaires!$A$3:$E$49,2,) -> Thonex | CS17: =IF(CR17="vacances",INDEX(Horaires!$H$3:$L$42,MATCH('Solde d''heure collaborateur'!CR$2,Horaires!$H$3:$H$40,0),4),IF(CR17="maladie",INDEX(Horaires!$H$3:$L$42,MATCH('Solde d''heure collaborateur'!CR$2,Horaires!$H$3:$H$40,0),5),VLOOKUP(CQ17,Horaires!$A$3:$E$60,5,))) -> 0.40625 | CU17: =INDEX(Planning!$28:$28,MATCH('Solde d''heure collaborateur'!$A17,Planning!$3:$3)) -> R | CV17: =VLOOKUP(CU17,Horaires!$A$3:$E$49,2,) -> Congé | CW17: =IF(CV17="vacances",INDEX(Horaires!$H$3:$L$42,MATCH('Solde d''heure collaborateur'!CV$2,Horaires!$H$3:$H$40,0),4),IF(CV17="maladie",INDEX(Horaires!$H$3:$L$42,MATCH('Solde d''heure collaborateur'!CV$2,Horaires!$H$3:$H$40,0),5),VLOOKUP(CU17,Horaires!$A$3:$E$60,5,))) -> 0 | CY17: =INDEX(Planning!$29:$29,MATCH('Solde d''heure collaborateur'!$A17,Planning!$3:$3)) -> nav3 | CZ17: =VLOOKUP(CY17,Horaires!$A$3:$E$49,2,) -> Navigation | DA17: =IF(CZ17="vacances",INDEX(Horaires!$H$3:$L$42,MATCH('Solde d''heure collaborateur'!CZ$2,Horaires!$H$3:$H$40,0),4),IF(CZ17="maladie",INDEX(Horaires!$H$3:$L$42,MATCH('Solde d''heure collaborateur'!CZ$2,Horaires!$H$3:$H$40,0),5),VLOOKUP(CY17,Horaires!$A$3:$E$60,5,))) -> 0.40625 | DC17: =INDEX(Planning!$30:$30,MATCH('Solde d''heure collaborateur'!$A17,Planning!$3:$3)) -> X | DD17: =VLOOKUP(DC17,Horaires!$A$3:$E$49,2,) -> XXX | DE17: =IF(DD17="vacances",INDEX(Horaires!$H$3:$L$42,MATCH('Solde d''heure collaborateur'!DD$2,Horaires!$H$3:$H$40,0),4),IF(DD17="maladie",INDEX(Horaires!$H$3:$L$42,MATCH('Solde d''heure collaborateur'!DD$2,Horaires!$H$3:$H$40,0),5),VLOOKUP(DC17,Horaires!$A$3:$E$60,5,))) -> 0 | DG17: =INDEX(Planning!$31:$31,MATCH('Solde d''heure collaborateur'!$A17,Planning!$3:$3)) -> X | DH17: =VLOOKUP(DG17,Horaires!$A$3:$E$49,2,) -> XXX | DI17: =IF(DH17="vacances",INDEX(Horaires!$H$3:$L$42,MATCH('Solde d''heure collaborateur'!DH$2,Horaires!$H$3:$H$40,0),4),IF(DH17="maladie",INDEX(Horaires!$H$3:$L$42,MATCH('Solde d''heure collaborateur'!DH$2,Horaires!$H$3:$H$40,0),5),VLOOKUP(DG17,Horaires!$A$3:$E$60,5,))) -> 0 | DK17: =INDEX(Planning!$32:$32,MATCH('Solde d''heure collaborateur'!$A17,Planning!$3:$3)) -> X | DL17: =VLOOKUP(DK17,Horaires!$A$3:$E$49,2,) -> XXX | DM17: =IF(DL17="vacances",INDEX(Horaires!$H$3:$L$42,MATCH('Solde d''heure collaborateur'!DL$2,Horaires!$H$3:$H$40,0),4),IF(DL17="maladie",INDEX(Horaires!$H$3:$L$42,MATCH('Solde d''heure collaborateur'!DL$2,Horaires!$H$3:$H$40,0),5),VLOOKUP(DK17,Horaires!$A$3:$E$60,5,))) -> 0 | DO17: =INDEX(Planning!$33:$33,MATCH('Solde d''heure collaborateur'!$A17,Planning!$3:$3)) -> X | DP17: =VLOOKUP(DO17,Horaires!$A$3:$E$49,2,) -> XXX | DQ17: =IF(DP17="vacances",INDEX(Horaires!$H$3:$L$42,MATCH('Solde d''heure collaborateur'!DP$2,Horaires!$H$3:$H$40,0),4),IF(DP17="maladie",INDEX(Horaires!$H$3:$L$42,MATCH('Solde d''heure collaborateur'!DP$2,Horaires!$H$3:$H$40,0),5),VLOOKUP(DO17,Horaires!$A$3:$E$60,5,))) -> 0 | DS17: =INDEX(Planning!$34:$34,MATCH('Solde d''heure collaborateur'!$A17,Planning!$3:$3)) -> X | DT17: =VLOOKUP(DS17,Horaires!$A$3:$E$49,2,) -> XXX | DU17: =IF(DT17="vacances",INDEX(Horaires!$H$3:$L$42,MATCH('Solde d''heure collaborateur'!DT$2,Horaires!$H$3:$H$40,0),4),IF(DT17="maladie",INDEX(Horaires!$H$3:$L$42,MATCH('Solde d''heure collaborateur'!DT$2,Horaires!$H$3:$H$40,0),5),VLOOKUP(DS17,Horaires!$A$3:$E$60,5,))) -> 0 | DW17: =INDEX(Planning!$35:$35,MATCH('Solde d''heure collaborateur'!$A17,Planning!$3:$3)) -> X | DX17: =VLOOKUP(DW17,Horaires!$A$3:$E$49,2,) -> XXX | DY17: =IF(DX17="vacances",INDEX(Horaires!$H$3:$L$42,MATCH('Solde d''heure collaborateur'!DX$2,Horaires!$H$3:$H$40,0),4),IF(DX17="maladie",INDEX(Horaires!$H$3:$L$42,MATCH('Solde d''heure collaborateur'!DX$2,Horaires!$H$3:$H$40,0),5),VLOOKUP(DW17,Horaires!$A$3:$E$60,5,))) -> 0
D18: =SUM(E18-INDEX(Horaires!$H$3:$L$37,MATCH('Solde d''heure collaborateur'!D$2,Horaires!$H$3:$H$37,0),2)) -> 1.5 | E18: =SUM(E12:E17)*24 -> 43.5 | H18: =SUM(I18-INDEX(Horaires!$H$3:$L$37,MATCH('Solde d''heure collaborateur'!H$2,Horaires!$H$3:$H$37,0),2)) -> 2 | I18: =SUM(I12:I17)*24 -> 44 | L18: =SUM(M18-INDEX(Horaires!$H$3:$L$37,MATCH('Solde d''heure collaborateur'!L$2,Horaires!$H$3:$H$37,0),2)) -> 0 | M18: =SUM(M12:M17)*24 -> 42 | P18: =SUM(Q18-INDEX(Horaires!$H$3:$L$37,MATCH('Solde d''heure collaborateur'!P$2,Horaires!$H$3:$H$37,0),2)) -> 3.552713679e-15 | Q18: =SUM(Q12:Q17)*24 -> 22.5 | T18: =SUM(U18-INDEX(Horaires!$H$3:$L$37,MATCH('Solde d''heure collaborateur'!T$2,Horaires!$H$3:$H$37,0),2)) -> 2.5 | U18: =SUM(U12:U17)*24 -> 44.5 | X18: =SUM(Y18-INDEX(Horaires!$H$3:$L$37,MATCH('Solde d''heure collaborateur'!X$2,Horaires!$H$3:$H$37,0),2)) -> 3.552713679e-15 | Y18: =SUM(Y12:Y17)*24 -> 22.5 | AB18: =SUM(AC18-INDEX(Horaires!$H$3:$L$37,MATCH('Solde d''heure collaborateur'!AB$2,Horaires!$H$3:$H$37,0),2)) -> 3 | AC18: =SUM(AC12:AC17)*24 -> 45 | AF18: =SUM(AG18-INDEX(Horaires!$H$3:$L$37,MATCH('Solde d''heure collaborateur'!AF$2,Horaires!$H$3:$H$37,0),2)) -> -16.8 | AG18: =SUM(AG12:AG17)*24 -> 25.2 | AJ18: =SUM(AK18-INDEX(Horaires!$H$3:$L$37,MATCH('Solde d''heure collaborateur'!AJ$2,Horaires!$H$3:$H$37,0),2)) -> 1.5 | AK18: =SUM(AK12:AK17)*24 -> 43.5 | AN18: =SUM(AO18-INDEX(Horaires!$H$3:$L$37,MATCH('Solde d''heure collaborateur'!AN$2,Horaires!$H$3:$H$37,0),2)) -> 1.5 | AO18: =SUM(AO12:AO17)*24 -> 43.5 | AR18: =SUM(AS18-INDEX(Horaires!$H$3:$L$37,MATCH('Solde d''heure collaborateur'!AR$2,Horaires!$H$3:$H$37,0),2)) -> 0 | AS18: =SUM(AS12:AS17)*24 -> 33.25 | AV18: =SUM(AW18-INDEX(Horaires!$H$3:$L$37,MATCH('Solde d''heure collaborateur'!AV$2,Horaires!$H$3:$H$37,0),2)) -> 2 | AW18: =SUM(AW12:AW17)*24 -> 44 | AZ18: =SUM(BA18-INDEX(Horaires!$H$3:$L$37,MATCH('Solde d''heure collaborateur'!AZ$2,Horaires!$H$3:$H$37,0),2)) -> 0 | BA18: =SUM(BA12:BA17)*24 -> 42 | BD18: =SUM(BE18-INDEX(Horaires!$H$3:$L$37,MATCH('Solde d''heure collaborateur'!BD$2,Horaires!$H$3:$H$37,0),2)) -> 1 | BE18: =SUM(BE12:BE17)*24 -> 43 | BH18: =SUM(BI18-INDEX(Horaires!$H$3:$L$37,MATCH('Solde d''heure collaborateur'!BH$2,Horaires!$H$3:$H$37,0),2)) -> 1.5 | BI18: =SUM(BI12:BI17)*24 -> 43.5 | BL18: =SUM(BM18-INDEX(Horaires!$H$3:$L$37,MATCH('Solde d''heure collaborateur'!BL$2,Horaires!$H$3:$H$37,0),2)) -> 2.25 | BM18: =SUM(BM12:BM17)*24 -> 44.25 | BP18: =SUM(BQ18-INDEX(Horaires!$H$3:$L$37,MATCH('Solde d''heure collaborateur'!BP$2,Horaires!$H$3:$H$37,0),2)) -> 0 | BQ18: =SUM(BQ12:BQ17)*24 -> 42 | BT18: =SUM(BU18-INDEX(Horaires!$H$3:$L$37,MATCH('Solde d''heure collaborateur'!BT$2,Horaires!$H$3:$H$37,0),2)) -> 1 | BU18: =SUM(BU12:BU17)*24 -> 43 | BX18: =SUM(BY18-INDEX(Horaires!$H$3:$L$37,MATCH('Solde d''heure collaborateur'!BX$2,Horaires!$H$3:$H$37,0),2)) -> 0 | BY18: =SUM(BY12:BY17)*24 -> 21.5 | CB18: =SUM(CC18-INDEX(Horaires!$H$3:$L$37,MATCH('Solde d''heure collaborateur'!CB$2,Horaires!$H$3:$H$37,0),2)) -> 2 | CC18: =SUM(CC12:CC17)*24 -> 44 | CF18: =SUM(CG18-INDEX(Horaires!$H$3:$L$37,MATCH('Solde d''heure collaborateur'!CF$2,Horaires!$H$3:$H$37,0),2)) -> -8.25 | CG18: =SUM(CG12:CG17)*24 -> 33.75 | CJ18: =SUM(CK18-INDEX(Horaires!$H$3:$L$37,MATCH('Solde d''heure collaborateur'!CJ$2,Horaires!$H$3:$H$37,0),2)) -> -42 | CK18: =SUM(CK12:CK17)*24 -> 0 | CN18: =SUM(CO18-INDEX(Horaires!$H$3:$L$37,MATCH('Solde d''heure collaborateur'!CN$2,Horaires!$H$3:$H$37,0),2)) -> 1 | CO18: =SUM(CO12:CO17)*24 -> 43 | CR18: =SUM(CS18-INDEX(Horaires!$H$3:$L$37,MATCH('Solde d''heure collaborateur'!CR$2,Horaires!$H$3:$H$37,0),2)) -> 1.5 | CS18: =SUM(CS12:CS17)*24 -> 43.5 | CV18: =SUM(CW18-INDEX(Horaires!$H$3:$L$37,MATCH('Solde d''heure collaborateur'!CV$2,Horaires!$H$3:$H$37,0),2)) -> 3.5 | CW18: =SUM(CW12:CW17)*24 -> 45.5 | CZ18: =SUM(DA18-INDEX(Horaires!$H$3:$L$37,MATCH('Solde d''heure collaborateur'!CZ$2,Horaires!$H$3:$H$37,0),2)) -> 21.5 | DA18: =SUM(DA12:DA17)*24 -> 21.5 | DD18: =SUM(DE18-INDEX(Horaires!$H$3:$L$37,MATCH('Solde d''heure collaborateur'!DD$2,Horaires!$H$3:$H$37,0),2)) ->  | DE18: =SUM(DE12:DE17)*24 -> 0 | DH18: =SUM(DI18-INDEX(Horaires!$H$3:$L$37,MATCH('Solde d''heure collaborateur'!DH$2,Horaires!$H$3:$H$37,0),2)) -> 0 | DI18: =SUM(DI12:DI17)*24 -> 0 | DL18: =SUM(DM18-INDEX(Horaires!$H$3:$L$37,MATCH('Solde d''heure collaborateur'!DL$2,Horaires!$H$3:$H$37,0),2)) -> 0 | DM18: =SUM(DM12:DM17)*24 -> 0 | DP18: =SUM(DQ18-INDEX(Horaires!$H$3:$L$37,MATCH('Solde d''heure collaborateur'!DP$2,Horaires!$H$3:$H$37,0),2)) -> 0 | DQ18: =SUM(DQ12:DQ17)*24 -> 0 | DT18: =SUM(DU18-INDEX(Horaires!$H$3:$L$37,MATCH('Solde d''heure collaborateur'!DT$2,Horaires!$H$3:$H$37,0),2)) -> 0 | DU18: =SUM(DU12:DU17)*24 -> 0 | DX18: =SUM(DY18-INDEX(Horaires!$H$3:$L$37,MATCH('Solde d''heure collaborateur'!DX$2,Horaires!$H$3:$H$37,0),2)) -> 0 | DY18: =SUM(DY12:DY17)*24 -> 0
A20: =A17+2 -> 2013-11-18 | C20: =INDEX(Planning!$4:$4,MATCH('Solde d''heure collaborateur'!A20,Planning!$3:$3,0)) -> R | D20: =VLOOKUP(C20,Horaires!$A$3:$E$49,2,) -> Congé | E20: =IF(D20="vacances",INDEX(Horaires!$H$3:$L$42,MATCH('Solde d''heure collaborateur'!D$2,Horaires!$H$3:$H$40,0),4),IF(D20="maladie",INDEX(Horaires!$H$3:$L$42,MATCH('Solde d''heure collaborateur'!D$2,Horaires!$H$3:$H$40,0),5),VLOOKUP(C20,Horaires!$A$3:$E$60,5,))) -> 0 | G20: =INDEX(Planning!$5:$5,MATCH('Solde d''heure collaborateur'!A20,Planning!$3:$3)) -> R | H20: =VLOOKUP(G20,Horaires!$A$3:$E$49,2,) -> Congé | I20: =IF(H20="vacances",INDEX(Horaires!$H$3:$L$42,MATCH('Solde d''heure collaborateur'!H$2,Horaires!$H$3:$H$40,0),4),IF(H20="maladie",INDEX(Horaires!$H$3:$L$42,MATCH('Solde d''heure collaborateur'!H$2,Horaires!$H$3:$H$40,0),5),VLOOKUP(G20,Horaires!$A$3:$E$60,5,))) -> 0 | K20: =INDEX(Planning!$6:$6,MATCH('Solde d''heure collaborateur'!A20,Planning!$3:$3)) -> M | L20: =VLOOKUP(K20,Horaires!$A$3:$E$49,2,) -> Maladie | M20: =IF(L20="vacances",INDEX(Horaires!$H$3:$L$42,MATCH('Solde d''heure collaborateur'!L$2,Horaires!$H$3:$H$40,0),4),IF(L20="maladie",INDEX(Horaires!$H$3:$L$42,MATCH('Solde d''heure collaborateur'!L$2,Horaires!$H$3:$H$40,0),5),VLOOKUP(K20,Horaires!$A$3:$E$60,5,))) -> 0.4375 | O20: =INDEX(Planning!$7:$7,MATCH('Solde d''heure collaborateur'!$A20,Planning!$3:$3)) -> Vib1 | P20: =VLOOKUP(O20,Horaires!$A$3:$E$49,2,) -> Vibert | Q20: =IF(P20="vacances",INDEX(Horaires!$H$3:$L$42,MATCH('Solde d''heure collaborateur'!P$2,Horaires!$H$3:$H$40,0),4),IF(P20="maladie",INDEX(Horaires!$H$3:$L$42,MATCH('Solde d''heure collaborateur'!P$2,Horaires!$H$3:$H$40,0),5),VLOOKUP(O20,Horaires!$A$3:$E$60,5,))) -> 0.46875 | S20: =INDEX(Planning!$8:$8,MATCH('Solde d''heure collaborateur'!$A20,Planning!$3:$3)) -> Onex1 | T20: =VLOOKUP(S20,Horaires!$A$3:$E$49,2,) -> Onex | U20: =IF(T20="vacances",INDEX(Horaires!$H$3:$L$42,MATCH('Solde d''heure collaborateur'!T$2,Horaires!$H$3:$H$40,0),4),IF(T20="maladie",INDEX(Horaires!$H$3:$L$42,MATCH('Solde d''heure collaborateur'!T$2,Horaires!$H$3:$H$40,0),5),VLOOKUP(S20,Horaires!$A$3:$E$60,5,))) -> 0.46875 | W20: =INDEX(Planning!$9:$9,MATCH('Solde d''heure collaborateur'!$A20,Planning!$3:$3)) -> Onex1 | X20: =VLOOKUP(W20,Horaires!$A$3:$E$49,2,) -> Onex | Y20: =IF(X20="vacances",INDEX(Horaires!$H$3:$L$42,MATCH('Solde d''heure collaborateur'!X$2,Horaires!$H$3:$H$40,0),4),IF(X20="maladie",INDEX(Horaires!$H$3:$L$42,MATCH('Solde d''heure collaborateur'!X$2,Horaires!$H$3:$H$40,0),5),VLOOKUP(W20,Horaires!$A$3:$E$60,5,))) -> 0.46875 | AA20: =INDEX(Planning!$10:$10,MATCH('Solde d''heure collaborateur'!$A20,Planning!$3:$3)) -> R | AB20: =VLOOKUP(AA20,Horaires!$A$3:$E$49,2,) -> Congé | AC20: =IF(AB20="vacances",INDEX(Horaires!$H$3:$L$42,MATCH('Solde d''heure collaborateur'!AB$2,Horaires!$H$3:$H$40,0),4),IF(AB20="maladie",INDEX(Horaires!$H$3:$L$42,MATCH('Solde d''heure collaborateur'!AB$2,Horaires!$H$3:$H$40,0),5),VLOOKUP(AA20,Horaires!$A$3:$E$60,5,))) -> 0 | AE20: =INDEX(Planning!$11:$11,MATCH('Solde d''heure collaborateur'!$A20,Planning!$3:$3)) -> R | AF20: =VLOOKUP(AE20,Horaires!$A$3:$E$49,2,) -> Congé | AG20: =IF(AF20="vacances",INDEX(Horaires!$H$3:$L$42,MATCH('Solde d''heure collaborateur'!AF$2,Horaires!$H$3:$H$40,0),4),IF(AF20="maladie",INDEX(Horaires!$H$3:$L$42,MATCH('Solde d''heure collaborateur'!AF$2,Horaires!$H$3:$H$40,0),5),VLOOKUP(AE20,Horaires!$A$3:$E$60,5,))) -> 0 | AI20: =INDEX(Planning!$12:$12,MATCH('Solde d''heure collaborateur'!$A20,Planning!$3:$3)) -> Thon1 | AJ20: =VLOOKUP(AI20,Horaires!$A$3:$E$49,2,) -> Thonex | AK20: =IF(AJ20="vacances",INDEX(Horaires!$H$3:$L$42,MATCH('Solde d''heure collaborateur'!AJ$2,Horaires!$H$3:$H$40,0),4),IF(AJ20="maladie",INDEX(Horaires!$H$3:$L$42,MATCH('Solde d''heure collaborateur'!AJ$2,Horaires!$H$3:$H$40,0),5),VLOOKUP(AI20,Horaires!$A$3:$E$60,5,))) -> 0.4479166667 | AM20: =INDEX(Planning!$13:$13,MATCH('Solde d''heure collaborateur'!$A20,Planning!$3:$3)) -> plo1 | AN20: =VLOOKUP(AM20,Horaires!$A$3:$E$49,2,) -> Plan les Ouates | AO20: =IF(AN20="vacances",INDEX(Horaires!$H$3:$L$42,MATCH('Solde d''heure collaborateur'!AN$2,Horaires!$H$3:$H$40,0),4),IF(AN20="maladie",INDEX(Horaires!$H$3:$L$42,MATCH('Solde d''heure collaborateur'!AN$2,Horaires!$H$3:$H$40,0),5),VLOOKUP(AM20,Horaires!$A$3:$E$60,5,))) -> 0.46875 | AQ20: =INDEX(Planning!$14:$14,MATCH('Solde d''heure collaborateur'!$A20,Planning!$3:$3)) -> M | AR20: =VLOOKUP(AQ20,Horaires!$A$3:$E$49,2,) -> Maladie | AS20: =IF(AR20="vacances",INDEX(Horaires!$H$3:$L$42,MATCH('Solde d''heure collaborateur'!AR$2,Horaires!$H$3:$H$40,0),4),IF(AR20="maladie",INDEX(Horaires!$H$3:$L$42,MATCH('Solde d''heure collaborateur'!AR$2,Horaires!$H$3:$H$40,0),5),VLOOKUP(AQ20,Horaires!$A$3:$E$60,5,))) -> 0.4618055556 | AU20: =INDEX(Planning!$15:$15,MATCH('Solde d''heure collaborateur'!$A20,Planning!$3:$3)) -> R | AV20: =VLOOKUP(AU20,Horaires!$A$3:$E$49,2,) -> Congé | AW20: =IF(AV20="vacances",INDEX(Horaires!$H$3:$L$42,MATCH('Solde d''heure collaborateur'!AV$2,Horaires!$H$3:$H$40,0),4),IF(AV20="maladie",INDEX(Horaires!$H$3:$L$42,MATCH('Solde d''heure collaborateur'!AV$2,Horaires!$H$3:$H$40,0),5),VLOOKUP(AU20,Horaires!$A$3:$E$60,5,))) -> 0 | AY20: =INDEX(Planning!$16:$16,MATCH('Solde d''heure collaborateur'!$A20,Planning!$3:$3)) -> Nyon1 | AZ20: =VLOOKUP(AY20,Horaires!$A$3:$E$49,2,) -> Nyon | BA20: =IF(AZ20="vacances",INDEX(Horaires!$H$3:$L$42,MATCH('Solde d''heure collaborateur'!AZ$2,Horaires!$H$3:$H$40,0),4),IF(AZ20="maladie",INDEX(Horaires!$H$3:$L$42,MATCH('Solde d''heure collaborateur'!AZ$2,Horaires!$H$3:$H$40,0),5),VLOOKUP(AY20,Horaires!$A$3:$E$60,5,))) -> 0.4479166667 | BC20: =INDEX(Planning!$17:$17,MATCH('Solde d''heure collaborateur'!$A20,Planning!$3:$3)) -> tour1 | BD20: =VLOOKUP(BC20,Horaires!$A$3:$E$49,2,) -> Tourelle | BE20: =IF(BD20="vacances",INDEX(Horaires!$H$3:$L$42,MATCH('Solde d''heure collaborateur'!BD$2,Horaires!$H$3:$H$40,0),4),IF(BD20="maladie",INDEX(Horaires!$H$3:$L$42,MATCH('Solde d''heure collaborateur'!BD$2,Horaires!$H$3:$H$40,0),5),VLOOKUP(BC20,Horaires!$A$3:$E$60,5,))) -> 0.46875 | BG20: =INDEX(Planning!$18:$18,MATCH('Solde d''heure collaborateur'!$A20,Planning!$3:$3)) -> pom1 | BH20: =VLOOKUP(BG20,Horaires!$A$3:$E$49,2,) -> Pommier | BI20: =IF(BH20="vacances",INDEX(Horaires!$H$3:$L$42,MATCH('Solde d''heure collaborateur'!BH$2,Horaires!$H$3:$H$40,0),4),IF(BH20="maladie",INDEX(Horaires!$H$3:$L$42,MATCH('Solde d''heure collaborateur'!BH$2,Horaires!$H$3:$H$40,0),5),VLOOKUP(BG20,Horaires!$A$3:$E$60,5,))) -> 0.4479166667 | BK20: =INDEX(Planning!$19:$19,MATCH('Solde d''heure collaborateur'!$A20,Planning!$3:$3)) -> R | BL20: =VLOOKUP(BK20,Horaires!$A$3:$E$49,2,) -> Congé | BM20: =IF(BL20="vacances",INDEX(Horaires!$H$3:$L$42,MATCH('Solde d''heure collaborateur'!BL$2,Horaires!$H$3:$H$40,0),4),IF(BL20="maladie",INDEX(Horaires!$H$3:$L$42,MATCH('Solde d''heure collaborateur'!BL$2,Horaires!$H$3:$H$40,0),5),VLOOKUP(BK20,Horaires!$A$3:$E$60,5,))) -> 0 | BO20: =INDEX(Planning!$20:$20,MATCH('Solde d''heure collaborateur'!$A20,Planning!$3:$3)) -> Aca1 | BP20: =VLOOKUP(BO20,Horaires!$A$3:$E$49,2,) -> Acacias | BQ20: =IF(BP20="vacances",INDEX(Horaires!$H$3:$L$42,MATCH('Solde d''heure collaborateur'!BP$2,Horaires!$H$3:$H$40,0),4),IF(BP20="maladie",INDEX(Horaires!$H$3:$L$42,MATCH('Solde d''heure collaborateur'!BP$2,Horaires!$H$3:$H$40,0),5),VLOOKUP(BO20,Horaires!$A$3:$E$60,5,))) -> 0.4479166667 | BS20: =INDEX(Planning!$21:$21,MATCH('Solde d''heure collaborateur'!$A20,Planning!$3:$3)) -> R | BT20: =VLOOKUP(BS20,Horaires!$A$3:$E$49,2,) -> Congé | BU20: =IF(BT20="vacances",INDEX(Horaires!$H$3:$L$42,MATCH('Solde d''heure collaborateur'!BT$2,Horaires!$H$3:$H$40,0),4),IF(BT20="maladie",INDEX(Horaires!$H$3:$L$42,MATCH('Solde d''heure collaborateur'!BT$2,Horaires!$H$3:$H$40,0),5),VLOOKUP(BS20,Horaires!$A$3:$E$60,5,))) -> 0 | BW20: =INDEX(Planning!$22:$22,MATCH('Solde d''heure collaborateur'!$A20,Planning!$3:$3)) -> Ves1 | BX20: =VLOOKUP(BW20,Horaires!$A$3:$E$49,2,) -> Vesenaz | BY20: =IF(BX20="vacances",INDEX(Horaires!$H$3:$L$42,MATCH('Solde d''heure collaborateur'!BX$2,Horaires!$H$3:$H$40,0),4),IF(BX20="maladie",INDEX(Horaires!$H$3:$L$42,MATCH('Solde d''heure collaborateur'!BX$2,Horaires!$H$3:$H$40,0),5),VLOOKUP(BW20,Horaires!$A$3:$E$60,5,))) -> 0.4479166667 | CA20: =INDEX(Planning!$23:$23,MATCH('Solde d''heure collaborateur'!$A20,Planning!$3:$3)) -> recup | CB20: =VLOOKUP(CA20,Horaires!$A$3:$E$49,2,) -> Récupération | CC20: =IF(CB20="vacances",INDEX(Horaires!$H$3:$L$42,MATCH('Solde d''heure collaborateur'!CB$2,Horaires!$H$3:$H$40,0),4),IF(CB20="maladie",INDEX(Horaires!$H$3:$L$42,MATCH('Solde d''heure collaborateur'!CB$2,Horaires!$H$3:$H$40,0),5),VLOOKUP(CA20,Horaires!$A$3:$E$60,5,))) -> 0 | CE20: =INDEX(Planning!$24:$24,MATCH('Solde d''heure collaborateur'!$A20,Planning!$3:$3)) -> nav1 | CF20: =VLOOKUP(CE20,Horaires!$A$3:$E$49,2,) -> Navigation | CG20: =IF(CF20="vacances",INDEX(Horaires!$H$3:$L$42,MATCH('Solde d''heure collaborateur'!CF$2,Horaires!$H$3:$H$40,0),4),IF(CF20="maladie",INDEX(Horaires!$H$3:$L$42,MATCH('Solde d''heure collaborateur'!CF$2,Horaires!$H$3:$H$40,0),5),VLOOKUP(CE20,Horaires!$A$3:$E$60,5,))) -> 0.4479166667 | CI20: =INDEX(Planning!$25:$25,MATCH('Solde d''heure collaborateur'!$A20,Planning!$3:$3)) -> X | CJ20: =VLOOKUP(CI20,Horaires!$A$3:$E$49,2,) -> XXX | CK20: =IF(CJ20="vacances",INDEX(Horaires!$H$3:$L$42,MATCH('Solde d''heure collaborateur'!CJ$2,Horaires!$H$3:$H$40,0),4),IF(CJ20="maladie",INDEX(Horaires!$H$3:$L$42,MATCH('Solde d''heure collaborateur'!CJ$2,Horaires!$H$3:$H$40,0),5),VLOOKUP(CI20,Horaires!$A$3:$E$60,5,))) -> 0 | CM20: =INDEX(Planning!$26:$26,MATCH('Solde d''heure collaborateur'!$A20,Planning!$3:$3)) -> Vid1 | CN20: =VLOOKUP(CM20,Horaires!$A$3:$E$49,2,) -> Vidollet | CO20: =IF(CN20="vacances",INDEX(Horaires!$H$3:$L$42,MATCH('Solde d''heure collaborateur'!CN$2,Horaires!$H$3:$H$40,0),4),IF(CN20="maladie",INDEX(Horaires!$H$3:$L$42,MATCH('Solde d''heure collaborateur'!CN$2,Horaires!$H$3:$H$40,0),5),VLOOKUP(CM20,Horaires!$A$3:$E$60,5,))) -> 0.4479166667 | CQ20: =INDEX(Planning!$27:$27,MATCH('Solde d''heure collaborateur'!$A20,Planning!$3:$3)) -> Vib1 | CR20: =VLOOKUP(CQ20,Horaires!$A$3:$E$49,2,) -> Vibert | CS20: =IF(CR20="vacances",INDEX(Horaires!$H$3:$L$42,MATCH('Solde d''heure collaborateur'!CR$2,Horaires!$H$3:$H$40,0),4),IF(CR20="maladie",INDEX(Horaires!$H$3:$L$42,MATCH('Solde d''heure collaborateur'!CR$2,Horaires!$H$3:$H$40,0),5),VLOOKUP(CQ20,Horaires!$A$3:$E$60,5,))) -> 0.46875 | CU20: =INDEX(Planning!$28:$28,MATCH('Solde d''heure collaborateur'!$A20,Planning!$3:$3)) -> R | CV20: =VLOOKUP(CU20,Horaires!$A$3:$E$49,2,) -> Congé | CW20: =IF(CV20="vacances",INDEX(Horaires!$H$3:$L$42,MATCH('Solde d''heure collaborateur'!CV$2,Horaires!$H$3:$H$40,0),4),IF(CV20="maladie",INDEX(Horaires!$H$3:$L$42,MATCH('Solde d''heure collaborateur'!CV$2,Horaires!$H$3:$H$40,0),5),VLOOKUP(CU20,Horaires!$A$3:$E$60,5,))) -> 0 | CY20: =INDEX(Planning!$29:$29,MATCH('Solde d''heure collaborateur'!$A20,Planning!$3:$3)) -> X | CZ20: =VLOOKUP(CY20,Horaires!$A$3:$E$49,2,) -> XXX | DA20: =IF(CZ20="vacances",INDEX(Horaires!$H$3:$L$42,MATCH('Solde d''heure collaborateur'!CZ$2,Horaires!$H$3:$H$40,0),4),IF(CZ20="maladie",INDEX(Horaires!$H$3:$L$42,MATCH('Solde d''heure collaborateur'!CZ$2,Horaires!$H$3:$H$40,0),5),VLOOKUP(CY20,Horaires!$A$3:$E$60,5,))) -> 0 | DC20: =INDEX(Planning!$30:$30,MATCH('Solde d''heure collaborateur'!$A20,Planning!$3:$3)) -> X | DD20: =VLOOKUP(DC20,Horaires!$A$3:$E$49,2,) -> XXX | DE20: =IF(DD20="vacances",INDEX(Horaires!$H$3:$L$42,MATCH('Solde d''heure collaborateur'!DD$2,Horaires!$H$3:$H$40,0),4),IF(DD20="maladie",INDEX(Horaires!$H$3:$L$42,MATCH('Solde d''heure collaborateur'!DD$2,Horaires!$H$3:$H$40,0),5),VLOOKUP(DC20,Horaires!$A$3:$E$60,5,))) -> 0 | DG20: =INDEX(Planning!$31:$31,MATCH('Solde d''heure collaborateur'!$A20,Planning!$3:$3)) -> X | DH20: =VLOOKUP(DG20,Horaires!$A$3:$E$49,2,) -> XXX | DI20: =IF(DH20="vacances",INDEX(Horaires!$H$3:$L$42,MATCH('Solde d''heure collaborateur'!DH$2,Horaires!$H$3:$H$40,0),4),IF(DH20="maladie",INDEX(Horaires!$H$3:$L$42,MATCH('Solde d''heure collaborateur'!DH$2,Horaires!$H$3:$H$40,0),5),VLOOKUP(DG20,Horaires!$A$3:$E$60,5,))) -> 0 | DK20: =INDEX(Planning!$32:$32,MATCH('Solde d''heure collaborateur'!$A20,Planning!$3:$3)) -> X | DL20: =VLOOKUP(DK20,Horaires!$A$3:$E$49,2,) -> XXX | DM20: =IF(DL20="vacances",INDEX(Horaires!$H$3:$L$42,MATCH('Solde d''heure collaborateur'!DL$2,Horaires!$H$3:$H$40,0),4),IF(DL20="maladie",INDEX(Horaires!$H$3:$L$42,MATCH('Solde d''heure collaborateur'!DL$2,Horaires!$H$3:$H$40,0),5),VLOOKUP(DK20,Horaires!$A$3:$E$60,5,))) -> 0 | DO20: =INDEX(Planning!$33:$33,MATCH('Solde d''heure collaborateur'!$A20,Planning!$3:$3)) -> X | DP20: =VLOOKUP(DO20,Horaires!$A$3:$E$49,2,) -> XXX | DQ20: =IF(DP20="vacances",INDEX(Horaires!$H$3:$L$42,MATCH('Solde d''heure collaborateur'!DP$2,Horaires!$H$3:$H$40,0),4),IF(DP20="maladie",INDEX(Horaires!$H$3:$L$42,MATCH('Solde d''heure collaborateur'!DP$2,Horaires!$H$3:$H$40,0),5),VLOOKUP(DO20,Horaires!$A$3:$E$60,5,))) -> 0 | DS20: =INDEX(Planning!$34:$34,MATCH('Solde d''heure collaborateur'!$A20,Planning!$3:$3)) -> X | DT20: =VLOOKUP(DS20,Horaires!$A$3:$E$49,2,) -> XXX | DU20: =IF(DT20="vacances",INDEX(Horaires!$H$3:$L$42,MATCH('Solde d''heure collaborateur'!DT$2,Horaires!$H$3:$H$40,0),4),IF(DT20="maladie",INDEX(Horaires!$H$3:$L$42,MATCH('Solde d''heure collaborateur'!DT$2,Horaires!$H$3:$H$40,0),5),VLOOKUP(DS20,Horaires!$A$3:$E$60,5,))) -> 0 | DW20: =INDEX(Planning!$35:$35,MATCH('Solde d''heure collaborateur'!$A20,Planning!$3:$3)) -> X | DX20: =VLOOKUP(DW20,Horaires!$A$3:$E$49,2,) -> XXX | DY20: =IF(DX20="vacances",INDEX(Horaires!$H$3:$L$42,MATCH('Solde d''heure collaborateur'!DX$2,Horaires!$H$3:$H$40,0),4),IF(DX20="maladie",INDEX(Horaires!$H$3:$L$42,MATCH('Solde d''heure collaborateur'!DX$2,Horaires!$H$3:$H$40,0),5),VLOOKUP(DW20,Horaires!$A$3:$E$60,5,))) -> 0
A21: =A20+1 -> 2013-11-19 | C21: =INDEX(Planning!$4:$4,MATCH('Solde d''heure collaborateur'!A21,Planning!$3:$3,0)) -> R | D21: =VLOOKUP(C21,Horaires!$A$3:$E$49,2,) -> Congé | E21: =IF(D21="vacances",INDEX(Horaires!$H$3:$L$42,MATCH('Solde d''heure collaborateur'!D$2,Horaires!$H$3:$H$40,0),4),IF(D21="maladie",INDEX(Horaires!$H$3:$L$42,MATCH('Solde d''heure collaborateur'!D$2,Horaires!$H$3:$H$40,0),5),VLOOKUP(C21,Horaires!$A$3:$E$60,5,))) -> 0 | G21: =INDEX(Planning!$5:$5,MATCH('Solde d''heure collaborateur'!A21,Planning!$3:$3)) -> Pom1 | H21: =VLOOKUP(G21,Horaires!$A$3:$E$49,2,) -> Pommier | I21: =IF(H21="vacances",INDEX(Horaires!$H$3:$L$42,MATCH('Solde d''heure collaborateur'!H$2,Horaires!$H$3:$H$40,0),4),IF(H21="maladie",INDEX(Horaires!$H$3:$L$42,MATCH('Solde d''heure collaborateur'!H$2,Horaires!$H$3:$H$40,0),5),VLOOKUP(G21,Horaires!$A$3:$E$60,5,))) -> 0.4479166667 | K21: =INDEX(Planning!$6:$6,MATCH('Solde d''heure collaborateur'!A21,Planning!$3:$3)) -> M | L21: =VLOOKUP(K21,Horaires!$A$3:$E$49,2,) -> Maladie | M21: =IF(L21="vacances",INDEX(Horaires!$H$3:$L$42,MATCH('Solde d''heure collaborateur'!L$2,Horaires!$H$3:$H$40,0),4),IF(L21="maladie",INDEX(Horaires!$H$3:$L$42,MATCH('Solde d''heure collaborateur'!L$2,Horaires!$H$3:$H$40,0),5),VLOOKUP(K21,Horaires!$A$3:$E$60,5,))) -> 0.4375 | O21: =INDEX(Planning!$7:$7,MATCH('Solde d''heure collaborateur'!$A21,Planning!$3:$3)) -> Vib1 | P21: =VLOOKUP(O21,Horaires!$A$3:$E$49,2,) -> Vibert | Q21: =IF(P21="vacances",INDEX(Horaires!$H$3:$L$42,MATCH('Solde d''heure collaborateur'!P$2,Horaires!$H$3:$H$40,0),4),IF(P21="maladie",INDEX(Horaires!$H$3:$L$42,MATCH('Solde d''heure collaborateur'!P$2,Horaires!$H$3:$H$40,0),5),VLOOKUP(O21,Horaires!$A$3:$E$60,5,))) -> 0.46875 | S21: =INDEX(Planning!$8:$8,MATCH('Solde d''heure collaborateur'!$A21,Planning!$3:$3)) -> Onex1 | T21: =VLOOKUP(S21,Horaires!$A$3:$E$49,2,) -> Onex | U21: =IF(T21="vacances",INDEX(Horaires!$H$3:$L$42,MATCH('Solde d''heure collaborateur'!T$2,Horaires!$H$3:$H$40,0),4),IF(T21="maladie",INDEX(Horaires!$H$3:$L$42,MATCH('Solde d''heure collaborateur'!T$2,Horaires!$H$3:$H$40,0),5),VLOOKUP(S21,Horaires!$A$3:$E$60,5,))) -> 0.46875 | W21: =INDEX(Planning!$9:$9,MATCH('Solde d''heure collaborateur'!$A21,Planning!$3:$3)) -> X | X21: =VLOOKUP(W21,Horaires!$A$3:$E$49,2,) -> XXX | Y21: =IF(X21="vacances",INDEX(Horaires!$H$3:$L$42,MATCH('Solde d''heure collaborateur'!X$2,Horaires!$H$3:$H$40,0),4),IF(X21="maladie",INDEX(Horaires!$H$3:$L$42,MATCH('Solde d''heure collaborateur'!X$2,Horaires!$H$3:$H$40,0),5),VLOOKUP(W21,Horaires!$A$3:$E$60,5,))) -> 0 | AA21: =INDEX(Planning!$10:$10,MATCH('Solde d''heure collaborateur'!$A21,Planning!$3:$3)) -> R | AB21: =VLOOKUP(AA21,Horaires!$A$3:$E$49,2,) -> Congé | AC21: =IF(AB21="vacances",INDEX(Horaires!$H$3:$L$42,MATCH('Solde d''heure collaborateur'!AB$2,Horaires!$H$3:$H$40,0),4),IF(AB21="maladie",INDEX(Horaires!$H$3:$L$42,MATCH('Solde d''heure collaborateur'!AB$2,Horaires!$H$3:$H$40,0),5),VLOOKUP(AA21,Horaires!$A$3:$E$60,5,))) -> 0 | AE21: =INDEX(Planning!$11:$11,MATCH('Solde d''heure collaborateur'!$A21,Planning!$3:$3)) -> Plo1 | AF21: =VLOOKUP(AE21,Horaires!$A$3:$E$49,2,) -> Plan les Ouates | AG21: =IF(AF21="vacances",INDEX(Horaires!$H$3:$L$42,MATCH('Solde d''heure collaborateur'!AF$2,Horaires!$H$3:$H$40,0),4),IF(AF21="maladie",INDEX(Horaires!$H$3:$L$42,MATCH('Solde d''heure collaborateur'!AF$2,Horaires!$H$3:$H$40,0),5),VLOOKUP(AE21,Horaires!$A$3:$E$60,5,))) -> 0.46875 | AI21: =INDEX(Planning!$12:$12,MATCH('Solde d''heure collaborateur'!$A21,Planning!$3:$3)) -> Thon1 | AJ21: =VLOOKUP(AI21,Horaires!$A$3:$E$49,2,) -> Thonex | AK21: =IF(AJ21="vacances",INDEX(Horaires!$H$3:$L$42,MATCH('Solde d''heure collaborateur'!AJ$2,Horaires!$H$3:$H$40,0),4),IF(AJ21="maladie",INDEX(Horaires!$H$3:$L$42,MATCH('Solde d''heure collaborateur'!AJ$2,Horaires!$H$3:$H$40,0),5),VLOOKUP(AI21,Horaires!$A$3:$E$60,5,))) -> 0.4479166667 | AM21: =INDEX(Planning!$13:$13,MATCH('Solde d''heure collaborateur'!$A21,Planning!$3:$3)) -> R | AN21: =VLOOKUP(AM21,Horaires!$A$3:$E$49,2,) -> Congé | AO21: =IF(AN21="vacances",INDEX(Horaires!$H$3:$L$42,MATCH('Solde d''heure collaborateur'!AN$2,Horaires!$H$3:$H$40,0),4),IF(AN21="maladie",INDEX(Horaires!$H$3:$L$42,MATCH('Solde d''heure collaborateur'!AN$2,Horaires!$H$3:$H$40,0),5),VLOOKUP(AM21,Horaires!$A$3:$E$60,5,))) -> 0 | AQ21: =INDEX(Planning!$14:$14,MATCH('Solde d''heure collaborateur'!$A21,Planning!$3:$3)) -> X | AR21: =VLOOKUP(AQ21,Horaires!$A$3:$E$49,2,) -> XXX | AS21: =IF(AR21="vacances",INDEX(Horaires!$H$3:$L$42,MATCH('Solde d''heure collaborateur'!AR$2,Horaires!$H$3:$H$40,0),4),IF(AR21="maladie",INDEX(Horaires!$H$3:$L$42,MATCH('Solde d''heure collaborateur'!AR$2,Horaires!$H$3:$H$40,0),5),VLOOKUP(AQ21,Horaires!$A$3:$E$60,5,))) -> 0 | AU21: =INDEX(Planning!$15:$15,MATCH('Solde d''heure collaborateur'!$A21,Planning!$3:$3)) -> R | AV21: =VLOOKUP(AU21,Horaires!$A$3:$E$49,2,) -> Congé | AW21: =IF(AV21="vacances",INDEX(Horaires!$H$3:$L$42,MATCH('Solde d''heure collaborateur'!AV$2,Horaires!$H$3:$H$40,0),4),IF(AV21="maladie",INDEX(Horaires!$H$3:$L$42,MATCH('Solde d''heure collaborateur'!AV$2,Horaires!$H$3:$H$40,0),5),VLOOKUP(AU21,Horaires!$A$3:$E$60,5,))) -> 0 | AY21: =INDEX(Planning!$16:$16,MATCH('Solde d''heure collaborateur'!$A21,Planning!$3:$3)) -> Nyon1 | AZ21: =VLOOKUP(AY21,Horaires!$A$3:$E$49,2,) -> Nyon | BA21: =IF(AZ21="vacances",INDEX(Horaires!$H$3:$L$42,MATCH('Solde d''heure collaborateur'!AZ$2,Horaires!$H$3:$H$40,0),4),IF(AZ21="maladie",INDEX(Horaires!$H$3:$L$42,MATCH('Solde d''heure collaborateur'!AZ$2,Horaires!$H$3:$H$40,0),5),VLOOKUP(AY21,Horaires!$A$3:$E$60,5,))) -> 0.4479166667 | BC21: =INDEX(Planning!$17:$17,MATCH('Solde d''heure collaborateur'!$A21,Planning!$3:$3)) -> R | BD21: =VLOOKUP(BC21,Horaires!$A$3:$E$49,2,) -> Congé | BE21: =IF(BD21="vacances",INDEX(Horaires!$H$3:$L$42,MATCH('Solde d''heure collaborateur'!BD$2,Horaires!$H$3:$H$40,0),4),IF(BD21="maladie",INDEX(Horaires!$H$3:$L$42,MATCH('Solde d''heure collaborateur'!BD$2,Horaires!$H$3:$H$40,0),5),VLOOKUP(BC21,Horaires!$A$3:$E$60,5,))) -> 0 | BG21: =INDEX(Planning!$18:$18,MATCH('Solde d''heure collaborateur'!$A21,Planning!$3:$3)) -> nav1 | BH21: =VLOOKUP(BG21,Horaires!$A$3:$E$49,2,) -> Navigation | BI21: =IF(BH21="vacances",INDEX(Horaires!$H$3:$L$42,MATCH('Solde d''heure collaborateur'!BH$2,Horaires!$H$3:$H$40,0),4),IF(BH21="maladie",INDEX(Horaires!$H$3:$L$42,MATCH('Solde d''heure collaborateur'!BH$2,Horaires!$H$3:$H$40,0),5),VLOOKUP(BG21,Horaires!$A$3:$E$60,5,))) -> 0.4479166667 | BK21: =INDEX(Planning!$19:$19,MATCH('Solde d''heure collaborateur'!$A21,Planning!$3:$3)) -> R | BL21: =VLOOKUP(BK21,Horaires!$A$3:$E$49,2,) -> Congé | BM21: =IF(BL21="vacances",INDEX(Horaires!$H$3:$L$42,MATCH('Solde d''heure collaborateur'!BL$2,Horaires!$H$3:$H$40,0),4),IF(BL21="maladie",INDEX(Horaires!$H$3:$L$42,MATCH('Solde d''heure collaborateur'!BL$2,Horaires!$H$3:$H$40,0),5),VLOOKUP(BK21,Horaires!$A$3:$E$60,5,))) -> 0 | BO21: =INDEX(Planning!$20:$20,MATCH('Solde d''heure collaborateur'!$A21,Planning!$3:$3)) -> Aca1 | BP21: =VLOOKUP(BO21,Horaires!$A$3:$E$49,2,) -> Acacias | BQ21: =IF(BP21="vacances",INDEX(Horaires!$H$3:$L$42,MATCH('Solde d''heure collaborateur'!BP$2,Horaires!$H$3:$H$40,0),4),IF(BP21="maladie",INDEX(Horaires!$H$3:$L$42,MATCH('Solde d''heure collaborateur'!BP$2,Horaires!$H$3:$H$40,0),5),VLOOKUP(BO21,Horaires!$A$3:$E$60,5,))) -> 0.4479166667 | BS21: =INDEX(Planning!$21:$21,MATCH('Solde d''heure collaborateur'!$A21,Planning!$3:$3)) -> R | BT21: =VLOOKUP(BS21,Horaires!$A$3:$E$49,2,) -> Congé | BU21: =IF(BT21="vacances",INDEX(Horaires!$H$3:$L$42,MATCH('Solde d''heure collaborateur'!BT$2,Horaires!$H$3:$H$40,0),4),IF(BT21="maladie",INDEX(Horaires!$H$3:$L$42,MATCH('Solde d''heure collaborateur'!BT$2,Horaires!$H$3:$H$40,0),5),VLOOKUP(BS21,Horaires!$A$3:$E$60,5,))) -> 0 | BW21: =INDEX(Planning!$22:$22,MATCH('Solde d''heure collaborateur'!$A21,Planning!$3:$3)) -> Ves1 | BX21: =VLOOKUP(BW21,Horaires!$A$3:$E$49,2,) -> Vesenaz | BY21: =IF(BX21="vacances",INDEX(Horaires!$H$3:$L$42,MATCH('Solde d''heure collaborateur'!BX$2,Horaires!$H$3:$H$40,0),4),IF(BX21="maladie",INDEX(Horaires!$H$3:$L$42,MATCH('Solde d''heure collaborateur'!BX$2,Horaires!$H$3:$H$40,0),5),VLOOKUP(BW21,Horaires!$A$3:$E$60,5,))) -> 0.4479166667 | CA21: =INDEX(Planning!$23:$23,MATCH('Solde d''heure collaborateur'!$A21,Planning!$3:$3)) -> R | CB21: =VLOOKUP(CA21,Horaires!$A$3:$E$49,2,) -> Congé | CC21: =IF(CB21="vacances",INDEX(Horaires!$H$3:$L$42,MATCH('Solde d''heure collaborateur'!CB$2,Horaires!$H$3:$H$40,0),4),IF(CB21="maladie",INDEX(Horaires!$H$3:$L$42,MATCH('Solde d''heure collaborateur'!CB$2,Horaires!$H$3:$H$40,0),5),VLOOKUP(CA21,Horaires!$A$3:$E$60,5,))) -> 0 | CE21: =INDEX(Planning!$24:$24,MATCH('Solde d''heure collaborateur'!$A21,Planning!$3:$3)) -> onex1 | CF21: =VLOOKUP(CE21,Horaires!$A$3:$E$49,2,) -> Onex | CG21: =IF(CF21="vacances",INDEX(Horaires!$H$3:$L$42,MATCH('Solde d''heure collaborateur'!CF$2,Horaires!$H$3:$H$40,0),4),IF(CF21="maladie",INDEX(Horaires!$H$3:$L$42,MATCH('Solde d''heure collaborateur'!CF$2,Horaires!$H$3:$H$40,0),5),VLOOKUP(CE21,Horaires!$A$3:$E$60,5,))) -> 0.46875 | CI21: =INDEX(Planning!$25:$25,MATCH('Solde d''heure collaborateur'!$A21,Planning!$3:$3)) -> X | CJ21: =VLOOKUP(CI21,Horaires!$A$3:$E$49,2,) -> XXX | CK21: =IF(CJ21="vacances",INDEX(Horaires!$H$3:$L$42,MATCH('Solde d''heure collaborateur'!CJ$2,Horaires!$H$3:$H$40,0),4),IF(CJ21="maladie",INDEX(Horaires!$H$3:$L$42,MATCH('Solde d''heure collaborateur'!CJ$2,Horaires!$H$3:$H$40,0),5),VLOOKUP(CI21,Horaires!$A$3:$E$60,5,))) -> 0 | CM21: =INDEX(Planning!$26:$26,MATCH('Solde d''heure collaborateur'!$A21,Planning!$3:$3)) -> Vid1 | CN21: =VLOOKUP(CM21,Horaires!$A$3:$E$49,2,) -> Vidollet | CO21: =IF(CN21="vacances",INDEX(Horaires!$H$3:$L$42,MATCH('Solde d''heure collaborateur'!CN$2,Horaires!$H$3:$H$40,0),4),IF(CN21="maladie",INDEX(Horaires!$H$3:$L$42,MATCH('Solde d''heure collaborateur'!CN$2,Horaires!$H$3:$H$40,0),5),VLOOKUP(CM21,Horaires!$A$3:$E$60,5,))) -> 0.4479166667 | CQ21: =INDEX(Planning!$27:$27,MATCH('Solde d''heure collaborateur'!$A21,Planning!$3:$3)) -> Vib1 | CR21: =VLOOKUP(CQ21,Horaires!$A$3:$E$49,2,) -> Vibert | CS21: =IF(CR21="vacances",INDEX(Horaires!$H$3:$L$42,MATCH('Solde d''heure collaborateur'!CR$2,Horaires!$H$3:$H$40,0),4),IF(CR21="maladie",INDEX(Horaires!$H$3:$L$42,MATCH('Solde d''heure collaborateur'!CR$2,Horaires!$H$3:$H$40,0),5),VLOOKUP(CQ21,Horaires!$A$3:$E$60,5,))) -> 0.46875 | CU21: =INDEX(Planning!$28:$28,MATCH('Solde d''heure collaborateur'!$A21,Planning!$3:$3)) -> tour1 | CV21: =VLOOKUP(CU21,Horaires!$A$3:$E$49,2,) -> Tourelle | CW21: =IF(CV21="vacances",INDEX(Horaires!$H$3:$L$42,MATCH('Solde d''heure collaborateur'!CV$2,Horaires!$H$3:$H$40,0),4),IF(CV21="maladie",INDEX(Horaires!$H$3:$L$42,MATCH('Solde d''heure collaborateur'!CV$2,Horaires!$H$3:$H$40,0),5),VLOOKUP(CU21,Horaires!$A$3:$E$60,5,))) -> 0.46875 | CY21: =INDEX(Planning!$29:$29,MATCH('Solde d''heure collaborateur'!$A21,Planning!$3:$3)) -> X | CZ21: =VLOOKUP(CY21,Horaires!$A$3:$E$49,2,) -> XXX | DA21: =IF(CZ21="vacances",INDEX(Horaires!$H$3:$L$42,MATCH('Solde d''heure collaborateur'!CZ$2,Horaires!$H$3:$H$40,0),4),IF(CZ21="maladie",INDEX(Horaires!$H$3:$L$42,MATCH('Solde d''heure collaborateur'!CZ$2,Horaires!$H$3:$H$40,0),5),VLOOKUP(CY21,Horaires!$A$3:$E$60,5,))) -> 0 | DC21: =INDEX(Planning!$30:$30,MATCH('Solde d''heure collaborateur'!$A21,Planning!$3:$3)) -> X | DD21: =VLOOKUP(DC21,Horaires!$A$3:$E$49,2,) -> XXX | DE21: =IF(DD21="vacances",INDEX(Horaires!$H$3:$L$42,MATCH('Solde d''heure collaborateur'!DD$2,Horaires!$H$3:$H$40,0),4),IF(DD21="maladie",INDEX(Horaires!$H$3:$L$42,MATCH('Solde d''heure collaborateur'!DD$2,Horaires!$H$3:$H$40,0),5),VLOOKUP(DC21,Horaires!$A$3:$E$60,5,))) -> 0 | DG21: =INDEX(Planning!$31:$31,MATCH('Solde d''heure collaborateur'!$A21,Planning!$3:$3)) -> X | DH21: =VLOOKUP(DG21,Horaires!$A$3:$E$49,2,) -> XXX | DI21: =IF(DH21="vacances",INDEX(Horaires!$H$3:$L$42,MATCH('Solde d''heure collaborateur'!DH$2,Horaires!$H$3:$H$40,0),4),IF(DH21="maladie",INDEX(Horaires!$H$3:$L$42,MATCH('Solde d''heure collaborateur'!DH$2,Horaires!$H$3:$H$40,0),5),VLOOKUP(DG21,Horaires!$A$3:$E$60,5,))) -> 0 | DK21: =INDEX(Planning!$32:$32,MATCH('Solde d''heure collaborateur'!$A21,Planning!$3:$3)) -> X | DL21: =VLOOKUP(DK21,Horaires!$A$3:$E$49,2,) -> XXX | DM21: =IF(DL21="vacances",INDEX(Horaires!$H$3:$L$42,MATCH('Solde d''heure collaborateur'!DL$2,Horaires!$H$3:$H$40,0),4),IF(DL21="maladie",INDEX(Horaires!$H$3:$L$42,MATCH('Solde d''heure collaborateur'!DL$2,Horaires!$H$3:$H$40,0),5),VLOOKUP(DK21,Horaires!$A$3:$E$60,5,))) -> 0 | DO21: =INDEX(Planning!$33:$33,MATCH('Solde d''heure collaborateur'!$A21,Planning!$3:$3)) -> X | DP21: =VLOOKUP(DO21,Horaires!$A$3:$E$49,2,) -> XXX | DQ21: =IF(DP21="vacances",INDEX(Horaires!$H$3:$L$42,MATCH('Solde d''heure collaborateur'!DP$2,Horaires!$H$3:$H$40,0),4),IF(DP21="maladie",INDEX(Horaires!$H$3:$L$42,MATCH('Solde d''heure collaborateur'!DP$2,Horaires!$H$3:$H$40,0),5),VLOOKUP(DO21,Horaires!$A$3:$E$60,5,))) -> 0 | DS21: =INDEX(Planning!$34:$34,MATCH('Solde d''heure collaborateur'!$A21,Planning!$3:$3)) -> X | DT21: =VLOOKUP(DS21,Horaires!$A$3:$E$49,2,) -> XXX | DU21: =IF(DT21="vacances",INDEX(Horaires!$H$3:$L$42,MATCH('Solde d''heure collaborateur'!DT$2,Horaires!$H$3:$H$40,0),4),IF(DT21="maladie",INDEX(Horaires!$H$3:$L$42,MATCH('Solde d''heure collaborateur'!DT$2,Horaires!$H$3:$H$40,0),5),VLOOKUP(DS21,Horaires!$A$3:$E$60,5,))) -> 0 | DW21: =INDEX(Planning!$35:$35,MATCH('Solde d''heure collaborateur'!$A21,Planning!$3:$3)) -> X | DX21: =VLOOKUP(DW21,Horaires!$A$3:$E$49,2,) -> XXX | DY21: =IF(DX21="vacances",INDEX(Horaires!$H$3:$L$42,MATCH('Solde d''heure collaborateur'!DX$2,Horaires!$H$3:$H$40,0),4),IF(DX21="maladie",INDEX(Horaires!$H$3:$L$42,MATCH('Solde d''heure collaborateur'!DX$2,Horaires!$H$3:$H$40,0),5),VLOOKUP(DW21,Horaires!$A$3:$E$60,5,))) -> 0
A22: =A21+1 -> 2013-11-20 | C22: =INDEX(Planning!$4:$4,MATCH('Solde d''heure collaborateur'!A22,Planning!$3:$3,0)) -> Nav1 | D22: =VLOOKUP(C22,Horaires!$A$3:$E$49,2,) -> Navigation | E22: =IF(D22="vacances",INDEX(Horaires!$H$3:$L$42,MATCH('Solde d''heure collaborateur'!D$2,Horaires!$H$3:$H$40,0),4),IF(D22="maladie",INDEX(Horaires!$H$3:$L$42,MATCH('Solde d''heure collaborateur'!D$2,Horaires!$H$3:$H$40,0),5),VLOOKUP(C22,Horaires!$A$3:$E$60,5,))) -> 0.4479166667 | G22: =INDEX(Planning!$5:$5,MATCH('Solde d''heure collaborateur'!A22,Planning!$3:$3)) -> R | H22: =VLOOKUP(G22,Horaires!$A$3:$E$49,2,) -> Congé | I22: =IF(H22="vacances",INDEX(Horaires!$H$3:$L$42,MATCH('Solde d''heure collaborateur'!H$2,Horaires!$H$3:$H$40,0),4),IF(H22="maladie",INDEX(Horaires!$H$3:$L$42,MATCH('Solde d''heure collaborateur'!H$2,Horaires!$H$3:$H$40,0),5),VLOOKUP(G22,Horaires!$A$3:$E$60,5,))) -> 0 | K22: =INDEX(Planning!$6:$6,MATCH('Solde d''heure collaborateur'!A22,Planning!$3:$3)) -> M | L22: =VLOOKUP(K22,Horaires!$A$3:$E$49,2,) -> Maladie | M22: =IF(L22="vacances",INDEX(Horaires!$H$3:$L$42,MATCH('Solde d''heure collaborateur'!L$2,Horaires!$H$3:$H$40,0),4),IF(L22="maladie",INDEX(Horaires!$H$3:$L$42,MATCH('Solde d''heure collaborateur'!L$2,Horaires!$H$3:$H$40,0),5),VLOOKUP(K22,Horaires!$A$3:$E$60,5,))) -> 0.4375 | O22: =INDEX(Planning!$7:$7,MATCH('Solde d''heure collaborateur'!$A22,Planning!$3:$3)) -> X | P22: =VLOOKUP(O22,Horaires!$A$3:$E$49,2,) -> XXX | Q22: =IF(P22="vacances",INDEX(Horaires!$H$3:$L$42,MATCH('Solde d''heure collaborateur'!P$2,Horaires!$H$3:$H$40,0),4),IF(P22="maladie",INDEX(Horaires!$H$3:$L$42,MATCH('Solde d''heure collaborateur'!P$2,Horaires!$H$3:$H$40,0),5),VLOOKUP(O22,Horaires!$A$3:$E$60,5,))) -> 0 | S22: =INDEX(Planning!$8:$8,MATCH('Solde d''heure collaborateur'!$A22,Planning!$3:$3)) -> Onex1 | T22: =VLOOKUP(S22,Horaires!$A$3:$E$49,2,) -> Onex | U22: =IF(T22="vacances",INDEX(Horaires!$H$3:$L$42,MATCH('Solde d''heure collaborateur'!T$2,Horaires!$H$3:$H$40,0),4),IF(T22="maladie",INDEX(Horaires!$H$3:$L$42,MATCH('Solde d''heure collaborateur'!T$2,Horaires!$H$3:$H$40,0),5),VLOOKUP(S22,Horaires!$A$3:$E$60,5,))) -> 0.46875 | W22: =INDEX(Planning!$9:$9,MATCH('Solde d''heure collaborateur'!$A22,Planning!$3:$3)) -> Onex1 | X22: =VLOOKUP(W22,Horaires!$A$3:$E$49,2,) -> Onex | Y22: =IF(X22="vacances",INDEX(Horaires!$H$3:$L$42,MATCH('Solde d''heure collaborateur'!X$2,Horaires!$H$3:$H$40,0),4),IF(X22="maladie",INDEX(Horaires!$H$3:$L$42,MATCH('Solde d''heure collaborateur'!X$2,Horaires!$H$3:$H$40,0),5),VLOOKUP(W22,Horaires!$A$3:$E$60,5,))) -> 0.46875 | AA22: =INDEX(Planning!$10:$10,MATCH('Solde d''heure collaborateur'!$A22,Planning!$3:$3)) -> tour1 | AB22: =VLOOKUP(AA22,Horaires!$A$3:$E$49,2,) -> Tourelle | AC22: =IF(AB22="vacances",INDEX(Horaires!$H$3:$L$42,MATCH('Solde d''heure collaborateur'!AB$2,Horaires!$H$3:$H$40,0),4),IF(AB22="maladie",INDEX(Horaires!$H$3:$L$42,MATCH('Solde d''heure collaborateur'!AB$2,Horaires!$H$3:$H$40,0),5),VLOOKUP(AA22,Horaires!$A$3:$E$60,5,))) -> 0.46875 | AE22: =INDEX(Planning!$11:$11,MATCH('Solde d''heure collaborateur'!$A22,Planning!$3:$3)) -> Plo1 | AF22: =VLOOKUP(AE22,Horaires!$A$3:$E$49,2,) -> Plan les Ouates | AG22: =IF(AF22="vacances",INDEX(Horaires!$H$3:$L$42,MATCH('Solde d''heure collaborateur'!AF$2,Horaires!$H$3:$H$40,0),4),IF(AF22="maladie",INDEX(Horaires!$H$3:$L$42,MATCH('Solde d''heure collaborateur'!AF$2,Horaires!$H$3:$H$40,0),5),VLOOKUP(AE22,Horaires!$A$3:$E$60,5,))) -> 0.46875 | AI22: =INDEX(Planning!$12:$12,MATCH('Solde d''heure collaborateur'!$A22,Planning!$3:$3)) -> R | AJ22: =VLOOKUP(AI22,Horaires!$A$3:$E$49,2,) -> Congé | AK22: =IF(AJ22="vacances",INDEX(Horaires!$H$3:$L$42,MATCH('Solde d''heure collaborateur'!AJ$2,Horaires!$H$3:$H$40,0),4),IF(AJ22="maladie",INDEX(Horaires!$H$3:$L$42,MATCH('Solde d''heure collaborateur'!AJ$2,Horaires!$H$3:$H$40,0),5),VLOOKUP(AI22,Horaires!$A$3:$E$60,5,))) -> 0 | AM22: =INDEX(Planning!$13:$13,MATCH('Solde d''heure collaborateur'!$A22,Planning!$3:$3)) -> ves1 | AN22: =VLOOKUP(AM22,Horaires!$A$3:$E$49,2,) -> Vesenaz | AO22: =IF(AN22="vacances",INDEX(Horaires!$H$3:$L$42,MATCH('Solde d''heure collaborateur'!AN$2,Horaires!$H$3:$H$40,0),4),IF(AN22="maladie",INDEX(Horaires!$H$3:$L$42,MATCH('Solde d''heure collaborateur'!AN$2,Horaires!$H$3:$H$40,0),5),VLOOKUP(AM22,Horaires!$A$3:$E$60,5,))) -> 0.4479166667 | AQ22: =INDEX(Planning!$14:$14,MATCH('Solde d''heure collaborateur'!$A22,Planning!$3:$3)) -> X | AR22: =VLOOKUP(AQ22,Horaires!$A$3:$E$49,2,) -> XXX | AS22: =IF(AR22="vacances",INDEX(Horaires!$H$3:$L$42,MATCH('Solde d''heure collaborateur'!AR$2,Horaires!$H$3:$H$40,0),4),IF(AR22="maladie",INDEX(Horaires!$H$3:$L$42,MATCH('Solde d''heure collaborateur'!AR$2,Horaires!$H$3:$H$40,0),5),VLOOKUP(AQ22,Horaires!$A$3:$E$60,5,))) -> 0 | AU22: =INDEX(Planning!$15:$15,MATCH('Solde d''heure collaborateur'!$A22,Planning!$3:$3)) -> Nyon1 | AV22: =VLOOKUP(AU22,Horaires!$A$3:$E$49,2,) -> Nyon | AW22: =IF(AV22="vacances",INDEX(Horaires!$H$3:$L$42,MATCH('Solde d''heure collaborateur'!AV$2,Horaires!$H$3:$H$40,0),4),IF(AV22="maladie",INDEX(Horaires!$H$3:$L$42,MATCH('Solde d''heure collaborateur'!AV$2,Horaires!$H$3:$H$40,0),5),VLOOKUP(AU22,Horaires!$A$3:$E$60,5,))) -> 0.4479166667 | AY22: =INDEX(Planning!$16:$16,MATCH('Solde d''heure collaborateur'!$A22,Planning!$3:$3)) -> R | AZ22: =VLOOKUP(AY22,Horaires!$A$3:$E$49,2,) -> Congé | BA22: =IF(AZ22="vacances",INDEX(Horaires!$H$3:$L$42,MATCH('Solde d''heure collaborateur'!AZ$2,Horaires!$H$3:$H$40,0),4),IF(AZ22="maladie",INDEX(Horaires!$H$3:$L$42,MATCH('Solde d''heure collaborateur'!AZ$2,Horaires!$H$3:$H$40,0),5),VLOOKUP(AY22,Horaires!$A$3:$E$60,5,))) -> 0 | BC22: =INDEX(Planning!$17:$17,MATCH('Solde d''heure collaborateur'!$A22,Planning!$3:$3)) -> R | BD22: =VLOOKUP(BC22,Horaires!$A$3:$E$49,2,) -> Congé | BE22: =IF(BD22="vacances",INDEX(Horaires!$H$3:$L$42,MATCH('Solde d''heure collaborateur'!BD$2,Horaires!$H$3:$H$40,0),4),IF(BD22="maladie",INDEX(Horaires!$H$3:$L$42,MATCH('Solde d''heure collaborateur'!BD$2,Horaires!$H$3:$H$40,0),5),VLOOKUP(BC22,Horaires!$A$3:$E$60,5,))) -> 0 | BG22: =INDEX(Planning!$18:$18,MATCH('Solde d''heure collaborateur'!$A22,Planning!$3:$3)) -> pom1 | BH22: =VLOOKUP(BG22,Horaires!$A$3:$E$49,2,) -> Pommier | BI22: =IF(BH22="vacances",INDEX(Horaires!$H$3:$L$42,MATCH('Solde d''heure collaborateur'!BH$2,Horaires!$H$3:$H$40,0),4),IF(BH22="maladie",INDEX(Horaires!$H$3:$L$42,MATCH('Solde d''heure collaborateur'!BH$2,Horaires!$H$3:$H$40,0),5),VLOOKUP(BG22,Horaires!$A$3:$E$60,5,))) -> 0.4479166667 | BK22: =INDEX(Planning!$19:$19,MATCH('Solde d''heure collaborateur'!$A22,Planning!$3:$3)) -> Vib1 | BL22: =VLOOKUP(BK22,Horaires!$A$3:$E$49,2,) -> Vibert | BM22: =IF(BL22="vacances",INDEX(Horaires!$H$3:$L$42,MATCH('Solde d''heure collaborateur'!BL$2,Horaires!$H$3:$H$40,0),4),IF(BL22="maladie",INDEX(Horaires!$H$3:$L$42,MATCH('Solde d''heure collaborateur'!BL$2,Horaires!$H$3:$H$40,0),5),VLOOKUP(BK22,Horaires!$A$3:$E$60,5,))) -> 0.46875 | BO22: =INDEX(Planning!$20:$20,MATCH('Solde d''heure collaborateur'!$A22,Planning!$3:$3)) -> Aca1 | BP22: =VLOOKUP(BO22,Horaires!$A$3:$E$49,2,) -> Acacias | BQ22: =IF(BP22="vacances",INDEX(Horaires!$H$3:$L$42,MATCH('Solde d''heure collaborateur'!BP$2,Horaires!$H$3:$H$40,0),4),IF(BP22="maladie",INDEX(Horaires!$H$3:$L$42,MATCH('Solde d''heure collaborateur'!BP$2,Horaires!$H$3:$H$40,0),5),VLOOKUP(BO22,Horaires!$A$3:$E$60,5,))) -> 0.4479166667 | BS22: =INDEX(Planning!$21:$21,MATCH('Solde d''heure collaborateur'!$A22,Planning!$3:$3)) -> recup | BT22: =VLOOKUP(BS22,Horaires!$A$3:$E$49,2,) -> Récupération | BU22: =IF(BT22="vacances",INDEX(Horaires!$H$3:$L$42,MATCH('Solde d''heure collaborateur'!BT$2,Horaires!$H$3:$H$40,0),4),IF(BT22="maladie",INDEX(Horaires!$H$3:$L$42,MATCH('Solde d''heure collaborateur'!BT$2,Horaires!$H$3:$H$40,0),5),VLOOKUP(BS22,Horaires!$A$3:$E$60,5,))) -> 0 | BW22: =INDEX(Planning!$22:$22,MATCH('Solde d''heure collaborateur'!$A22,Planning!$3:$3)) -> X | BX22: =VLOOKUP(BW22,Horaires!$A$3:$E$49,2,) -> XXX | BY22: =IF(BX22="vacances",INDEX(Horaires!$H$3:$L$42,MATCH('Solde d''heure collaborateur'!BX$2,Horaires!$H$3:$H$40,0),4),IF(BX22="maladie",INDEX(Horaires!$H$3:$L$42,MATCH('Solde d''heure collaborateur'!BX$2,Horaires!$H$3:$H$40,0),5),VLOOKUP(BW22,Horaires!$A$3:$E$60,5,))) -> 0 | CA22: =INDEX(Planning!$23:$23,MATCH('Solde d''heure collaborateur'!$A22,Planning!$3:$3)) -> R | CB22: =VLOOKUP(CA22,Horaires!$A$3:$E$49,2,) -> Congé | CC22: =IF(CB22="vacances",INDEX(Horaires!$H$3:$L$42,MATCH('Solde d''heure collaborateur'!CB$2,Horaires!$H$3:$H$40,0),4),IF(CB22="maladie",INDEX(Horaires!$H$3:$L$42,MATCH('Solde d''heure collaborateur'!CB$2,Horaires!$H$3:$H$40,0),5),VLOOKUP(CA22,Horaires!$A$3:$E$60,5,))) -> 0 | CE22: =INDEX(Planning!$24:$24,MATCH('Solde d''heure collaborateur'!$A22,Planning!$3:$3)) -> R | CF22: =VLOOKUP(CE22,Horaires!$A$3:$E$49,2,) -> Congé | CG22: =IF(CF22="vacances",INDEX(Horaires!$H$3:$L$42,MATCH('Solde d''heure collaborateur'!CF$2,Horaires!$H$3:$H$40,0),4),IF(CF22="maladie",INDEX(Horaires!$H$3:$L$42,MATCH('Solde d''heure collaborateur'!CF$2,Horaires!$H$3:$H$40,0),5),VLOOKUP(CE22,Horaires!$A$3:$E$60,5,))) -> 0 | CI22: =INDEX(Planning!$25:$25,MATCH('Solde d''heure collaborateur'!$A22,Planning!$3:$3)) -> X | CJ22: =VLOOKUP(CI22,Horaires!$A$3:$E$49,2,) -> XXX | CK22: =IF(CJ22="vacances",INDEX(Horaires!$H$3:$L$42,MATCH('Solde d''heure collaborateur'!CJ$2,Horaires!$H$3:$H$40,0),4),IF(CJ22="maladie",INDEX(Horaires!$H$3:$L$42,MATCH('Solde d''heure collaborateur'!CJ$2,Horaires!$H$3:$H$40,0),5),VLOOKUP(CI22,Horaires!$A$3:$E$60,5,))) -> 0 | CM22: =INDEX(Planning!$26:$26,MATCH('Solde d''heure collaborateur'!$A22,Planning!$3:$3)) -> Vid1 | CN22: =VLOOKUP(CM22,Horaires!$A$3:$E$49,2,) -> Vidollet | CO22: =IF(CN22="vacances",INDEX(Horaires!$H$3:$L$42,MATCH('Solde d''heure collaborateur'!CN$2,Horaires!$H$3:$H$40,0),4),IF(CN22="maladie",INDEX(Horaires!$H$3:$L$42,MATCH('Solde d''heure collaborateur'!CN$2,Horaires!$H$3:$H$40,0),5),VLOOKUP(CM22,Horaires!$A$3:$E$60,5,))) -> 0.4479166667 | CQ22: =INDEX(Planning!$27:$27,MATCH('Solde d''heure collaborateur'!$A22,Planning!$3:$3)) -> thon2 | CR22: =VLOOKUP(CQ22,Horaires!$A$3:$E$49,2,) -> Thonex | CS22: =IF(CR22="vacances",INDEX(Horaires!$H$3:$L$42,MATCH('Solde d''heure collaborateur'!CR$2,Horaires!$H$3:$H$40,0),4),IF(CR22="maladie",INDEX(Horaires!$H$3:$L$42,MATCH('Solde d''heure collaborateur'!CR$2,Horaires!$H$3:$H$40,0),5),VLOOKUP(CQ22,Horaires!$A$3:$E$60,5,))) -> 0.46875 | CU22: =INDEX(Planning!$28:$28,MATCH('Solde d''heure collaborateur'!$A22,Planning!$3:$3)) -> vib1 | CV22: =VLOOKUP(CU22,Horaires!$A$3:$E$49,2,) -> Vibert | CW22: =IF(CV22="vacances",INDEX(Horaires!$H$3:$L$42,MATCH('Solde d''heure collaborateur'!CV$2,Horaires!$H$3:$H$40,0),4),IF(CV22="maladie",INDEX(Horaires!$H$3:$L$42,MATCH('Solde d''heure collaborateur'!CV$2,Horaires!$H$3:$H$40,0),5),VLOOKUP(CU22,Horaires!$A$3:$E$60,5,))) -> 0.46875 | CY22: =INDEX(Planning!$29:$29,MATCH('Solde d''heure collaborateur'!$A22,Planning!$3:$3)) -> X | CZ22: =VLOOKUP(CY22,Horaires!$A$3:$E$49,2,) -> XXX | DA22: =IF(CZ22="vacances",INDEX(Horaires!$H$3:$L$42,MATCH('Solde d''heure collaborateur'!CZ$2,Horaires!$H$3:$H$40,0),4),IF(CZ22="maladie",INDEX(Horaires!$H$3:$L$42,MATCH('Solde d''heure collaborateur'!CZ$2,Horaires!$H$3:$H$40,0),5),VLOOKUP(CY22,Horaires!$A$3:$E$60,5,))) -> 0 | DC22: =INDEX(Planning!$30:$30,MATCH('Solde d''heure collaborateur'!$A22,Planning!$3:$3)) -> X | DD22: =VLOOKUP(DC22,Horaires!$A$3:$E$49,2,) -> XXX | DE22: =IF(DD22="vacances",INDEX(Horaires!$H$3:$L$42,MATCH('Solde d''heure collaborateur'!DD$2,Horaires!$H$3:$H$40,0),4),IF(DD22="maladie",INDEX(Horaires!$H$3:$L$42,MATCH('Solde d''heure collaborateur'!DD$2,Horaires!$H$3:$H$40,0),5),VLOOKUP(DC22,Horaires!$A$3:$E$60,5,))) -> 0 | DG22: =INDEX(Planning!$31:$31,MATCH('Solde d''heure collaborateur'!$A22,Planning!$3:$3)) -> X | DH22: =VLOOKUP(DG22,Horaires!$A$3:$E$49,2,) -> XXX | DI22: =IF(DH22="vacances",INDEX(Horaires!$H$3:$L$42,MATCH('Solde d''heure collaborateur'!DH$2,Horaires!$H$3:$H$40,0),4),IF(DH22="maladie",INDEX(Horaires!$H$3:$L$42,MATCH('Solde d''heure collaborateur'!DH$2,Horaires!$H$3:$H$40,0),5),VLOOKUP(DG22,Horaires!$A$3:$E$60,5,))) -> 0 | DK22: =INDEX(Planning!$32:$32,MATCH('Solde d''heure collaborateur'!$A22,Planning!$3:$3)) -> X | DL22: =VLOOKUP(DK22,Horaires!$A$3:$E$49,2,) -> XXX | DM22: =IF(DL22="vacances",INDEX(Horaires!$H$3:$L$42,MATCH('Solde d''heure collaborateur'!DL$2,Horaires!$H$3:$H$40,0),4),IF(DL22="maladie",INDEX(Horaires!$H$3:$L$42,MATCH('Solde d''heure collaborateur'!DL$2,Horaires!$H$3:$H$40,0),5),VLOOKUP(DK22,Horaires!$A$3:$E$60,5,))) -> 0 | DO22: =INDEX(Planning!$33:$33,MATCH('Solde d''heure collaborateur'!$A22,Planning!$3:$3)) -> X | DP22: =VLOOKUP(DO22,Horaires!$A$3:$E$49,2,) -> XXX | DQ22: =IF(DP22="vacances",INDEX(Horaires!$H$3:$L$42,MATCH('Solde d''heure collaborateur'!DP$2,Horaires!$H$3:$H$40,0),4),IF(DP22="maladie",INDEX(Horaires!$H$3:$L$42,MATCH('Solde d''heure collaborateur'!DP$2,Horaires!$H$3:$H$40,0),5),VLOOKUP(DO22,Horaires!$A$3:$E$60,5,))) -> 0 | DS22: =INDEX(Planning!$34:$34,MATCH('Solde d''heure collaborateur'!$A22,Planning!$3:$3)) -> X | DT22: =VLOOKUP(DS22,Horaires!$A$3:$E$49,2,) -> XXX | DU22: =IF(DT22="vacances",INDEX(Horaires!$H$3:$L$42,MATCH('Solde d''heure collaborateur'!DT$2,Horaires!$H$3:$H$40,0),4),IF(DT22="maladie",INDEX(Horaires!$H$3:$L$42,MATCH('Solde d''heure collaborateur'!DT$2,Horaires!$H$3:$H$40,0),5),VLOOKUP(DS22,Horaires!$A$3:$E$60,5,))) -> 0 | DW22: =INDEX(Planning!$35:$35,MATCH('Solde d''heure collaborateur'!$A22,Planning!$3:$3)) -> X | DX22: =VLOOKUP(DW22,Horaires!$A$3:$E$49,2,) -> XXX | DY22: =IF(DX22="vacances",INDEX(Horaires!$H$3:$L$42,MATCH('Solde d''heure collaborateur'!DX$2,Horaires!$H$3:$H$40,0),4),IF(DX22="maladie",INDEX(Horaires!$H$3:$L$42,MATCH('Solde d''heure collaborateur'!DX$2,Horaires!$H$3:$H$40,0),5),VLOOKUP(DW22,Horaires!$A$3:$E$60,5,))) -> 0
A23: =A22+1 -> 2013-11-21 | C23: =INDEX(Planning!$4:$4,MATCH('Solde d''heure collaborateur'!A23,Planning!$3:$3,0)) -> Nav2 | D23: =VLOOKUP(C23,Horaires!$A$3:$E$49,2,) -> Navigation | E23: =IF(D23="vacances",INDEX(Horaires!$H$3:$L$42,MATCH('Solde d''heure collaborateur'!D$2,Horaires!$H$3:$H$40,0),4),IF(D23="maladie",INDEX(Horaires!$H$3:$L$42,MATCH('Solde d''heure collaborateur'!D$2,Horaires!$H$3:$H$40,0),5),VLOOKUP(C23,Horaires!$A$3:$E$60,5,))) -> 0.46875 | G23: =INDEX(Planning!$5:$5,MATCH('Solde d''heure collaborateur'!A23,Planning!$3:$3)) -> Pom2 | H23: =VLOOKUP(G23,Horaires!$A$3:$E$49,2,) -> Pommier | I23: =IF(H23="vacances",INDEX(Horaires!$H$3:$L$42,MATCH('Solde d''heure collaborateur'!H$2,Horaires!$H$3:$H$40,0),4),IF(H23="maladie",INDEX(Horaires!$H$3:$L$42,MATCH('Solde d''heure collaborateur'!H$2,Horaires!$H$3:$H$40,0),5),VLOOKUP(G23,Horaires!$A$3:$E$60,5,))) -> 0.46875 | K23: =INDEX(Planning!$6:$6,MATCH('Solde d''heure collaborateur'!A23,Planning!$3:$3)) -> M | L23: =VLOOKUP(K23,Horaires!$A$3:$E$49,2,) -> Maladie | M23: =IF(L23="vacances",INDEX(Horaires!$H$3:$L$42,MATCH('Solde d''heure collaborateur'!L$2,Horaires!$H$3:$H$40,0),4),IF(L23="maladie",INDEX(Horaires!$H$3:$L$42,MATCH('Solde d''heure collaborateur'!L$2,Horaires!$H$3:$H$40,0),5),VLOOKUP(K23,Horaires!$A$3:$E$60,5,))) -> 0.4375 | O23: =INDEX(Planning!$7:$7,MATCH('Solde d''heure collaborateur'!$A23,Planning!$3:$3)) -> X | P23: =VLOOKUP(O23,Horaires!$A$3:$E$49,2,) -> XXX | Q23: =IF(P23="vacances",INDEX(Horaires!$H$3:$L$42,MATCH('Solde d''heure collaborateur'!P$2,Horaires!$H$3:$H$40,0),4),IF(P23="maladie",INDEX(Horaires!$H$3:$L$42,MATCH('Solde d''heure collaborateur'!P$2,Horaires!$H$3:$H$40,0),5),VLOOKUP(O23,Horaires!$A$3:$E$60,5,))) -> 0 | S23: =INDEX(Planning!$8:$8,MATCH('Solde d''heure collaborateur'!$A23,Planning!$3:$3)) -> Onex2 | T23: =VLOOKUP(S23,Horaires!$A$3:$E$49,2,) -> Onex | U23: =IF(T23="vacances",INDEX(Horaires!$H$3:$L$42,MATCH('Solde d''heure collaborateur'!T$2,Horaires!$H$3:$H$40,0),4),IF(T23="maladie",INDEX(Horaires!$H$3:$L$42,MATCH('Solde d''heure collaborateur'!T$2,Horaires!$H$3:$H$40,0),5),VLOOKUP(S23,Horaires!$A$3:$E$60,5,))) -> 0.4895833333 | W23: =INDEX(Planning!$9:$9,MATCH('Solde d''heure collaborateur'!$A23,Planning!$3:$3)) -> X | X23: =VLOOKUP(W23,Horaires!$A$3:$E$49,2,) -> XXX | Y23: =IF(X23="vacances",INDEX(Horaires!$H$3:$L$42,MATCH('Solde d''heure collaborateur'!X$2,Horaires!$H$3:$H$40,0),4),IF(X23="maladie",INDEX(Horaires!$H$3:$L$42,MATCH('Solde d''heure collaborateur'!X$2,Horaires!$H$3:$H$40,0),5),VLOOKUP(W23,Horaires!$A$3:$E$60,5,))) -> 0 | AA23: =INDEX(Planning!$10:$10,MATCH('Solde d''heure collaborateur'!$A23,Planning!$3:$3)) -> tour2 | AB23: =VLOOKUP(AA23,Horaires!$A$3:$E$49,2,) -> Tourelle | AC23: =IF(AB23="vacances",INDEX(Horaires!$H$3:$L$42,MATCH('Solde d''heure collaborateur'!AB$2,Horaires!$H$3:$H$40,0),4),IF(AB23="maladie",INDEX(Horaires!$H$3:$L$42,MATCH('Solde d''heure collaborateur'!AB$2,Horaires!$H$3:$H$40,0),5),VLOOKUP(AA23,Horaires!$A$3:$E$60,5,))) -> 0.4895833333 | AE23: =INDEX(Planning!$11:$11,MATCH('Solde d''heure collaborateur'!$A23,Planning!$3:$3)) -> R | AF23: =VLOOKUP(AE23,Horaires!$A$3:$E$49,2,) -> Congé | AG23: =IF(AF23="vacances",INDEX(Horaires!$H$3:$L$42,MATCH('Solde d''heure collaborateur'!AF$2,Horaires!$H$3:$H$40,0),4),IF(AF23="maladie",INDEX(Horaires!$H$3:$L$42,MATCH('Solde d''heure collaborateur'!AF$2,Horaires!$H$3:$H$40,0),5),VLOOKUP(AE23,Horaires!$A$3:$E$60,5,))) -> 0 | AI23: =INDEX(Planning!$12:$12,MATCH('Solde d''heure collaborateur'!$A23,Planning!$3:$3)) -> Thon2 | AJ23: =VLOOKUP(AI23,Horaires!$A$3:$E$49,2,) -> Thonex | AK23: =IF(AJ23="vacances",INDEX(Horaires!$H$3:$L$42,MATCH('Solde d''heure collaborateur'!AJ$2,Horaires!$H$3:$H$40,0),4),IF(AJ23="maladie",INDEX(Horaires!$H$3:$L$42,MATCH('Solde d''heure collaborateur'!AJ$2,Horaires!$H$3:$H$40,0),5),VLOOKUP(AI23,Horaires!$A$3:$E$60,5,))) -> 0.46875 | AM23: =INDEX(Planning!$13:$13,MATCH('Solde d''heure collaborateur'!$A23,Planning!$3:$3)) -> R | AN23: =VLOOKUP(AM23,Horaires!$A$3:$E$49,2,) -> Congé | AO23: =IF(AN23="vacances",INDEX(Horaires!$H$3:$L$42,MATCH('Solde d''heure collaborateur'!AN$2,Horaires!$H$3:$H$40,0),4),IF(AN23="maladie",INDEX(Horaires!$H$3:$L$42,MATCH('Solde d''heure collaborateur'!AN$2,Horaires!$H$3:$H$40,0),5),VLOOKUP(AM23,Horaires!$A$3:$E$60,5,))) -> 0 | AQ23: =INDEX(Planning!$14:$14,MATCH('Solde d''heure collaborateur'!$A23,Planning!$3:$3)) -> X | AR23: =VLOOKUP(AQ23,Horaires!$A$3:$E$49,2,) -> XXX | AS23: =IF(AR23="vacances",INDEX(Horaires!$H$3:$L$42,MATCH('Solde d''heure collaborateur'!AR$2,Horaires!$H$3:$H$40,0),4),IF(AR23="maladie",INDEX(Horaires!$H$3:$L$42,MATCH('Solde d''heure collaborateur'!AR$2,Horaires!$H$3:$H$40,0),5),VLOOKUP(AQ23,Horaires!$A$3:$E$60,5,))) -> 0 | AU23: =INDEX(Planning!$15:$15,MATCH('Solde d''heure collaborateur'!$A23,Planning!$3:$3)) -> Nyon1 | AV23: =VLOOKUP(AU23,Horaires!$A$3:$E$49,2,) -> Nyon | AW23: =IF(AV23="vacances",INDEX(Horaires!$H$3:$L$42,MATCH('Solde d''heure collaborateur'!AV$2,Horaires!$H$3:$H$40,0),4),IF(AV23="maladie",INDEX(Horaires!$H$3:$L$42,MATCH('Solde d''heure collaborateur'!AV$2,Horaires!$H$3:$H$40,0),5),VLOOKUP(AU23,Horaires!$A$3:$E$60,5,))) -> 0.4479166667 | AY23: =INDEX(Planning!$16:$16,MATCH('Solde d''heure collaborateur'!$A23,Planning!$3:$3)) -> R | AZ23: =VLOOKUP(AY23,Horaires!$A$3:$E$49,2,) -> Congé | BA23: =IF(AZ23="vacances",INDEX(Horaires!$H$3:$L$42,MATCH('Solde d''heure collaborateur'!AZ$2,Horaires!$H$3:$H$40,0),4),IF(AZ23="maladie",INDEX(Horaires!$H$3:$L$42,MATCH('Solde d''heure collaborateur'!AZ$2,Horaires!$H$3:$H$40,0),5),VLOOKUP(AY23,Horaires!$A$3:$E$60,5,))) -> 0 | BC23: =INDEX(Planning!$17:$17,MATCH('Solde d''heure collaborateur'!$A23,Planning!$3:$3)) -> vibferm | BD23: =VLOOKUP(BC23,Horaires!$A$3:$E$49,2,) -> Vibert ferm | BE23: =IF(BD23="vacances",INDEX(Horaires!$H$3:$L$42,MATCH('Solde d''heure collaborateur'!BD$2,Horaires!$H$3:$H$40,0),4),IF(BD23="maladie",INDEX(Horaires!$H$3:$L$42,MATCH('Solde d''heure collaborateur'!BD$2,Horaires!$H$3:$H$40,0),5),VLOOKUP(BC23,Horaires!$A$3:$E$60,5,))) -> 0.4270833333 | BG23: =INDEX(Planning!$18:$18,MATCH('Solde d''heure collaborateur'!$A23,Planning!$3:$3)) -> Recup | BH23: =VLOOKUP(BG23,Horaires!$A$3:$E$49,2,) -> Récupération | BI23: =IF(BH23="vacances",INDEX(Horaires!$H$3:$L$42,MATCH('Solde d''heure collaborateur'!BH$2,Horaires!$H$3:$H$40,0),4),IF(BH23="maladie",INDEX(Horaires!$H$3:$L$42,MATCH('Solde d''heure collaborateur'!BH$2,Horaires!$H$3:$H$40,0),5),VLOOKUP(BG23,Horaires!$A$3:$E$60,5,))) -> 0 | BK23: =INDEX(Planning!$19:$19,MATCH('Solde d''heure collaborateur'!$A23,Planning!$3:$3)) -> Vibjeu | BL23: =VLOOKUP(BK23,Horaires!$A$3:$E$49,2,) -> Vibert | BM23: =IF(BL23="vacances",INDEX(Horaires!$H$3:$L$42,MATCH('Solde d''heure collaborateur'!BL$2,Horaires!$H$3:$H$40,0),4),IF(BL23="maladie",INDEX(Horaires!$H$3:$L$42,MATCH('Solde d''heure collaborateur'!BL$2,Horaires!$H$3:$H$40,0),5),VLOOKUP(BK23,Horaires!$A$3:$E$60,5,))) -> 0.4583333333 | BO23: =INDEX(Planning!$20:$20,MATCH('Solde d''heure collaborateur'!$A23,Planning!$3:$3)) -> Aca2 | BP23: =VLOOKUP(BO23,Horaires!$A$3:$E$49,2,) -> Acacias | BQ23: =IF(BP23="vacances",INDEX(Horaires!$H$3:$L$42,MATCH('Solde d''heure collaborateur'!BP$2,Horaires!$H$3:$H$40,0),4),IF(BP23="maladie",INDEX(Horaires!$H$3:$L$42,MATCH('Solde d''heure collaborateur'!BP$2,Horaires!$H$3:$H$40,0),5),VLOOKUP(BO23,Horaires!$A$3:$E$60,5,))) -> 0.46875 | BS23: =INDEX(Planning!$21:$21,MATCH('Solde d''heure collaborateur'!$A23,Planning!$3:$3)) -> Ves2 | BT23: =VLOOKUP(BS23,Horaires!$A$3:$E$49,2,) -> Vesenaz | BU23: =IF(BT23="vacances",INDEX(Horaires!$H$3:$L$42,MATCH('Solde d''heure collaborateur'!BT$2,Horaires!$H$3:$H$40,0),4),IF(BT23="maladie",INDEX(Horaires!$H$3:$L$42,MATCH('Solde d''heure collaborateur'!BT$2,Horaires!$H$3:$H$40,0),5),VLOOKUP(BS23,Horaires!$A$3:$E$60,5,))) -> 0.46875 | BW23: =INDEX(Planning!$22:$22,MATCH('Solde d''heure collaborateur'!$A23,Planning!$3:$3)) -> X | BX23: =VLOOKUP(BW23,Horaires!$A$3:$E$49,2,) -> XXX | BY23: =IF(BX23="vacances",INDEX(Horaires!$H$3:$L$42,MATCH('Solde d''heure collaborateur'!BX$2,Horaires!$H$3:$H$40,0),4),IF(BX23="maladie",INDEX(Horaires!$H$3:$L$42,MATCH('Solde d''heure collaborateur'!BX$2,Horaires!$H$3:$H$40,0),5),VLOOKUP(BW23,Horaires!$A$3:$E$60,5,))) -> 0 | CA23: =INDEX(Planning!$23:$23,MATCH('Solde d''heure collaborateur'!$A23,Planning!$3:$3)) -> Plo2 | CB23: =VLOOKUP(CA23,Horaires!$A$3:$E$49,2,) -> Plan les Ouates | CC23: =IF(CB23="vacances",INDEX(Horaires!$H$3:$L$42,MATCH('Solde d''heure collaborateur'!CB$2,Horaires!$H$3:$H$40,0),4),IF(CB23="maladie",INDEX(Horaires!$H$3:$L$42,MATCH('Solde d''heure collaborateur'!CB$2,Horaires!$H$3:$H$40,0),5),VLOOKUP(CA23,Horaires!$A$3:$E$60,5,))) -> 0.4895833333 | CE23: =INDEX(Planning!$24:$24,MATCH('Solde d''heure collaborateur'!$A23,Planning!$3:$3)) -> Onex2 | CF23: =VLOOKUP(CE23,Horaires!$A$3:$E$49,2,) -> Onex | CG23: =IF(CF23="vacances",INDEX(Horaires!$H$3:$L$42,MATCH('Solde d''heure collaborateur'!CF$2,Horaires!$H$3:$H$40,0),4),IF(CF23="maladie",INDEX(Horaires!$H$3:$L$42,MATCH('Solde d''heure collaborateur'!CF$2,Horaires!$H$3:$H$40,0),5),VLOOKUP(CE23,Horaires!$A$3:$E$60,5,))) -> 0.4895833333 | CI23: =INDEX(Planning!$25:$25,MATCH('Solde d''heure collaborateur'!$A23,Planning!$3:$3)) -> X | CJ23: =VLOOKUP(CI23,Horaires!$A$3:$E$49,2,) -> XXX | CK23: =IF(CJ23="vacances",INDEX(Horaires!$H$3:$L$42,MATCH('Solde d''heure collaborateur'!CJ$2,Horaires!$H$3:$H$40,0),4),IF(CJ23="maladie",INDEX(Horaires!$H$3:$L$42,MATCH('Solde d''heure collaborateur'!CJ$2,Horaires!$H$3:$H$40,0),5),VLOOKUP(CI23,Horaires!$A$3:$E$60,5,))) -> 0 | CM23: =INDEX(Planning!$26:$26,MATCH('Solde d''heure collaborateur'!$A23,Planning!$3:$3)) -> Vid2 | CN23: =VLOOKUP(CM23,Horaires!$A$3:$E$49,2,) -> Vidollet | CO23: =IF(CN23="vacances",INDEX(Horaires!$H$3:$L$42,MATCH('Solde d''heure collaborateur'!CN$2,Horaires!$H$3:$H$40,0),4),IF(CN23="maladie",INDEX(Horaires!$H$3:$L$42,MATCH('Solde d''heure collaborateur'!CN$2,Horaires!$H$3:$H$40,0),5),VLOOKUP(CM23,Horaires!$A$3:$E$60,5,))) -> 0.46875 | CQ23: =INDEX(Planning!$27:$27,MATCH('Solde d''heure collaborateur'!$A23,Planning!$3:$3)) -> R | CR23: =VLOOKUP(CQ23,Horaires!$A$3:$E$49,2,) -> Congé | CS23: =IF(CR23="vacances",INDEX(Horaires!$H$3:$L$42,MATCH('Solde d''heure collaborateur'!CR$2,Horaires!$H$3:$H$40,0),4),IF(CR23="maladie",INDEX(Horaires!$H$3:$L$42,MATCH('Solde d''heure collaborateur'!CR$2,Horaires!$H$3:$H$40,0),5),VLOOKUP(CQ23,Horaires!$A$3:$E$60,5,))) -> 0 | CU23: =INDEX(Planning!$28:$28,MATCH('Solde d''heure collaborateur'!$A23,Planning!$3:$3)) -> R | CV23: =VLOOKUP(CU23,Horaires!$A$3:$E$49,2,) -> Congé | CW23: =IF(CV23="vacances",INDEX(Horaires!$H$3:$L$42,MATCH('Solde d''heure collaborateur'!CV$2,Horaires!$H$3:$H$40,0),4),IF(CV23="maladie",INDEX(Horaires!$H$3:$L$42,MATCH('Solde d''heure collaborateur'!CV$2,Horaires!$H$3:$H$40,0),5),VLOOKUP(CU23,Horaires!$A$3:$E$60,5,))) -> 0 | CY23: =INDEX(Planning!$29:$29,MATCH('Solde d''heure collaborateur'!$A23,Planning!$3:$3)) -> X | CZ23: =VLOOKUP(CY23,Horaires!$A$3:$E$49,2,) -> XXX | DA23: =IF(CZ23="vacances",INDEX(Horaires!$H$3:$L$42,MATCH('Solde d''heure collaborateur'!CZ$2,Horaires!$H$3:$H$40,0),4),IF(CZ23="maladie",INDEX(Horaires!$H$3:$L$42,MATCH('Solde d''heure collaborateur'!CZ$2,Horaires!$H$3:$H$40,0),5),VLOOKUP(CY23,Horaires!$A$3:$E$60,5,))) -> 0 | DC23: =INDEX(Planning!$30:$30,MATCH('Solde d''heure collaborateur'!$A23,Planning!$3:$3)) -> X | DD23: =VLOOKUP(DC23,Horaires!$A$3:$E$49,2,) -> XXX | DE23: =IF(DD23="vacances",INDEX(Horaires!$H$3:$L$42,MATCH('Solde d''heure collaborateur'!DD$2,Horaires!$H$3:$H$40,0),4),IF(DD23="maladie",INDEX(Horaires!$H$3:$L$42,MATCH('Solde d''heure collaborateur'!DD$2,Horaires!$H$3:$H$40,0),5),VLOOKUP(DC23,Horaires!$A$3:$E$60,5,))) -> 0 | DG23: =INDEX(Planning!$31:$31,MATCH('Solde d''heure collaborateur'!$A23,Planning!$3:$3)) -> X | DH23: =VLOOKUP(DG23,Horaires!$A$3:$E$49,2,) -> XXX | DI23: =IF(DH23="vacances",INDEX(Horaires!$H$3:$L$42,MATCH('Solde d''heure collaborateur'!DH$2,Horaires!$H$3:$H$40,0),4),IF(DH23="maladie",INDEX(Horaires!$H$3:$L$42,MATCH('Solde d''heure collaborateur'!DH$2,Horaires!$H$3:$H$40,0),5),VLOOKUP(DG23,Horaires!$A$3:$E$60,5,))) -> 0 | DK23: =INDEX(Planning!$32:$32,MATCH('Solde d''heure collaborateur'!$A23,Planning!$3:$3)) -> X | DL23: =VLOOKUP(DK23,Horaires!$A$3:$E$49,2,) -> XXX | DM23: =IF(DL23="vacances",INDEX(Horaires!$H$3:$L$42,MATCH('Solde d''heure collaborateur'!DL$2,Horaires!$H$3:$H$40,0),4),IF(DL23="maladie",INDEX(Horaires!$H$3:$L$42,MATCH('Solde d''heure collaborateur'!DL$2,Horaires!$H$3:$H$40,0),5),VLOOKUP(DK23,Horaires!$A$3:$E$60,5,))) -> 0 | DO23: =INDEX(Planning!$33:$33,MATCH('Solde d''heure collaborateur'!$A23,Planning!$3:$3)) -> X | DP23: =VLOOKUP(DO23,Horaires!$A$3:$E$49,2,) -> XXX | DQ23: =IF(DP23="vacances",INDEX(Horaires!$H$3:$L$42,MATCH('Solde d''heure collaborateur'!DP$2,Horaires!$H$3:$H$40,0),4),IF(DP23="maladie",INDEX(Horaires!$H$3:$L$42,MATCH('Solde d''heure collaborateur'!DP$2,Horaires!$H$3:$H$40,0),5),VLOOKUP(DO23,Horaires!$A$3:$E$60,5,))) -> 0 | DS23: =INDEX(Planning!$34:$34,MATCH('Solde d''heure collaborateur'!$A23,Planning!$3:$3)) -> X | DT23: =VLOOKUP(DS23,Horaires!$A$3:$E$49,2,) -> XXX | DU23: =IF(DT23="vacances",INDEX(Horaires!$H$3:$L$42,MATCH('Solde d''heure collaborateur'!DT$2,Horaires!$H$3:$H$40,0),4),IF(DT23="maladie",INDEX(Horaires!$H$3:$L$42,MATCH('Solde d''heure collaborateur'!DT$2,Horaires!$H$3:$H$40,0),5),VLOOKUP(DS23,Horaires!$A$3:$E$60,5,))) -> 0 | DW23: =INDEX(Planning!$35:$35,MATCH('Solde d''heure collaborateur'!$A23,Planning!$3:$3)) -> X | DX23: =VLOOKUP(DW23,Horaires!$A$3:$E$49,2,) -> XXX | DY23: =IF(DX23="vacances",INDEX(Horaires!$H$3:$L$42,MATCH('Solde d''heure collaborateur'!DX$2,Horaires!$H$3:$H$40,0),4),IF(DX23="maladie",INDEX(Horaires!$H$3:$L$42,MATCH('Solde d''heure collaborateur'!DX$2,Horaires!$H$3:$H$40,0),5),VLOOKUP(DW23,Horaires!$A$3:$E$60,5,))) -> 0
A24: =A23+1 -> 2013-11-22 | C24: =INDEX(Planning!$4:$4,MATCH('Solde d''heure collaborateur'!A24,Planning!$3:$3,0)) -> Nav2 | D24: =VLOOKUP(C24,Horaires!$A$3:$E$49,2,) -> Navigation | E24: =IF(D24="vacances",INDEX(Horaires!$H$3:$L$42,MATCH('Solde d''heure collaborateur'!D$2,Horaires!$H$3:$H$40,0),4),IF(D24="maladie",INDEX(Horaires!$H$3:$L$42,MATCH('Solde d''heure collaborateur'!D$2,Horaires!$H$3:$H$40,0),5),VLOOKUP(C24,Horaires!$A$3:$E$60,5,))) -> 0.46875 | G24: =INDEX(Planning!$5:$5,MATCH('Solde d''heure collaborateur'!A24,Planning!$3:$3)) -> Pom2 | H24: =VLOOKUP(G24,Horaires!$A$3:$E$49,2,) -> Pommier | I24: =IF(H24="vacances",INDEX(Horaires!$H$3:$L$42,MATCH('Solde d''heure collaborateur'!H$2,Horaires!$H$3:$H$40,0),4),IF(H24="maladie",INDEX(Horaires!$H$3:$L$42,MATCH('Solde d''heure collaborateur'!H$2,Horaires!$H$3:$H$40,0),5),VLOOKUP(G24,Horaires!$A$3:$E$60,5,))) -> 0.46875 | K24: =INDEX(Planning!$6:$6,MATCH('Solde d''heure collaborateur'!A24,Planning!$3:$3)) -> R | L24: =VLOOKUP(K24,Horaires!$A$3:$E$49,2,) -> Congé | M24: =IF(L24="vacances",INDEX(Horaires!$H$3:$L$42,MATCH('Solde d''heure collaborateur'!L$2,Horaires!$H$3:$H$40,0),4),IF(L24="maladie",INDEX(Horaires!$H$3:$L$42,MATCH('Solde d''heure collaborateur'!L$2,Horaires!$H$3:$H$40,0),5),VLOOKUP(K24,Horaires!$A$3:$E$60,5,))) -> 0 | O24: =INDEX(Planning!$7:$7,MATCH('Solde d''heure collaborateur'!$A24,Planning!$3:$3)) -> X | P24: =VLOOKUP(O24,Horaires!$A$3:$E$49,2,) -> XXX | Q24: =IF(P24="vacances",INDEX(Horaires!$H$3:$L$42,MATCH('Solde d''heure collaborateur'!P$2,Horaires!$H$3:$H$40,0),4),IF(P24="maladie",INDEX(Horaires!$H$3:$L$42,MATCH('Solde d''heure collaborateur'!P$2,Horaires!$H$3:$H$40,0),5),VLOOKUP(O24,Horaires!$A$3:$E$60,5,))) -> 0 | S24: =INDEX(Planning!$8:$8,MATCH('Solde d''heure collaborateur'!$A24,Planning!$3:$3)) -> R | T24: =VLOOKUP(S24,Horaires!$A$3:$E$49,2,) -> Congé | U24: =IF(T24="vacances",INDEX(Horaires!$H$3:$L$42,MATCH('Solde d''heure collaborateur'!T$2,Horaires!$H$3:$H$40,0),4),IF(T24="maladie",INDEX(Horaires!$H$3:$L$42,MATCH('Solde d''heure collaborateur'!T$2,Horaires!$H$3:$H$40,0),5),VLOOKUP(S24,Horaires!$A$3:$E$60,5,))) -> 0 | W24: =INDEX(Planning!$9:$9,MATCH('Solde d''heure collaborateur'!$A24,Planning!$3:$3)) -> X | X24: =VLOOKUP(W24,Horaires!$A$3:$E$49,2,) -> XXX | Y24: =IF(X24="vacances",INDEX(Horaires!$H$3:$L$42,MATCH('Solde d''heure collaborateur'!X$2,Horaires!$H$3:$H$40,0),4),IF(X24="maladie",INDEX(Horaires!$H$3:$L$42,MATCH('Solde d''heure collaborateur'!X$2,Horaires!$H$3:$H$40,0),5),VLOOKUP(W24,Horaires!$A$3:$E$60,5,))) -> 0 | AA24: =INDEX(Planning!$10:$10,MATCH('Solde d''heure collaborateur'!$A24,Planning!$3:$3)) -> onex2 | AB24: =VLOOKUP(AA24,Horaires!$A$3:$E$49,2,) -> Onex | AC24: =IF(AB24="vacances",INDEX(Horaires!$H$3:$L$42,MATCH('Solde d''heure collaborateur'!AB$2,Horaires!$H$3:$H$40,0),4),IF(AB24="maladie",INDEX(Horaires!$H$3:$L$42,MATCH('Solde d''heure collaborateur'!AB$2,Horaires!$H$3:$H$40,0),5),VLOOKUP(AA24,Horaires!$A$3:$E$60,5,))) -> 0.4895833333 | AE24: =INDEX(Planning!$11:$11,MATCH('Solde d''heure collaborateur'!$A24,Planning!$3:$3)) -> Plo2 | AF24: =VLOOKUP(AE24,Horaires!$A$3:$E$49,2,) -> Plan les Ouates | AG24: =IF(AF24="vacances",INDEX(Horaires!$H$3:$L$42,MATCH('Solde d''heure collaborateur'!AF$2,Horaires!$H$3:$H$40,0),4),IF(AF24="maladie",INDEX(Horaires!$H$3:$L$42,MATCH('Solde d''heure collaborateur'!AF$2,Horaires!$H$3:$H$40,0),5),VLOOKUP(AE24,Horaires!$A$3:$E$60,5,))) -> 0.4895833333 | AI24: =INDEX(Planning!$12:$12,MATCH('Solde d''heure collaborateur'!$A24,Planning!$3:$3)) -> R | AJ24: =VLOOKUP(AI24,Horaires!$A$3:$E$49,2,) -> Congé | AK24: =IF(AJ24="vacances",INDEX(Horaires!$H$3:$L$42,MATCH('Solde d''heure collaborateur'!AJ$2,Horaires!$H$3:$H$40,0),4),IF(AJ24="maladie",INDEX(Horaires!$H$3:$L$42,MATCH('Solde d''heure collaborateur'!AJ$2,Horaires!$H$3:$H$40,0),5),VLOOKUP(AI24,Horaires!$A$3:$E$60,5,))) -> 0 | AM24: =INDEX(Planning!$13:$13,MATCH('Solde d''heure collaborateur'!$A24,Planning!$3:$3)) -> thon2 | AN24: =VLOOKUP(AM24,Horaires!$A$3:$E$49,2,) -> Thonex | AO24: =IF(AN24="vacances",INDEX(Horaires!$H$3:$L$42,MATCH('Solde d''heure collaborateur'!AN$2,Horaires!$H$3:$H$40,0),4),IF(AN24="maladie",INDEX(Horaires!$H$3:$L$42,MATCH('Solde d''heure collaborateur'!AN$2,Horaires!$H$3:$H$40,0),5),VLOOKUP(AM24,Horaires!$A$3:$E$60,5,))) -> 0.46875 | AQ24: =INDEX(Planning!$14:$14,MATCH('Solde d''heure collaborateur'!$A24,Planning!$3:$3)) -> M | AR24: =VLOOKUP(AQ24,Horaires!$A$3:$E$49,2,) -> Maladie | AS24: =IF(AR24="vacances",INDEX(Horaires!$H$3:$L$42,MATCH('Solde d''heure collaborateur'!AR$2,Horaires!$H$3:$H$40,0),4),IF(AR24="maladie",INDEX(Horaires!$H$3:$L$42,MATCH('Solde d''heure collaborateur'!AR$2,Horaires!$H$3:$H$40,0),5),VLOOKUP(AQ24,Horaires!$A$3:$E$60,5,))) -> 0.4618055556 | AU24: =INDEX(Planning!$15:$15,MATCH('Solde d''heure collaborateur'!$A24,Planning!$3:$3)) -> Nyon1 | AV24: =VLOOKUP(AU24,Horaires!$A$3:$E$49,2,) -> Nyon | AW24: =IF(AV24="vacances",INDEX(Horaires!$H$3:$L$42,MATCH('Solde d''heure collaborateur'!AV$2,Horaires!$H$3:$H$40,0),4),IF(AV24="maladie",INDEX(Horaires!$H$3:$L$42,MATCH('Solde d''heure collaborateur'!AV$2,Horaires!$H$3:$H$40,0),5),VLOOKUP(AU24,Horaires!$A$3:$E$60,5,))) -> 0.4479166667 | AY24: =INDEX(Planning!$16:$16,MATCH('Solde d''heure collaborateur'!$A24,Planning!$3:$3)) -> recup | AZ24: =VLOOKUP(AY24,Horaires!$A$3:$E$49,2,) -> Récupération | BA24: =IF(AZ24="vacances",INDEX(Horaires!$H$3:$L$42,MATCH('Solde d''heure collaborateur'!AZ$2,Horaires!$H$3:$H$40,0),4),IF(AZ24="maladie",INDEX(Horaires!$H$3:$L$42,MATCH('Solde d''heure collaborateur'!AZ$2,Horaires!$H$3:$H$40,0),5),VLOOKUP(AY24,Horaires!$A$3:$E$60,5,))) -> 0 | BC24: =INDEX(Planning!$17:$17,MATCH('Solde d''heure collaborateur'!$A24,Planning!$3:$3)) -> vib2 | BD24: =VLOOKUP(BC24,Horaires!$A$3:$E$49,2,) -> Vibert | BE24: =IF(BD24="vacances",INDEX(Horaires!$H$3:$L$42,MATCH('Solde d''heure collaborateur'!BD$2,Horaires!$H$3:$H$40,0),4),IF(BD24="maladie",INDEX(Horaires!$H$3:$L$42,MATCH('Solde d''heure collaborateur'!BD$2,Horaires!$H$3:$H$40,0),5),VLOOKUP(BC24,Horaires!$A$3:$E$60,5,))) -> 0.4895833333 | BG24: =INDEX(Planning!$18:$18,MATCH('Solde d''heure collaborateur'!$A24,Planning!$3:$3)) -> R | BH24: =VLOOKUP(BG24,Horaires!$A$3:$E$49,2,) -> Congé | BI24: =IF(BH24="vacances",INDEX(Horaires!$H$3:$L$42,MATCH('Solde d''heure collaborateur'!BH$2,Horaires!$H$3:$H$40,0),4),IF(BH24="maladie",INDEX(Horaires!$H$3:$L$42,MATCH('Solde d''heure collaborateur'!BH$2,Horaires!$H$3:$H$40,0),5),VLOOKUP(BG24,Horaires!$A$3:$E$60,5,))) -> 0 | BK24: =INDEX(Planning!$19:$19,MATCH('Solde d''heure collaborateur'!$A24,Planning!$3:$3)) -> Vib2 | BL24: =VLOOKUP(BK24,Horaires!$A$3:$E$49,2,) -> Vibert | BM24: =IF(BL24="vacances",INDEX(Horaires!$H$3:$L$42,MATCH('Solde d''heure collaborateur'!BL$2,Horaires!$H$3:$H$40,0),4),IF(BL24="maladie",INDEX(Horaires!$H$3:$L$42,MATCH('Solde d''heure collaborateur'!BL$2,Horaires!$H$3:$H$40,0),5),VLOOKUP(BK24,Horaires!$A$3:$E$60,5,))) -> 0.4895833333 | BO24: =INDEX(Planning!$20:$20,MATCH('Solde d''heure collaborateur'!$A24,Planning!$3:$3)) -> R | BP24: =VLOOKUP(BO24,Horaires!$A$3:$E$49,2,) -> Congé | BQ24: =IF(BP24="vacances",INDEX(Horaires!$H$3:$L$42,MATCH('Solde d''heure collaborateur'!BP$2,Horaires!$H$3:$H$40,0),4),IF(BP24="maladie",INDEX(Horaires!$H$3:$L$42,MATCH('Solde d''heure collaborateur'!BP$2,Horaires!$H$3:$H$40,0),5),VLOOKUP(BO24,Horaires!$A$3:$E$60,5,))) -> 0 | BS24: =INDEX(Planning!$21:$21,MATCH('Solde d''heure collaborateur'!$A24,Planning!$3:$3)) -> Ves2 | BT24: =VLOOKUP(BS24,Horaires!$A$3:$E$49,2,) -> Vesenaz | BU24: =IF(BT24="vacances",INDEX(Horaires!$H$3:$L$42,MATCH('Solde d''heure collaborateur'!BT$2,Horaires!$H$3:$H$40,0),4),IF(BT24="maladie",INDEX(Horaires!$H$3:$L$42,MATCH('Solde d''heure collaborateur'!BT$2,Horaires!$H$3:$H$40,0),5),VLOOKUP(BS24,Horaires!$A$3:$E$60,5,))) -> 0.46875 | BW24: =INDEX(Planning!$22:$22,MATCH('Solde d''heure collaborateur'!$A24,Planning!$3:$3)) -> X | BX24: =VLOOKUP(BW24,Horaires!$A$3:$E$49,2,) -> XXX | BY24: =IF(BX24="vacances",INDEX(Horaires!$H$3:$L$42,MATCH('Solde d''heure collaborateur'!BX$2,Horaires!$H$3:$H$40,0),4),IF(BX24="maladie",INDEX(Horaires!$H$3:$L$42,MATCH('Solde d''heure collaborateur'!BX$2,Horaires!$H$3:$H$40,0),5),VLOOKUP(BW24,Horaires!$A$3:$E$60,5,))) -> 0 | CA24: =INDEX(Planning!$23:$23,MATCH('Solde d''heure collaborateur'!$A24,Planning!$3:$3)) -> Aca2 | CB24: =VLOOKUP(CA24,Horaires!$A$3:$E$49,2,) -> Acacias | CC24: =IF(CB24="vacances",INDEX(Horaires!$H$3:$L$42,MATCH('Solde d''heure collaborateur'!CB$2,Horaires!$H$3:$H$40,0),4),IF(CB24="maladie",INDEX(Horaires!$H$3:$L$42,MATCH('Solde d''heure collaborateur'!CB$2,Horaires!$H$3:$H$40,0),5),VLOOKUP(CA24,Horaires!$A$3:$E$60,5,))) -> 0.46875 | CE24: =INDEX(Planning!$24:$24,MATCH('Solde d''heure collaborateur'!$A24,Planning!$3:$3)) -> onex2 | CF24: =VLOOKUP(CE24,Horaires!$A$3:$E$49,2,) -> Onex | CG24: =IF(CF24="vacances",INDEX(Horaires!$H$3:$L$42,MATCH('Solde d''heure collaborateur'!CF$2,Horaires!$H$3:$H$40,0),4),IF(CF24="maladie",INDEX(Horaires!$H$3:$L$42,MATCH('Solde d''heure collaborateur'!CF$2,Horaires!$H$3:$H$40,0),5),VLOOKUP(CE24,Horaires!$A$3:$E$60,5,))) -> 0.4895833333 | CI24: =INDEX(Planning!$25:$25,MATCH('Solde d''heure collaborateur'!$A24,Planning!$3:$3)) -> X | CJ24: =VLOOKUP(CI24,Horaires!$A$3:$E$49,2,) -> XXX | CK24: =IF(CJ24="vacances",INDEX(Horaires!$H$3:$L$42,MATCH('Solde d''heure collaborateur'!CJ$2,Horaires!$H$3:$H$40,0),4),IF(CJ24="maladie",INDEX(Horaires!$H$3:$L$42,MATCH('Solde d''heure collaborateur'!CJ$2,Horaires!$H$3:$H$40,0),5),VLOOKUP(CI24,Horaires!$A$3:$E$60,5,))) -> 0 | CM24: =INDEX(Planning!$26:$26,MATCH('Solde d''heure collaborateur'!$A24,Planning!$3:$3)) -> R | CN24: =VLOOKUP(CM24,Horaires!$A$3:$E$49,2,) -> Congé | CO24: =IF(CN24="vacances",INDEX(Horaires!$H$3:$L$42,MATCH('Solde d''heure collaborateur'!CN$2,Horaires!$H$3:$H$40,0),4),IF(CN24="maladie",INDEX(Horaires!$H$3:$L$42,MATCH('Solde d''heure collaborateur'!CN$2,Horaires!$H$3:$H$40,0),5),VLOOKUP(CM24,Horaires!$A$3:$E$60,5,))) -> 0 | CQ24: =INDEX(Planning!$27:$27,MATCH('Solde d''heure collaborateur'!$A24,Planning!$3:$3)) -> recup | CR24: =VLOOKUP(CQ24,Horaires!$A$3:$E$49,2,) -> Récupération | CS24: =IF(CR24="vacances",INDEX(Horaires!$H$3:$L$42,MATCH('Solde d''heure collaborateur'!CR$2,Horaires!$H$3:$H$40,0),4),IF(CR24="maladie",INDEX(Horaires!$H$3:$L$42,MATCH('Solde d''heure collaborateur'!CR$2,Horaires!$H$3:$H$40,0),5),VLOOKUP(CQ24,Horaires!$A$3:$E$60,5,))) -> 0 | CU24: =INDEX(Planning!$28:$28,MATCH('Solde d''heure collaborateur'!$A24,Planning!$3:$3)) -> tour2 | CV24: =VLOOKUP(CU24,Horaires!$A$3:$E$49,2,) -> Tourelle | CW24: =IF(CV24="vacances",INDEX(Horaires!$H$3:$L$42,MATCH('Solde d''heure collaborateur'!CV$2,Horaires!$H$3:$H$40,0),4),IF(CV24="maladie",INDEX(Horaires!$H$3:$L$42,MATCH('Solde d''heure collaborateur'!CV$2,Horaires!$H$3:$H$40,0),5),VLOOKUP(CU24,Horaires!$A$3:$E$60,5,))) -> 0.4895833333 | CY24: =INDEX(Planning!$29:$29,MATCH('Solde d''heure collaborateur'!$A24,Planning!$3:$3)) -> vid2 | CZ24: =VLOOKUP(CY24,Horaires!$A$3:$E$49,2,) -> Vidollet | DA24: =IF(CZ24="vacances",INDEX(Horaires!$H$3:$L$42,MATCH('Solde d''heure collaborateur'!CZ$2,Horaires!$H$3:$H$40,0),4),IF(CZ24="maladie",INDEX(Horaires!$H$3:$L$42,MATCH('Solde d''heure collaborateur'!CZ$2,Horaires!$H$3:$H$40,0),5),VLOOKUP(CY24,Horaires!$A$3:$E$60,5,))) -> 0.46875 | DC24: =INDEX(Planning!$30:$30,MATCH('Solde d''heure collaborateur'!$A24,Planning!$3:$3)) -> X | DD24: =VLOOKUP(DC24,Horaires!$A$3:$E$49,2,) -> XXX | DE24: =IF(DD24="vacances",INDEX(Horaires!$H$3:$L$42,MATCH('Solde d''heure collaborateur'!DD$2,Horaires!$H$3:$H$40,0),4),IF(DD24="maladie",INDEX(Horaires!$H$3:$L$42,MATCH('Solde d''heure collaborateur'!DD$2,Horaires!$H$3:$H$40,0),5),VLOOKUP(DC24,Horaires!$A$3:$E$60,5,))) -> 0 | DG24: =INDEX(Planning!$31:$31,MATCH('Solde d''heure collaborateur'!$A24,Planning!$3:$3)) -> X | DH24: =VLOOKUP(DG24,Horaires!$A$3:$E$49,2,) -> XXX | DI24: =IF(DH24="vacances",INDEX(Horaires!$H$3:$L$42,MATCH('Solde d''heure collaborateur'!DH$2,Horaires!$H$3:$H$40,0),4),IF(DH24="maladie",INDEX(Horaires!$H$3:$L$42,MATCH('Solde d''heure collaborateur'!DH$2,Horaires!$H$3:$H$40,0),5),VLOOKUP(DG24,Horaires!$A$3:$E$60,5,))) -> 0 | DK24: =INDEX(Planning!$32:$32,MATCH('Solde d''heure collaborateur'!$A24,Planning!$3:$3)) -> X | DL24: =VLOOKUP(DK24,Horaires!$A$3:$E$49,2,) -> XXX | DM24: =IF(DL24="vacances",INDEX(Horaires!$H$3:$L$42,MATCH('Solde d''heure collaborateur'!DL$2,Horaires!$H$3:$H$40,0),4),IF(DL24="maladie",INDEX(Horaires!$H$3:$L$42,MATCH('Solde d''heure collaborateur'!DL$2,Horaires!$H$3:$H$40,0),5),VLOOKUP(DK24,Horaires!$A$3:$E$60,5,))) -> 0 | DO24: =INDEX(Planning!$33:$33,MATCH('Solde d''heure collaborateur'!$A24,Planning!$3:$3)) -> X | DP24: =VLOOKUP(DO24,Horaires!$A$3:$E$49,2,) -> XXX | DQ24: =IF(DP24="vacances",INDEX(Horaires!$H$3:$L$42,MATCH('Solde d''heure collaborateur'!DP$2,Horaires!$H$3:$H$40,0),4),IF(DP24="maladie",INDEX(Horaires!$H$3:$L$42,MATCH('Solde d''heure collaborateur'!DP$2,Horaires!$H$3:$H$40,0),5),VLOOKUP(DO24,Horaires!$A$3:$E$60,5,))) -> 0 | DS24: =INDEX(Planning!$34:$34,MATCH('Solde d''heure collaborateur'!$A24,Planning!$3:$3)) -> X | DT24: =VLOOKUP(DS24,Horaires!$A$3:$E$49,2,) -> XXX | DU24: =IF(DT24="vacances",INDEX(Horaires!$H$3:$L$42,MATCH('Solde d''heure collaborateur'!DT$2,Horaires!$H$3:$H$40,0),4),IF(DT24="maladie",INDEX(Horaires!$H$3:$L$42,MATCH('Solde d''heure collaborateur'!DT$2,Horaires!$H$3:$H$40,0),5),VLOOKUP(DS24,Horaires!$A$3:$E$60,5,))) -> 0 | DW24: =INDEX(Planning!$35:$35,MATCH('Solde d''heure collaborateur'!$A24,Planning!$3:$3)) -> X | DX24: =VLOOKUP(DW24,Horaires!$A$3:$E$49,2,) -> XXX | DY24: =IF(DX24="vacances",INDEX(Horaires!$H$3:$L$42,MATCH('Solde d''heure collaborateur'!DX$2,Horaires!$H$3:$H$40,0),4),IF(DX24="maladie",INDEX(Horaires!$H$3:$L$42,MATCH('Solde d''heure collaborateur'!DX$2,Horaires!$H$3:$H$40,0),5),VLOOKUP(DW24,Horaires!$A$3:$E$60,5,))) -> 0
A25: =A24+1 -> 2013-11-23 | C25: =INDEX(Planning!$4:$4,MATCH('Solde d''heure collaborateur'!A25,Planning!$3:$3,0)) -> Nav3 | D25: =VLOOKUP(C25,Horaires!$A$3:$E$49,2,) -> Navigation | E25: =IF(D25="vacances",INDEX(Horaires!$H$3:$L$42,MATCH('Solde d''heure collaborateur'!D$2,Horaires!$H$3:$H$40,0),4),IF(D25="maladie",INDEX(Horaires!$H$3:$L$42,MATCH('Solde d''heure collaborateur'!D$2,Horaires!$H$3:$H$40,0),5),VLOOKUP(C25,Horaires!$A$3:$E$60,5,))) -> 0.40625 | G25: =INDEX(Planning!$5:$5,MATCH('Solde d''heure collaborateur'!A25,Planning!$3:$3)) -> Pom3 | H25: =VLOOKUP(G25,Horaires!$A$3:$E$49,2,) -> Pommier | I25: =IF(H25="vacances",INDEX(Horaires!$H$3:$L$42,MATCH('Solde d''heure collaborateur'!H$2,Horaires!$H$3:$H$40,0),4),IF(H25="maladie",INDEX(Horaires!$H$3:$L$42,MATCH('Solde d''heure collaborateur'!H$2,Horaires!$H$3:$H$40,0),5),VLOOKUP(G25,Horaires!$A$3:$E$60,5,))) -> 0.4270833333 | K25: =INDEX(Planning!$6:$6,MATCH('Solde d''heure collaborateur'!A25,Planning!$3:$3)) -> R | L25: =VLOOKUP(K25,Horaires!$A$3:$E$49,2,) -> Congé | M25: =IF(L25="vacances",INDEX(Horaires!$H$3:$L$42,MATCH('Solde d''heure collaborateur'!L$2,Horaires!$H$3:$H$40,0),4),IF(L25="maladie",INDEX(Horaires!$H$3:$L$42,MATCH('Solde d''heure collaborateur'!L$2,Horaires!$H$3:$H$40,0),5),VLOOKUP(K25,Horaires!$A$3:$E$60,5,))) -> 0 | O25: =INDEX(Planning!$7:$7,MATCH('Solde d''heure collaborateur'!$A25,Planning!$3:$3)) -> X | P25: =VLOOKUP(O25,Horaires!$A$3:$E$49,2,) -> XXX | Q25: =IF(P25="vacances",INDEX(Horaires!$H$3:$L$42,MATCH('Solde d''heure collaborateur'!P$2,Horaires!$H$3:$H$40,0),4),IF(P25="maladie",INDEX(Horaires!$H$3:$L$42,MATCH('Solde d''heure collaborateur'!P$2,Horaires!$H$3:$H$40,0),5),VLOOKUP(O25,Horaires!$A$3:$E$60,5,))) -> 0 | S25: =INDEX(Planning!$8:$8,MATCH('Solde d''heure collaborateur'!$A25,Planning!$3:$3)) -> R | T25: =VLOOKUP(S25,Horaires!$A$3:$E$49,2,) -> Congé | U25: =IF(T25="vacances",INDEX(Horaires!$H$3:$L$42,MATCH('Solde d''heure collaborateur'!T$2,Horaires!$H$3:$H$40,0),4),IF(T25="maladie",INDEX(Horaires!$H$3:$L$42,MATCH('Solde d''heure collaborateur'!T$2,Horaires!$H$3:$H$40,0),5),VLOOKUP(S25,Horaires!$A$3:$E$60,5,))) -> 0 | W25: =INDEX(Planning!$9:$9,MATCH('Solde d''heure collaborateur'!$A25,Planning!$3:$3)) -> X | X25: =VLOOKUP(W25,Horaires!$A$3:$E$49,2,) -> XXX | Y25: =IF(X25="vacances",INDEX(Horaires!$H$3:$L$42,MATCH('Solde d''heure collaborateur'!X$2,Horaires!$H$3:$H$40,0),4),IF(X25="maladie",INDEX(Horaires!$H$3:$L$42,MATCH('Solde d''heure collaborateur'!X$2,Horaires!$H$3:$H$40,0),5),VLOOKUP(W25,Horaires!$A$3:$E$60,5,))) -> 0 | AA25: =INDEX(Planning!$10:$10,MATCH('Solde d''heure collaborateur'!$A25,Planning!$3:$3)) -> onex3 | AB25: =VLOOKUP(AA25,Horaires!$A$3:$E$49,2,) -> Onex | AC25: =IF(AB25="vacances",INDEX(Horaires!$H$3:$L$42,MATCH('Solde d''heure collaborateur'!AB$2,Horaires!$H$3:$H$40,0),4),IF(AB25="maladie",INDEX(Horaires!$H$3:$L$42,MATCH('Solde d''heure collaborateur'!AB$2,Horaires!$H$3:$H$40,0),5),VLOOKUP(AA25,Horaires!$A$3:$E$60,5,))) -> 0.4270833333 | AE25: =INDEX(Planning!$11:$11,MATCH('Solde d''heure collaborateur'!$A25,Planning!$3:$3)) -> Plo3 | AF25: =VLOOKUP(AE25,Horaires!$A$3:$E$49,2,) -> Plan les Ouates | AG25: =IF(AF25="vacances",INDEX(Horaires!$H$3:$L$42,MATCH('Solde d''heure collaborateur'!AF$2,Horaires!$H$3:$H$40,0),4),IF(AF25="maladie",INDEX(Horaires!$H$3:$L$42,MATCH('Solde d''heure collaborateur'!AF$2,Horaires!$H$3:$H$40,0),5),VLOOKUP(AE25,Horaires!$A$3:$E$60,5,))) -> 0.4270833333 | AI25: =INDEX(Planning!$12:$12,MATCH('Solde d''heure collaborateur'!$A25,Planning!$3:$3)) -> Thon3 | AJ25: =VLOOKUP(AI25,Horaires!$A$3:$E$49,2,) -> Thonex | AK25: =IF(AJ25="vacances",INDEX(Horaires!$H$3:$L$42,MATCH('Solde d''heure collaborateur'!AJ$2,Horaires!$H$3:$H$40,0),4),IF(AJ25="maladie",INDEX(Horaires!$H$3:$L$42,MATCH('Solde d''heure collaborateur'!AJ$2,Horaires!$H$3:$H$40,0),5),VLOOKUP(AI25,Horaires!$A$3:$E$60,5,))) -> 0.40625 | AM25: =INDEX(Planning!$13:$13,MATCH('Solde d''heure collaborateur'!$A25,Planning!$3:$3)) -> Vib3 | AN25: =VLOOKUP(AM25,Horaires!$A$3:$E$49,2,) -> Vibert | AO25: =IF(AN25="vacances",INDEX(Horaires!$H$3:$L$42,MATCH('Solde d''heure collaborateur'!AN$2,Horaires!$H$3:$H$40,0),4),IF(AN25="maladie",INDEX(Horaires!$H$3:$L$42,MATCH('Solde d''heure collaborateur'!AN$2,Horaires!$H$3:$H$40,0),5),VLOOKUP(AM25,Horaires!$A$3:$E$60,5,))) -> 0.4270833333 | AQ25: =INDEX(Planning!$14:$14,MATCH('Solde d''heure collaborateur'!$A25,Planning!$3:$3)) -> M | AR25: =VLOOKUP(AQ25,Horaires!$A$3:$E$49,2,) -> Maladie | AS25: =IF(AR25="vacances",INDEX(Horaires!$H$3:$L$42,MATCH('Solde d''heure collaborateur'!AR$2,Horaires!$H$3:$H$40,0),4),IF(AR25="maladie",INDEX(Horaires!$H$3:$L$42,MATCH('Solde d''heure collaborateur'!AR$2,Horaires!$H$3:$H$40,0),5),VLOOKUP(AQ25,Horaires!$A$3:$E$60,5,))) -> 0.4618055556 | AU25: =INDEX(Planning!$15:$15,MATCH('Solde d''heure collaborateur'!$A25,Planning!$3:$3)) -> Nyon2 | AV25: =VLOOKUP(AU25,Horaires!$A$3:$E$49,2,) -> Nyon | AW25: =IF(AV25="vacances",INDEX(Horaires!$H$3:$L$42,MATCH('Solde d''heure collaborateur'!AV$2,Horaires!$H$3:$H$40,0),4),IF(AV25="maladie",INDEX(Horaires!$H$3:$L$42,MATCH('Solde d''heure collaborateur'!AV$2,Horaires!$H$3:$H$40,0),5),VLOOKUP(AU25,Horaires!$A$3:$E$60,5,))) -> 0.40625 | AY25: =INDEX(Planning!$16:$16,MATCH('Solde d''heure collaborateur'!$A25,Planning!$3:$3)) -> Vid3 | AZ25: =VLOOKUP(AY25,Horaires!$A$3:$E$49,2,) -> Vidollet | BA25: =IF(AZ25="vacances",INDEX(Horaires!$H$3:$L$42,MATCH('Solde d''heure collaborateur'!AZ$2,Horaires!$H$3:$H$40,0),4),IF(AZ25="maladie",INDEX(Horaires!$H$3:$L$42,MATCH('Solde d''heure collaborateur'!AZ$2,Horaires!$H$3:$H$40,0),5),VLOOKUP(AY25,Horaires!$A$3:$E$60,5,))) -> 0.40625 | BC25: =INDEX(Planning!$17:$17,MATCH('Solde d''heure collaborateur'!$A25,Planning!$3:$3)) -> nav3 | BD25: =VLOOKUP(BC25,Horaires!$A$3:$E$49,2,) -> Navigation | BE25: =IF(BD25="vacances",INDEX(Horaires!$H$3:$L$42,MATCH('Solde d''heure collaborateur'!BD$2,Horaires!$H$3:$H$40,0),4),IF(BD25="maladie",INDEX(Horaires!$H$3:$L$42,MATCH('Solde d''heure collaborateur'!BD$2,Horaires!$H$3:$H$40,0),5),VLOOKUP(BC25,Horaires!$A$3:$E$60,5,))) -> 0.40625 | BG25: =INDEX(Planning!$18:$18,MATCH('Solde d''heure collaborateur'!$A25,Planning!$3:$3)) -> R | BH25: =VLOOKUP(BG25,Horaires!$A$3:$E$49,2,) -> Congé | BI25: =IF(BH25="vacances",INDEX(Horaires!$H$3:$L$42,MATCH('Solde d''heure collaborateur'!BH$2,Horaires!$H$3:$H$40,0),4),IF(BH25="maladie",INDEX(Horaires!$H$3:$L$42,MATCH('Solde d''heure collaborateur'!BH$2,Horaires!$H$3:$H$40,0),5),VLOOKUP(BG25,Horaires!$A$3:$E$60,5,))) -> 0 | BK25: =INDEX(Planning!$19:$19,MATCH('Solde d''heure collaborateur'!$A25,Planning!$3:$3)) -> Vib3 | BL25: =VLOOKUP(BK25,Horaires!$A$3:$E$49,2,) -> Vibert | BM25: =IF(BL25="vacances",INDEX(Horaires!$H$3:$L$42,MATCH('Solde d''heure collaborateur'!BL$2,Horaires!$H$3:$H$40,0),4),IF(BL25="maladie",INDEX(Horaires!$H$3:$L$42,MATCH('Solde d''heure collaborateur'!BL$2,Horaires!$H$3:$H$40,0),5),VLOOKUP(BK25,Horaires!$A$3:$E$60,5,))) -> 0.4270833333 | BO25: =INDEX(Planning!$20:$20,MATCH('Solde d''heure collaborateur'!$A25,Planning!$3:$3)) -> R | BP25: =VLOOKUP(BO25,Horaires!$A$3:$E$49,2,) -> Congé | BQ25: =IF(BP25="vacances",INDEX(Horaires!$H$3:$L$42,MATCH('Solde d''heure collaborateur'!BP$2,Horaires!$H$3:$H$40,0),4),IF(BP25="maladie",INDEX(Horaires!$H$3:$L$42,MATCH('Solde d''heure collaborateur'!BP$2,Horaires!$H$3:$H$40,0),5),VLOOKUP(BO25,Horaires!$A$3:$E$60,5,))) -> 0 | BS25: =INDEX(Planning!$21:$21,MATCH('Solde d''heure collaborateur'!$A25,Planning!$3:$3)) -> Ves3 | BT25: =VLOOKUP(BS25,Horaires!$A$3:$E$49,2,) -> Vesenaz | BU25: =IF(BT25="vacances",INDEX(Horaires!$H$3:$L$42,MATCH('Solde d''heure collaborateur'!BT$2,Horaires!$H$3:$H$40,0),4),IF(BT25="maladie",INDEX(Horaires!$H$3:$L$42,MATCH('Solde d''heure collaborateur'!BT$2,Horaires!$H$3:$H$40,0),5),VLOOKUP(BS25,Horaires!$A$3:$E$60,5,))) -> 0.40625 | BW25: =INDEX(Planning!$22:$22,MATCH('Solde d''heure collaborateur'!$A25,Planning!$3:$3)) -> X | BX25: =VLOOKUP(BW25,Horaires!$A$3:$E$49,2,) -> XXX | BY25: =IF(BX25="vacances",INDEX(Horaires!$H$3:$L$42,MATCH('Solde d''heure collaborateur'!BX$2,Horaires!$H$3:$H$40,0),4),IF(BX25="maladie",INDEX(Horaires!$H$3:$L$42,MATCH('Solde d''heure collaborateur'!BX$2,Horaires!$H$3:$H$40,0),5),VLOOKUP(BW25,Horaires!$A$3:$E$60,5,))) -> 0 | CA25: =INDEX(Planning!$23:$23,MATCH('Solde d''heure collaborateur'!$A25,Planning!$3:$3)) -> Aca3 | CB25: =VLOOKUP(CA25,Horaires!$A$3:$E$49,2,) -> Acacias | CC25: =IF(CB25="vacances",INDEX(Horaires!$H$3:$L$42,MATCH('Solde d''heure collaborateur'!CB$2,Horaires!$H$3:$H$40,0),4),IF(CB25="maladie",INDEX(Horaires!$H$3:$L$42,MATCH('Solde d''heure collaborateur'!CB$2,Horaires!$H$3:$H$40,0),5),VLOOKUP(CA25,Horaires!$A$3:$E$60,5,))) -> 0.40625 | CE25: =INDEX(Planning!$24:$24,MATCH('Solde d''heure collaborateur'!$A25,Planning!$3:$3)) -> R | CF25: =VLOOKUP(CE25,Horaires!$A$3:$E$49,2,) -> Congé | CG25: =IF(CF25="vacances",INDEX(Horaires!$H$3:$L$42,MATCH('Solde d''heure collaborateur'!CF$2,Horaires!$H$3:$H$40,0),4),IF(CF25="maladie",INDEX(Horaires!$H$3:$L$42,MATCH('Solde d''heure collaborateur'!CF$2,Horaires!$H$3:$H$40,0),5),VLOOKUP(CE25,Horaires!$A$3:$E$60,5,))) -> 0 | CI25: =INDEX(Planning!$25:$25,MATCH('Solde d''heure collaborateur'!$A25,Planning!$3:$3)) -> X | CJ25: =VLOOKUP(CI25,Horaires!$A$3:$E$49,2,) -> XXX | CK25: =IF(CJ25="vacances",INDEX(Horaires!$H$3:$L$42,MATCH('Solde d''heure collaborateur'!CJ$2,Horaires!$H$3:$H$40,0),4),IF(CJ25="maladie",INDEX(Horaires!$H$3:$L$42,MATCH('Solde d''heure collaborateur'!CJ$2,Horaires!$H$3:$H$40,0),5),VLOOKUP(CI25,Horaires!$A$3:$E$60,5,))) -> 0 | CM25: =INDEX(Planning!$26:$26,MATCH('Solde d''heure collaborateur'!$A25,Planning!$3:$3)) -> R | CN25: =VLOOKUP(CM25,Horaires!$A$3:$E$49,2,) -> Congé | CO25: =IF(CN25="vacances",INDEX(Horaires!$H$3:$L$42,MATCH('Solde d''heure collaborateur'!CN$2,Horaires!$H$3:$H$40,0),4),IF(CN25="maladie",INDEX(Horaires!$H$3:$L$42,MATCH('Solde d''heure collaborateur'!CN$2,Horaires!$H$3:$H$40,0),5),VLOOKUP(CM25,Horaires!$A$3:$E$60,5,))) -> 0 | CQ25: =INDEX(Planning!$27:$27,MATCH('Solde d''heure collaborateur'!$A25,Planning!$3:$3)) -> R | CR25: =VLOOKUP(CQ25,Horaires!$A$3:$E$49,2,) -> Congé | CS25: =IF(CR25="vacances",INDEX(Horaires!$H$3:$L$42,MATCH('Solde d''heure collaborateur'!CR$2,Horaires!$H$3:$H$40,0),4),IF(CR25="maladie",INDEX(Horaires!$H$3:$L$42,MATCH('Solde d''heure collaborateur'!CR$2,Horaires!$H$3:$H$40,0),5),VLOOKUP(CQ25,Horaires!$A$3:$E$60,5,))) -> 0 | CU25: =INDEX(Planning!$28:$28,MATCH('Solde d''heure collaborateur'!$A25,Planning!$3:$3)) -> tour3 | CV25: =VLOOKUP(CU25,Horaires!$A$3:$E$49,2,) -> Tourelle | CW25: =IF(CV25="vacances",INDEX(Horaires!$H$3:$L$42,MATCH('Solde d''heure collaborateur'!CV$2,Horaires!$H$3:$H$40,0),4),IF(CV25="maladie",INDEX(Horaires!$H$3:$L$42,MATCH('Solde d''heure collaborateur'!CV$2,Horaires!$H$3:$H$40,0),5),VLOOKUP(CU25,Horaires!$A$3:$E$60,5,))) -> 0.4270833333 | CY25: =INDEX(Planning!$29:$29,MATCH('Solde d''heure collaborateur'!$A25,Planning!$3:$3)) -> onex3 | CZ25: =VLOOKUP(CY25,Horaires!$A$3:$E$49,2,) -> Onex | DA25: =IF(CZ25="vacances",INDEX(Horaires!$H$3:$L$42,MATCH('Solde d''heure collaborateur'!CZ$2,Horaires!$H$3:$H$40,0),4),IF(CZ25="maladie",INDEX(Horaires!$H$3:$L$42,MATCH('Solde d''heure collaborateur'!CZ$2,Horaires!$H$3:$H$40,0),5),VLOOKUP(CY25,Horaires!$A$3:$E$60,5,))) -> 0.4270833333 | DC25: =INDEX(Planning!$30:$30,MATCH('Solde d''heure collaborateur'!$A25,Planning!$3:$3)) -> X | DD25: =VLOOKUP(DC25,Horaires!$A$3:$E$49,2,) -> XXX | DE25: =IF(DD25="vacances",INDEX(Horaires!$H$3:$L$42,MATCH('Solde d''heure collaborateur'!DD$2,Horaires!$H$3:$H$40,0),4),IF(DD25="maladie",INDEX(Horaires!$H$3:$L$42,MATCH('Solde d''heure collaborateur'!DD$2,Horaires!$H$3:$H$40,0),5),VLOOKUP(DC25,Horaires!$A$3:$E$60,5,))) -> 0 | DG25: =INDEX(Planning!$31:$31,MATCH('Solde d''heure collaborateur'!$A25,Planning!$3:$3)) -> X | DH25: =VLOOKUP(DG25,Horaires!$A$3:$E$49,2,) -> XXX | DI25: =IF(DH25="vacances",INDEX(Horaires!$H$3:$L$42,MATCH('Solde d''heure collaborateur'!DH$2,Horaires!$H$3:$H$40,0),4),IF(DH25="maladie",INDEX(Horaires!$H$3:$L$42,MATCH('Solde d''heure collaborateur'!DH$2,Horaires!$H$3:$H$40,0),5),VLOOKUP(DG25,Horaires!$A$3:$E$60,5,))) -> 0 | DK25: =INDEX(Planning!$32:$32,MATCH('Solde d''heure collaborateur'!$A25,Planning!$3:$3)) -> X | DL25: =VLOOKUP(DK25,Horaires!$A$3:$E$49,2,) -> XXX | DM25: =IF(DL25="vacances",INDEX(Horaires!$H$3:$L$42,MATCH('Solde d''heure collaborateur'!DL$2,Horaires!$H$3:$H$40,0),4),IF(DL25="maladie",INDEX(Horaires!$H$3:$L$42,MATCH('Solde d''heure collaborateur'!DL$2,Horaires!$H$3:$H$40,0),5),VLOOKUP(DK25,Horaires!$A$3:$E$60,5,))) -> 0 | DO25: =INDEX(Planning!$33:$33,MATCH('Solde d''heure collaborateur'!$A25,Planning!$3:$3)) -> X | DP25: =VLOOKUP(DO25,Horaires!$A$3:$E$49,2,) -> XXX | DQ25: =IF(DP25="vacances",INDEX(Horaires!$H$3:$L$42,MATCH('Solde d''heure collaborateur'!DP$2,Horaires!$H$3:$H$40,0),4),IF(DP25="maladie",INDEX(Horaires!$H$3:$L$42,MATCH('Solde d''heure collaborateur'!DP$2,Horaires!$H$3:$H$40,0),5),VLOOKUP(DO25,Horaires!$A$3:$E$60,5,))) -> 0 | DS25: =INDEX(Planning!$34:$34,MATCH('Solde d''heure collaborateur'!$A25,Planning!$3:$3)) -> X | DT25: =VLOOKUP(DS25,Horaires!$A$3:$E$49,2,) -> XXX | DU25: =IF(DT25="vacances",INDEX(Horaires!$H$3:$L$42,MATCH('Solde d''heure collaborateur'!DT$2,Horaires!$H$3:$H$40,0),4),IF(DT25="maladie",INDEX(Horaires!$H$3:$L$42,MATCH('Solde d''heure collaborateur'!DT$2,Horaires!$H$3:$H$40,0),5),VLOOKUP(DS25,Horaires!$A$3:$E$60,5,))) -> 0 | DW25: =INDEX(Planning!$35:$35,MATCH('Solde d''heure collaborateur'!$A25,Planning!$3:$3)) -> X | DX25: =VLOOKUP(DW25,Horaires!$A$3:$E$49,2,) -> XXX | DY25: =IF(DX25="vacances",INDEX(Horaires!$H$3:$L$42,MATCH('Solde d''heure collaborateur'!DX$2,Horaires!$H$3:$H$40,0),4),IF(DX25="maladie",INDEX(Horaires!$H$3:$L$42,MATCH('Solde d''heure collaborateur'!DX$2,Horaires!$H$3:$H$40,0),5),VLOOKUP(DW25,Horaires!$A$3:$E$60,5,))) -> 0
D26: =SUM(E26-INDEX(Horaires!$H$3:$L$37,MATCH('Solde d''heure collaborateur'!D$2,Horaires!$H$3:$H$37,0),2)) -> 1 | E26: =SUM(E20:E25)*24 -> 43 | H26: =SUM(I26-INDEX(Horaires!$H$3:$L$37,MATCH('Solde d''heure collaborateur'!H$2,Horaires!$H$3:$H$37,0),2)) -> 1.5 | I26: =SUM(I20:I25)*24 -> 43.5 | L26: =SUM(M26-INDEX(Horaires!$H$3:$L$37,MATCH('Solde d''heure collaborateur'!L$2,Horaires!$H$3:$H$37,0),2)) -> 0 | M26: =SUM(M20:M25)*24 -> 42 | P26: =SUM(Q26-INDEX(Horaires!$H$3:$L$37,MATCH('Solde d''heure collaborateur'!P$2,Horaires!$H$3:$H$37,0),2)) -> 3.552713679e-15 | Q26: =SUM(Q20:Q25)*24 -> 22.5 | T26: =SUM(U26-INDEX(Horaires!$H$3:$L$37,MATCH('Solde d''heure collaborateur'!T$2,Horaires!$H$3:$H$37,0),2)) -> 3.5 | U26: =SUM(U20:U25)*24 -> 45.5 | X26: =SUM(Y26-INDEX(Horaires!$H$3:$L$37,MATCH('Solde d''heure collaborateur'!X$2,Horaires!$H$3:$H$37,0),2)) -> 3.552713679e-15 | Y26: =SUM(Y20:Y25)*24 -> 22.5 | AB26: =SUM(AC26-INDEX(Horaires!$H$3:$L$37,MATCH('Solde d''heure collaborateur'!AB$2,Horaires!$H$3:$H$37,0),2)) -> 3 | AC26: =SUM(AC20:AC25)*24 -> 45 | AF26: =SUM(AG26-INDEX(Horaires!$H$3:$L$37,MATCH('Solde d''heure collaborateur'!AF$2,Horaires!$H$3:$H$37,0),2)) -> 2.5 | AG26: =SUM(AG20:AG25)*24 -> 44.5 | AJ26: =SUM(AK26-INDEX(Horaires!$H$3:$L$37,MATCH('Solde d''heure collaborateur'!AJ$2,Horaires!$H$3:$H$37,0),2)) -> 0.5 | AK26: =SUM(AK20:AK25)*24 -> 42.5 | AN26: =SUM(AO26-INDEX(Horaires!$H$3:$L$37,MATCH('Solde d''heure collaborateur'!AN$2,Horaires!$H$3:$H$37,0),2)) -> 1.5 | AO26: =SUM(AO20:AO25)*24 -> 43.5 | AR26: =SUM(AS26-INDEX(Horaires!$H$3:$L$37,MATCH('Solde d''heure collaborateur'!AR$2,Horaires!$H$3:$H$37,0),2)) -> 0 | AS26: =SUM(AS20:AS25)*24 -> 33.25 | AV26: =SUM(AW26-INDEX(Horaires!$H$3:$L$37,MATCH('Solde d''heure collaborateur'!AV$2,Horaires!$H$3:$H$37,0),2)) -> 0 | AW26: =SUM(AW20:AW25)*24 -> 42 | AZ26: =SUM(BA26-INDEX(Horaires!$H$3:$L$37,MATCH('Solde d''heure collaborateur'!AZ$2,Horaires!$H$3:$H$37,0),2)) -> -10.75 | BA26: =SUM(BA20:BA25)*24 -> 31.25 | BD26: =SUM(BE26-INDEX(Horaires!$H$3:$L$37,MATCH('Solde d''heure collaborateur'!BD$2,Horaires!$H$3:$H$37,0),2)) -> 1 | BE26: =SUM(BE20:BE25)*24 -> 43 | BH26: =SUM(BI26-INDEX(Horaires!$H$3:$L$37,MATCH('Solde d''heure collaborateur'!BH$2,Horaires!$H$3:$H$37,0),2)) -> -9.75 | BI26: =SUM(BI20:BI25)*24 -> 32.25 | BL26: =SUM(BM26-INDEX(Horaires!$H$3:$L$37,MATCH('Solde d''heure collaborateur'!BL$2,Horaires!$H$3:$H$37,0),2)) -> 2.25 | BM26: =SUM(BM20:BM25)*24 -> 44.25 | BP26: =SUM(BQ26-INDEX(Horaires!$H$3:$L$37,MATCH('Solde d''heure collaborateur'!BP$2,Horaires!$H$3:$H$37,0),2)) -> 1.5 | BQ26: =SUM(BQ20:BQ25)*24 -> 43.5 | BT26: =SUM(BU26-INDEX(Horaires!$H$3:$L$37,MATCH('Solde d''heure collaborateur'!BT$2,Horaires!$H$3:$H$37,0),2)) -> -9.75 | BU26: =SUM(BU20:BU25)*24 -> 32.25 | BX26: =SUM(BY26-INDEX(Horaires!$H$3:$L$37,MATCH('Solde d''heure collaborateur'!BX$2,Horaires!$H$3:$H$37,0),2)) -> 0 | BY26: =SUM(BY20:BY25)*24 -> 21.5 | CB26: =SUM(CC26-INDEX(Horaires!$H$3:$L$37,MATCH('Solde d''heure collaborateur'!CB$2,Horaires!$H$3:$H$37,0),2)) -> -9.25 | CC26: =SUM(CC20:CC25)*24 -> 32.75 | CF26: =SUM(CG26-INDEX(Horaires!$H$3:$L$37,MATCH('Solde d''heure collaborateur'!CF$2,Horaires!$H$3:$H$37,0),2)) -> 3.5 | CG26: =SUM(CG20:CG25)*24 -> 45.5 | CJ26: =SUM(CK26-INDEX(Horaires!$H$3:$L$37,MATCH('Solde d''heure collaborateur'!CJ$2,Horaires!$H$3:$H$37,0),2)) -> -42 | CK26: =SUM(CK20:CK25)*24 -> 0 | CN26: =SUM(CO26-INDEX(Horaires!$H$3:$L$37,MATCH('Solde d''heure collaborateur'!CN$2,Horaires!$H$3:$H$37,0),2)) -> 1.5 | CO26: =SUM(CO20:CO25)*24 -> 43.5 | CR26: =SUM(CS26-INDEX(Horaires!$H$3:$L$37,MATCH('Solde d''heure collaborateur'!CR$2,Horaires!$H$3:$H$37,0),2)) -> -8.25 | CS26: =SUM(CS20:CS25)*24 -> 33.75 | CV26: =SUM(CW26-INDEX(Horaires!$H$3:$L$37,MATCH('Solde d''heure collaborateur'!CV$2,Horaires!$H$3:$H$37,0),2)) -> 2.5 | CW26: =SUM(CW20:CW25)*24 -> 44.5 | CZ26: =SUM(DA26-INDEX(Horaires!$H$3:$L$37,MATCH('Solde d''heure collaborateur'!CZ$2,Horaires!$H$3:$H$37,0),2)) -> 21.5 | DA26: =SUM(DA20:DA25)*24 -> 21.5 | DD26: =SUM(DE26-INDEX(Horaires!$H$3:$L$37,MATCH('Solde d''heure collaborateur'!DD$2,Horaires!$H$3:$H$37,0),2)) ->  | DE26: =SUM(DE20:DE25)*24 -> 0 | DH26: =SUM(DI26-INDEX(Horaires!$H$3:$L$37,MATCH('Solde d''heure collaborateur'!DH$2,Horaires!$H$3:$H$37,0),2)) -> 0 | DI26: =SUM(DI20:DI25)*24 -> 0 | DL26: =SUM(DM26-INDEX(Horaires!$H$3:$L$37,MATCH('Solde d''heure collaborateur'!DL$2,Horaires!$H$3:$H$37,0),2)) -> 0 | DM26: =SUM(DM20:DM25)*24 -> 0 | DP26: =SUM(DQ26-INDEX(Horaires!$H$3:$L$37,MATCH('Solde d''heure collaborateur'!DP$2,Horaires!$H$3:$H$37,0),2)) -> 0 | DQ26: =SUM(DQ20:DQ25)*24 -> 0 | DT26: =SUM(DU26-INDEX(Horaires!$H$3:$L$37,MATCH('Solde d''heure collaborateur'!DT$2,Horaires!$H$3:$H$37,0),2)) -> 0 | DU26: =SUM(DU20:DU25)*24 -> 0 | DX26: =SUM(DY26-INDEX(Horaires!$H$3:$L$37,MATCH('Solde d''heure collaborateur'!DX$2,Horaires!$H$3:$H$37,0),2)) -> 0 | DY26: =SUM(DY20:DY25)*24 -> 0
